Workbook

Sheet Scoring criteria
A1: SNATtrop Scoring grid
A2: Date | E2: 2011-07-29
A3: Name of the person in charge of questionnaires | G3: Network
A4: Function | G4: Name | H4: Function
A5: Persons who have implement the scoring | E5: n°1 | G5: name
E6: n°2 | G6: name
E7: n°3
A8: total number of persons | E8: =3-IF(ISBLANK(G5),1,0)-IF(ISBLANK(G6),1,0)-IF(ISBLANK(G7),1,0) -> 2
A11: NOTE: There is no link between the question nulbers below and the sections of the questionaire
A12: Sections and questions | B12: N°1 | C12: N°2 | D12: N°3 | E12: Score (0 to 3) or NA | F12: Scoring guide | G12: Comments
A14: Section 1: Objectives and context of surveillance | E14: Double click the icon to bring the scoring guide
A15: 1.A Relevance of surveillance objectives | B15: 3 | C15: 3 | E15: =IF(OR(AND(B15="NA",C15="NA",ISBLANK(D15)),AND(B15="NA",C15="NA",D15="NA"),AND(B15="NA",ISBLANK(C15),ISBLANK(D15))),"NA",SUM(B17:D17)/E$8) -> 3
A16: 1.B Level of detail, accuracy, and formalization of objectives | B16: 3 | C16: 3 | E16: =IF(OR(AND(B16="NA",C16="NA",ISBLANK(D16)),AND(B16="NA",C16="NA",D16="NA"),AND(B16="NA",ISBLANK(C16),ISBLANK(D16))),"NA",SUM(B16:D16)/E$8) -> 3
A17: 1.C Taking partners’ expectations into account | B17: 3 | C17: 3 | E17: =IF(OR(AND(B17="NA",C17="NA",ISBLANK(D17)),AND(B17="NA",C17="NA",D17="NA"),AND(B17="NA",ISBLANK(C17),ISBLANK(D17))),"NA",SUM(B17:D17)/E$8) -> 3
A18: 1.D Coherence of the diseases under surveillance with the sanitary situation (existing/exotic diseases or threats) | B18: 3 | C18: 3 | E18: =IF(OR(AND(B18="NA",C18="NA",ISBLANK(D18)),AND(B18="NA",C18="NA",D18="NA"),AND(B18="NA",ISBLANK(C18),ISBLANK(D18))),"NA",SUM(B18:D18)/E$8) -> 3
A19: Total | E19: =SUM(E15:E18) -> 12
A20: over | E20: ='Calculation sheet'!C14 -> 12
A21: Comments / general recommendation
A23: Section 2: Central institutional organization | E23: Double click the icon to bring the scoring guide
A24: 2.A Existence of an operational management structure (central unit) | B24: 0 | C24: 1 | E24: =IF(OR(AND(B24="NA",C24="NA",ISBLANK(D24)),AND(B24="NA",C24="NA",D24="NA"),AND(B24="NA",ISBLANK(C24),ISBLANK(D24))),"NA",SUM(B24:D24)/E$8) -> 0.5
A25: 2.B Existence of an operational steering structure that is representative of the partners (steering committee) | B25: 1 | C25: 1 | E25: =IF(OR(AND(B25="NA",C25="NA",ISBLANK(D25)),AND(B25="NA",C25="NA",D25="NA"),AND(B25="NA",ISBLANK(C25),ISBLANK(D25))),"NA",SUM(B25:D25)/E$8) -> 1
A26: 2.C Existence of a scientific and technical committee for the system | B26: 2 | C26: 2 | E26: 2
A27: 2.D Organization and operations of the system laid down in regulations, a charter, or a convention established between the partners | B27: 0 | C27: 0 | E27: 0
A28: 2.E Frequency of meetings of the central coordinating body | B28: 2 | C28: 2 | E28: 2
A29: 2.F Supervision of intermediary units by the central level | B29: 2 | C29: 2 | E29: 2
A30: 2.G Adequacy of the central level’s material and financial resources | B30: 0 | C30: 0 | E30: 0
A31: Total | E31: =SUM(E24:E30) -> 7.5
A32: over | E32: ='Calculation sheet'!C23 -> 21
A33: Comments/ general recommandation
A35: Section 3: Field institutional organization | E35: Double click the icon to bring the scoring guide
A36: 3.A Existence of formal intermediary units covering the entire territory | B36: 3 | C36: 3 | E36: =IF(OR(AND(B36="NA",C36="NA",ISBLANK(D36)),AND(B36="NA",C36="NA",D36="NA"),AND(B36="NA",ISBLANK(C36),ISBLANK(D36))),"NA",SUM(B36:D36)/E$8) -> 3
A37: 3.B Active role of intermediary units in the functioning of the system (validation, management, feedback) | B37: 3 | C37: 3 | E37: =IF(OR(AND(B37="NA",C37="NA",ISBLANK(D37)),AND(B37="NA",C37="NA",D37="NA"),AND(B37="NA",ISBLANK(C37),ISBLANK(D37))),"NA",SUM(B37:D37)/E$8) -> 3
A38: 3.C Implementation of supervision by the intermediary level | B38: 3 | C38: 2.5 | E38: 2.75
A39: 3.D Harmonization of intermediary units’ activities | B39: 0 | C39: 0 | E39: 0
A40: 3.E Adequacy of material and financial resources of intermediary units | B40: 0 | C40: 0 | E40: 0
A41: 3.F Existence of coordination meetings at the intermediate level | B41: 1 | C41: 3 | E41: 2
A42: 3.G Exhaustiveness or representativeness of the field agents’ coverage of the target population | B42: 3 | C42: 1 | E42: 2
A43: 3.H Adequacy of material and financial resources at the field level | B43: 0 | C43: 0 | E43: 0
A44: Total | E44: =SUM(E36:E43) -> 12.75
A45: over | E45: ='Calculation sheet'!C33 -> 24
A46: Comments/ general recommandation
A48: Section 4 : Laboratory | E48: Double click the icon to bring the scoring guide
A49: 4.A Effective integration of laboratories in the surveillance system | B49: 3 | C49: 3 | E49: =IF(OR(AND(B49="NA",C49="NA",ISBLANK(D49)),AND(B49="NA",C49="NA",D49="NA"),AND(B49="NA",ISBLANK(C49),ISBLANK(D49))),"NA",SUM(B49:D49)/E$8) -> 3
A50: 4.B Adequacy of human, material, and financial resources for diagnostic needs | B50: 0 | C50: 0 | E50: =IF(OR(AND(B50="NA",C50="NA",ISBLANK(D50)),AND(B50="NA",C50="NA",D50="NA"),AND(B50="NA",ISBLANK(C50),ISBLANK(D50))),"NA",SUM(B50:D50)/E$8) -> 0
A51: 4.C Application of Quality Assurance for the tests undertaken | B51: 3 | C51: 3 | E51: 3
A52: 4.D Quality of the standardization of work between different laboratories | B52: 3 | C52: 3 | E52: 3
A53: 4.E Proportion of tests submitted to inter-laboratory trials | B53: 3 | C53: 3 | E53: 3
A54: 4.F Existence of an investigation team to support field agents | B54: 2 | C54: 2 | E54: 2
A55: 4.G Relevance of diagnostic techniques | B55: 3 | C55: 3 | E55: 3
A56: 4.H Sensitivity of diagnostic techniques | B56: 0 | C56: 3 | E56: 1.5
A57: 4.I Specificity of diagnostic techniques | B57: 0 | C57: 3 | E57: 1.5
A58: 4.J Control of laboratory reagents | B58: 3 | C58: 3 | E58: 3
A59: 4.K Technical level of data management at the laboratory | B59: 0 | C59: 3 | E59: 1.5
A60: 4.L Analysis deadlines at the laboratory (formalization, standardization, verification, transfer of results to the central unit) | B60: 0 | C60: 0 | E60: 0
A61: 4.M Quality of results delivered | B61: 3 | C61: 3 | E61: 3
A62: Total | E62: =SUM(E49:E61) -> 27.5
A63: Over | E63: ='Calculation sheet'!C48 -> 39
A64: Comments/ general recommandation
A66: Section 5: Surveillance tools | E66: Double click the icon to bring the scoring guide
A67: 5.A Existence of a formalized surveillance protocol for each disease or threat under surveillance | B67: 2 | C67: 2 | E67: =IF(OR(AND(B67="NA",C67="NA",ISBLANK(D67)),AND(B67="NA",C67="NA",D67="NA"),AND(B67="NA",ISBLANK(C67),ISBLANK(D67))),"NA",SUM(B67:D67)/E$8) -> 2
A68: 5.B Standardization of data collected | B68: 3 | C68: 3 | E68: =IF(OR(AND(B68="NA",C68="NA",ISBLANK(D68)),AND(B68="NA",C68="NA",D68="NA"),AND(B68="NA",ISBLANK(C68),ISBLANK(D68))),"NA",SUM(B68:D68)/E$8) -> 3
A69: 5.C Relevance of measurement tools (excluding laboratory tools) | B69: 3 | C69: 3 | E69: 3
A70: 5.D Sensitivity of the case or threat definition | B70: 3 | C70: 3 | E70: 3
A71: 5.E Specificity of the case or threat definition | B71: 2 | C71: 1 | E71: 1.5
A72: 5.F Simplicity of the case or threat definition | B72: 2 | C72: 2 | E72: 2
A73: 5.G Quality of the filling out of investigation forms | B73: 3 | C73: 3 | E73: 3
A74: 5.H Relevance of collected samples | B74: 3 | C74: 2 | E74: 2.5
A75: 5.I Standardization of collected samples | B75: 3 | C75: 3 | E75: 3
A76: 5.J Quality of samples collected | B76: 3 | C76: 3 | E76: 3
A77: 5.K Respect of the interval between the detection of a case or threat and the delivery of results | B77: 3 | C77: 3 | E77: 3
A78: 5.L Simplicity of the notification procedure | B78: 2 | C78: 2 | E78: 2
A79: 5.M Simplicity of the data collection procedure | B79: 2 | C79: 3 | E79: 2.5
A80: 5.N Acceptability of the consequences of a suspicion or case for the source or collector of data | B80: 2 | C80: 1 | E80: 1.5
A81: Total | E81: =SUM(E67:E80) -> 35
A82: Over | E82: ='Calculation sheet'!C64 -> 42
A83: Comments/ general recommandation
A85: Section 6: Surveillance procedures | E85: Double click the icon to bring the scoring guide
A86: 6.A Appropriateness of surveillance procedures with the system's objectives | B86: 0 | C86: 0 | E86: =IF(OR(AND(B86="NA",C86="NA",ISBLANK(D86)),AND(B86="NA",C86="NA",D86="NA"),AND(B86="NA",ISBLANK(C86),ISBLANK(D86))),"NA",SUM(B86:D86)/E$8) -> 0
A87: 6.B Existence of passive (event-based) surveillance whose results are exhaustive or representative | B87: 3 | C87: 3 | E87: =IF(OR(AND(B87="NA",C87="NA",ISBLANK(D87)),AND(B87="NA",C87="NA",D87="NA"),AND(B87="NA",ISBLANK(C87),ISBLANK(D87))),"NA",SUM(B87:D87)/E$8) -> 3
A88: 6.C Existence of awareness building programs for data sources in a passive (event-based) network | B88: 2 | C88: 2 | E88: 2
A89: 6.D Relevance and suitability of active (planned) surveillance protocols | B89: 1 | C89: 1 | E89: 1
A90: 6.E Surveillance of susceptible wild animals | B90: 0 | C90: 0 | E90: 0
A91: 6.F Vector surveillance and control | B91: NA | C91: NA | E91: NA
A92: 6.G Representativeness of the populations targeted by sampling in active (planned) surveillance | B92: NA | C92: NA | E92: NA
A93: 6.H Precision of sample under active (planned) surveillance | B93: NA | C93: NA | E93: NA
A94: 6.I Level of satisfaction of active (planned) surveillance completeness rate | B94: NA | C94: NA | E94: NA
A95: Total | E95: =SUM(E86:E94) -> 6
A96: over | E96: ='Calculation sheet'!C75 -> 27
A97: Comments/ general recommandation
A99: Section 7: Data management | E99: Double click the icon to bring the scoring guide
A100: 7.A. Adequacy of the data management system for the needs of the system (relational database, etc.) | B100: 3 | C100: 3 | E100: =IF(OR(AND(B100="NA",C100="NA",ISBLANK(D100)),AND(B100="NA",C100="NA",D100="NA"),AND(B100="NA",ISBLANK(C100),ISBLANK(D100))),"NA",SUM(B100:D100)/E$8) -> 3
A101: 7.B Data input interval in accordance with the objectives and use of system results | B101: 0 | C101: 0 | E101: =IF(OR(AND(B101="NA",C101="NA",ISBLANK(D101)),AND(B101="NA",C101="NA",D101="NA"),AND(B101="NA",ISBLANK(C101),ISBLANK(D101))),"NA",SUM(B101:D101)/E$8) -> 0
A102: 7.C. Designated staff available and trained in data entry, management and analysis. | B102: 1 | C102: 1 | E102: 1
A103: 7.D. Adequacy of material and financial resources for data management and analysis | B103: 0 | C103: 0 | E103: 0
A104: 7.E. Data verification and validation procedures formalized and operational | B104: 0 | C104: 2 | E104: 1
A105: 7.F Complete descriptive processing of data | B105: 3 | C105: 3 | E105: 3
A106: 7.G. Exploitation of data fits the needs of the system (if possible regular and multi-disciplinary) | B106: 0 | C106: 0 | E106: 0
A107: Total | E107: =SUM(E100:E106) -> 8
A108: Over | E108: ='Calculation sheet'!C84 -> 21
A109: Comments/ general recommandation
A111: Section 8: Training | E111: Double click the icon to bring the scoring guide
A112: 8.A. Adequate skill level in epidemiology of members of the central unit | B112: 1 | C112: 1 | E112: =IF(OR(AND(B112="NA",C112="NA",ISBLANK(D112)),AND(B112="NA",C112="NA",D112="NA"),AND(B112="NA",ISBLANK(C112),ISBLANK(D112))),"NA",SUM(B112:D112)/E$8) -> 1
A113: 8.B. Initial training implemented for all field agents when joining the system | B113: 1 | C113: 1 | E113: =IF(OR(AND(B113="NA",C113="NA",ISBLANK(D113)),AND(B113="NA",C113="NA",D113="NA"),AND(B113="NA",ISBLANK(C113),ISBLANK(D113))),"NA",SUM(B113:D113)/E$8) -> 1
A114: 8.C. Objectives and contents of initial training of system field actors adequate for operational surveillance needs | B114: 3 | C114: 2 | E114: 2.5
A115: 8.D. Regular advanced training | B115: 0 | C115: 0 | E115: 0
A116: 8.E. Adequacy of material and financial resources for training | B116: 1 | C116: 1 | E116: 1
A117: Total | E117: =SUM(E112:E116) -> 5.5
A118: Over | E118: ='Calculation sheet'!C91 -> 15
A119: Comments/ general recommandation
A121: Section 9 : Communication | E121: Double click the icon to bring the scoring guide
A122: 9.A Regular release of reports and scientific articles on surveillance results | B122: 0 | C122: 0 | E122: =IF(OR(AND(B122="NA",C122="NA",ISBLANK(D122)),AND(B122="NA",C122="NA",D122="NA"),AND(B122="NA",ISBLANK(C122),ISBLANK(D122))),"NA",SUM(B122:D122)/E$8) -> 0
A123: 9.B. Return of individual test results to field actors | B123: 3 | C123: 3 | E123: =IF(OR(AND(B123="NA",C123="NA",ISBLANK(D123)),AND(B123="NA",C123="NA",D123="NA"),AND(B123="NA",ISBLANK(C123),ISBLANK(D123))),"NA",SUM(B123:D123)/E$8) -> 3
A124: 9.C. Regular dissemination of a relevant information bulletin | B124: 3 | C124: 0 | E124: 1.5
A125: 9.D. Systematic return of reports on results to field actors (outside of a bulletin). | B125: 3 | C125: 3 | E125: 3
A126: 9.E. Presence of a communications system organized transversally and vertically between field actors (mail, web, telephone…) | B126: 3 | C126: 3 | E126: 3
A127: 9.F. Solid external communication policy | B127: 3 | C127: 3 | E127: 3
A128: 9.G. Adequacy of material and financial resources for communication | B128: 0 | C128: 0 | E128: 0
A129: Total | E129: =SUM(E122:E128) -> 13.5
A130: Sur | E130: ='Calculation sheet'!C100 -> 21
A131: Commentaire / recommandation générale
A133: Section 10 : Evaluation | E133: Double click the icon to bring the scoring guide
A134: 10.A. System of performance indicators developed and validated by the directors of the network. | B134: 0 | C134: 0 | E134: =IF(OR(AND(B134="NA",C134="NA",ISBLANK(D134)),AND(B134="NA",C134="NA",D134="NA"),AND(B134="NA",ISBLANK(C134),ISBLANK(D134))),"NA",SUM(B134:D134)/E$8) -> 0
A135: 10.B. Performance indicators regularly measured, interpreted, and disseminated | B135: NA | C135: 0 | E135: =IF(OR(AND(B135="NA",C135="NA",ISBLANK(D135)),AND(B135="NA",C135="NA",D135="NA"),AND(B135="NA",ISBLANK(C135),ISBLANK(D135))),"NA",SUM(B135:D135)/E$8) -> 0
A136: 10.C. External evaluations carried out | B136: 1 | C136: 1 | E136: 1
A137: 10.D. Implementation of corrective measures | B137: 1 | C137: 1 | E137: 1
A138: Total | E138: =SUM(E134:E137) -> 2
A139: Sur | E139: ='Calculation sheet'!C106 -> 12
A140: Commentaire / recommandation générale
A142: Section 11 : Global Evaluation | B142: Complete by the evaluator
A143: 11.A. Number of missing answers | B143: 2 | E143: =B143 -> 2
A144: 11.B. Heterogeneity of answers of the intermediary units : number of answers Very homogeneous | B144: 32 | E144: =IF(AND(B144="NA"),"NA",B144) -> 32
A145: 11.B. Heterogeneity of answers of the intermediary units : number of answers fairly homogeneous | B145: NA | E145: =IF(AND(B145="NA"),"NA",B145) -> NA
A146: 11.B. Heterogeneity of answers of the intermediary units : number of answers Not homogeneous but homogeneous for one category of actors | B146: NA | E146: NA
A147: 11.B. Heterogeneity of answers of the intermediary units : number of answers Not homogeneous | B147: 6 | E147: 6
A148: 11.C. Heterogeneity of answers of the field agents : number of answers Very homogeneous | B148: 29 | E148: 29
A149: 11.C. Heterogeneity of answers of the field agents : number of answers fairly homogeneous | B149: 8 | E149: 8
A150: 11.C. Heterogeneity of answers of the field agents : number of answers Not homogeneous but homogeneous for one category of actors | B150: NA | E150: NA
A151: 11.C. Heterogeneity of answers of the field agents : number of answers Not homogeneous | B151: 6 | E151: 6
A152: 11.D. Heterogeneity of answers of the laboratories : number of answers Very homogeneous | B152: NA | E152: NA
A153: 11.D. Heterogeneity of answers of the laboratories : number of answers fairly homogeneous | B153: NA | E153: NA
A154: 11.D. Heterogeneity of answers of the laboratories : number of answers Not homogeneous but homogeneous for one category of actors | B154: NA | E154: NA
A155: 11.D. Heterogeneity of answers of the laboratories : number of answers Not homogeneous | B155: NA | E155: NA
A157: Section: financial contributions Note: if you have no end date of funding enter the date of the assessment and add its 10 years | E157: financial contributions in dollars allocated per year (one line per partner) | F157: End date of funding (day/month/year) | G157: Percentage of financial contributions
A158: a. Central unit | G158: =IF(SUM(E158:E160)<>0,E158/SUM(E158:E160),0) -> 0
G159: =IF(SUM(E158:E160)<>0,E159/SUM(E158:E160),0) -> 0
G160: =IF(SUM(E158:E160)<>0,E160/SUM(E158:E160),0) -> 0
A161: c. Laboratories | G161: =IF(SUM(E161:E163)<>0,E161/SUM(E161:E163),0) -> 0
G162: =IF(SUM(E161:E163)<>0,E162/SUM(E161:E163),0) -> 0
G163: =IF(SUM(E161:E163)<>0,E163/SUM(E161:E163),0) -> 0
A164: d. Passive surveillance | G164: =IF(SUM(E164:E166)<>0,E164/SUM(E164:E166),0) -> 0
G165: =IF(SUM(E164:E166)<>0,E165/SUM(E164:E166),0) -> 0
G166: =IF(SUM(E164:E166)<>0,E166/SUM(E164:E166),0) -> 0
A167: e. Active surveillance | G167: =IF(SUM(E167:E169)<>0,E167/SUM(E167:E169),0) -> 0
G168: =IF(SUM(E167:E169)<>0,E168/SUM(E167:E169),0) -> 0
G169: =IF(SUM(E167:E169)<>0,E169/SUM(E167:E169),0) -> 0
A170: f. Specific surveillance | G170: =IF(SUM(E170:E172)<>0,E170/SUM(E170:E172),0) -> 0
G171: =IF(SUM(E170:E172)<>0,E171/SUM(E170:E172),0) -> 0
G172: =IF(SUM(E170:E172)<>0,E172/SUM(E170:E172),0) -> 0
A173: g. Evaluation | G173: =IF(SUM(E173:E175)<>0,E173/SUM(E173:E175),0) -> 0
G174: =IF(SUM(E173:E175)<>0,E174/SUM(E173:E175),0) -> 0
G175: =IF(SUM(E173:E175)<>0,E175/SUM(E173:E175),0) -> 0
E177: Percentage of processed data (one line per person) | F177: End date of contract (day/month/year)
A178: h. Data management | B178: Persons in charge of data entry
B181: Persons in charge of data validation
B184: Persons in charge of data analysis
A188: Number of people who has been interviewed | B188: field agents | D188: active and passive surveillance | F188: 0
D189: only passive surveillance | F189: 5
B190: intermediary units - supervision of field agents | D190: active and passive surveillance | F190: 0
D191: only passive surveillance | F191: 3
B192: Central Unit | D192: Coordinator | F192: 1
D193: Other | F193: 1
B194: Laboratories | D194: Central laboratory | F194: 1
D195: Local laboratories | F195: NA

Sheet output 1
A1: SNATtrop
A2: Graphical output 1
E4: Evolution with Financial contributions
A5: Sections | B5: Result of evaluation per each section | C5: Percentage of satisfaction | E5: 6 month later | F5: % of satisfaction | G5: 1 year later | H5: % of satisfaction | I5: 2 years later | J5: % of satisfaction
A6: ='Scoring criteria'!A14 -> Section 1: Objectives and context of surveillance | C6: =('Scoring criteria'!E19/'Scoring criteria'!E20) -> 1 | F6: =C6 -> 1 | H6: =C7 -> 0.3571428571 | J6: =C7 -> 0.3571428571
A7: ='Scoring criteria'!A23 -> Section 2: Central institutional organization | C7: =('Scoring criteria'!E31/'Scoring criteria'!E32) -> 0.3571428571 | F7: ='financial sheet'!G24 -> 0.3571428571 | H7: ='financial sheet'!G25 -> 0.3571428571 | J7: ='financial sheet'!G26 -> 0.3571428571
A8: ='Scoring criteria'!A35 -> Section 3: Field institutional organization | C8: =('Scoring criteria'!E44/'Scoring criteria'!E45) -> 0.53125 | F8: ='financial sheet'!G36 -> 0.53125 | H8: ='financial sheet'!G37 -> 0.53125 | J8: ='financial sheet'!G38 -> 0.53125
A9: ='Scoring criteria'!A48 -> Section 4 : Laboratory | C9: =('Scoring criteria'!E62/'Scoring criteria'!E63) -> 0.7051282051 | F9: ='financial sheet'!G53 -> 0.7051282051 | H9: ='financial sheet'!G54 -> 0.7051282051 | J9: ='financial sheet'!G55 -> 0.7051282051
A10: ='Scoring criteria'!A66 -> Section 5: Surveillance tools | C10: =('Scoring criteria'!E81/'Scoring criteria'!E82) -> 0.8333333333 | F10: ='financial sheet'!G71 -> 0.8333333333 | H10: ='financial sheet'!G72 -> 0.8333333333 | J10: ='financial sheet'!G73 -> 0.8333333333
A11: ='Scoring criteria'!A85 -> Section 6: Surveillance procedures | C11: =('Scoring criteria'!E95/'Scoring criteria'!E96) -> 0.2222222222 | F11: ='financial sheet'!G84 -> 0.4 | H11: ='financial sheet'!G85 -> 0.4 | J11: ='financial sheet'!G86 -> 0.4
A12: ='Scoring criteria'!A99 -> Section 7: Data management | C12: =('Scoring criteria'!E107/'Scoring criteria'!E108) -> 0.380952381 | F12: ='financial sheet'!G95 -> 0.380952381 | H12: ='financial sheet'!G96 -> 0.380952381 | J12: ='[1]financial sheet'!G99 -> 0
A13: Section 8 : Formation | C13: =('Scoring criteria'!E117/'Scoring criteria'!E118) -> 0.3666666667 | F13: ='financial sheet'!G104 -> 0.3666666667 | H13: ='financial sheet'!G105 -> 0.3666666667 | J13: ='financial sheet'!G106 -> 0.3666666667
A14: Section 9 : Communication | C14: =('Scoring criteria'!E129/'Scoring criteria'!E130) -> 0.6428571429 | F14: ='financial sheet'!G115 -> 0.6428571429 | H14: ='financial sheet'!G116 -> 0.6428571429 | J14: ='financial sheet'!G117 -> 0.6428571429
A15: Section 10 : Evaluation | C15: =('Scoring criteria'!E138/'Scoring criteria'!E139) -> 0.1666666667 | F15: ='financial sheet'!G123 -> 0.1666666667 | H15: ='financial sheet'!G124 -> 0.1666666667 | J15: ='financial sheet'!G125 -> 0.1666666667

Sheet Feedback_output_1
A1: Feedback per section (for output 1)
A2: To get started click to classify the criteria. For each section, the criteria used are classified according to their score. In each table the first criteria are the most poorly rated.
A4: Section 1 | B4: Score | C4: Referencing question
A5: 1.D Coherence of the diseases under surveillance with the sanitary situation (existing/exotic diseases or threats) | B5: ='Scoring criteria'!E18 -> 3 | C5: Section 1 question 3
A6: 1.C Taking partners’ expectations into account | B6: ='Scoring criteria'!E17 -> 3 | C6: Section 1 question 4
A7: 1.B Level of detail, accuracy, and formalization of objectives | B7: ='Scoring criteria'!E16 -> 3 | C7: Section 1 question 1 and 2
A8: 1.A Relevance of surveillance objectives | B8: ='Scoring criteria'!E15 -> 3 | C8: Section 1 question 1 and 3
A10: Section 2 | B10: Score | C10: Referencing question
A11: 2.G Adequacy of the central level’s material and financial resources | B11: ='Scoring criteria'!E30 -> 0 | C11: Section 2 question 23, 26, 40 and 55
A12: 2.D Organization and operations of the system laid down in regulations, a charter, or a convention established between the partners | B12: ='Scoring criteria'!E27 -> 0 | C12: Section 2 question 57, 58 and 59
A13: 2.A Existence of an operational management structure (central unit) | B13: ='Scoring criteria'!E24 -> 0.5 | C13: Section 2 question 7, 9, 10, 20 and 22
A14: 2.B Existence of an operational steering structure that is representative of the partners (steering committee) | B14: ='Scoring criteria'!E25 -> 1 | C14: Section 2 question 28/29, 31, 34, 37, 38 and 39
A15: 2.F Supervision of intermediary units by the central level | B15: ='Scoring criteria'!E29 -> 2 | C15: Section 2 question 68, 70 and 73
A16: 2.C Existence of a scientific and technical committee for the system | B16: ='Scoring criteria'!E26 -> 2 | C16: Section 2 question 41, 45, 46, 48, 52 and 54
A17: 2.E Frequency of meetings of the central coordinating body | B17: ='Scoring criteria'!E28 -> 2 | C17: Section 2 question 61, 62, 65 and 67
A19: Section 3 | B19: Score | C19: Referencing question
A20: 3.D Harmonization of intermediary units’ activities | B20: ='Scoring criteria'!E39 -> 0 | C20: section 3 (part 1) question 12, 13 and 14
A21: 3.E Adequacy of material and financial resources of intermediary units | B21: ='Scoring criteria'!E40 -> 0 | C21: Section 3 (part 2) question 2, 3 and 4
A22: 3.H Adequacy of material and financial resources at the field level | B22: ='Scoring criteria'!E43 -> 0 | C22: Section 3 (part 3) question 4, 5 and 6
A23: 3.F Existence of coordination meetings at the intermediate level | B23: ='Scoring criteria'!E41 -> 2 | C23: Section 3 (part 1) question 18, 21, 28, 30 and 32
A24: 3.G Exhaustiveness or representativeness of the field agents’ coverage of the target population | B24: ='Scoring criteria'!E42 -> 2 | C24: Section 3 (part 2) question 10, 14 and 16
A25: 3.C Implementation of supervision by the intermediary level | B25: ='Scoring criteria'!E38 -> 2.75 | C25: Section 3 (part 2) question 5, 7 and 9
A26: 3.A Existence of formal intermediary units covering the entire territory | B26: ='Scoring criteria'!E36 -> 3 | C26: Section 3 (part 1) question 1, 8 and 5
A27: 3.B Active role of intermediary units in the functioning of the system (validation, management, feedback) | B27: ='Scoring criteria'!E37 -> 3 | C27: Section 3 (part 2) question 1
A29: Section 4 | B29: Score | C29: Referencing question
A30: 4.B Adequacy of human, material, and financial resources for diagnostic needs | B30: ='Scoring criteria'!E50 -> 0 | C30: Section 4 question 8, 9, 10, 35, 36 and 37
A31: 4.L Analysis deadlines at the laboratory (formalization, standardization, verification, transfer of results to the central unit) | B31: ='Scoring criteria'!E60 -> 0 | C31: Section 4 table at the end of the section column j and k and question 20 and 47
A32: 4.H Sensitivity of diagnostic techniques | B32: ='Scoring criteria'!E56 -> 1.5 | C32: Section 4 table at the end of the section column b
A33: 4.I Specificity of diagnostic techniques | B33: ='Scoring criteria'!E57 -> 1.5 | C33: Section 4 table at the end of the section column c
A34: 4.K Technical level of data management at the laboratory | B34: ='Scoring criteria'!E59 -> 1.5 | C34: Section 4 question 15, 18 and 45
A35: 4.F Existence of an investigation team to support field agents | B35: ='Scoring criteria'!E54 -> 2 | C35: Section 4 question 52 and 53
A36: 4.D Quality of the standardization of work between different laboratories | B36: ='Scoring criteria'!E52 -> 3 | C36: Section 4 question 3, 21, 48 and 49
A37: 4.G Relevance of diagnostic techniques | B37: ='Scoring criteria'!E55 -> 3 | C37: Section 4 question 54, 55
A38: 4.A Effective integration of laboratories in the surveillance system | B38: ='Scoring criteria'!E49 -> 3 | C38: Section 4 question 1 and 2
A39: 4.C Application of Quality Assurance for the tests undertaken | B39: ='Scoring criteria'!E51 -> 3 | C39: section 4 table at the end of the section column l
A40: 4.E Proportion of tests submitted to inter-laboratory trials | B40: ='Scoring criteria'!E53 -> 3 | C40: Section 4 table at the end of the section column m
A41: 4.J Control of laboratory reagents | B41: ='Scoring criteria'!E58 -> 3 | C41: Section 4 question 23 and 51
A42: 4.M Quality of results delivered | B42: ='Scoring criteria'!E61 -> 3 | C42: Section 4 question 58 and 59
A44: Section 5 | B44: Score | C44: Referencing question
A45: 5.E Specificity of the case or threat definition | B45: ='Scoring criteria'!E71 -> 1.5 | C45: Section 5 question 17
A46: 5.N Acceptability of the consequences of a suspicion or case for the source or collector of data | B46: ='Scoring criteria'!E80 -> 1.5 | C46: section 5 (part 3) question 21 and 22
A47: 5.A Existence of a formalized surveillance protocol for each disease or threat under surveillance | B47: ='Scoring criteria'!E67 -> 2 | C47: Section 5 (part 1) question 1 and 2 to 13
A48: 5.F Simplicity of the case or threat definition | B48: ='Scoring criteria'!E72 -> 2 | C48: Section 5 (part 2 and 3) question 1
A49: 5.L Simplicity of the notification procedure | B49: ='Scoring criteria'!E78 -> 2 | C49: Section 5 (part 1) question 36, section 5 (part 2) question 16, 4 and 15 and Section 5 (part 3) question 7, 19 and 20
A50: 5.H Relevance of collected samples | B50: ='Scoring criteria'!E74 -> 2.5 | C50: Section 5 (part 1) question 24, Section 5 (part 2) question 9 Section 5 (part 3) Quesstion 14 section 1 question 1 and 3
A51: 5.M Simplicity of the data collection procedure | B51: ='Scoring criteria'!E79 -> 2.5 | C51: Section 5 (part 2) question 12, 17, 7, 8 and section 5 (part 3) question 16, 10, 14, 11, and 15
A52: 5.B Standardization of data collected | B52: ='Scoring criteria'!E68 -> 3 | C52: Section 5 (part 1) question 14, 19, 20, 22 and 23
A53: 5.C Relevance of measurement tools (excluding laboratory tools) | B53: ='Scoring criteria'!E69 -> 3 | C53: Section 5 (part 2) question 6, Section 5 (part 3) question 9 and section 1 question 1
A54: 5.D Sensitivity of the case or threat definition | B54: ='Scoring criteria'!E70 -> 3 | C54: Section 5 (part 1) question 16
A55: 5.G Quality of the filling out of investigation forms | B55: ='Scoring criteria'!E73 -> 3 | C55: Section 5 (part 1) question 19 and 21
A56: 5.I Standardization of collected samples | B56: ='Scoring criteria'!E75 -> 3 | C56: Section 5 (part 1) question 25 and 26
A57: 5.J Quality of samples collected | B57: ='Scoring criteria'!E76 -> 3 | C57: Section 5 (part 1) question 28
A58: 5.K Respect of the interval between the detection of a case or threat and the delivery of results | B58: ='Scoring criteria'!E77 -> 3 | C58: Section 5 (part 1) question31, 32, 33 and 34
A60: Section 6 | B60: Score | C60: Referencing question
A61: 6.A Appropriateness of surveillance procedures with the system's objectives | B61: ='Scoring criteria'!E86 -> 0 | C61: Section 5 (part 1) question 50, 48 and 49
A62: 6.E Surveillance of susceptible wild animals | B62: ='Scoring criteria'!E90 -> 0 | C62: Section 5 (part 1) qestion 44 and section (part 3) question 35 and 36
A63: 6.D Relevance and suitability of active (planned) surveillance protocols | B63: ='Scoring criteria'!E89 -> 1 | C63: Section 5 (part 1) question 40, 42 and 41
A64: 6.C Existence of awareness building programs for data sources in a passive (event-based) network | B64: ='Scoring criteria'!E88 -> 2 | C64: Section 5 (part 1) question 61 and section 5 (part 3) question 23, 24 and 37
A65: 6.B Existence of passive (event-based) surveillance whose results are exhaustive or representative | B65: ='Scoring criteria'!E87 -> 3 | C65: Section 5 (part 1) question 16 and 38
A66: 6.F Vector surveillance and control | B66: ='Scoring criteria'!E91 -> NA | C66: Section 5 (part 1) question 46 and section 5 (part 3) question 37 and 38
A67: 6.G Representativeness of the populations targeted by sampling in active (planned) surveillance | B67: ='Scoring criteria'!E92 -> NA | C67: Section 5 (part 1) question 33 and section 5 (part 3) question 29
A68: 6.H Precision of sample under active (planned) surveillance | B68: ='Scoring criteria'!E93 -> NA | C68: Section 3 (part 1) question 31, section 3 (part 3) question 2 section 4 table at the end of the section column b and c
A69: 6.I Level of satisfaction of active (planned) surveillance completeness rate | B69: ='Scoring criteria'!E94 -> NA | C69: Section 5 (part 3) question 33 and 34
A71: Section 7 | B71: Score | C71: Referencing question
A72: 7.B Data input interval in accordance with the objectives and use of system results | B72: ='Scoring criteria'!E101 -> 0 | C72: Section 7 question 18
A73: 7.D. Adequacy of material and financial resources for data management and analysis | B73: ='Scoring criteria'!E103 -> 0 | C73: Section 7 question 28, 50 and 51
A74: 7.G. Exploitation of data fits the needs of the system (if possible regular and multi-disciplinary) | B74: ='Scoring criteria'!E106 -> 0 | C74: Section 7 question 31, 33 and 34
A75: 7.C. Designated staff available and trained in data entry, management and analysis. | B75: ='Scoring criteria'!E102 -> 1 | C75: Section 7 question 52
A76: 7.E. Data verification and validation procedures formalized and operational | B76: ='Scoring criteria'!E104 -> 1 | C76: Section 7 question 25, 26 and 27
A77: 7.A. Adequacy of the data management system for the needs of the system (relational database, etc.) | B77: ='Scoring criteria'!E100 -> 3 | C77: Section 7 question 3, 8 and 9
A78: 7.F Complete descriptive processing of data | B78: ='Scoring criteria'!E105 -> 3 | C78: Section 7 question 36, 37, 38, 40 and 49
A80: Section 8 | B80: Score | C80: Referencing question
A81: 8.D. Regular advanced training | B81: ='Scoring criteria'!E115 -> 0 | C81: Section 8 question 14 and 20
A82: 8.B. Initial training implemented for all field agents when joining the system | B82: ='Scoring criteria'!E113 -> 1 | C82: Section 8 question 9 and 10
A83: 8.A. Adequate skill level in epidemiology of members of the central unit | B83: ='Scoring criteria'!E112 -> 1 | C83: Section 8 question 2 and 4
A84: 8.E. Adequacy of material and financial resources for training | B84: ='Scoring criteria'!E116 -> 1 | C84: Section 8 question 19
A85: 8.C. Objectives and contents of initial training of system field actors adequate for operational surveillance needs | B85: ='Scoring criteria'!E114 -> 2.5 | C85: Section 8 question 11
A87: Section 9 | B87: Score | C87: Referencing question
A88: 9.A Regular release of reports and scientific articles on surveillance results | B88: ='Scoring criteria'!E122 -> 0 | C88: Section 9 question 9, 10 and 11
A89: 9.G. Adequacy of material and financial resources for communication | B89: ='Scoring criteria'!E128 -> 0 | C89: Section 9 question 42, 43 and 44
A90: 9.C. Regular dissemination of a relevant information bulletin | B90: ='Scoring criteria'!E124 -> 1.5 | C90: Section 9 question 33, 34, 35, 36 and 40
A91: 9.B. Return of individual test results to field actors | B91: ='Scoring criteria'!E123 -> 3 | C91: Section 9 question 14
A92: 9.D. Systematic return of reports on results to field actors (outside of a bulletin). | B92: ='Scoring criteria'!E125 -> 3 | C92: Section 9 question 25 and 26
A93: 9.E. Presence of a communications system organized transversally and vertically between field actors (mail, web, telephone…) | B93: ='Scoring criteria'!E126 -> 3 | C93: Section 9 question 13 and 16
A94: 9.F. Solid external communication policy | B94: ='Scoring criteria'!E127 -> 3 | C94: Section 9 question 24 and 32
A96: Section 10 | B96: Score | C96: Referencing question
A97: 10.B. Performance indicators regularly measured, interpreted, and disseminated | B97: ='Scoring criteria'!E135 -> 0 | C97: Section 10 question 6, 7, 9 and 10
A98: 10.A. System of performance indicators developed and validated by the directors of the network. | B98: ='Scoring criteria'!E134 -> 0 | C98: Section 10 question 1, 3, 4 and 5
A99: 10.D. Implementation of corrective measures | B99: ='Scoring criteria'!E137 -> 1 | C99: Section 10 question 19 and 20
A100: 10.C. External evaluations carried out | B100: ='Scoring criteria'!E136 -> 1 | C100: Section 10 question 12, 15 and 16

Sheet Output 2
A1: SNATtrop
A2: Output 2
A3: Disease present
A32: Exotic disease

Sheet Feedback_output_2 (hidden)
B1: Feedback for output 2
B2: To get started click to classify the criteria. For each critical point, the criteria used are classified according to their weighs and their score. In each table the first criteria need to be improve in priority
B4: Exotic disease
B6: Objectives
B7: Criteria | C7: Weigh | D7: Score | E7: Referencing question | F7: Max | G7: Priority (score+weigh) | H7: Maximum | I7: Missing points
B8: 1.A Relevance of surveillance objectives | C8: 0.2 | D8: ='Scoring criteria'!E15 -> 3 | E8: Section 1 question 1 and 3 | F8: 3 | G8: =((Tableau12[[#This Row],[Weigh]]*100)*Tableau12[[#This Row],[Score]]) -> 60 | H8: =((Tableau12[[#This Row],[Weigh]]*100)*F8) -> 60 | I8: =IF(Tableau12[[#This Row],[Score]]<>"NA",Tableau12[[#This Row],[Maximum]]-Tableau12[[#This Row],[Priority (score+weigh)]],"NA") -> 0
B9: 1.D Coherence of the diseases under surveillance with the sanitary situation (existing/exotic diseases or threats) | C9: 0.2 | D9: ='Scoring criteria'!E18 -> 3 | E9: Section 1 question 3 | F9: 3 | G9: =((Tableau12[[#This Row],[Weigh]]*100)*Tableau12[[#This Row],[Score]]) -> 60 | H9: =((Tableau12[[#This Row],[Weigh]]*100)*F9) -> 60 | I9: =IF(Tableau12[[#This Row],[Score]]<>"NA",Tableau12[[#This Row],[Maximum]]-Tableau12[[#This Row],[Priority (score+weigh)]],"NA") -> 0
B10: 1.C Taking partners’ expectations into account | C10: 0.2 | D10: ='Scoring criteria'!E17 -> 3 | E10: Section 1 question 4 | F10: 3 | G10: =((Tableau12[[#This Row],[Weigh]]*100)*Tableau12[[#This Row],[Score]]) -> 60 | H10: =((Tableau12[[#This Row],[Weigh]]*100)*F10) -> 60 | I10: =IF(Tableau12[[#This Row],[Score]]<>"NA",Tableau12[[#This Row],[Maximum]]-Tableau12[[#This Row],[Priority (score+weigh)]],"NA") -> 0
B11: 6.A Appropriateness of surveillance procedures with the system's objectives | C11: 0.2 | D11: ='Scoring criteria'!E86 -> 0 | E11: Section 5 (part 1) question 50, 48 and 49 | F11: 3 | G11: =((Tableau12[[#This Row],[Weigh]]*100)*Tableau12[[#This Row],[Score]]) -> 0 | H11: =((Tableau12[[#This Row],[Weigh]]*100)*F11) -> 60 | I11: =IF(Tableau12[[#This Row],[Score]]<>"NA",Tableau12[[#This Row],[Maximum]]-Tableau12[[#This Row],[Priority (score+weigh)]],"NA") -> 60
B12: 1.B Level of detail, accuracy, and formalization of objectives | C12: 0.2 | D12: ='Scoring criteria'!E16 -> 3 | E12: Section 1 question 1 and 2 | F12: 3 | G12: =((Tableau12[[#This Row],[Weigh]]*100)*Tableau12[[#This Row],[Score]]) -> 60 | H12: =((Tableau12[[#This Row],[Weigh]]*100)*F12) -> 60 | I12: =IF(Tableau12[[#This Row],[Score]]<>"NA",Tableau12[[#This Row],[Maximum]]-Tableau12[[#This Row],[Priority (score+weigh)]],"NA") -> 0
B15: Sampling
B16: Criteria | C16: Weigh | D16: Score | E16: Referencing question | F16: Max | G16: Priority (score + weigh) | H16: Maximum | I16: Missing points
B17: 6.B Existence of passive (event-based) surveillance whose results are exhaustive or representative | C17: 0.35 | D17: ='Scoring criteria'!E87 -> 3 | E17: Section 5 (part 1) question 16 and 38 | F17: 3 | G17: =((Tableau1214[[#This Row],[Weigh]]*100)*Tableau1214[[#This Row],[Score]]) -> 105 | H17: =((Tableau1214[[#This Row],[Weigh]]*100)*F17) -> 105 | I17: =IF(D17<>"NA",H17-G17,"NA") -> 0
B18: 2.D Organization and operations of the system laid down in regulations, a charter, or a convention established between the partners | C18: 0.15 | D18: ='Scoring criteria'!E27 -> 0 | E18: Section 2 question 57, 58 and 59 | F18: 3 | G18: =((Tableau1214[[#This Row],[Weigh]]*100)*Tableau1214[[#This Row],[Score]]) -> 0 | H18: =((Tableau1214[[#This Row],[Weigh]]*100)*F18) -> 45 | I18: 45
B19: 6.H Precision of sample under active (planned) surveillance | C19: 0.25 | D19: ='Scoring criteria'!E93 -> NA | E19: Section 3 (part 1) question 31, section 3 (part 3) question 2 section 4 table at the end of the section column b and c | F19: 3 | G19: =((Tableau1214[[#This Row],[Weigh]]*100)*Tableau1214[[#This Row],[Score]]) ->  | H19: =((Tableau1214[[#This Row],[Weigh]]*100)*F19) -> 75 | I19: NA
B20: 3.G Exhaustiveness or representativeness of the field agents’ coverage of the target population | C20: 0.1 | D20: ='Scoring criteria'!E42 -> 2 | E20: Section 3 (part 2) question 10, 14 and 16 | F20: 3 | G20: =((Tableau1214[[#This Row],[Weigh]]*100)*Tableau1214[[#This Row],[Score]]) -> 20 | H20: =((Tableau1214[[#This Row],[Weigh]]*100)*F20) -> 30 | I20: 10
B21: 6.D Relevance and suitability of active (planned) surveillance protocols | C21: 0.058 | D21: ='Scoring criteria'!E89 -> 1 | E21: Section 5 (part 1) question 40, 42 and 41 | F21: 3 | G21: =((Tableau1214[[#This Row],[Weigh]]*100)*Tableau1214[[#This Row],[Score]]) -> 5.8 | H21: =((Tableau1214[[#This Row],[Weigh]]*100)*F21) -> 17.4 | I21: 11.6
B22: 3.A Existence of formal intermediary units covering the entire territory | C22: 0.042 | D22: ='Scoring criteria'!E36 -> 3 | E22: Section 3 question 1, 6 and 12 | F22: 3 | G22: =((Tableau1214[[#This Row],[Weigh]]*100)*Tableau1214[[#This Row],[Score]]) -> 12.6 | H22: =((Tableau1214[[#This Row],[Weigh]]*100)*F22) -> 12.6 | I22: 0
B23: 6.G Representativeness of the populations targeted by sampling in active (planned) surveillance | C23: 0.042 | D23: ='Scoring criteria'!E92 -> NA | E23: Section 5 (part 1) question 33 and section 5 (part 3) question 29 | F23: 3 | G23: =((Tableau1214[[#This Row],[Weigh]]*100)*Tableau1214[[#This Row],[Score]]) ->  | H23: =((Tableau1214[[#This Row],[Weigh]]*100)*F23) -> 12.6 | I23: NA
B26: Animation
B27: Criteria | C27: Weigh | D27: Score | E27: Referencing question | F27: Max | G27: Priority (score + weigh) | H27: Maximum | I27: Missing points
B28: 6.C Existence of awareness building programs for data sources in a passive (event-based) network | C28: 0.383 | D28: ='Scoring criteria'!E88 -> 2 | E28: Section 5 (part 1) question 61 and section 5 (part 3) question 23, 24 and 37 | F28: 3 | G28: =((Tableau121412[[#This Row],[Weigh]]*100)*Tableau121412[[#This Row],[Score]]) -> 76.6 | H28: =((Tableau121412[[#This Row],[Weigh]]*100)*F28) -> 114.9 | I28: =IF(Tableau121412[[#This Row],[Score]]<>"NA",Tableau121412[[#This Row],[Maximum]]-Tableau121412[[#This Row],[Priority (score + weigh)]],"NA") -> 38.3
B29: 2.A Existence of an operational management structure (central unit) | C29: 0.066 | D29: ='Scoring criteria'!E24 -> 0.5 | E29: Section 2 question 7, 9, 10, 20 and 22 | F29: 3 | G29: =((Tableau121412[[#This Row],[Weigh]]*100)*Tableau121412[[#This Row],[Score]]) -> 3.3 | H29: =((Tableau121412[[#This Row],[Weigh]]*100)*F29) -> 19.8 | I29: =IF(Tableau121412[[#This Row],[Score]]<>"NA",Tableau121412[[#This Row],[Maximum]]-Tableau121412[[#This Row],[Priority (score + weigh)]],"NA") -> 16.5
B30: 9.D. Systematic return of reports on results to field actors (outside of a bulletin). | C30: 0.053 | D30: ='Scoring criteria'!E125 -> 3 | E30: Section 9 question 25 and 26 | F30: 3 | G30: =((Tableau121412[[#This Row],[Weigh]]*100)*Tableau121412[[#This Row],[Score]]) -> 15.9 | H30: =((Tableau121412[[#This Row],[Weigh]]*100)*F30) -> 15.9 | I30: =IF(Tableau121412[[#This Row],[Score]]<>"NA",Tableau121412[[#This Row],[Maximum]]-Tableau121412[[#This Row],[Priority (score + weigh)]],"NA") -> 0
B31: 4.A Effective integration of laboratories in the surveillance system | C31: 0.053 | D31: ='Scoring criteria'!E49 -> 3 | E31: Section 4 question 1 and 2 | F31: 3 | G31: =((Tableau121412[[#This Row],[Weigh]]*100)*Tableau121412[[#This Row],[Score]]) -> 15.9 | H31: =((Tableau121412[[#This Row],[Weigh]]*100)*F31) -> 15.9 | I31: =IF(Tableau121412[[#This Row],[Score]]<>"NA",Tableau121412[[#This Row],[Maximum]]-Tableau121412[[#This Row],[Priority (score + weigh)]],"NA") -> 0
B32: 8.D. Regular advanced training | C32: 0.053 | D32: ='Scoring criteria'!E115 -> 0 | E32: Section 8 question 14 and 20 | F32: 3 | G32: =((Tableau121412[[#This Row],[Weigh]]*100)*Tableau121412[[#This Row],[Score]]) -> 0 | H32: =((Tableau121412[[#This Row],[Weigh]]*100)*F32) -> 15.9 | I32: =IF(Tableau121412[[#This Row],[Score]]<>"NA",Tableau121412[[#This Row],[Maximum]]-Tableau121412[[#This Row],[Priority (score + weigh)]],"NA") -> 15.9
B33: 9.C. Regular dissemination of a relevant information bulletin | C33: 0.053 | D33: ='Scoring criteria'!E124 -> 1.5 | E33: Section 9 question 33, 34, 35, 36 and 40 | F33: 3 | G33: =((Tableau121412[[#This Row],[Weigh]]*100)*Tableau121412[[#This Row],[Score]]) -> 7.95 | H33: =((Tableau121412[[#This Row],[Weigh]]*100)*F33) -> 15.9 | I33: =IF(Tableau121412[[#This Row],[Score]]<>"NA",Tableau121412[[#This Row],[Maximum]]-Tableau121412[[#This Row],[Priority (score + weigh)]],"NA") -> 7.95
B34: 3.A Existence of formal intermediary units covering the entire territory | C34: 0.012 | D34: ='Scoring criteria'!E36 -> 3 | E34: Section 3 (part 1) question 1, 8 and 5 | F34: 3 | G34: =((Tableau121412[[#This Row],[Weigh]]*100)*Tableau121412[[#This Row],[Score]]) -> 3.6 | H34: =((Tableau121412[[#This Row],[Weigh]]*100)*F34) -> 3.6 | I34: =IF(Tableau121412[[#This Row],[Score]]<>"NA",Tableau121412[[#This Row],[Maximum]]-Tableau121412[[#This Row],[Priority (score + weigh)]],"NA") -> 0
B35: 3.F Existence of coordination meetings at the intermediate level | C35: 0.012 | D35: ='Scoring criteria'!E41 -> 2 | E35: Section 3 (part 1) question 18, 21, 28, 30 and 32 | F35: 3 | G35: =((Tableau121412[[#This Row],[Weigh]]*100)*Tableau121412[[#This Row],[Score]]) -> 2.4 | H35: =((Tableau121412[[#This Row],[Weigh]]*100)*F35) -> 3.6 | I35: =IF(Tableau121412[[#This Row],[Score]]<>"NA",Tableau121412[[#This Row],[Maximum]]-Tableau121412[[#This Row],[Priority (score + weigh)]],"NA") -> 1.2
B36: 2.B Existence of an operational steering structure that is representative of the partners (steering committee) | C36: 0.012 | D36: ='Scoring criteria'!E25 -> 1 | E36: Section 2 question 28/29, 31, 34, 37, 38 and 39 | F36: 3 | G36: =((Tableau121412[[#This Row],[Weigh]]*100)*Tableau121412[[#This Row],[Score]]) -> 1.2 | H36: =((Tableau121412[[#This Row],[Weigh]]*100)*F36) -> 3.6 | I36: =IF(Tableau121412[[#This Row],[Score]]<>"NA",Tableau121412[[#This Row],[Maximum]]-Tableau121412[[#This Row],[Priority (score + weigh)]],"NA") -> 2.4
B37: 3.D Harmonization of intermediary units’ activities | C37: 0.012 | D37: ='Scoring criteria'!E39 -> 0 | E37: section 3 (part 1) question 12, 13 and 14 | F37: 3 | G37: =((Tableau121412[[#This Row],[Weigh]]*100)*Tableau121412[[#This Row],[Score]]) -> 0 | H37: =((Tableau121412[[#This Row],[Weigh]]*100)*F37) -> 3.6 | I37: =IF(Tableau121412[[#This Row],[Score]]<>"NA",Tableau121412[[#This Row],[Maximum]]-Tableau121412[[#This Row],[Priority (score + weigh)]],"NA") -> 3.6
B38: 7.C. Designated staff available and trained in data entry, management and analysis. | C38: 0.012 | D38: ='Scoring criteria'!E102 -> 1 | E38: Section 7 question 52 | F38: 3 | G38: =((Tableau121412[[#This Row],[Weigh]]*100)*Tableau121412[[#This Row],[Score]]) -> 1.2 | H38: =((Tableau121412[[#This Row],[Weigh]]*100)*F38) -> 3.6 | I38: =IF(Tableau121412[[#This Row],[Score]]<>"NA",Tableau121412[[#This Row],[Maximum]]-Tableau121412[[#This Row],[Priority (score + weigh)]],"NA") -> 2.4
B39: 2.E Frequency of meetings of the central coordinating body | C39: 0.012 | D39: ='Scoring criteria'!E28 -> 2 | E39: Section 2 question 61, 62, 65 and 67 | F39: 3 | G39: =((Tableau121412[[#This Row],[Weigh]]*100)*Tableau121412[[#This Row],[Score]]) -> 2.4 | H39: =((Tableau121412[[#This Row],[Weigh]]*100)*F39) -> 3.6 | I39: =IF(Tableau121412[[#This Row],[Score]]<>"NA",Tableau121412[[#This Row],[Maximum]]-Tableau121412[[#This Row],[Priority (score + weigh)]],"NA") -> 1.2
B40: 8.A. Adequate skill level in epidemiology of members of the central unit | C40: 0.012 | D40: ='Scoring criteria'!E112 -> 1 | E40: Section 8 question 2 and 4 | F40: 3 | G40: =((Tableau121412[[#This Row],[Weigh]]*100)*Tableau121412[[#This Row],[Score]]) -> 1.2 | H40: =((Tableau121412[[#This Row],[Weigh]]*100)*F40) -> 3.6 | I40: =IF(Tableau121412[[#This Row],[Score]]<>"NA",Tableau121412[[#This Row],[Maximum]]-Tableau121412[[#This Row],[Priority (score + weigh)]],"NA") -> 2.4
B41: 8.B. Initial training implemented for all field agents when joining the system | C41: 0.13 | D41: ='Scoring criteria'!E113 -> 1 | E41: Section 8 question 9 and 10 | F41: 3 | G41: =((Tableau121412[[#This Row],[Weigh]]*100)*Tableau121412[[#This Row],[Score]]) -> 13 | H41: =((Tableau121412[[#This Row],[Weigh]]*100)*F41) -> 39 | I41: =IF(Tableau121412[[#This Row],[Score]]<>"NA",Tableau121412[[#This Row],[Maximum]]-Tableau121412[[#This Row],[Priority (score + weigh)]],"NA") -> 26
B42: 2.C Existence of a scientific and technical committee for the system | C42: 0.066 | D42: ='Scoring criteria'!E26 -> 2 | E42: Section 2 question 41, 45, 46, 48, 52 and 54 | F42: 3 | G42: =((Tableau121412[[#This Row],[Weigh]]*100)*Tableau121412[[#This Row],[Score]]) -> 13.2 | H42: =((Tableau121412[[#This Row],[Weigh]]*100)*F42) -> 19.8 | I42: =IF(Tableau121412[[#This Row],[Score]]<>"NA",Tableau121412[[#This Row],[Maximum]]-Tableau121412[[#This Row],[Priority (score + weigh)]],"NA") -> 6.6
B43: 2.F Supervision of intermediary units by the central level | C43: 0.012 | D43: ='Scoring criteria'!E29 -> 2 | E43: Section 2 question 68, 70 and 73 | F43: 3 | G43: =((Tableau121412[[#This Row],[Weigh]]*100)*Tableau121412[[#This Row],[Score]]) -> 2.4 | H43: =((Tableau121412[[#This Row],[Weigh]]*100)*F43) -> 3.6 | I43: =IF(Tableau121412[[#This Row],[Score]]<>"NA",Tableau121412[[#This Row],[Maximum]]-Tableau121412[[#This Row],[Priority (score + weigh)]],"NA") -> 1.2
B44: 4.F Existence of an investigation team to support field agents | C44: 0.012 | D44: ='Scoring criteria'!E54 -> 2 | E44: Section 4 question 52 and 53 | F44: 3 | G44: =((Tableau121412[[#This Row],[Weigh]]*100)*Tableau121412[[#This Row],[Score]]) -> 2.4 | H44: =((Tableau121412[[#This Row],[Weigh]]*100)*F44) -> 3.6 | I44: =IF(Tableau121412[[#This Row],[Score]]<>"NA",Tableau121412[[#This Row],[Maximum]]-Tableau121412[[#This Row],[Priority (score + weigh)]],"NA") -> 1.2
B45: 3.B Active role of intermediary units in the functioning of the system (validation, management, feedback) | C45: 0.012 | D45: ='Scoring criteria'!E37 -> 3 | E45: Section 3 (part 2) question 1 | F45: 3 | G45: =((Tableau121412[[#This Row],[Weigh]]*100)*Tableau121412[[#This Row],[Score]]) -> 3.6 | H45: =((Tableau121412[[#This Row],[Weigh]]*100)*F45) -> 3.6 | I45: =IF(Tableau121412[[#This Row],[Score]]<>"NA",Tableau121412[[#This Row],[Maximum]]-Tableau121412[[#This Row],[Priority (score + weigh)]],"NA") -> 0
B46: 3.C Implementation of supervision by the intermediary level | C46: 0.012 | D46: ='Scoring criteria'!E38 -> 2.75 | E46: Section 3 (part 2) question 5, 7 and 9 | F46: 3 | G46: =((Tableau121412[[#This Row],[Weigh]]*100)*Tableau121412[[#This Row],[Score]]) -> 3.3 | H46: =((Tableau121412[[#This Row],[Weigh]]*100)*F46) -> 3.6 | I46: =IF(Tableau121412[[#This Row],[Score]]<>"NA",Tableau121412[[#This Row],[Maximum]]-Tableau121412[[#This Row],[Priority (score + weigh)]],"NA") -> 0.3
B49: Environment
B50: Criteria | C50: Weigh | D50: Score | E50: Referencing question | F50: Max | G50: Priority (score + weigh) | H50: Maximum | I50: Missing points
B51: 6.E Surveillance of susceptible wild animals | C51: 0.5 | D51: ='Scoring criteria'!E90 -> 0 | E51: Section 5 (part 1) qestion 44 and section (part 3) question 35 and 36 | F51: 3 | G51: =((Tableau14[[#This Row],[Weigh]]*100)*Tableau14[[#This Row],[Score]]) -> 0 | H51: =((Tableau14[[#This Row],[Weigh]])*100)*F51 -> 150 | I51: =IF(Tableau14[[#This Row],[Score]]<>"NA",Tableau14[[#This Row],[Maximum]]-Tableau14[[#This Row],[Priority (score + weigh)]],"NA") -> 150
B52: 6.F Vector surveillance and control | C52: 0.5 | D52: ='Scoring criteria'!E91 -> NA | E52: Section 5 (part 1) question 46 and section 5 (part 3) question 37 and 38 | F52: 3 | G52: =((Tableau14[[#This Row],[Weigh]]*100)*Tableau14[[#This Row],[Score]]) ->  | H52: =((Tableau14[[#This Row],[Weigh]])*100)*F52 -> 150 | I52: =IF(Tableau14[[#This Row],[Score]]<>"NA",Tableau14[[#This Row],[Maximum]]-Tableau14[[#This Row],[Priority (score + weigh)]],"NA") -> NA
B55: Tools
B56: Criteria | C56: Weigh | D56: Score | E56: Referencing question | F56: Max | G56: Priority (score + weigh) | H56: Maximum | I56: Missing points
B57: 8.D. Regular advanced training | C57: 0.053 | D57: ='Scoring criteria'!E115 -> 0 | E57: Section 8 question 14 and 20 | F57: 3 | G57: =((Tableau12141216[[#This Row],[Weigh]]*100)*Tableau12141216[[#This Row],[Score]]) -> 0 | H57: =((Tableau12141216[[#This Row],[Weigh]]*100)*F57) -> 15.9 | I57: =IF(Tableau12141216[[#This Row],[Score]]<>"NA",Tableau12141216[[#This Row],[Maximum]]-Tableau12141216[[#This Row],[Priority (score + weigh)]],"NA") -> 15.9
B58: 4.D Quality of the standardization of work between different laboratories | C58: 0.05 | D58: ='Scoring criteria'!E52 -> 3 | E58: Section 4 question 3, 21, 48 and 49 | F58: 3 | G58: =((Tableau12141216[[#This Row],[Weigh]]*100)*Tableau12141216[[#This Row],[Score]]) -> 15 | H58: =((Tableau12141216[[#This Row],[Weigh]]*100)*F58) -> 15 | I58: =IF(Tableau12141216[[#This Row],[Score]]<>"NA",Tableau12141216[[#This Row],[Maximum]]-Tableau12141216[[#This Row],[Priority (score + weigh)]],"NA") -> 0
B59: 4.A Effective integration of laboratories in the surveillance system | C59: 0.05 | D59: ='Scoring criteria'!E49 -> 3 | E59: Section 4 question 1 and 2 | F59: 3 | G59: =((Tableau12141216[[#This Row],[Weigh]]*100)*Tableau12141216[[#This Row],[Score]]) -> 15 | H59: =((Tableau12141216[[#This Row],[Weigh]]*100)*F59) -> 15 | I59: =IF(Tableau12141216[[#This Row],[Score]]<>"NA",Tableau12141216[[#This Row],[Maximum]]-Tableau12141216[[#This Row],[Priority (score + weigh)]],"NA") -> 0
B60: 5.J Quality of samples collected | C60: 0.028 | D60: ='Scoring criteria'!E76 -> 3 | E60: Section 5 (part 1) question 28 | F60: 3 | G60: =((Tableau12141216[[#This Row],[Weigh]]*100)*Tableau12141216[[#This Row],[Score]]) -> 8.4 | H60: =((Tableau12141216[[#This Row],[Weigh]]*100)*F60) -> 8.4 | I60: =IF(Tableau12141216[[#This Row],[Score]]<>"NA",Tableau12141216[[#This Row],[Maximum]]-Tableau12141216[[#This Row],[Priority (score + weigh)]],"NA") -> 0
B61: 5.A Existence of a formalized surveillance protocol for each disease or threat under surveillance | C61: 0.028 | D61: ='Scoring criteria'!E67 -> 2 | E61: Section 5 (part 1) question 1 and 2 to 13 | F61: 3 | G61: =((Tableau12141216[[#This Row],[Weigh]]*100)*Tableau12141216[[#This Row],[Score]]) -> 5.6 | H61: =((Tableau12141216[[#This Row],[Weigh]]*100)*F61) -> 8.4 | I61: =IF(Tableau12141216[[#This Row],[Score]]<>"NA",Tableau12141216[[#This Row],[Maximum]]-Tableau12141216[[#This Row],[Priority (score + weigh)]],"NA") -> 2.8
B62: 5.H Relevance of collected samples | C62: 0.028 | D62: ='Scoring criteria'!E74 -> 2.5 | E62: Section 5 (part 1) question 24, Section 5 (part 2) question 9 Section 5 (part 3) Quesstion 14 section 1 question 1 and 3 | F62: 3 | G62: =((Tableau12141216[[#This Row],[Weigh]]*100)*Tableau12141216[[#This Row],[Score]]) -> 7 | H62: =((Tableau12141216[[#This Row],[Weigh]]*100)*F62) -> 8.4 | I62: =IF(Tableau12141216[[#This Row],[Score]]<>"NA",Tableau12141216[[#This Row],[Maximum]]-Tableau12141216[[#This Row],[Priority (score + weigh)]],"NA") -> 1.4
B63: 5.I Standardization of collected samples | C63: 0.028 | D63: ='Scoring criteria'!E75 -> 3 | E63: Section 5 (part 1) question 25 and 26 | F63: 3 | G63: =((Tableau12141216[[#This Row],[Weigh]]*100)*Tableau12141216[[#This Row],[Score]]) -> 8.4 | H63: =((Tableau12141216[[#This Row],[Weigh]]*100)*F63) -> 8.4 | I63: =IF(Tableau12141216[[#This Row],[Score]]<>"NA",Tableau12141216[[#This Row],[Maximum]]-Tableau12141216[[#This Row],[Priority (score + weigh)]],"NA") -> 0
B64: 8.C. Objectives and contents of initial training of system field actors adequate for operational surveillance needs | C64: 0.053 | D64: ='Scoring criteria'!E114 -> 2.5 | E64: Section 8 question 11 | F64: 3 | G64: =((Tableau12141216[[#This Row],[Weigh]]*100)*Tableau12141216[[#This Row],[Score]]) -> 13.25 | H64: =((Tableau12141216[[#This Row],[Weigh]]*100)*F64) -> 15.9 | I64: =IF(Tableau12141216[[#This Row],[Score]]<>"NA",Tableau12141216[[#This Row],[Maximum]]-Tableau12141216[[#This Row],[Priority (score + weigh)]],"NA") -> 2.65
B65: 4.E Proportion of tests submitted to inter-laboratory trials | C65: 0.05 | D65: ='Scoring criteria'!E53 -> 3 | E65: Section 4 table at the end of the section column m | F65: 3 | G65: =((Tableau12141216[[#This Row],[Weigh]]*100)*Tableau12141216[[#This Row],[Score]]) -> 15 | H65: =((Tableau12141216[[#This Row],[Weigh]]*100)*F65) -> 15 | I65: =IF(Tableau12141216[[#This Row],[Score]]<>"NA",Tableau12141216[[#This Row],[Maximum]]-Tableau12141216[[#This Row],[Priority (score + weigh)]],"NA") -> 0
B66: 5.D Sensitivity of the case or threat definition | C66: 0.025 | D66: ='Scoring criteria'!E70 -> 3 | E66: Section 5 question 16 | F66: 3 | G66: =((Tableau12141216[[#This Row],[Weigh]]*100)*Tableau12141216[[#This Row],[Score]]) -> 7.5 | H66: =((Tableau12141216[[#This Row],[Weigh]]*100)*F66) -> 7.5 | I66: =IF(Tableau12141216[[#This Row],[Score]]<>"NA",Tableau12141216[[#This Row],[Maximum]]-Tableau12141216[[#This Row],[Priority (score + weigh)]],"NA") -> 0
B67: 5.E Specificity of the case or threat definition | C67: 0.025 | D67: ='Scoring criteria'!E71 -> 1.5 | E67: Section 5 question 17 | F67: 3 | G67: =((Tableau12141216[[#This Row],[Weigh]]*100)*Tableau12141216[[#This Row],[Score]]) -> 3.75 | H67: =((Tableau12141216[[#This Row],[Weigh]]*100)*F67) -> 7.5 | I67: =IF(Tableau12141216[[#This Row],[Score]]<>"NA",Tableau12141216[[#This Row],[Maximum]]-Tableau12141216[[#This Row],[Priority (score + weigh)]],"NA") -> 3.75
B68: 5.B Standardization of data collected | C68: 0.025 | D68: ='Scoring criteria'!E68 -> 3 | E68: Section 5 (part 1) question 14, 19, 20, 22 and 23 | F68: 3 | G68: =((Tableau12141216[[#This Row],[Weigh]]*100)*Tableau12141216[[#This Row],[Score]]) -> 7.5 | H68: =((Tableau12141216[[#This Row],[Weigh]]*100)*F68) -> 7.5 | I68: =IF(Tableau12141216[[#This Row],[Score]]<>"NA",Tableau12141216[[#This Row],[Maximum]]-Tableau12141216[[#This Row],[Priority (score + weigh)]],"NA") -> 0
B69: 5.C Relevance of measurement tools (excluding laboratory tools) | C69: 0.025 | D69: ='Scoring criteria'!E69 -> 3 | E69: Section 5 (part 2) question 6, Section 5 (part 3) question 9 and section 1 question 1 | F69: 3 | G69: =((Tableau12141216[[#This Row],[Weigh]]*100)*Tableau12141216[[#This Row],[Score]]) -> 7.5 | H69: =((Tableau12141216[[#This Row],[Weigh]]*100)*F69) -> 7.5 | I69: =IF(Tableau12141216[[#This Row],[Score]]<>"NA",Tableau12141216[[#This Row],[Maximum]]-Tableau12141216[[#This Row],[Priority (score + weigh)]],"NA") -> 0
B70: 5.F Simplicity of the case or threat definition | C70: 0.025 | D70: ='Scoring criteria'!E72 -> 2 | E70: Section 5 (part 2 and 3) question 1 | F70: 3 | G70: =((Tableau12141216[[#This Row],[Weigh]]*100)*Tableau12141216[[#This Row],[Score]]) -> 5 | H70: =((Tableau12141216[[#This Row],[Weigh]]*100)*F70) -> 7.5 | I70: =IF(Tableau12141216[[#This Row],[Score]]<>"NA",Tableau12141216[[#This Row],[Maximum]]-Tableau12141216[[#This Row],[Priority (score + weigh)]],"NA") -> 2.5
B71: 4.J Control of laboratory reagents | C71: 0.2 | D71: ='Scoring criteria'!E58 -> 3 | E71: Section 4 question 23 and 51 | F71: 3 | G71: =((Tableau12141216[[#This Row],[Weigh]]*100)*Tableau12141216[[#This Row],[Score]]) -> 60 | H71: =((Tableau12141216[[#This Row],[Weigh]]*100)*F71) -> 60 | I71: =IF(Tableau12141216[[#This Row],[Score]]<>"NA",Tableau12141216[[#This Row],[Maximum]]-Tableau12141216[[#This Row],[Priority (score + weigh)]],"NA") -> 0
B72: 4.G Relevance of diagnostic techniques | C72: 0.05 | D72: ='Scoring criteria'!E55 -> 3 | E72: Section 4 question 54, 55 and 56 | F72: 3 | G72: =((Tableau12141216[[#This Row],[Weigh]]*100)*Tableau12141216[[#This Row],[Score]]) -> 15 | H72: =((Tableau12141216[[#This Row],[Weigh]]*100)*F72) -> 15 | I72: =IF(Tableau12141216[[#This Row],[Score]]<>"NA",Tableau12141216[[#This Row],[Maximum]]-Tableau12141216[[#This Row],[Priority (score + weigh)]],"NA") -> 0
B73: 4.C Application of Quality Assurance for the tests undertaken | C73: 0.05 | D73: ='Scoring criteria'!E51 -> 3 | E73: Section 4 table at the end of the section column l | F73: 3 | G73: =((Tableau12141216[[#This Row],[Weigh]]*100)*Tableau12141216[[#This Row],[Score]]) -> 15 | H73: =((Tableau12141216[[#This Row],[Weigh]]*100)*F73) -> 15 | I73: =IF(Tableau12141216[[#This Row],[Score]]<>"NA",Tableau12141216[[#This Row],[Maximum]]-Tableau12141216[[#This Row],[Priority (score + weigh)]],"NA") -> 0
B74: 4.H Sensitivity of diagnostic techniques | C74: 0.05 | D74: ='Scoring criteria'!E56 -> 1.5 | E74: Section 4 table at the end of the section column b | F74: 3 | G74: =((Tableau12141216[[#This Row],[Weigh]]*100)*Tableau12141216[[#This Row],[Score]]) -> 7.5 | H74: =((Tableau12141216[[#This Row],[Weigh]]*100)*F74) -> 15 | I74: =IF(Tableau12141216[[#This Row],[Score]]<>"NA",Tableau12141216[[#This Row],[Maximum]]-Tableau12141216[[#This Row],[Priority (score + weigh)]],"NA") -> 7.5
B75: 8.B. Initial training implemented for all field agents when joining the system | C75: 0.053 | D75: ='Scoring criteria'!E113 -> 1 | E75: Section 8 question 9 and 10 | F75: 3 | G75: =((Tableau12141216[[#This Row],[Weigh]]*100)*Tableau12141216[[#This Row],[Score]]) -> 5.3 | H75: =((Tableau12141216[[#This Row],[Weigh]]*100)*F75) -> 15.9 | I75: =IF(Tableau12141216[[#This Row],[Score]]<>"NA",Tableau12141216[[#This Row],[Maximum]]-Tableau12141216[[#This Row],[Priority (score + weigh)]],"NA") -> 10.6
B76: 4.L Analysis deadlines at the laboratory (formalization, standardization, verification, transfer of results to the central unit) | C76: 0.05 | D76: ='Scoring criteria'!E60 -> 0 | E76: Section 4 table at the end of the section column j and k and question 20 and 47 | F76: 3 | G76: =((Tableau12141216[[#This Row],[Weigh]]*100)*Tableau12141216[[#This Row],[Score]]) -> 0 | H76: =((Tableau12141216[[#This Row],[Weigh]]*100)*F76) -> 15 | I76: =IF(Tableau12141216[[#This Row],[Score]]<>"NA",Tableau12141216[[#This Row],[Maximum]]-Tableau12141216[[#This Row],[Priority (score + weigh)]],"NA") -> 15
B77: 4.M Quality of results delivered | C77: 0.05 | D77: ='Scoring criteria'!E61 -> 3 | E77: Section 4 question 58 and 59 | F77: 3 | G77: =((Tableau12141216[[#This Row],[Weigh]]*100)*Tableau12141216[[#This Row],[Score]]) -> 15 | H77: =((Tableau12141216[[#This Row],[Weigh]]*100)*F77) -> 15 | I77: =IF(Tableau12141216[[#This Row],[Score]]<>"NA",Tableau12141216[[#This Row],[Maximum]]-Tableau12141216[[#This Row],[Priority (score + weigh)]],"NA") -> 0
B80: Collection and circulation of data
B81: Criteria | C81: Weigh | D81: Score | E81: Referencing question | F81: Max | G81: Priority (score + weigh) | H81: Maximum | I81: Missing points
B82: 5.L Simplicity of the notification procedure | C82: 0.071 | D82: ='Scoring criteria'!E78 -> 2 | E82: Section 5 (part 1) question 36, section 5 (part 2) question 16, 4 and 15 and Section 5 (part 3) question 7, 19 and 20 | F82: 3 | G82: =((Tableau12141217[[#This Row],[Weigh]]*100)*Tableau12141217[[#This Row],[Score]]) -> 14.2 | H82: =((Tableau12141217[[#This Row],[Weigh]]*100)*F82) -> 21.3 | I82: =IF(Tableau12141217[[#This Row],[Score]]<>"NA",Tableau12141217[[#This Row],[Maximum]]-Tableau12141217[[#This Row],[Priority (score + weigh)]],"NA") -> 7.1
B83: 5.K Respect of the interval between the detection of a case or threat and the delivery of results | C83: 0.071 | D83: ='Scoring criteria'!E77 -> 3 | E83: Section 5 (part 1) question31, 32, 33 and 34 | F83: 3 | G83: =((Tableau12141217[[#This Row],[Weigh]]*100)*Tableau12141217[[#This Row],[Score]]) -> 21.3 | H83: =((Tableau12141217[[#This Row],[Weigh]]*100)*F83) -> 21.3 | I83: =IF(Tableau12141217[[#This Row],[Score]]<>"NA",Tableau12141217[[#This Row],[Maximum]]-Tableau12141217[[#This Row],[Priority (score + weigh)]],"NA") -> 0
B84: 5.J Quality of samples collected | C84: 0.062 | D84: ='Scoring criteria'!E76 -> 3 | E84: Section 5 (part 1) question 28 | F84: 3 | G84: =((Tableau12141217[[#This Row],[Weigh]]*100)*Tableau12141217[[#This Row],[Score]]) -> 18.6 | H84: =((Tableau12141217[[#This Row],[Weigh]]*100)*F84) -> 18.6 | I84: =IF(Tableau12141217[[#This Row],[Score]]<>"NA",Tableau12141217[[#This Row],[Maximum]]-Tableau12141217[[#This Row],[Priority (score + weigh)]],"NA") -> 0
B85: 9.E. Presence of a communications system organized transversally and vertically between field actors (mail, web, telephone…) | C85: 0.071 | D85: ='Scoring criteria'!E126 -> 3 | E85: Section 9 question 13 and 16 | F85: 3 | G85: =((Tableau12141217[[#This Row],[Weigh]]*100)*Tableau12141217[[#This Row],[Score]]) -> 21.3 | H85: =((Tableau12141217[[#This Row],[Weigh]]*100)*F85) -> 21.3 | I85: =IF(Tableau12141217[[#This Row],[Score]]<>"NA",Tableau12141217[[#This Row],[Maximum]]-Tableau12141217[[#This Row],[Priority (score + weigh)]],"NA") -> 0
B86: 3.F Existence of coordination meetings at the intermediate level | C86: 0.062 | D86: ='Scoring criteria'!E41 -> 2 | E86: Section 3 (part 1) question 18, 21, 28, 30 and 32 | F86: 3 | G86: =((Tableau12141217[[#This Row],[Weigh]]*100)*Tableau12141217[[#This Row],[Score]]) -> 12.4 | H86: =((Tableau12141217[[#This Row],[Weigh]]*100)*F86) -> 18.6 | I86: =IF(Tableau12141217[[#This Row],[Score]]<>"NA",Tableau12141217[[#This Row],[Maximum]]-Tableau12141217[[#This Row],[Priority (score + weigh)]],"NA") -> 6.2
B87: 2.A Existence of an operational management structure (central unit) | C87: 0.062 | D87: ='Scoring criteria'!E24 -> 0.5 | E87: Section 2 question 7, 9, 10, 20 and 22 | F87: 3 | G87: =((Tableau12141217[[#This Row],[Weigh]]*100)*Tableau12141217[[#This Row],[Score]]) -> 3.1 | H87: =((Tableau12141217[[#This Row],[Weigh]]*100)*F87) -> 18.6 | I87: =IF(Tableau12141217[[#This Row],[Score]]<>"NA",Tableau12141217[[#This Row],[Maximum]]-Tableau12141217[[#This Row],[Priority (score + weigh)]],"NA") -> 15.5
B88: 8.D. Regular advanced training | C88: 0.062 | D88: ='Scoring criteria'!E115 -> 0 | E88: Section 8 question 14 and 20 | F88: 3 | G88: =((Tableau12141217[[#This Row],[Weigh]]*100)*Tableau12141217[[#This Row],[Score]]) -> 0 | H88: =((Tableau12141217[[#This Row],[Weigh]]*100)*F88) -> 18.6 | I88: =IF(Tableau12141217[[#This Row],[Score]]<>"NA",Tableau12141217[[#This Row],[Maximum]]-Tableau12141217[[#This Row],[Priority (score + weigh)]],"NA") -> 18.6
B89: 5.G Quality of the filling out of investigation forms | C89: 0.062 | D89: ='Scoring criteria'!E73 -> 3 | E89: Section 5 (part 1) question 19 and 21 | F89: 3 | G89: =((Tableau12141217[[#This Row],[Weigh]]*100)*Tableau12141217[[#This Row],[Score]]) -> 18.6 | H89: =((Tableau12141217[[#This Row],[Weigh]]*100)*F89) -> 18.6 | I89: =IF(Tableau12141217[[#This Row],[Score]]<>"NA",Tableau12141217[[#This Row],[Maximum]]-Tableau12141217[[#This Row],[Priority (score + weigh)]],"NA") -> 0
B90: 4.B Adequacy of human, material, and financial resources for diagnostic needs | C90: 0.071 | D90: ='Scoring criteria'!E50 -> 0 | E90: Section 4 question 8, 9, 10, 35, 36 and 37 | F90: 3 | G90: =((Tableau12141217[[#This Row],[Weigh]]*100)*Tableau12141217[[#This Row],[Score]]) -> 0 | H90: =((Tableau12141217[[#This Row],[Weigh]]*100)*F90) -> 21.3 | I90: =IF(Tableau12141217[[#This Row],[Score]]<>"NA",Tableau12141217[[#This Row],[Maximum]]-Tableau12141217[[#This Row],[Priority (score + weigh)]],"NA") -> 21.3
B91: 9.B. Return of individual test results to field actors | C91: 0.071 | D91: ='Scoring criteria'!E123 -> 3 | E91: Section 9 question 14 | F91: 3 | G91: =((Tableau12141217[[#This Row],[Weigh]]*100)*Tableau12141217[[#This Row],[Score]]) -> 21.3 | H91: =((Tableau12141217[[#This Row],[Weigh]]*100)*F91) -> 21.3 | I91: =IF(Tableau12141217[[#This Row],[Score]]<>"NA",Tableau12141217[[#This Row],[Maximum]]-Tableau12141217[[#This Row],[Priority (score + weigh)]],"NA") -> 0
B92: 3.D Harmonization of intermediary units’ activities | C92: 0.062 | D92: ='Scoring criteria'!E39 -> 0 | E92: section 3 (part 1) question 12, 13 and 14 | F92: 3 | G92: =((Tableau12141217[[#This Row],[Weigh]]*100)*Tableau12141217[[#This Row],[Score]]) -> 0 | H92: =((Tableau12141217[[#This Row],[Weigh]]*100)*F92) -> 18.6 | I92: =IF(Tableau12141217[[#This Row],[Score]]<>"NA",Tableau12141217[[#This Row],[Maximum]]-Tableau12141217[[#This Row],[Priority (score + weigh)]],"NA") -> 18.6
B93: 8.C. Objectives and contents of initial training of system field actors adequate for operational surveillance needs | C93: 0.062 | D93: ='Scoring criteria'!E114 -> 2.5 | E93: Section 8 question 11 | F93: 3 | G93: =((Tableau12141217[[#This Row],[Weigh]]*100)*Tableau12141217[[#This Row],[Score]]) -> 15.5 | H93: =((Tableau12141217[[#This Row],[Weigh]]*100)*F93) -> 18.6 | I93: =IF(Tableau12141217[[#This Row],[Score]]<>"NA",Tableau12141217[[#This Row],[Maximum]]-Tableau12141217[[#This Row],[Priority (score + weigh)]],"NA") -> 3.1
B94: 7.B Data input interval in accordance with the objectives and use of system results | C94: 0.071 | D94: ='Scoring criteria'!E101 -> 0 | E94: Section 7 question 18 | F94: 3 | G94: =((Tableau12141217[[#This Row],[Weigh]]*100)*Tableau12141217[[#This Row],[Score]]) -> 0 | H94: =((Tableau12141217[[#This Row],[Weigh]]*100)*F94) -> 21.3 | I94: =IF(Tableau12141217[[#This Row],[Score]]<>"NA",Tableau12141217[[#This Row],[Maximum]]-Tableau12141217[[#This Row],[Priority (score + weigh)]],"NA") -> 21.3
B95: 8.B. Initial training implemented for all field agents when joining the system | C95: 0.062 | D95: ='Scoring criteria'!E113 -> 1 | E95: Section 8 question 9 and 10 | F95: 3 | G95: =((Tableau12141217[[#This Row],[Weigh]]*100)*Tableau12141217[[#This Row],[Score]]) -> 6.2 | H95: =((Tableau12141217[[#This Row],[Weigh]]*100)*F95) -> 18.6 | I95: =IF(Tableau12141217[[#This Row],[Score]]<>"NA",Tableau12141217[[#This Row],[Maximum]]-Tableau12141217[[#This Row],[Priority (score + weigh)]],"NA") -> 12.4
B96: 4.L Analysis deadlines at the laboratory (formalization, standardization, verification, transfer of results to the central unit) | C96: 0.071 | D96: ='Scoring criteria'!E60 -> 0 | E96: Section 4 table at the end of the section column j and k and question 20 and 47 | F96: 3 | G96: =((Tableau12141217[[#This Row],[Weigh]]*100)*Tableau12141217[[#This Row],[Score]]) -> 0 | H96: =((Tableau12141217[[#This Row],[Weigh]]*100)*F96) -> 21.3 | I96: =IF(Tableau12141217[[#This Row],[Score]]<>"NA",Tableau12141217[[#This Row],[Maximum]]-Tableau12141217[[#This Row],[Priority (score + weigh)]],"NA") -> 21.3
B99: Processing and interpretation
B100: Criteria | C100: Weigh | D100: Score | E100: Referencing question | F100: Max | G100: Priority (score + weigh) | H100: Maximum | I100: Missing points
B101: 7.G. Exploitation of data fits the needs of the system (if possible regular and multi-disciplinary) | C101: 0.16 | D101: ='Scoring criteria'!E106 -> 0 | E101: Section 7 question 31, 33 and 34 | F101: 3 | G101: =((Tableau17[[#This Row],[Weigh]]*100)*Tableau17[[#This Row],[Score]]) -> 0 | H101: =((Tableau17[[#This Row],[Weigh]]*100)*F101) -> 48 | I101: =IF(Tableau17[[#This Row],[Score]]<>"NA",Tableau17[[#This Row],[Maximum]]-Tableau17[[#This Row],[Priority (score + weigh)]],"NA") -> 48
B102: 8.A. Adequate skill level in epidemiology of members of the central unit | C102: 0.231 | D102: ='Scoring criteria'!E112 -> 1 | E102: Section 8 question 2 and 4 | F102: 3 | G102: =((Tableau17[[#This Row],[Weigh]]*100)*Tableau17[[#This Row],[Score]]) -> 23.1 | H102: =((Tableau17[[#This Row],[Weigh]]*100)*F102) -> 69.3 | I102: =IF(Tableau17[[#This Row],[Score]]<>"NA",Tableau17[[#This Row],[Maximum]]-Tableau17[[#This Row],[Priority (score + weigh)]],"NA") -> 46.2
B103: 4.B Adequacy of human, material, and financial resources for diagnostic needs | C103: 0.071 | D103: ='Scoring criteria'!E50 -> 0 | E103: Section 4 question 8, 9, 10, 35, 36 and 37 | F103: 3 | G103: =((Tableau17[[#This Row],[Weigh]]*100)*Tableau17[[#This Row],[Score]]) -> 0 | H103: =((Tableau17[[#This Row],[Weigh]]*100)*F103) -> 21.3 | I103: =IF(Tableau17[[#This Row],[Score]]<>"NA",Tableau17[[#This Row],[Maximum]]-Tableau17[[#This Row],[Priority (score + weigh)]],"NA") -> 21.3
B104: 7.C. Designated staff available and trained in data entry, management and analysis. | C104: 0.071 | D104: ='Scoring criteria'!E102 -> 1 | E104: Section 7 question 52 | F104: 3 | G104: =((Tableau17[[#This Row],[Weigh]]*100)*Tableau17[[#This Row],[Score]]) -> 7.1 | H104: =((Tableau17[[#This Row],[Weigh]]*100)*F104) -> 21.3 | I104: =IF(Tableau17[[#This Row],[Score]]<>"NA",Tableau17[[#This Row],[Maximum]]-Tableau17[[#This Row],[Priority (score + weigh)]],"NA") -> 14.2
B105: 7.A. Adequacy of the data management system for the needs of the system (relational database, etc.) | C105: 0.071 | D105: ='Scoring criteria'!E100 -> 3 | E105: Section 7 question 3, 8 and 9 | F105: 3 | G105: =((Tableau17[[#This Row],[Weigh]]*100)*Tableau17[[#This Row],[Score]]) -> 21.3 | H105: =((Tableau17[[#This Row],[Weigh]]*100)*F105) -> 21.3 | I105: =IF(Tableau17[[#This Row],[Score]]<>"NA",Tableau17[[#This Row],[Maximum]]-Tableau17[[#This Row],[Priority (score + weigh)]],"NA") -> 0
B106: 7.F Complete descriptive processing of data | C106: 0.071 | D106: ='Scoring criteria'!E105 -> 3 | E106: Section 7 question 36, 37, 38, 40 and 49 | F106: 3 | G106: =((Tableau17[[#This Row],[Weigh]]*100)*Tableau17[[#This Row],[Score]]) -> 21.3 | H106: =((Tableau17[[#This Row],[Weigh]]*100)*F106) -> 21.3 | I106: =IF(Tableau17[[#This Row],[Score]]<>"NA",Tableau17[[#This Row],[Maximum]]-Tableau17[[#This Row],[Priority (score + weigh)]],"NA") -> 0
B107: 2.C Existence of a scientific and technical committee for the system | C107: 0.16 | D107: ='Scoring criteria'!E26 -> 2 | E107: Section 2 question 41, 45, 46, 48, 52 and 54 | F107: 3 | G107: =((Tableau17[[#This Row],[Weigh]]*100)*Tableau17[[#This Row],[Score]]) -> 32 | H107: =((Tableau17[[#This Row],[Weigh]]*100)*F107) -> 48 | I107: =IF(Tableau17[[#This Row],[Score]]<>"NA",Tableau17[[#This Row],[Maximum]]-Tableau17[[#This Row],[Priority (score + weigh)]],"NA") -> 16
B108: 4.K Technical level of data management at the laboratory | C108: 0.071 | D108: ='Scoring criteria'!E59 -> 1.5 | E108: Section 4 question 15, 18 and 45 | F108: 3 | G108: =((Tableau17[[#This Row],[Weigh]]*100)*Tableau17[[#This Row],[Score]]) -> 10.65 | H108: =((Tableau17[[#This Row],[Weigh]]*100)*F108) -> 21.3 | I108: =IF(Tableau17[[#This Row],[Score]]<>"NA",Tableau17[[#This Row],[Maximum]]-Tableau17[[#This Row],[Priority (score + weigh)]],"NA") -> 10.65
B109: 4.L Analysis deadlines at the laboratory (formalization, standardization, verification, transfer of results to the central unit) | C109: 0.071 | D109: ='Scoring criteria'!E60 -> 0 | E109: Section 4 table at the end of the section column j and k and question 20 and 47 | F109: 3 | G109: =((Tableau17[[#This Row],[Weigh]]*100)*Tableau17[[#This Row],[Score]]) -> 0 | H109: =((Tableau17[[#This Row],[Weigh]]*100)*F109) -> 21.3 | I109: =IF(Tableau17[[#This Row],[Score]]<>"NA",Tableau17[[#This Row],[Maximum]]-Tableau17[[#This Row],[Priority (score + weigh)]],"NA") -> 21.3
B112: Diffusion and information
B113: Criteria | C113: Weigh | D113: Score | E113: Referencing question | F113: Max | G113: Priority (score + weigh) | H113: Maximum | I113: Missing points
B114: 9.C. Regular dissemination of a relevant information bulletin | C114: 0.375 | D114: ='Scoring criteria'!E124 -> 1.5 | E114: Section 9 question 33, 34, 35, 36 and 40 | F114: 3 | G114: =((Tableau18[[#This Row],[Weigh]]*100)*Tableau18[[#This Row],[Score]]) -> 56.25 | H114: =((Tableau18[[#This Row],[Weigh]]*100)*F114) -> 112.5 | I114: =IF(Tableau18[[#This Row],[Score]]<>"NA",Tableau18[[#This Row],[Maximum]]-Tableau18[[#This Row],[Priority (score + weigh)]],"NA") -> 56.25
B115: 9.A Regular release of reports and scientific articles on surveillance results | C115: 0.375 | D115: ='Scoring criteria'!E122 -> 0 | E115: Section 9 question 9, 10 and 11 | F115: 3 | G115: =((Tableau18[[#This Row],[Weigh]]*100)*Tableau18[[#This Row],[Score]]) -> 0 | H115: =((Tableau18[[#This Row],[Weigh]]*100)*F115) -> 112.5 | I115: =IF(Tableau18[[#This Row],[Score]]<>"NA",Tableau18[[#This Row],[Maximum]]-Tableau18[[#This Row],[Priority (score + weigh)]],"NA") -> 112.5
B116: 9.D. Systematic return of reports on results to field actors (outside of a bulletin). | C116: 0.125 | D116: ='Scoring criteria'!E125 -> 3 | E116: Section 9 question 25 and 26 | F116: 3 | G116: =((Tableau18[[#This Row],[Weigh]]*100)*Tableau18[[#This Row],[Score]]) -> 37.5 | H116: =((Tableau18[[#This Row],[Weigh]]*100)*F116) -> 37.5 | I116: =IF(Tableau18[[#This Row],[Score]]<>"NA",Tableau18[[#This Row],[Maximum]]-Tableau18[[#This Row],[Priority (score + weigh)]],"NA") -> 0
B117: 9.F. Solid external communication policy | C117: 0.125 | D117: ='Scoring criteria'!E127 -> 3 | E117: Section 9 question 24 and 32 | F117: 3 | G117: =((Tableau18[[#This Row],[Weigh]]*100)*Tableau18[[#This Row],[Score]]) -> 37.5 | H117: =((Tableau18[[#This Row],[Weigh]]*100)*F117) -> 37.5 | I117: =IF(Tableau18[[#This Row],[Score]]<>"NA",Tableau18[[#This Row],[Maximum]]-Tableau18[[#This Row],[Priority (score + weigh)]],"NA") -> 0

Sheet Feedback_output_2 (2)
B5: Feedback for output 2
B6: To get started click to classify the criteria. For each critical point, the criteria used are classified according to their weighs and their score. In each table the first criteria need to be improve in priority
B8: Disease present
B10: Objectives
B11: Criteria | C11: Weigh | D11: Score | E11: Referencing question | F11: Max | G11: Priority (score + weigh) | H11: Maximum | I11: Missing points
B12: 6.A Appropriateness of surveillance procedures with the system's objectives | C12: 0.2 | D12: ='Scoring criteria'!E86 -> 0 | E12: Section 5 (part 1) question 50, 48 and 49 | F12: 3 | G12: =((Tableau1220[[#This Row],[Weigh]]*100)*Tableau1220[[#This Row],[Score]]) -> 0 | H12: =((Tableau1220[[#This Row],[Weigh]]*100)*F12) -> 60 | I12: =IF(Tableau1220[[#This Row],[Score]]<>"NA",Tableau1220[[#This Row],[Maximum]]-Tableau1220[[#This Row],[Priority (score + weigh)]],"NA") -> 60
B13: 1.D Coherence of the diseases under surveillance with the sanitary situation (existing/exotic diseases or threats) | C13: 0.2 | D13: ='Scoring criteria'!E18 -> 3 | E13: Section 1 question 3 | F13: 3 | G13: =((Tableau1220[[#This Row],[Weigh]]*100)*Tableau1220[[#This Row],[Score]]) -> 60 | H13: =((Tableau1220[[#This Row],[Weigh]]*100)*F13) -> 60 | I13: =IF(Tableau1220[[#This Row],[Score]]<>"NA",Tableau1220[[#This Row],[Maximum]]-Tableau1220[[#This Row],[Priority (score + weigh)]],"NA") -> 0
B14: 1.C Taking partners’ expectations into account | C14: 0.2 | D14: ='Scoring criteria'!E17 -> 3 | E14: Section 1 question 4 | F14: 3 | G14: =((Tableau1220[[#This Row],[Weigh]]*100)*Tableau1220[[#This Row],[Score]]) -> 60 | H14: =((Tableau1220[[#This Row],[Weigh]]*100)*F14) -> 60 | I14: =IF(Tableau1220[[#This Row],[Score]]<>"NA",Tableau1220[[#This Row],[Maximum]]-Tableau1220[[#This Row],[Priority (score + weigh)]],"NA") -> 0
B15: 1.A Relevance of surveillance objectives | C15: 0.2 | D15: ='Scoring criteria'!E15 -> 3 | E15: Section 1 question 1 and 3 | F15: 3 | G15: =((Tableau1220[[#This Row],[Weigh]]*100)*Tableau1220[[#This Row],[Score]]) -> 60 | H15: =((Tableau1220[[#This Row],[Weigh]]*100)*F15) -> 60 | I15: =IF(Tableau1220[[#This Row],[Score]]<>"NA",Tableau1220[[#This Row],[Maximum]]-Tableau1220[[#This Row],[Priority (score + weigh)]],"NA") -> 0
B16: 1.B Level of detail, accuracy, and formalization of objectives | C16: 0.2 | D16: ='Scoring criteria'!E16 -> 3 | E16: Section 1 question 1 and 2 | F16: 3 | G16: =((Tableau1220[[#This Row],[Weigh]]*100)*Tableau1220[[#This Row],[Score]]) -> 60 | H16: =((Tableau1220[[#This Row],[Weigh]]*100)*F16) -> 60 | I16: =IF(Tableau1220[[#This Row],[Score]]<>"NA",Tableau1220[[#This Row],[Maximum]]-Tableau1220[[#This Row],[Priority (score + weigh)]],"NA") -> 0
B19: Sampling
B20: Criteria | C20: Weigh | D20: Score | E20: Referencing question | F20: Max | G20: Priority (score + weigh) | H20: Maximun | I20: Missing points
B21: 6.H Precision of sample under active (planned) surveillance | C21: 0.333 | D21: ='Scoring criteria'!E93 -> NA | E21: Section 3 (part 1) question 31, section 3 (part 3) question 2 section 4 table at the end of the section column b and c | F21: 3 | G21: =((Tableau121421[[#This Row],[Weigh]]*100)*Tableau121421[[#This Row],[Score]]) ->  | H21: =((Tableau121421[[#This Row],[Weigh]]*100)*F21) -> 99.9 | I21: =IF(Tableau121421[[#This Row],[Score]]<>"NA",Tableau121421[[#This Row],[Maximun]]-Tableau121421[[#This Row],[Priority (score + weigh)]],"NA") -> NA
B22: 6.G Representativeness of the populations targeted by sampling in active (planned) surveillance | C22: 0.072 | D22: ='Scoring criteria'!E92 -> NA | E22: Section 5 (part 1) question 33 and section 5 (part 3) question 29 | F22: 3 | G22: =((Tableau121421[[#This Row],[Weigh]]*100)*Tableau121421[[#This Row],[Score]]) ->  | H22: =((Tableau121421[[#This Row],[Weigh]]*100)*F22) -> 21.6 | I22: =IF(Tableau121421[[#This Row],[Score]]<>"NA",Tableau121421[[#This Row],[Maximun]]-Tableau121421[[#This Row],[Priority (score + weigh)]],"NA") -> NA
B23: 6.I Level of satisfaction of active (planned) surveillance completeness rate | C23: 0.114 | D23: ='Scoring criteria'!E94 -> NA | E23: Section 5 (part 3) question 33 and 34 | F23: 3 | G23: =((Tableau121421[[#This Row],[Weigh]]*100)*Tableau121421[[#This Row],[Score]]) ->  | H23: =((Tableau121421[[#This Row],[Weigh]]*100)*F23) -> 34.2 | I23: =IF(Tableau121421[[#This Row],[Score]]<>"NA",Tableau121421[[#This Row],[Maximun]]-Tableau121421[[#This Row],[Priority (score + weigh)]],"NA") -> NA
B24: 6.D Relevance and suitability of active (planned) surveillance protocols | C24: 0.114 | D24: ='Scoring criteria'!E89 -> 1 | E24: Section 5 (part 1) question 40, 42 and 41 | F24: 3 | G24: =((Tableau121421[[#This Row],[Weigh]]*100)*Tableau121421[[#This Row],[Score]]) -> 11.4 | H24: =((Tableau121421[[#This Row],[Weigh]]*100)*F24) -> 34.2 | I24: =IF(Tableau121421[[#This Row],[Score]]<>"NA",Tableau121421[[#This Row],[Maximun]]-Tableau121421[[#This Row],[Priority (score + weigh)]],"NA") -> 22.8
B25: 3.G Exhaustiveness or representativeness of the field agents’ coverage of the target population | C25: 0.072 | D25: ='Scoring criteria'!E42 -> 2 | E25: Section 3 (part 2) question 10, 14 and 16 | F25: 3 | G25: =((Tableau121421[[#This Row],[Weigh]]*100)*Tableau121421[[#This Row],[Score]]) -> 14.4 | H25: =((Tableau121421[[#This Row],[Weigh]]*100)*F25) -> 21.6 | I25: =IF(Tableau121421[[#This Row],[Score]]<>"NA",Tableau121421[[#This Row],[Maximun]]-Tableau121421[[#This Row],[Priority (score + weigh)]],"NA") -> 7.2
B26: 6.B Existence of passive (event-based) surveillance whose results are exhaustive or representative | C26: 0.285 | D26: ='Scoring criteria'!E87 -> 3 | E26: Section 5 (part 1) question 16 and 38 | F26: 3 | G26: =((Tableau121421[[#This Row],[Weigh]]*100)*Tableau121421[[#This Row],[Score]]) -> 85.5 | H26: =((Tableau121421[[#This Row],[Weigh]]*100)*F26) -> 85.5 | I26: =IF(Tableau121421[[#This Row],[Score]]<>"NA",Tableau121421[[#This Row],[Maximun]]-Tableau121421[[#This Row],[Priority (score + weigh)]],"NA") -> 0
B27: 3.A Existence of formal intermediary units covering the entire territory | C27: 0.072 | D27: ='Scoring criteria'!E36 -> 3 | E27: Section 3 (part 1) question 1, 8 and 5 | F27: 3 | G27: =((Tableau121421[[#This Row],[Weigh]]*100)*Tableau121421[[#This Row],[Score]]) -> 21.6 | H27: =((Tableau121421[[#This Row],[Weigh]]*100)*F27) -> 21.6 | I27: =IF(Tableau121421[[#This Row],[Score]]<>"NA",Tableau121421[[#This Row],[Maximun]]-Tableau121421[[#This Row],[Priority (score + weigh)]],"NA") -> 0
B30: Animation
B31: Criteria | C31: Weigh | D31: Score | E31: Referencing question | F31: Max | G31: Priority (Score + weigh) | H31: Maximum | I31: Missing points
B32: 6.C Existence of awareness building programs for data sources in a passive (event-based) network | C32: 0.383 | D32: ='Scoring criteria'!E88 -> 2 | E32: Section 5 (part 1) question 61 and section 5 (part 3) question 23, 24 and 37 | F32: 3 | G32: =((Tableau12141222[[#This Row],[Weigh]]*100)*Tableau12141222[[#This Row],[Score]]) -> 76.6 | H32: =((Tableau12141222[[#This Row],[Weigh]]*100)*F32) -> 114.9 | I32: =IF(Tableau12141222[[#This Row],[Score]]<>"NA",Tableau12141222[[#This Row],[Maximum]]-Tableau12141222[[#This Row],[Priority (Score + weigh)]],"NA") -> 38.3
B33: 8.B. Initial training implemented for all field agents when joining the system | C33: 0.13 | D33: ='Scoring criteria'!E113 -> 1 | E33: Section 8 question 9 and 10 | F33: 3 | G33: =((Tableau12141222[[#This Row],[Weigh]]*100)*Tableau12141222[[#This Row],[Score]]) -> 13 | H33: =((Tableau12141222[[#This Row],[Weigh]]*100)*F33) -> 39 | I33: =IF(Tableau12141222[[#This Row],[Score]]<>"NA",Tableau12141222[[#This Row],[Maximum]]-Tableau12141222[[#This Row],[Priority (Score + weigh)]],"NA") -> 26
B34: 2.A Existence of an operational management structure (central unit) | C34: 0.066 | D34: ='Scoring criteria'!E24 -> 0.5 | E34: Section 2 question 7, 9, 10, 20 and 22 | F34: 3 | G34: =((Tableau12141222[[#This Row],[Weigh]]*100)*Tableau12141222[[#This Row],[Score]]) -> 3.3 | H34: =((Tableau12141222[[#This Row],[Weigh]]*100)*F34) -> 19.8 | I34: =IF(Tableau12141222[[#This Row],[Score]]<>"NA",Tableau12141222[[#This Row],[Maximum]]-Tableau12141222[[#This Row],[Priority (Score + weigh)]],"NA") -> 16.5
B35: 8.D. Regular advanced training | C35: 0.053 | D35: ='Scoring criteria'!E115 -> 0 | E35: Section 8 question 14 and 20 | F35: 3 | G35: =((Tableau12141222[[#This Row],[Weigh]]*100)*Tableau12141222[[#This Row],[Score]]) -> 0 | H35: =((Tableau12141222[[#This Row],[Weigh]]*100)*F35) -> 15.9 | I35: =IF(Tableau12141222[[#This Row],[Score]]<>"NA",Tableau12141222[[#This Row],[Maximum]]-Tableau12141222[[#This Row],[Priority (Score + weigh)]],"NA") -> 15.9
B36: 9.C. Regular dissemination of a relevant information bulletin | C36: 0.053 | D36: ='Scoring criteria'!E124 -> 1.5 | E36: Section 9 question 33, 34, 35, 36 and 40 | F36: 3 | G36: =((Tableau12141222[[#This Row],[Weigh]]*100)*Tableau12141222[[#This Row],[Score]]) -> 7.95 | H36: =((Tableau12141222[[#This Row],[Weigh]]*100)*F36) -> 15.9 | I36: =IF(Tableau12141222[[#This Row],[Score]]<>"NA",Tableau12141222[[#This Row],[Maximum]]-Tableau12141222[[#This Row],[Priority (Score + weigh)]],"NA") -> 7.95
B37: 2.C Existence of a scientific and technical committee for the system | C37: 0.066 | D37: ='Scoring criteria'!E26 -> 2 | E37: Section 2 question 41, 45, 46, 48, 52 and 54 | F37: 3 | G37: =((Tableau12141222[[#This Row],[Weigh]]*100)*Tableau12141222[[#This Row],[Score]]) -> 13.2 | H37: =((Tableau12141222[[#This Row],[Weigh]]*100)*F37) -> 19.8 | I37: =IF(Tableau12141222[[#This Row],[Score]]<>"NA",Tableau12141222[[#This Row],[Maximum]]-Tableau12141222[[#This Row],[Priority (Score + weigh)]],"NA") -> 6.6
B38: 3.D Harmonization of intermediary units’ activities | C38: 0.012 | D38: ='Scoring criteria'!E39 -> 0 | E38: section 3 (part 1) question 12, 13 and 14 | F38: 3 | G38: =((Tableau12141222[[#This Row],[Weigh]]*100)*Tableau12141222[[#This Row],[Score]]) -> 0 | H38: =((Tableau12141222[[#This Row],[Weigh]]*100)*F38) -> 3.6 | I38: =IF(Tableau12141222[[#This Row],[Score]]<>"NA",Tableau12141222[[#This Row],[Maximum]]-Tableau12141222[[#This Row],[Priority (Score + weigh)]],"NA") -> 3.6
B39: 2.B Existence of an operational steering structure that is representative of the partners (steering committee) | C39: 0.012 | D39: ='Scoring criteria'!E25 -> 1 | E39: Section 2 question 28/29, 31, 34, 37, 38 and 39 | F39: 3 | G39: =((Tableau12141222[[#This Row],[Weigh]]*100)*Tableau12141222[[#This Row],[Score]]) -> 1.2 | H39: =((Tableau12141222[[#This Row],[Weigh]]*100)*F39) -> 3.6 | I39: =IF(Tableau12141222[[#This Row],[Score]]<>"NA",Tableau12141222[[#This Row],[Maximum]]-Tableau12141222[[#This Row],[Priority (Score + weigh)]],"NA") -> 2.4
B40: 7.C. Designated staff available and trained in data entry, management and analysis. | C40: 0.012 | D40: ='Scoring criteria'!E102 -> 1 | E40: Section 7 question 52 | F40: 3 | G40: =((Tableau12141222[[#This Row],[Weigh]]*100)*Tableau12141222[[#This Row],[Score]]) -> 1.2 | H40: =((Tableau12141222[[#This Row],[Weigh]]*100)*F40) -> 3.6 | I40: =IF(Tableau12141222[[#This Row],[Score]]<>"NA",Tableau12141222[[#This Row],[Maximum]]-Tableau12141222[[#This Row],[Priority (Score + weigh)]],"NA") -> 2.4
B41: 8.A. Adequate skill level in epidemiology of members of the central unit | C41: 0.012 | D41: ='Scoring criteria'!E112 -> 1 | E41: Section 8 question 2 and 4 | F41: 3 | G41: =((Tableau12141222[[#This Row],[Weigh]]*100)*Tableau12141222[[#This Row],[Score]]) -> 1.2 | H41: =((Tableau12141222[[#This Row],[Weigh]]*100)*F41) -> 3.6 | I41: =IF(Tableau12141222[[#This Row],[Score]]<>"NA",Tableau12141222[[#This Row],[Maximum]]-Tableau12141222[[#This Row],[Priority (Score + weigh)]],"NA") -> 2.4
B42: 2.F Supervision of intermediary units by the central level | C42: 0.012 | D42: ='Scoring criteria'!E29 -> 2 | E42: Section 2 question 68, 70 and 73 | F42: 3 | G42: =((Tableau12141222[[#This Row],[Weigh]]*100)*Tableau12141222[[#This Row],[Score]]) -> 2.4 | H42: =((Tableau12141222[[#This Row],[Weigh]]*100)*F42) -> 3.6 | I42: =IF(Tableau12141222[[#This Row],[Score]]<>"NA",Tableau12141222[[#This Row],[Maximum]]-Tableau12141222[[#This Row],[Priority (Score + weigh)]],"NA") -> 1.2
B43: 3.F Existence of coordination meetings at the intermediate level | C43: 0.012 | D43: ='Scoring criteria'!E41 -> 2 | E43: Section 3 (part 1) question 18, 21, 28, 30 and 32 | F43: 3 | G43: =((Tableau12141222[[#This Row],[Weigh]]*100)*Tableau12141222[[#This Row],[Score]]) -> 2.4 | H43: =((Tableau12141222[[#This Row],[Weigh]]*100)*F43) -> 3.6 | I43: =IF(Tableau12141222[[#This Row],[Score]]<>"NA",Tableau12141222[[#This Row],[Maximum]]-Tableau12141222[[#This Row],[Priority (Score + weigh)]],"NA") -> 1.2
B44: 4.F Existence of an investigation team to support field agents | C44: 0.012 | D44: ='Scoring criteria'!E54 -> 2 | E44: Section 4 question 52 and 53 | F44: 3 | G44: =((Tableau12141222[[#This Row],[Weigh]]*100)*Tableau12141222[[#This Row],[Score]]) -> 2.4 | H44: =((Tableau12141222[[#This Row],[Weigh]]*100)*F44) -> 3.6 | I44: =IF(Tableau12141222[[#This Row],[Score]]<>"NA",Tableau12141222[[#This Row],[Maximum]]-Tableau12141222[[#This Row],[Priority (Score + weigh)]],"NA") -> 1.2
B45: 2.E Frequency of meetings of the central coordinating body | C45: 0.012 | D45: ='Scoring criteria'!E28 -> 2 | E45: Section 2 question 61, 62, 65 and 67 | F45: 3 | G45: =((Tableau12141222[[#This Row],[Weigh]]*100)*Tableau12141222[[#This Row],[Score]]) -> 2.4 | H45: =((Tableau12141222[[#This Row],[Weigh]]*100)*F45) -> 3.6 | I45: =IF(Tableau12141222[[#This Row],[Score]]<>"NA",Tableau12141222[[#This Row],[Maximum]]-Tableau12141222[[#This Row],[Priority (Score + weigh)]],"NA") -> 1.2
B46: 3.C Implementation of supervision by the intermediary level | C46: 0.012 | D46: ='Scoring criteria'!E38 -> 2.75 | E46: Section 3 (part 2) question 5, 7 and 9 | F46: 3 | G46: =((Tableau12141222[[#This Row],[Weigh]]*100)*Tableau12141222[[#This Row],[Score]]) -> 3.3 | H46: =((Tableau12141222[[#This Row],[Weigh]]*100)*F46) -> 3.6 | I46: =IF(Tableau12141222[[#This Row],[Score]]<>"NA",Tableau12141222[[#This Row],[Maximum]]-Tableau12141222[[#This Row],[Priority (Score + weigh)]],"NA") -> 0.3
B47: 9.D. Systematic return of reports on results to field actors (outside of a bulletin). | C47: 0.053 | D47: ='Scoring criteria'!E125 -> 3 | E47: Section 9 question 25 and 26 | F47: 3 | G47: =((Tableau12141222[[#This Row],[Weigh]]*100)*Tableau12141222[[#This Row],[Score]]) -> 15.9 | H47: =((Tableau12141222[[#This Row],[Weigh]]*100)*F47) -> 15.9 | I47: =IF(Tableau12141222[[#This Row],[Score]]<>"NA",Tableau12141222[[#This Row],[Maximum]]-Tableau12141222[[#This Row],[Priority (Score + weigh)]],"NA") -> 0
B48: 4.A Effective integration of laboratories in the surveillance system | C48: 0.053 | D48: ='Scoring criteria'!E49 -> 3 | E48: Section 4 question 1 and 2 | F48: 3 | G48: =((Tableau12141222[[#This Row],[Weigh]]*100)*Tableau12141222[[#This Row],[Score]]) -> 15.9 | H48: =((Tableau12141222[[#This Row],[Weigh]]*100)*F48) -> 15.9 | I48: =IF(Tableau12141222[[#This Row],[Score]]<>"NA",Tableau12141222[[#This Row],[Maximum]]-Tableau12141222[[#This Row],[Priority (Score + weigh)]],"NA") -> 0
B49: 3.A Existence of formal intermediary units covering the entire territory | C49: 0.012 | D49: ='Scoring criteria'!E36 -> 3 | E49: Section 3 (part 1) question 1, 8 and 5 | F49: 3 | G49: =((Tableau12141222[[#This Row],[Weigh]]*100)*Tableau12141222[[#This Row],[Score]]) -> 3.6 | H49: =((Tableau12141222[[#This Row],[Weigh]]*100)*F49) -> 3.6 | I49: =IF(Tableau12141222[[#This Row],[Score]]<>"NA",Tableau12141222[[#This Row],[Maximum]]-Tableau12141222[[#This Row],[Priority (Score + weigh)]],"NA") -> 0
B50: 3.B Active role of intermediary units in the functioning of the system (validation, management, feedback) | C50: 0.012 | D50: ='Scoring criteria'!E37 -> 3 | E50: Section 3 (part 2) question 1 | F50: 3 | G50: =((Tableau12141222[[#This Row],[Weigh]]*100)*Tableau12141222[[#This Row],[Score]]) -> 3.6 | H50: =((Tableau12141222[[#This Row],[Weigh]]*100)*F50) -> 3.6 | I50: =IF(Tableau12141222[[#This Row],[Score]]<>"NA",Tableau12141222[[#This Row],[Maximum]]-Tableau12141222[[#This Row],[Priority (Score + weigh)]],"NA") -> 0
B53: Tools
B54: Criteria | C54: Weigh | D54: Score | E54: Referencing question | F54: Max | G54: Priority (score + weigh) | H54: Colonne1 | I54: Missing points
B55: 8.D. Regular advanced training | C55: 0.053 | D55: ='Scoring criteria'!E115 -> 0 | E55: Section 8 question 14 and 20 | F55: 3 | G55: =((Tableau1214121624[[#This Row],[Weigh]]*100)*Tableau1214121624[[#This Row],[Score]]) -> 0 | H55: =((Tableau1214121624[[#This Row],[Weigh]]*100)*F55) -> 15.9 | I55: =IF(Tableau1214121624[[#This Row],[Score]]<>"NA",Tableau1214121624[[#This Row],[Colonne1]]-Tableau1214121624[[#This Row],[Priority (score + weigh)]],"NA") -> 15.9
B56: 4.L Analysis deadlines at the laboratory (formalization, standardization, verification, transfer of results to the central unit) | C56: 0.05 | D56: ='Scoring criteria'!E60 -> 0 | E56: Section 4 table at the end of the section column j and k and question 20 and 47 | F56: 3 | G56: =((Tableau1214121624[[#This Row],[Weigh]]*100)*Tableau1214121624[[#This Row],[Score]]) -> 0 | H56: =((Tableau1214121624[[#This Row],[Weigh]]*100)*F56) -> 15 | I56: =IF(Tableau1214121624[[#This Row],[Score]]<>"NA",Tableau1214121624[[#This Row],[Colonne1]]-Tableau1214121624[[#This Row],[Priority (score + weigh)]],"NA") -> 15
B57: 8.B. Initial training implemented for all field agents when joining the system | C57: 0.053 | D57: ='Scoring criteria'!E113 -> 1 | E57: Section 8 question 9 and 10 | F57: 3 | G57: =((Tableau1214121624[[#This Row],[Weigh]]*100)*Tableau1214121624[[#This Row],[Score]]) -> 5.3 | H57: =((Tableau1214121624[[#This Row],[Weigh]]*100)*F57) -> 15.9 | I57: =IF(Tableau1214121624[[#This Row],[Score]]<>"NA",Tableau1214121624[[#This Row],[Colonne1]]-Tableau1214121624[[#This Row],[Priority (score + weigh)]],"NA") -> 10.6
B58: 4.H Sensitivity of diagnostic techniques | C58: 0.05 | D58: ='Scoring criteria'!E56 -> 1.5 | E58: Section 4 table at the end of the section column b | F58: 3 | G58: =((Tableau1214121624[[#This Row],[Weigh]]*100)*Tableau1214121624[[#This Row],[Score]]) -> 7.5 | H58: =((Tableau1214121624[[#This Row],[Weigh]]*100)*F58) -> 15 | I58: =IF(Tableau1214121624[[#This Row],[Score]]<>"NA",Tableau1214121624[[#This Row],[Colonne1]]-Tableau1214121624[[#This Row],[Priority (score + weigh)]],"NA") -> 7.5
B59: 5.E Specificity of the case or threat definition | C59: 0.025 | D59: ='Scoring criteria'!E71 -> 1.5 | E59: Section 5 question 17 | F59: 3 | G59: =((Tableau1214121624[[#This Row],[Weigh]]*100)*Tableau1214121624[[#This Row],[Score]]) -> 3.75 | H59: =((Tableau1214121624[[#This Row],[Weigh]]*100)*F59) -> 7.5 | I59: =IF(Tableau1214121624[[#This Row],[Score]]<>"NA",Tableau1214121624[[#This Row],[Colonne1]]-Tableau1214121624[[#This Row],[Priority (score + weigh)]],"NA") -> 3.75
B60: 5.A Existence of a formalized surveillance protocol for each disease or threat under surveillance | C60: 0.028 | D60: ='Scoring criteria'!E67 -> 2 | E60: Section 5 (part 1) question 1 and 2 to 13 | F60: 3 | G60: =((Tableau1214121624[[#This Row],[Weigh]]*100)*Tableau1214121624[[#This Row],[Score]]) -> 5.6 | H60: =((Tableau1214121624[[#This Row],[Weigh]]*100)*F60) -> 8.4 | I60: =IF(Tableau1214121624[[#This Row],[Score]]<>"NA",Tableau1214121624[[#This Row],[Colonne1]]-Tableau1214121624[[#This Row],[Priority (score + weigh)]],"NA") -> 2.8
B61: 8.C. Objectives and contents of initial training of system field actors adequate for operational surveillance needs | C61: 0.053 | D61: ='Scoring criteria'!E114 -> 2.5 | E61: Section 8 question 11 | F61: 3 | G61: =((Tableau1214121624[[#This Row],[Weigh]]*100)*Tableau1214121624[[#This Row],[Score]]) -> 13.25 | H61: =((Tableau1214121624[[#This Row],[Weigh]]*100)*F61) -> 15.9 | I61: =IF(Tableau1214121624[[#This Row],[Score]]<>"NA",Tableau1214121624[[#This Row],[Colonne1]]-Tableau1214121624[[#This Row],[Priority (score + weigh)]],"NA") -> 2.65
B62: 5.F Simplicity of the case or threat definition | C62: 0.025 | D62: ='Scoring criteria'!E72 -> 2 | E62: Section 5 (part 2 and 3) question 1 | F62: 3 | G62: =((Tableau1214121624[[#This Row],[Weigh]]*100)*Tableau1214121624[[#This Row],[Score]]) -> 5 | H62: =((Tableau1214121624[[#This Row],[Weigh]]*100)*F62) -> 7.5 | I62: =IF(Tableau1214121624[[#This Row],[Score]]<>"NA",Tableau1214121624[[#This Row],[Colonne1]]-Tableau1214121624[[#This Row],[Priority (score + weigh)]],"NA") -> 2.5
B63: 5.H Relevance of collected samples | C63: 0.028 | D63: ='Scoring criteria'!E74 -> 2.5 | E63: Section 5 (part 1) question 24, Section 5 (part 2) question 9 Section 5 (part 3) Quesstion 14 section 1 question 1 and 3 | F63: 3 | G63: =((Tableau1214121624[[#This Row],[Weigh]]*100)*Tableau1214121624[[#This Row],[Score]]) -> 7 | H63: =((Tableau1214121624[[#This Row],[Weigh]]*100)*F63) -> 8.4 | I63: =IF(Tableau1214121624[[#This Row],[Score]]<>"NA",Tableau1214121624[[#This Row],[Colonne1]]-Tableau1214121624[[#This Row],[Priority (score + weigh)]],"NA") -> 1.4
B64: 4.J Control of laboratory reagents | C64: 0.2 | D64: ='Scoring criteria'!E58 -> 3 | E64: Section 4 question 23 and 51 | F64: 3 | G64: =((Tableau1214121624[[#This Row],[Weigh]]*100)*Tableau1214121624[[#This Row],[Score]]) -> 60 | H64: =((Tableau1214121624[[#This Row],[Weigh]]*100)*F64) -> 60 | I64: =IF(Tableau1214121624[[#This Row],[Score]]<>"NA",Tableau1214121624[[#This Row],[Colonne1]]-Tableau1214121624[[#This Row],[Priority (score + weigh)]],"NA") -> 0
B65: 4.D Quality of the standardization of work between different laboratories | C65: 0.05 | D65: ='Scoring criteria'!E52 -> 3 | E65: Section 4 question 3, 21, 48 and 49 | F65: 3 | G65: =((Tableau1214121624[[#This Row],[Weigh]]*100)*Tableau1214121624[[#This Row],[Score]]) -> 15 | H65: =((Tableau1214121624[[#This Row],[Weigh]]*100)*F65) -> 15 | I65: =IF(Tableau1214121624[[#This Row],[Score]]<>"NA",Tableau1214121624[[#This Row],[Colonne1]]-Tableau1214121624[[#This Row],[Priority (score + weigh)]],"NA") -> 0
B66: 4.G Relevance of diagnostic techniques | C66: 0.05 | D66: ='Scoring criteria'!E55 -> 3 | E66: Section 4 question 54, 55 and 56 | F66: 3 | G66: =((Tableau1214121624[[#This Row],[Weigh]]*100)*Tableau1214121624[[#This Row],[Score]]) -> 15 | H66: =((Tableau1214121624[[#This Row],[Weigh]]*100)*F66) -> 15 | I66: =IF(Tableau1214121624[[#This Row],[Score]]<>"NA",Tableau1214121624[[#This Row],[Colonne1]]-Tableau1214121624[[#This Row],[Priority (score + weigh)]],"NA") -> 0
B67: 4.A Effective integration of laboratories in the surveillance system | C67: 0.05 | D67: ='Scoring criteria'!E49 -> 3 | E67: Section 4 question 1 and 2 | F67: 3 | G67: =((Tableau1214121624[[#This Row],[Weigh]]*100)*Tableau1214121624[[#This Row],[Score]]) -> 15 | H67: =((Tableau1214121624[[#This Row],[Weigh]]*100)*F67) -> 15 | I67: =IF(Tableau1214121624[[#This Row],[Score]]<>"NA",Tableau1214121624[[#This Row],[Colonne1]]-Tableau1214121624[[#This Row],[Priority (score + weigh)]],"NA") -> 0
B68: 4.C Application of Quality Assurance for the tests undertaken | C68: 0.05 | D68: ='Scoring criteria'!E51 -> 3 | E68: Section 4 table at the end of the section column l | F68: 3 | G68: =((Tableau1214121624[[#This Row],[Weigh]]*100)*Tableau1214121624[[#This Row],[Score]]) -> 15 | H68: =((Tableau1214121624[[#This Row],[Weigh]]*100)*F68) -> 15 | I68: =IF(Tableau1214121624[[#This Row],[Score]]<>"NA",Tableau1214121624[[#This Row],[Colonne1]]-Tableau1214121624[[#This Row],[Priority (score + weigh)]],"NA") -> 0
B69: 4.E Proportion of tests submitted to inter-laboratory trials | C69: 0.05 | D69: ='Scoring criteria'!E53 -> 3 | E69: Section 4 table at the end of the section column m | F69: 3 | G69: =((Tableau1214121624[[#This Row],[Weigh]]*100)*Tableau1214121624[[#This Row],[Score]]) -> 15 | H69: =((Tableau1214121624[[#This Row],[Weigh]]*100)*F69) -> 15 | I69: =IF(Tableau1214121624[[#This Row],[Score]]<>"NA",Tableau1214121624[[#This Row],[Colonne1]]-Tableau1214121624[[#This Row],[Priority (score + weigh)]],"NA") -> 0
B70: 5.J Quality of samples collected | C70: 0.028 | D70: ='Scoring criteria'!E76 -> 3 | E70: Section 5 (part 1) question 28 | F70: 3 | G70: =((Tableau1214121624[[#This Row],[Weigh]]*100)*Tableau1214121624[[#This Row],[Score]]) -> 8.4 | H70: =((Tableau1214121624[[#This Row],[Weigh]]*100)*F70) -> 8.4 | I70: =IF(Tableau1214121624[[#This Row],[Score]]<>"NA",Tableau1214121624[[#This Row],[Colonne1]]-Tableau1214121624[[#This Row],[Priority (score + weigh)]],"NA") -> 0
B71: 5.D Sensitivity of the case or threat definition | C71: 0.025 | D71: ='Scoring criteria'!E70 -> 3 | E71: Section 5 question 16 | F71: 3 | G71: =((Tableau1214121624[[#This Row],[Weigh]]*100)*Tableau1214121624[[#This Row],[Score]]) -> 7.5 | H71: =((Tableau1214121624[[#This Row],[Weigh]]*100)*F71) -> 7.5 | I71: =IF(Tableau1214121624[[#This Row],[Score]]<>"NA",Tableau1214121624[[#This Row],[Colonne1]]-Tableau1214121624[[#This Row],[Priority (score + weigh)]],"NA") -> 0
B72: 4.M Quality of results delivered | C72: 0.05 | D72: ='Scoring criteria'!E61 -> 3 | E72: Section 4 question 58 and 59 | F72: 3 | G72: =((Tableau1214121624[[#This Row],[Weigh]]*100)*Tableau1214121624[[#This Row],[Score]]) -> 15 | H72: =((Tableau1214121624[[#This Row],[Weigh]]*100)*F72) -> 15 | I72: =IF(Tableau1214121624[[#This Row],[Score]]<>"NA",Tableau1214121624[[#This Row],[Colonne1]]-Tableau1214121624[[#This Row],[Priority (score + weigh)]],"NA") -> 0
B73: 5.B Standardization of data collected | C73: 0.025 | D73: ='Scoring criteria'!E68 -> 3 | E73: Section 5 (part 1) question 14, 19, 20, 22 and 23 | F73: 3 | G73: =((Tableau1214121624[[#This Row],[Weigh]]*100)*Tableau1214121624[[#This Row],[Score]]) -> 7.5 | H73: =((Tableau1214121624[[#This Row],[Weigh]]*100)*F73) -> 7.5 | I73: =IF(Tableau1214121624[[#This Row],[Score]]<>"NA",Tableau1214121624[[#This Row],[Colonne1]]-Tableau1214121624[[#This Row],[Priority (score + weigh)]],"NA") -> 0
B74: 5.C Relevance of measurement tools (excluding laboratory tools) | C74: 0.025 | D74: ='Scoring criteria'!E69 -> 3 | E74: Section 5 (part 2) question 6, Section 5 (part 3) question 9 and section 1 question 1 | F74: 3 | G74: =((Tableau1214121624[[#This Row],[Weigh]]*100)*Tableau1214121624[[#This Row],[Score]]) -> 7.5 | H74: =((Tableau1214121624[[#This Row],[Weigh]]*100)*F74) -> 7.5 | I74: =IF(Tableau1214121624[[#This Row],[Score]]<>"NA",Tableau1214121624[[#This Row],[Colonne1]]-Tableau1214121624[[#This Row],[Priority (score + weigh)]],"NA") -> 0
B75: 5.I Standardization of collected samples | C75: 0.028 | D75: ='Scoring criteria'!E75 -> 3 | E75: Section 5 (part 1) question 25 and 26 | F75: 3 | G75: =((Tableau1214121624[[#This Row],[Weigh]]*100)*Tableau1214121624[[#This Row],[Score]]) -> 8.4 | H75: =((Tableau1214121624[[#This Row],[Weigh]]*100)*F75) -> 8.4 | I75: =IF(Tableau1214121624[[#This Row],[Score]]<>"NA",Tableau1214121624[[#This Row],[Colonne1]]-Tableau1214121624[[#This Row],[Priority (score + weigh)]],"NA") -> 0
B78: Collection and circulation of data
B79: Criteria | C79: Weigh | D79: Score | E79: Referencing question | F79: Max | G79: Priority (score + weigh) | H79: Colonne1 | I79: Missing points
B80: 4.B Adequacy of human, material, and financial resources for diagnostic needs | C80: 0.071 | D80: ='Scoring criteria'!E50 -> 0 | E80: Section 4 question 8, 9, 10, 35, 36 and 37 | F80: 3 | G80: =((Tableau1214121725[[#This Row],[Weigh]]*100)*Tableau1214121725[[#This Row],[Score]]) -> 0 | H80: =((Tableau1214121725[[#This Row],[Weigh]]*100)*F80) -> 21.3 | I80: =IF(Tableau1214121725[[#This Row],[Score]]<>"NA",Tableau1214121725[[#This Row],[Colonne1]]-Tableau1214121725[[#This Row],[Priority (score + weigh)]],"NA") -> 21.3
B81: 7.B Data input interval in accordance with the objectives and use of system results | C81: 0.071 | D81: ='Scoring criteria'!E101 -> 0 | E81: Section 7 question 18 | F81: 3 | G81: =((Tableau1214121725[[#This Row],[Weigh]]*100)*Tableau1214121725[[#This Row],[Score]]) -> 0 | H81: =((Tableau1214121725[[#This Row],[Weigh]]*100)*F81) -> 21.3 | I81: =IF(Tableau1214121725[[#This Row],[Score]]<>"NA",Tableau1214121725[[#This Row],[Colonne1]]-Tableau1214121725[[#This Row],[Priority (score + weigh)]],"NA") -> 21.3
B82: 4.L Analysis deadlines at the laboratory (formalization, standardization, verification, transfer of results to the central unit) | C82: 0.071 | D82: ='Scoring criteria'!E60 -> 0 | E82: Section 4 table at the end of the section column j and k and question 20 and 47 | F82: 3 | G82: =((Tableau1214121725[[#This Row],[Weigh]]*100)*Tableau1214121725[[#This Row],[Score]]) -> 0 | H82: =((Tableau1214121725[[#This Row],[Weigh]]*100)*F82) -> 21.3 | I82: =IF(Tableau1214121725[[#This Row],[Score]]<>"NA",Tableau1214121725[[#This Row],[Colonne1]]-Tableau1214121725[[#This Row],[Priority (score + weigh)]],"NA") -> 21.3
B83: 3.D Harmonization of intermediary units’ activities | C83: 0.062 | D83: ='Scoring criteria'!E39 -> 0 | E83: section 3 (part 1) question 12, 13 and 14 | F83: 3 | G83: =((Tableau1214121725[[#This Row],[Weigh]]*100)*Tableau1214121725[[#This Row],[Score]]) -> 0 | H83: =((Tableau1214121725[[#This Row],[Weigh]]*100)*F83) -> 18.6 | I83: =IF(Tableau1214121725[[#This Row],[Score]]<>"NA",Tableau1214121725[[#This Row],[Colonne1]]-Tableau1214121725[[#This Row],[Priority (score + weigh)]],"NA") -> 18.6
B84: 8.D. Regular advanced training | C84: 0.062 | D84: ='Scoring criteria'!E115 -> 0 | E84: Section 8 question 14 and 20 | F84: 3 | G84: =((Tableau1214121725[[#This Row],[Weigh]]*100)*Tableau1214121725[[#This Row],[Score]]) -> 0 | H84: =((Tableau1214121725[[#This Row],[Weigh]]*100)*F84) -> 18.6 | I84: =IF(Tableau1214121725[[#This Row],[Score]]<>"NA",Tableau1214121725[[#This Row],[Colonne1]]-Tableau1214121725[[#This Row],[Priority (score + weigh)]],"NA") -> 18.6
B85: 2.A Existence of an operational management structure (central unit) | C85: 0.062 | D85: ='Scoring criteria'!E24 -> 0.5 | E85: Section 2 question 7, 9, 10, 20 and 22 | F85: 3 | G85: =((Tableau1214121725[[#This Row],[Weigh]]*100)*Tableau1214121725[[#This Row],[Score]]) -> 3.1 | H85: =((Tableau1214121725[[#This Row],[Weigh]]*100)*F85) -> 18.6 | I85: =IF(Tableau1214121725[[#This Row],[Score]]<>"NA",Tableau1214121725[[#This Row],[Colonne1]]-Tableau1214121725[[#This Row],[Priority (score + weigh)]],"NA") -> 15.5
B86: 8.B. Initial training implemented for all field agents when joining the system | C86: 0.062 | D86: ='Scoring criteria'!E113 -> 1 | E86: Section 8 question 9 and 10 | F86: 3 | G86: =((Tableau1214121725[[#This Row],[Weigh]]*100)*Tableau1214121725[[#This Row],[Score]]) -> 6.2 | H86: =((Tableau1214121725[[#This Row],[Weigh]]*100)*F86) -> 18.6 | I86: =IF(Tableau1214121725[[#This Row],[Score]]<>"NA",Tableau1214121725[[#This Row],[Colonne1]]-Tableau1214121725[[#This Row],[Priority (score + weigh)]],"NA") -> 12.4
B87: 5.L Simplicity of the notification procedure | C87: 0.071 | D87: ='Scoring criteria'!E78 -> 2 | E87: Section 5 (part 1) question 36, section 5 (part 2) question 16, 4 and 15 and Section 5 (part 3) question 7, 19 and 20 | F87: 3 | G87: =((Tableau1214121725[[#This Row],[Weigh]]*100)*Tableau1214121725[[#This Row],[Score]]) -> 14.2 | H87: =((Tableau1214121725[[#This Row],[Weigh]]*100)*F87) -> 21.3 | I87: =IF(Tableau1214121725[[#This Row],[Score]]<>"NA",Tableau1214121725[[#This Row],[Colonne1]]-Tableau1214121725[[#This Row],[Priority (score + weigh)]],"NA") -> 7.1
B88: 3.F Existence of coordination meetings at the intermediate level | C88: 0.062 | D88: ='Scoring criteria'!E41 -> 2 | E88: Section 3 (part 1) question 18, 21, 28, 30 and 32 | F88: 3 | G88: =((Tableau1214121725[[#This Row],[Weigh]]*100)*Tableau1214121725[[#This Row],[Score]]) -> 12.4 | H88: =((Tableau1214121725[[#This Row],[Weigh]]*100)*F88) -> 18.6 | I88: =IF(Tableau1214121725[[#This Row],[Score]]<>"NA",Tableau1214121725[[#This Row],[Colonne1]]-Tableau1214121725[[#This Row],[Priority (score + weigh)]],"NA") -> 6.2
B89: 8.C. Objectives and contents of initial training of system field actors adequate for operational surveillance needs | C89: 0.062 | D89: ='Scoring criteria'!E114 -> 2.5 | E89: Section 8 question 11 | F89: 3 | G89: =((Tableau1214121725[[#This Row],[Weigh]]*100)*Tableau1214121725[[#This Row],[Score]]) -> 15.5 | H89: =((Tableau1214121725[[#This Row],[Weigh]]*100)*F89) -> 18.6 | I89: =IF(Tableau1214121725[[#This Row],[Score]]<>"NA",Tableau1214121725[[#This Row],[Colonne1]]-Tableau1214121725[[#This Row],[Priority (score + weigh)]],"NA") -> 3.1
B90: 9.B. Return of individual test results to field actors | C90: 0.071 | D90: ='Scoring criteria'!E123 -> 3 | E90: Section 9 question 14 | F90: 3 | G90: =((Tableau1214121725[[#This Row],[Weigh]]*100)*Tableau1214121725[[#This Row],[Score]]) -> 21.3 | H90: =((Tableau1214121725[[#This Row],[Weigh]]*100)*F90) -> 21.3 | I90: =IF(Tableau1214121725[[#This Row],[Score]]<>"NA",Tableau1214121725[[#This Row],[Colonne1]]-Tableau1214121725[[#This Row],[Priority (score + weigh)]],"NA") -> 0
B91: 9.E. Presence of a communications system organized transversally and vertically between field actors (mail, web, telephone…) | C91: 0.071 | D91: ='Scoring criteria'!E126 -> 3 | E91: Section 9 question 13 and 16 | F91: 3 | G91: =((Tableau1214121725[[#This Row],[Weigh]]*100)*Tableau1214121725[[#This Row],[Score]]) -> 21.3 | H91: =((Tableau1214121725[[#This Row],[Weigh]]*100)*F91) -> 21.3 | I91: =IF(Tableau1214121725[[#This Row],[Score]]<>"NA",Tableau1214121725[[#This Row],[Colonne1]]-Tableau1214121725[[#This Row],[Priority (score + weigh)]],"NA") -> 0
B92: 5.J Quality of samples collected | C92: 0.062 | D92: ='Scoring criteria'!E76 -> 3 | E92: Section 5 (part 1) question 28 | F92: 3 | G92: =((Tableau1214121725[[#This Row],[Weigh]]*100)*Tableau1214121725[[#This Row],[Score]]) -> 18.6 | H92: =((Tableau1214121725[[#This Row],[Weigh]]*100)*F92) -> 18.6 | I92: =IF(Tableau1214121725[[#This Row],[Score]]<>"NA",Tableau1214121725[[#This Row],[Colonne1]]-Tableau1214121725[[#This Row],[Priority (score + weigh)]],"NA") -> 0
B93: 5.G Quality of the filling out of investigation forms | C93: 0.062 | D93: ='Scoring criteria'!E73 -> 3 | E93: Section 5 (part 1) question 19 and 21 | F93: 3 | G93: =((Tableau1214121725[[#This Row],[Weigh]]*100)*Tableau1214121725[[#This Row],[Score]]) -> 18.6 | H93: =((Tableau1214121725[[#This Row],[Weigh]]*100)*F93) -> 18.6 | I93: =IF(Tableau1214121725[[#This Row],[Score]]<>"NA",Tableau1214121725[[#This Row],[Colonne1]]-Tableau1214121725[[#This Row],[Priority (score + weigh)]],"NA") -> 0
B94: 5.K Respect of the interval between the detection of a case or threat and the delivery of results | C94: 0.071 | D94: ='Scoring criteria'!E77 -> 3 | E94: Section 5 (part 1) question31, 32, 33 and 34 | F94: 3 | G94: =((Tableau1214121725[[#This Row],[Weigh]]*100)*Tableau1214121725[[#This Row],[Score]]) -> 21.3 | H94: =((Tableau1214121725[[#This Row],[Weigh]]*100)*F94) -> 21.3 | I94: =IF(Tableau1214121725[[#This Row],[Score]]<>"NA",Tableau1214121725[[#This Row],[Colonne1]]-Tableau1214121725[[#This Row],[Priority (score + weigh)]],"NA") -> 0
B97: Processing and interpretation
B98: Criteria | C98: Weigh | D98: Score | E98: Referencing question | F98: Max | G98: Priority (score + weigh) | H98: Colonne1 | I98: Missing points
B99: 7.G. Exploitation of data fits the needs of the system (if possible regular and multi-disciplinary) | C99: 0.16 | D99: ='Scoring criteria'!E106 -> 0 | E99: Section 7 question 31, 33 and 34 | F99: 3 | G99: =((Tableau1726[[#This Row],[Weigh]]*100)*Tableau1726[[#This Row],[Score]]) -> 0 | H99: =((Tableau1726[[#This Row],[Weigh]]*100)*F99) -> 48 | I99: =IF(Tableau1726[[#This Row],[Score]]<>"NA",Tableau1726[[#This Row],[Colonne1]]-Tableau1726[[#This Row],[Priority (score + weigh)]],"NA") -> 48
B100: 8.A. Adequate skill level in epidemiology of members of the central unit | C100: 0.231 | D100: ='Scoring criteria'!E112 -> 1 | E100: Section 8 question 2 and 4 | F100: 3 | G100: =((Tableau1726[[#This Row],[Weigh]]*100)*Tableau1726[[#This Row],[Score]]) -> 23.1 | H100: =((Tableau1726[[#This Row],[Weigh]]*100)*F100) -> 69.3 | I100: =IF(Tableau1726[[#This Row],[Score]]<>"NA",Tableau1726[[#This Row],[Colonne1]]-Tableau1726[[#This Row],[Priority (score + weigh)]],"NA") -> 46.2
B101: 4.B Adequacy of human, material, and financial resources for diagnostic needs | C101: 0.071 | D101: ='Scoring criteria'!E50 -> 0 | E101: Section 4 question 8, 9, 10, 35, 36 and 37 | F101: 3 | G101: =((Tableau1726[[#This Row],[Weigh]]*100)*Tableau1726[[#This Row],[Score]]) -> 0 | H101: =((Tableau1726[[#This Row],[Weigh]]*100)*F101) -> 21.3 | I101: =IF(Tableau1726[[#This Row],[Score]]<>"NA",Tableau1726[[#This Row],[Colonne1]]-Tableau1726[[#This Row],[Priority (score + weigh)]],"NA") -> 21.3
B102: 4.L Analysis deadlines at the laboratory (formalization, standardization, verification, transfer of results to the central unit) | C102: 0.071 | D102: ='Scoring criteria'!E60 -> 0 | E102: Section 4 table at the end of the section column j and k and question 20 and 47 | F102: 3 | G102: =((Tableau1726[[#This Row],[Weigh]]*100)*Tableau1726[[#This Row],[Score]]) -> 0 | H102: =((Tableau1726[[#This Row],[Weigh]]*100)*F102) -> 21.3 | I102: =IF(Tableau1726[[#This Row],[Score]]<>"NA",Tableau1726[[#This Row],[Colonne1]]-Tableau1726[[#This Row],[Priority (score + weigh)]],"NA") -> 21.3
B103: 2.C Existence of a scientific and technical committee for the system | C103: 0.16 | D103: ='Scoring criteria'!E26 -> 2 | E103: Section 2 question 41, 45, 46, 48, 52 and 54 | F103: 3 | G103: =((Tableau1726[[#This Row],[Weigh]]*100)*Tableau1726[[#This Row],[Score]]) -> 32 | H103: =((Tableau1726[[#This Row],[Weigh]]*100)*F103) -> 48 | I103: =IF(Tableau1726[[#This Row],[Score]]<>"NA",Tableau1726[[#This Row],[Colonne1]]-Tableau1726[[#This Row],[Priority (score + weigh)]],"NA") -> 16
B104: 7.C. Designated staff available and trained in data entry, management and analysis. | C104: 0.071 | D104: ='Scoring criteria'!E102 -> 1 | E104: Section 7 question 52 | F104: 3 | G104: =((Tableau1726[[#This Row],[Weigh]]*100)*Tableau1726[[#This Row],[Score]]) -> 7.1 | H104: =((Tableau1726[[#This Row],[Weigh]]*100)*F104) -> 21.3 | I104: =IF(Tableau1726[[#This Row],[Score]]<>"NA",Tableau1726[[#This Row],[Colonne1]]-Tableau1726[[#This Row],[Priority (score + weigh)]],"NA") -> 14.2
B105: 4.K Technical level of data management at the laboratory | C105: 0.071 | D105: ='Scoring criteria'!E59 -> 1.5 | E105: Section 4 question 15, 18 and 45 | F105: 3 | G105: =((Tableau1726[[#This Row],[Weigh]]*100)*Tableau1726[[#This Row],[Score]]) -> 10.65 | H105: =((Tableau1726[[#This Row],[Weigh]]*100)*F105) -> 21.3 | I105: =IF(Tableau1726[[#This Row],[Score]]<>"NA",Tableau1726[[#This Row],[Colonne1]]-Tableau1726[[#This Row],[Priority (score + weigh)]],"NA") -> 10.65
B106: 7.A. Adequacy of the data management system for the needs of the system (relational database, etc.) | C106: 0.071 | D106: ='Scoring criteria'!E100 -> 3 | E106: Section 7 question 3, 8 and 9 | F106: 3 | G106: =((Tableau1726[[#This Row],[Weigh]]*100)*Tableau1726[[#This Row],[Score]]) -> 21.3 | H106: =((Tableau1726[[#This Row],[Weigh]]*100)*F106) -> 21.3 | I106: =IF(Tableau1726[[#This Row],[Score]]<>"NA",Tableau1726[[#This Row],[Colonne1]]-Tableau1726[[#This Row],[Priority (score + weigh)]],"NA") -> 0
B107: 7.F Complete descriptive processing of data | C107: 0.071 | D107: ='Scoring criteria'!E105 -> 3 | E107: Section 7 question 36, 37, 38, 40 and 49 | F107: 3 | G107: =((Tableau1726[[#This Row],[Weigh]]*100)*Tableau1726[[#This Row],[Score]]) -> 21.3 | H107: =((Tableau1726[[#This Row],[Weigh]]*100)*F107) -> 21.3 | I107: =IF(Tableau1726[[#This Row],[Score]]<>"NA",Tableau1726[[#This Row],[Colonne1]]-Tableau1726[[#This Row],[Priority (score + weigh)]],"NA") -> 0
B110: Diffusion and information
B111: Criteria | C111: Weigh | D111: Score | E111: Referencing question | F111: Max | G111: Priority (score + weigh) | H111: Colonne1 | I111: Missing points
B112: 9.A Regular release of reports and scientific articles on surveillance results | C112: 0.375 | D112: ='Scoring criteria'!E122 -> 0 | E112: Section 9 question 9, 10 and 11 | F112: 3 | G112: =((Tableau1827[[#This Row],[Weigh]]*100)*Tableau1827[[#This Row],[Score]]) -> 0 | H112: =((Tableau1827[[#This Row],[Weigh]]*100)*F112) -> 112.5 | I112: =IF(Tableau1827[[#This Row],[Score]]<>"NA",Tableau1827[[#This Row],[Colonne1]]-Tableau1827[[#This Row],[Priority (score + weigh)]],"NA") -> 112.5
B113: 9.C. Regular dissemination of a relevant information bulletin | C113: 0.375 | D113: ='Scoring criteria'!E124 -> 1.5 | E113: Section 9 question 33, 34, 35, 36 and 40 | F113: 3 | G113: =((Tableau1827[[#This Row],[Weigh]]*100)*Tableau1827[[#This Row],[Score]]) -> 56.25 | H113: =((Tableau1827[[#This Row],[Weigh]]*100)*F113) -> 112.5 | I113: =IF(Tableau1827[[#This Row],[Score]]<>"NA",Tableau1827[[#This Row],[Colonne1]]-Tableau1827[[#This Row],[Priority (score + weigh)]],"NA") -> 56.25
B114: 9.D. Systematic return of reports on results to field actors (outside of a bulletin). | C114: 0.125 | D114: ='Scoring criteria'!E125 -> 3 | E114: Section 9 question 25 and 26 | F114: 3 | G114: =((Tableau1827[[#This Row],[Weigh]]*100)*Tableau1827[[#This Row],[Score]]) -> 37.5 | H114: =((Tableau1827[[#This Row],[Weigh]]*100)*F114) -> 37.5 | I114: =IF(Tableau1827[[#This Row],[Score]]<>"NA",Tableau1827[[#This Row],[Colonne1]]-Tableau1827[[#This Row],[Priority (score + weigh)]],"NA") -> 0
B115: 9.F. Solid external communication policy | C115: 0.125 | D115: ='Scoring criteria'!E127 -> 3 | E115: Section 9 question 24 and 32 | F115: 3 | G115: =((Tableau1827[[#This Row],[Weigh]]*100)*Tableau1827[[#This Row],[Score]]) -> 37.5 | H115: =((Tableau1827[[#This Row],[Weigh]]*100)*F115) -> 37.5 | I115: =IF(Tableau1827[[#This Row],[Score]]<>"NA",Tableau1827[[#This Row],[Colonne1]]-Tableau1827[[#This Row],[Priority (score + weigh)]],"NA") -> 0

Sheet Output 3
A1: SNATtrop
A2: Output 3

Sheet Feedback_output_3
C1: Feedback for output 3
C2: To get started click to classify the criteria. For each quality criteria , the criteria used are classified according to their weighs and their score. In each table the first criteria are the most important for the notation and they need the better score.
C4: Sensitivity
C5: Criteria | D5: Weigh | E5: Score | F5: Referencing question | G5: Max | H5: Priority (score + weigh) | I5: Maximum | J5: Missing points
C6: 6.F Vector surveillance and control | D6: 1 | E6: ='Scoring criteria'!E91 -> NA | F6: Section 5 (part 1) question 46 and section 5 (part 3) question 37 and 38 | G6: 3 | H6: =Tableau1223[[#This Row],[Weigh]]*Tableau1223[[#This Row],[Score]] ->  | I6: =Tableau1223[[#This Row],[Weigh]]*G6 -> 3 | J6: =IF(Tableau1223[[#This Row],[Score]]<>"NA",Tableau1223[[#This Row],[Maximum]]-Tableau1223[[#This Row],[Priority (score + weigh)]],"NA") -> NA
C7: 6.I Level of satisfaction of active (planned) surveillance completeness rate | D7: 3 | E7: ='Scoring criteria'!E94 -> NA | F7: Section 5 (part 3) question 33 and 34 | G7: 3 | H7: =Tableau1223[[#This Row],[Weigh]]*Tableau1223[[#This Row],[Score]] ->  | I7: =Tableau1223[[#This Row],[Weigh]]*G7 -> 9 | J7: =IF(Tableau1223[[#This Row],[Score]]<>"NA",Tableau1223[[#This Row],[Maximum]]-Tableau1223[[#This Row],[Priority (score + weigh)]],"NA") -> NA
C8: 8.D. Regular advanced training | D8: 3 | E8: ='Scoring criteria'!E115 -> 0 | F8: Section 8 question 14 and 20 | G8: 3 | H8: =Tableau1223[[#This Row],[Weigh]]*Tableau1223[[#This Row],[Score]] -> 0 | I8: =Tableau1223[[#This Row],[Weigh]]*G8 -> 9 | J8: =IF(Tableau1223[[#This Row],[Score]]<>"NA",Tableau1223[[#This Row],[Maximum]]-Tableau1223[[#This Row],[Priority (score + weigh)]],"NA") -> 9
C9: 6.E Surveillance of susceptible wild animals | D9: 2 | E9: ='Scoring criteria'!E90 -> 0 | F9: Section 5 (part 1) qestion 44 and section (part 3) question 35 and 36 | G9: 3 | H9: =Tableau1223[[#This Row],[Weigh]]*Tableau1223[[#This Row],[Score]] -> 0 | I9: =Tableau1223[[#This Row],[Weigh]]*G9 -> 6 | J9: =IF(Tableau1223[[#This Row],[Score]]<>"NA",Tableau1223[[#This Row],[Maximum]]-Tableau1223[[#This Row],[Priority (score + weigh)]],"NA") -> 6
C10: 6.D Relevance and suitability of active (planned) surveillance protocols | D10: 3 | E10: ='Scoring criteria'!E89 -> 1 | F10: Section 5 (part 1) question 40, 42 and 41 | G10: 3 | H10: =Tableau1223[[#This Row],[Weigh]]*Tableau1223[[#This Row],[Score]] -> 3 | I10: =Tableau1223[[#This Row],[Weigh]]*G10 -> 9 | J10: =IF(Tableau1223[[#This Row],[Score]]<>"NA",Tableau1223[[#This Row],[Maximum]]-Tableau1223[[#This Row],[Priority (score + weigh)]],"NA") -> 6
C11: 9.C. Regular dissemination of a relevant information bulletin | D11: 3 | E11: ='Scoring criteria'!E124 -> 1.5 | F11: Section 9 question 33, 34, 35, 36 and 40 | G11: 3 | H11: =Tableau1223[[#This Row],[Weigh]]*Tableau1223[[#This Row],[Score]] -> 4.5 | I11: =Tableau1223[[#This Row],[Weigh]]*G11 -> 9 | J11: =IF(Tableau1223[[#This Row],[Score]]<>"NA",Tableau1223[[#This Row],[Maximum]]-Tableau1223[[#This Row],[Priority (score + weigh)]],"NA") -> 4.5
C12: 4.H Sensitivity of diagnostic techniques | D12: 3 | E12: ='Scoring criteria'!E56 -> 1.5 | F12: Section 4 table at the end of the section column b | G12: 3 | H12: =Tableau1223[[#This Row],[Weigh]]*Tableau1223[[#This Row],[Score]] -> 4.5 | I12: =Tableau1223[[#This Row],[Weigh]]*G12 -> 9 | J12: =IF(Tableau1223[[#This Row],[Score]]<>"NA",Tableau1223[[#This Row],[Maximum]]-Tableau1223[[#This Row],[Priority (score + weigh)]],"NA") -> 4.5
C13: 5.N Acceptability of the consequences of a suspicion or case for the source or collector of data | D13: 3 | E13: ='Scoring criteria'!E80 -> 1.5 | F13: section 5 (part 3) question 21 and 22 | G13: 3 | H13: =Tableau1223[[#This Row],[Weigh]]*Tableau1223[[#This Row],[Score]] -> 4.5 | I13: =Tableau1223[[#This Row],[Weigh]]*G13 -> 9 | J13: =IF(Tableau1223[[#This Row],[Score]]<>"NA",Tableau1223[[#This Row],[Maximum]]-Tableau1223[[#This Row],[Priority (score + weigh)]],"NA") -> 4.5
C14: 6.C Existence of awareness building programs for data sources in a passive (event-based) network | D14: 3 | E14: ='Scoring criteria'!E88 -> 2 | F14: Section 5 (part 1) question 61 and section 5 (part 3) question 23, 24 and 37 | G14: 3 | H14: =Tableau1223[[#This Row],[Weigh]]*Tableau1223[[#This Row],[Score]] -> 6 | I14: =Tableau1223[[#This Row],[Weigh]]*G14 -> 9 | J14: =IF(Tableau1223[[#This Row],[Score]]<>"NA",Tableau1223[[#This Row],[Maximum]]-Tableau1223[[#This Row],[Priority (score + weigh)]],"NA") -> 3
C15: 3.G Exhaustiveness or representativeness of the field agents’ coverage of the target population | D15: 3 | E15: ='Scoring criteria'!E42 -> 2 | F15: Section 3 (part 2) question 10, 14 and 16 | G15: 3 | H15: =Tableau1223[[#This Row],[Weigh]]*Tableau1223[[#This Row],[Score]] -> 6 | I15: =Tableau1223[[#This Row],[Weigh]]*G15 -> 9 | J15: =IF(Tableau1223[[#This Row],[Score]]<>"NA",Tableau1223[[#This Row],[Maximum]]-Tableau1223[[#This Row],[Priority (score + weigh)]],"NA") -> 3
C16: 2.E Frequency of meetings of the central coordinating body | D16: 2 | E16: ='Scoring criteria'!E28 -> 2 | F16: Section 2 question 61, 62, 65 and 67 | G16: 3 | H16: =Tableau1223[[#This Row],[Weigh]]*Tableau1223[[#This Row],[Score]] -> 4 | I16: =Tableau1223[[#This Row],[Weigh]]*G16 -> 6 | J16: =IF(Tableau1223[[#This Row],[Score]]<>"NA",Tableau1223[[#This Row],[Maximum]]-Tableau1223[[#This Row],[Priority (score + weigh)]],"NA") -> 2
C17: 5.H Relevance of collected samples | D17: 3 | E17: ='Scoring criteria'!E74 -> 2.5 | F17: Section 5 (part 1) question 24, Section 5 (part 2) question 9 Section 5 (part 3) Quesstion 14 section 1 question 1 and 3 | G17: 3 | H17: =Tableau1223[[#This Row],[Weigh]]*Tableau1223[[#This Row],[Score]] -> 7.5 | I17: =Tableau1223[[#This Row],[Weigh]]*G17 -> 9 | J17: =IF(Tableau1223[[#This Row],[Score]]<>"NA",Tableau1223[[#This Row],[Maximum]]-Tableau1223[[#This Row],[Priority (score + weigh)]],"NA") -> 1.5
C18: 6.B Existence of passive (event-based) surveillance whose results are exhaustive or representative | D18: 6 | E18: ='Scoring criteria'!E87 -> 3 | F18: Section 5 (part 1) question 16 and 38 | G18: 3 | H18: =Tableau1223[[#This Row],[Weigh]]*Tableau1223[[#This Row],[Score]] -> 18 | I18: =Tableau1223[[#This Row],[Weigh]]*G18 -> 18 | J18: =IF(Tableau1223[[#This Row],[Score]]<>"NA",Tableau1223[[#This Row],[Maximum]]-Tableau1223[[#This Row],[Priority (score + weigh)]],"NA") -> 0
C19: 9.B. Return of individual test results to field actors | D19: 3 | E19: ='Scoring criteria'!E123 -> 3 | F19: Section 9 question 14 | G19: 3 | H19: =Tableau1223[[#This Row],[Weigh]]*Tableau1223[[#This Row],[Score]] -> 9 | I19: =Tableau1223[[#This Row],[Weigh]]*G19 -> 9 | J19: =IF(Tableau1223[[#This Row],[Score]]<>"NA",Tableau1223[[#This Row],[Maximum]]-Tableau1223[[#This Row],[Priority (score + weigh)]],"NA") -> 0
C20: 9.D. Systematic return of reports on results to field actors (outside of a bulletin). | D20: 3 | E20: ='Scoring criteria'!E125 -> 3 | F20: Section 9 question 25 and 26 | G20: 3 | H20: =Tableau1223[[#This Row],[Weigh]]*Tableau1223[[#This Row],[Score]] -> 9 | I20: =Tableau1223[[#This Row],[Weigh]]*G20 -> 9 | J20: =IF(Tableau1223[[#This Row],[Score]]<>"NA",Tableau1223[[#This Row],[Maximum]]-Tableau1223[[#This Row],[Priority (score + weigh)]],"NA") -> 0
C21: 5.D Sensitivity of the case or threat definition | D21: 3 | E21: ='Scoring criteria'!E70 -> 3 | F21: Section 5 question 16 | G21: 3 | H21: =Tableau1223[[#This Row],[Weigh]]*Tableau1223[[#This Row],[Score]] -> 9 | I21: =Tableau1223[[#This Row],[Weigh]]*G21 -> 9 | J21: =IF(Tableau1223[[#This Row],[Score]]<>"NA",Tableau1223[[#This Row],[Maximum]]-Tableau1223[[#This Row],[Priority (score + weigh)]],"NA") -> 0
C22: 5.J Quality of samples collected | D22: 3 | E22: ='Scoring criteria'!E76 -> 3 | F22: Section 5 (part 1) question 28 | G22: 3 | H22: =Tableau1223[[#This Row],[Weigh]]*Tableau1223[[#This Row],[Score]] -> 9 | I22: =Tableau1223[[#This Row],[Weigh]]*G22 -> 9 | J22: =IF(Tableau1223[[#This Row],[Score]]<>"NA",Tableau1223[[#This Row],[Maximum]]-Tableau1223[[#This Row],[Priority (score + weigh)]],"NA") -> 0
C23: 9.E. Presence of a communications system organized transversally and vertically between field actors (mail, web, telephone…) | D23: 1 | E23: ='Scoring criteria'!E126 -> 3 | F23: Section 9 question 13 and 16 | G23: 3 | H23: =Tableau1223[[#This Row],[Weigh]]*Tableau1223[[#This Row],[Score]] -> 3 | I23: =Tableau1223[[#This Row],[Weigh]]*G23 -> 3 | J23: =IF(Tableau1223[[#This Row],[Score]]<>"NA",Tableau1223[[#This Row],[Maximum]]-Tableau1223[[#This Row],[Priority (score + weigh)]],"NA") -> 0
C24: 3.B Active role of intermediary units in the functioning of the system (validation, management, feedback) | D24: 1 | E24: ='Scoring criteria'!E37 -> 3 | F24: Section 3 (part 2) question 1 | G24: 3 | H24: =Tableau1223[[#This Row],[Weigh]]*Tableau1223[[#This Row],[Score]] -> 3 | I24: =Tableau1223[[#This Row],[Weigh]]*G24 -> 3 | J24: =IF(Tableau1223[[#This Row],[Score]]<>"NA",Tableau1223[[#This Row],[Maximum]]-Tableau1223[[#This Row],[Priority (score + weigh)]],"NA") -> 0
C25: 4.G Relevance of diagnostic techniques | D25: 3 | E25: ='Scoring criteria'!E55 -> 3 | F25: Section 4 question 54, 55 and 56 | G25: 3 | H25: =Tableau1223[[#This Row],[Weigh]]*Tableau1223[[#This Row],[Score]] -> 9 | I25: =Tableau1223[[#This Row],[Weigh]]*G25 -> 9 | J25: =IF(Tableau1223[[#This Row],[Score]]<>"NA",Tableau1223[[#This Row],[Maximum]]-Tableau1223[[#This Row],[Priority (score + weigh)]],"NA") -> 0
C28: Specificity
C29: Criteria | D29: Weigh | E29: Score | F29: Referencing question | G29: Max | H29: Priority (score + weigh) | I29: Maximum | J29: Missing points
C30: 8.D. Regular advanced training | D30: 2 | E30: ='Scoring criteria'!E115 -> 0 | F30: Section 8 question 14 and 20 | G30: 3 | H30: =Tableau28[[#This Row],[Weigh]]*Tableau28[[#This Row],[Score]] -> 0 | I30: =Tableau28[[#This Row],[Weigh]]*G30 -> 6 | J30: =IF(Tableau28[[#This Row],[Score]]<>"NA",Tableau28[[#This Row],[Maximum]]-Tableau28[[#This Row],[Priority (score + weigh)]],"NA") -> 6
C31: 4.I Specificity of diagnostic techniques | D31: 3 | E31: ='Scoring criteria'!E57 -> 1.5 | F31: Section 4 table at the end of the section column c | G31: 3 | H31: =Tableau28[[#This Row],[Weigh]]*Tableau28[[#This Row],[Score]] -> 4.5 | I31: =Tableau28[[#This Row],[Weigh]]*G31 -> 9 | J31: =IF(Tableau28[[#This Row],[Score]]<>"NA",Tableau28[[#This Row],[Maximum]]-Tableau28[[#This Row],[Priority (score + weigh)]],"NA") -> 4.5
C32: 5.E Specificity of the case or threat definition | D32: 3 | E32: ='Scoring criteria'!E71 -> 1.5 | F32: Section 5 question 17 | G32: 3 | H32: =Tableau28[[#This Row],[Weigh]]*Tableau28[[#This Row],[Score]] -> 4.5 | I32: =Tableau28[[#This Row],[Weigh]]*G32 -> 9 | J32: =IF(Tableau28[[#This Row],[Score]]<>"NA",Tableau28[[#This Row],[Maximum]]-Tableau28[[#This Row],[Priority (score + weigh)]],"NA") -> 4.5
C33: 8.B. Initial training implemented for all field agents when joining the system | D33: 2 | E33: ='Scoring criteria'!E113 -> 1 | F33: Section 8 question 9 and 10 | G33: 3 | H33: =Tableau28[[#This Row],[Weigh]]*Tableau28[[#This Row],[Score]] -> 2 | I33: =Tableau28[[#This Row],[Weigh]]*G33 -> 6 | J33: =IF(Tableau28[[#This Row],[Score]]<>"NA",Tableau28[[#This Row],[Maximum]]-Tableau28[[#This Row],[Priority (score + weigh)]],"NA") -> 4
C34: 6.C Existence of awareness building programs for data sources in a passive (event-based) network | D34: 2 | E34: ='Scoring criteria'!E88 -> 2 | F34: Section 5 (part 1) question 61 and section 5 (part 3) question 23, 24 and 37 | G34: 3 | H34: =Tableau28[[#This Row],[Weigh]]*Tableau28[[#This Row],[Score]] -> 4 | I34: =Tableau28[[#This Row],[Weigh]]*G34 -> 6 | J34: =IF(Tableau28[[#This Row],[Score]]<>"NA",Tableau28[[#This Row],[Maximum]]-Tableau28[[#This Row],[Priority (score + weigh)]],"NA") -> 2
C37: Representativity
C38: Criteria | D38: Weigh | E38: Score | F38: Referencing question | G38: Max | H38: Priority (score + weigh) | I38: Maximum | J38: Missing points
C39: 6.G Representativeness of the populations targeted by sampling in active (planned) surveillance | D39: 3 | E39: ='Scoring criteria'!E92 -> NA | F39: Section 5 (part 1) question 33 and section 5 (part 3) question 29 | G39: 3 | H39: =Tableau29[[#This Row],[Weigh]]*Tableau29[[#This Row],[Score]] ->  | I39: =Tableau29[[#This Row],[Weigh]]*G39 -> 9 | J39: =IF(Tableau29[[#This Row],[Score]]<>"NA",Tableau29[[#This Row],[Maximum]]-Tableau29[[#This Row],[Priority (score + weigh)]],"NA") -> NA
C40: 6.I Level of satisfaction of active (planned) surveillance completeness rate | D40: 3 | E40: ='Scoring criteria'!E94 -> NA | F40: Section 5 (part 3) question 33 and 34 | G40: 3 | H40: =Tableau29[[#This Row],[Weigh]]*Tableau29[[#This Row],[Score]] ->  | I40: =Tableau29[[#This Row],[Weigh]]*G40 -> 9 | J40: =IF(Tableau29[[#This Row],[Score]]<>"NA",Tableau29[[#This Row],[Maximum]]-Tableau29[[#This Row],[Priority (score + weigh)]],"NA") -> NA
C41: 6.D Relevance and suitability of active (planned) surveillance protocols | D41: 3 | E41: ='Scoring criteria'!E89 -> 1 | F41: Section 5 (part 1) question 40, 42 and 41 | G41: 3 | H41: =Tableau29[[#This Row],[Weigh]]*Tableau29[[#This Row],[Score]] -> 3 | I41: =Tableau29[[#This Row],[Weigh]]*G41 -> 9 | J41: =IF(Tableau29[[#This Row],[Score]]<>"NA",Tableau29[[#This Row],[Maximum]]-Tableau29[[#This Row],[Priority (score + weigh)]],"NA") -> 6
C42: 3.G Exhaustiveness or representativeness of the field agents’ coverage of the target population | D42: 3 | E42: ='Scoring criteria'!E42 -> 2 | F42: Section 3 (part 2) question 10, 14 and 16 | G42: 3 | H42: =Tableau29[[#This Row],[Weigh]]*Tableau29[[#This Row],[Score]] -> 6 | I42: =Tableau29[[#This Row],[Weigh]]*G42 -> 9 | J42: =IF(Tableau29[[#This Row],[Score]]<>"NA",Tableau29[[#This Row],[Maximum]]-Tableau29[[#This Row],[Priority (score + weigh)]],"NA") -> 3
C43: 6.B Existence of passive (event-based) surveillance whose results are exhaustive or representative | D43: 3 | E43: ='Scoring criteria'!E87 -> 3 | F43: Section 5 (part 1) question 16 and 38 | G43: 3 | H43: =Tableau29[[#This Row],[Weigh]]*Tableau29[[#This Row],[Score]] -> 9 | I43: =Tableau29[[#This Row],[Weigh]]*G43 -> 9 | J43: =IF(Tableau29[[#This Row],[Score]]<>"NA",Tableau29[[#This Row],[Maximum]]-Tableau29[[#This Row],[Priority (score + weigh)]],"NA") -> 0
C44: 3.A Existence of formal intermediary units covering the entire territory | D44: 1 | E44: ='Scoring criteria'!E36 -> 3 | F44: Section 3 question 1, 6 and 12 | G44: 3 | H44: =Tableau29[[#This Row],[Weigh]]*Tableau29[[#This Row],[Score]] -> 3 | I44: =Tableau29[[#This Row],[Weigh]]*G44 -> 3 | J44: =IF(Tableau29[[#This Row],[Score]]<>"NA",Tableau29[[#This Row],[Maximum]]-Tableau29[[#This Row],[Priority (score + weigh)]],"NA") -> 0
C47: Rapidity
C48: Criteria | D48: Weigh | E48: Score | F48: Referencing question | G48: Max | H48: Priority (score + weigh) | I48: Maximum | J48: Missing points
C49: 4.L Analysis deadlines at the laboratory (formalization, standardization, verification, transfer of results to the central unit) | D49: 6 | E49: ='Scoring criteria'!E60 -> 0 | F49: Section 4 table at the end of the section column j and k and question 20 and 47 | G49: 3 | H49: =Tableau30[[#This Row],[Score]] -> 0 | I49: =Tableau30[[#This Row],[Weigh]]*G49 -> 18 | J49: =IF(Tableau30[[#This Row],[Score]]<>"NA",Tableau30[[#This Row],[Maximum]]-Tableau30[[#This Row],[Priority (score + weigh)]],"NA") -> 18
C50: 3.E Adequacy of material and financial resources of intermediary units | D50: 3 | E50: ='Scoring criteria'!E40 -> 0 | F50: Section 3 (part 2) question 2, 3 and 4 | G50: 3 | H50: =Tableau30[[#This Row],[Score]] -> 0 | I50: =Tableau30[[#This Row],[Weigh]]*G50 -> 9 | J50: =IF(Tableau30[[#This Row],[Score]]<>"NA",Tableau30[[#This Row],[Maximum]]-Tableau30[[#This Row],[Priority (score + weigh)]],"NA") -> 9
C51: 3.H Adequacy of material and financial resources at the field level | D51: 3 | E51: ='Scoring criteria'!E43 -> 0 | F51: Section 3 (part 3) question 4, 5 and 6 | G51: 3 | H51: =Tableau30[[#This Row],[Score]] -> 0 | I51: =Tableau30[[#This Row],[Weigh]]*G51 -> 9 | J51: =IF(Tableau30[[#This Row],[Score]]<>"NA",Tableau30[[#This Row],[Maximum]]-Tableau30[[#This Row],[Priority (score + weigh)]],"NA") -> 9
C52: 4.K Technical level of data management at the laboratory | D52: 3 | E52: ='Scoring criteria'!E59 -> 1.5 | F52: Section 4 question 15, 18 and 45 | G52: 3 | H52: =Tableau30[[#This Row],[Score]] -> 1.5 | I52: =Tableau30[[#This Row],[Weigh]]*G52 -> 9 | J52: =IF(Tableau30[[#This Row],[Score]]<>"NA",Tableau30[[#This Row],[Maximum]]-Tableau30[[#This Row],[Priority (score + weigh)]],"NA") -> 7.5
C53: 7.B Data input interval in accordance with the objectives and use of system results | D53: 2 | E53: ='Scoring criteria'!E101 -> 0 | F53: Section 7 question 18 | G53: 3 | H53: =Tableau30[[#This Row],[Score]] -> 0 | I53: =Tableau30[[#This Row],[Weigh]]*G53 -> 6 | J53: =IF(Tableau30[[#This Row],[Score]]<>"NA",Tableau30[[#This Row],[Maximum]]-Tableau30[[#This Row],[Priority (score + weigh)]],"NA") -> 6
C54: 7.C. Designated staff available and trained in data entry, management and analysis. | D54: 2 | E54: ='Scoring criteria'!E102 -> 1 | F54: Section 7 question 52 | G54: 3 | H54: =Tableau30[[#This Row],[Score]] -> 1 | I54: =Tableau30[[#This Row],[Weigh]]*G54 -> 6 | J54: =IF(Tableau30[[#This Row],[Score]]<>"NA",Tableau30[[#This Row],[Maximum]]-Tableau30[[#This Row],[Priority (score + weigh)]],"NA") -> 5
C55: 7.A. Adequacy of the data management system for the needs of the system (relational database, etc.) | D55: 2 | E55: ='Scoring criteria'!E100 -> 3 | F55: Section 7 question 3, 8 and 9 | G55: 3 | H55: =Tableau30[[#This Row],[Score]] -> 3 | I55: =Tableau30[[#This Row],[Weigh]]*G55 -> 6 | J55: =IF(Tableau30[[#This Row],[Score]]<>"NA",Tableau30[[#This Row],[Maximum]]-Tableau30[[#This Row],[Priority (score + weigh)]],"NA") -> 3
C56: 9.E. Presence of a communications system organized transversally and vertically between field actors (mail, web, telephone…) | D56: 2 | E56: ='Scoring criteria'!E126 -> 3 | F56: Section 9 question 13 and 16 | G56: 3 | H56: =Tableau30[[#This Row],[Score]] -> 3 | I56: =Tableau30[[#This Row],[Weigh]]*G56 -> 6 | J56: =IF(Tableau30[[#This Row],[Score]]<>"NA",Tableau30[[#This Row],[Maximum]]-Tableau30[[#This Row],[Priority (score + weigh)]],"NA") -> 3
C57: 4.B Adequacy of human, material, and financial resources for diagnostic needs | D57: 1 | E57: ='Scoring criteria'!E50 -> 0 | F57: Section 4 question 8, 9, 10, 35, 36 and 37 | G57: 3 | H57: =Tableau30[[#This Row],[Score]] -> 0 | I57: =Tableau30[[#This Row],[Weigh]]*G57 -> 3 | J57: =IF(Tableau30[[#This Row],[Score]]<>"NA",Tableau30[[#This Row],[Maximum]]-Tableau30[[#This Row],[Priority (score + weigh)]],"NA") -> 3
C58: 4.F Existence of an investigation team to support field agents | D58: 1 | E58: ='Scoring criteria'!E54 -> 2 | F58: Section 4 question 52 and 53 | G58: 3 | H58: =Tableau30[[#This Row],[Score]] -> 2 | I58: =Tableau30[[#This Row],[Weigh]]*G58 -> 3 | J58: =IF(Tableau30[[#This Row],[Score]]<>"NA",Tableau30[[#This Row],[Maximum]]-Tableau30[[#This Row],[Priority (score + weigh)]],"NA") -> 1
C61: Flexibility
C62: Criteria | D62: Weigh | E62: Score | F62: Referencing question | G62: Max | H62: Priority (score + weigh) | I62: Maximum | J62: Missing points
C63: 10.B. Performance indicators regularly measured, interpreted, and disseminated | D63: 3 | E63: ='Scoring criteria'!E135 -> 0 | F63: Section 10 question 6, 7, 9 and 10 | G63: 3 | H63: =Tableau3032[[#This Row],[Weigh]]*Tableau3032[[#This Row],[Score]] -> 0 | I63: =Tableau3032[[#This Row],[Weigh]]*G63 -> 9 | J63: =IF(Tableau3032[[#This Row],[Score]]<>"NA",Tableau3032[[#This Row],[Maximum]]-Tableau3032[[#This Row],[Priority (score + weigh)]],"NA") -> 9
C64: 8.D. Regular advanced training | D64: 3 | E64: ='Scoring criteria'!E115 -> 0 | F64: Section 8 question 14 and 20 | G64: 3 | H64: =Tableau3032[[#This Row],[Weigh]]*Tableau3032[[#This Row],[Score]] -> 0 | I64: =Tableau3032[[#This Row],[Weigh]]*G64 -> 9 | J64: =IF(Tableau3032[[#This Row],[Score]]<>"NA",Tableau3032[[#This Row],[Maximum]]-Tableau3032[[#This Row],[Priority (score + weigh)]],"NA") -> 9
C65: 2.A Existence of an operational management structure (central unit) | D65: 3 | E65: ='Scoring criteria'!E24 -> 0.5 | F65: Section 2 question 7, 9, 10, 20 and 22 | G65: 3 | H65: =Tableau3032[[#This Row],[Weigh]]*Tableau3032[[#This Row],[Score]] -> 1.5 | I65: =Tableau3032[[#This Row],[Weigh]]*G65 -> 9 | J65: =IF(Tableau3032[[#This Row],[Score]]<>"NA",Tableau3032[[#This Row],[Maximum]]-Tableau3032[[#This Row],[Priority (score + weigh)]],"NA") -> 7.5
C66: 2.B Existence of an operational steering structure that is representative of the partners (steering committee) | D66: 3 | E66: ='Scoring criteria'!E25 -> 1 | F66: Section 2 question 28/29, 31, 34, 37, 38 and 39 | G66: 3 | H66: =Tableau3032[[#This Row],[Weigh]]*Tableau3032[[#This Row],[Score]] -> 3 | I66: =Tableau3032[[#This Row],[Weigh]]*G66 -> 9 | J66: =IF(Tableau3032[[#This Row],[Score]]<>"NA",Tableau3032[[#This Row],[Maximum]]-Tableau3032[[#This Row],[Priority (score + weigh)]],"NA") -> 6
C67: 10.D. Implementation of corrective measures | D67: 3 | E67: ='Scoring criteria'!E137 -> 1 | F67: Section 10 question 12, 15 and 16 | G67: 3 | H67: =Tableau3032[[#This Row],[Weigh]]*Tableau3032[[#This Row],[Score]] -> 3 | I67: =Tableau3032[[#This Row],[Weigh]]*G67 -> 9 | J67: =IF(Tableau3032[[#This Row],[Score]]<>"NA",Tableau3032[[#This Row],[Maximum]]-Tableau3032[[#This Row],[Priority (score + weigh)]],"NA") -> 6
C68: 3.F Existence of coordination meetings at the intermediate level | D68: 3 | E68: ='Scoring criteria'!E41 -> 2 | F68: Section 3 (part 1) question 18, 21, 28, 30 and 32 | G68: 3 | H68: =Tableau3032[[#This Row],[Weigh]]*Tableau3032[[#This Row],[Score]] -> 6 | I68: =Tableau3032[[#This Row],[Weigh]]*G68 -> 9 | J68: =IF(Tableau3032[[#This Row],[Score]]<>"NA",Tableau3032[[#This Row],[Maximum]]-Tableau3032[[#This Row],[Priority (score + weigh)]],"NA") -> 3
C69: 2.C Existence of a scientific and technical committee for the system | D69: 3 | E69: ='Scoring criteria'!E26 -> 2 | F69: Section 2 question 41, 45, 46, 48, 52 and 54 | G69: 3 | H69: =Tableau3032[[#This Row],[Weigh]]*Tableau3032[[#This Row],[Score]] -> 6 | I69: =Tableau3032[[#This Row],[Weigh]]*G69 -> 9 | J69: =IF(Tableau3032[[#This Row],[Score]]<>"NA",Tableau3032[[#This Row],[Maximum]]-Tableau3032[[#This Row],[Priority (score + weigh)]],"NA") -> 3
C70: 2.E Frequency of meetings of the central coordinating body | D70: 3 | E70: ='Scoring criteria'!E28 -> 2 | F70: Section 2 question 61, 62, 65 and 67 | G70: 3 | H70: =Tableau3032[[#This Row],[Weigh]]*Tableau3032[[#This Row],[Score]] -> 6 | I70: =Tableau3032[[#This Row],[Weigh]]*G70 -> 9 | J70: =IF(Tableau3032[[#This Row],[Score]]<>"NA",Tableau3032[[#This Row],[Maximum]]-Tableau3032[[#This Row],[Priority (score + weigh)]],"NA") -> 3
C71: 4.F Existence of an investigation team to support field agents | D71: 2 | E71: ='Scoring criteria'!E54 -> 2 | F71: Section 4 question 52 and 53 | G71: 3 | H71: =Tableau3032[[#This Row],[Weigh]]*Tableau3032[[#This Row],[Score]] -> 4 | I71: =Tableau3032[[#This Row],[Weigh]]*G71 -> 6 | J71: =IF(Tableau3032[[#This Row],[Score]]<>"NA",Tableau3032[[#This Row],[Maximum]]-Tableau3032[[#This Row],[Priority (score + weigh)]],"NA") -> 2
C72: 3.A Existence of formal intermediary units covering the entire territory | D72: 3 | E72: ='Scoring criteria'!E36 -> 3 | F72: Section 3 (part 1) question 1, 8 and 5 | G72: 3 | H72: =Tableau3032[[#This Row],[Weigh]]*Tableau3032[[#This Row],[Score]] -> 9 | I72: =Tableau3032[[#This Row],[Weigh]]*G72 -> 9 | J72: =IF(Tableau3032[[#This Row],[Score]]<>"NA",Tableau3032[[#This Row],[Maximum]]-Tableau3032[[#This Row],[Priority (score + weigh)]],"NA") -> 0
C75: Fiability
C76: Criteria | D76: Weigh | E76: Score | F76: Referencing question | G76: Max | H76: Priority (score + weigh) | I76: Maximum | J76: Missing points
C77: 6.G Representativeness of the populations targeted by sampling in active (planned) surveillance | D77: 3 | E77: ='Scoring criteria'!E92 -> NA | F77: Section 5 (part 1) question 33 and section 5 (part 3) question 29 | G77: 3 | H77: =Tableau122333[[#This Row],[Weigh]]*Tableau122333[[#This Row],[Score]] ->  | I77: =Tableau122333[[#This Row],[Weigh]]*G77 -> 9 | J77: =IF(Tableau122333[[#This Row],[Score]]<>"NA",Tableau122333[[#This Row],[Maximum]]-Tableau122333[[#This Row],[Priority (score + weigh)]],"NA") -> NA
C78: 6.H Precision of sample under active (planned) surveillance | D78: 2 | E78: ='Scoring criteria'!E93 -> NA | F78: Section 3 (part 1) question 31, section 3 (part 3) question 2 section 4 table at the end of the section column b and c | G78: 3 | H78: =Tableau122333[[#This Row],[Weigh]]*Tableau122333[[#This Row],[Score]] ->  | I78: =Tableau122333[[#This Row],[Weigh]]*G78 -> 6 | J78: =IF(Tableau122333[[#This Row],[Score]]<>"NA",Tableau122333[[#This Row],[Maximum]]-Tableau122333[[#This Row],[Priority (score + weigh)]],"NA") -> NA
C79: 6.I Level of satisfaction of active (planned) surveillance completeness rate | D79: 3 | E79: ='Scoring criteria'!E94 -> NA | F79: Section 5 (part 3) question 33 and 34 | G79: 3 | H79: =Tableau122333[[#This Row],[Weigh]]*Tableau122333[[#This Row],[Score]] ->  | I79: =Tableau122333[[#This Row],[Weigh]]*G79 -> 9 | J79: =IF(Tableau122333[[#This Row],[Score]]<>"NA",Tableau122333[[#This Row],[Maximum]]-Tableau122333[[#This Row],[Priority (score + weigh)]],"NA") -> NA
C80: 10.B. Performance indicators regularly measured, interpreted, and disseminated | D80: 3 | E80: ='Scoring criteria'!E135 -> 0 | F80: Section 10 question 6, 7, 9 and 10 | G80: 3 | H80: =Tableau122333[[#This Row],[Weigh]]*Tableau122333[[#This Row],[Score]] -> 0 | I80: =Tableau122333[[#This Row],[Weigh]]*G80 -> 9 | J80: =IF(Tableau122333[[#This Row],[Score]]<>"NA",Tableau122333[[#This Row],[Maximum]]-Tableau122333[[#This Row],[Priority (score + weigh)]],"NA") -> 9
C81: 3.D Harmonization of intermediary units’ activities | D81: 3 | E81: ='Scoring criteria'!E39 -> 0 | F81: section 3 (part 1) question 12, 13 and 14 | G81: 3 | H81: =Tableau122333[[#This Row],[Weigh]]*Tableau122333[[#This Row],[Score]] -> 0 | I81: =Tableau122333[[#This Row],[Weigh]]*G81 -> 9 | J81: =IF(Tableau122333[[#This Row],[Score]]<>"NA",Tableau122333[[#This Row],[Maximum]]-Tableau122333[[#This Row],[Priority (score + weigh)]],"NA") -> 9
C82: 3.E Adequacy of material and financial resources of intermediary units | D82: 3 | E82: ='Scoring criteria'!E40 -> 0 | F82: Section 3 (part 2) question 2, 3 and 4 | G82: 3 | H82: =Tableau122333[[#This Row],[Weigh]]*Tableau122333[[#This Row],[Score]] -> 0 | I82: =Tableau122333[[#This Row],[Weigh]]*G82 -> 9 | J82: =IF(Tableau122333[[#This Row],[Score]]<>"NA",Tableau122333[[#This Row],[Maximum]]-Tableau122333[[#This Row],[Priority (score + weigh)]],"NA") -> 9
C83: 4.B Adequacy of human, material, and financial resources for diagnostic needs | D83: 3 | E83: ='Scoring criteria'!E50 -> 0 | F83: Section 4 question 8, 9, 10, 35, 36 and 37 | G83: 3 | H83: =Tableau122333[[#This Row],[Weigh]]*Tableau122333[[#This Row],[Score]] -> 0 | I83: =Tableau122333[[#This Row],[Weigh]]*G83 -> 9 | J83: =IF(Tableau122333[[#This Row],[Score]]<>"NA",Tableau122333[[#This Row],[Maximum]]-Tableau122333[[#This Row],[Priority (score + weigh)]],"NA") -> 9
C84: 6.A Appropriateness of surveillance procedures with the system's objectives | D84: 3 | E84: ='Scoring criteria'!E86 -> 0 | F84: Section 5 (part 1) question 50, 48 and 49 | G84: 3 | H84: =Tableau122333[[#This Row],[Weigh]]*Tableau122333[[#This Row],[Score]] -> 0 | I84: =Tableau122333[[#This Row],[Weigh]]*G84 -> 9 | J84: =IF(Tableau122333[[#This Row],[Score]]<>"NA",Tableau122333[[#This Row],[Maximum]]-Tableau122333[[#This Row],[Priority (score + weigh)]],"NA") -> 9
C85: 10.A. System of performance indicators developed and validated by the directors of the network. | D85: 3 | E85: ='Scoring criteria'!E134 -> 0 | F85: Section 10 question 1, 3, 4 and 5 | G85: 3 | H85: =Tableau122333[[#This Row],[Weigh]]*Tableau122333[[#This Row],[Score]] -> 0 | I85: =Tableau122333[[#This Row],[Weigh]]*G85 -> 9 | J85: =IF(Tableau122333[[#This Row],[Score]]<>"NA",Tableau122333[[#This Row],[Maximum]]-Tableau122333[[#This Row],[Priority (score + weigh)]],"NA") -> 9
C86: 3.H Adequacy of material and financial resources at the field level | D86: 3 | E86: ='Scoring criteria'!E43 -> 0 | F86: Section 3 (part 3) question 4, 5 and 6 | G86: 3 | H86: =Tableau122333[[#This Row],[Weigh]]*Tableau122333[[#This Row],[Score]] -> 0 | I86: =Tableau122333[[#This Row],[Weigh]]*G86 -> 9 | J86: =IF(Tableau122333[[#This Row],[Score]]<>"NA",Tableau122333[[#This Row],[Maximum]]-Tableau122333[[#This Row],[Priority (score + weigh)]],"NA") -> 9
C87: 7.D. Adequacy of material and financial resources for data management and analysis | D87: 3 | E87: ='Scoring criteria'!E103 -> 0 | F87: Section 7 question 28, 50 and 51 | G87: 3 | H87: =Tableau122333[[#This Row],[Weigh]]*Tableau122333[[#This Row],[Score]] -> 0 | I87: =Tableau122333[[#This Row],[Weigh]]*G87 -> 9 | J87: =IF(Tableau122333[[#This Row],[Score]]<>"NA",Tableau122333[[#This Row],[Maximum]]-Tableau122333[[#This Row],[Priority (score + weigh)]],"NA") -> 9
C88: 7.G. Exploitation of data fits the needs of the system (if possible regular and multi-disciplinary) | D88: 3 | E88: ='Scoring criteria'!E106 -> 0 | F88: Section 7 question 31, 33 and 34 | G88: 3 | H88: =Tableau122333[[#This Row],[Weigh]]*Tableau122333[[#This Row],[Score]] -> 0 | I88: =Tableau122333[[#This Row],[Weigh]]*G88 -> 9 | J88: =IF(Tableau122333[[#This Row],[Score]]<>"NA",Tableau122333[[#This Row],[Maximum]]-Tableau122333[[#This Row],[Priority (score + weigh)]],"NA") -> 9
C89: 7.C. Designated staff available and trained in data entry, management and analysis. | D89: 3 | E89: ='Scoring criteria'!E102 -> 1 | F89: Section 7 question 52 | G89: 3 | H89: =Tableau122333[[#This Row],[Weigh]]*Tableau122333[[#This Row],[Score]] -> 3 | I89: =Tableau122333[[#This Row],[Weigh]]*G89 -> 9 | J89: =IF(Tableau122333[[#This Row],[Score]]<>"NA",Tableau122333[[#This Row],[Maximum]]-Tableau122333[[#This Row],[Priority (score + weigh)]],"NA") -> 6
C90: 10.D. Implementation of corrective measures | D90: 3 | E90: ='Scoring criteria'!E137 -> 1 | F90: Section 10 question 19 and 20 | G90: 3 | H90: =Tableau122333[[#This Row],[Weigh]]*Tableau122333[[#This Row],[Score]] -> 3 | I90: =Tableau122333[[#This Row],[Weigh]]*G90 -> 9 | J90: =IF(Tableau122333[[#This Row],[Score]]<>"NA",Tableau122333[[#This Row],[Maximum]]-Tableau122333[[#This Row],[Priority (score + weigh)]],"NA") -> 6
C91: 8.B. Initial training implemented for all field agents when joining the system | D91: 3 | E91: ='Scoring criteria'!E113 -> 1 | F91: Section 8 question 9 and 10 | G91: 3 | H91: =Tableau122333[[#This Row],[Weigh]]*Tableau122333[[#This Row],[Score]] -> 3 | I91: =Tableau122333[[#This Row],[Weigh]]*G91 -> 9 | J91: =IF(Tableau122333[[#This Row],[Score]]<>"NA",Tableau122333[[#This Row],[Maximum]]-Tableau122333[[#This Row],[Priority (score + weigh)]],"NA") -> 6
C92: 10.C. External evaluations carried out | D92: 3 | E92: ='Scoring criteria'!E136 -> 1 | F92: Section 10 question 12, 15 and 16 | G92: 3 | H92: =Tableau122333[[#This Row],[Weigh]]*Tableau122333[[#This Row],[Score]] -> 3 | I92: =Tableau122333[[#This Row],[Weigh]]*G92 -> 9 | J92: =IF(Tableau122333[[#This Row],[Score]]<>"NA",Tableau122333[[#This Row],[Maximum]]-Tableau122333[[#This Row],[Priority (score + weigh)]],"NA") -> 6
C93: 7.E. Data verification and validation procedures formalized and operational | D93: 3 | E93: ='Scoring criteria'!E104 -> 1 | F93: Section 7 question 25, 26 and 27 | G93: 3 | H93: =Tableau122333[[#This Row],[Weigh]]*Tableau122333[[#This Row],[Score]] -> 3 | I93: =Tableau122333[[#This Row],[Weigh]]*G93 -> 9 | J93: =IF(Tableau122333[[#This Row],[Score]]<>"NA",Tableau122333[[#This Row],[Maximum]]-Tableau122333[[#This Row],[Priority (score + weigh)]],"NA") -> 6
C94: 8.A. Adequate skill level in epidemiology of members of the central unit | D94: 3 | E94: ='Scoring criteria'!E112 -> 1 | F94: Section 8 question 2 and 4 | G94: 3 | H94: =Tableau122333[[#This Row],[Weigh]]*Tableau122333[[#This Row],[Score]] -> 3 | I94: =Tableau122333[[#This Row],[Weigh]]*G94 -> 9 | J94: =IF(Tableau122333[[#This Row],[Score]]<>"NA",Tableau122333[[#This Row],[Maximum]]-Tableau122333[[#This Row],[Priority (score + weigh)]],"NA") -> 6
C95: 4.H Sensitivity of diagnostic techniques | D95: 3 | E95: ='Scoring criteria'!E56 -> 1.5 | F95: Section 4 table at the end of the section column b | G95: 3 | H95: =Tableau122333[[#This Row],[Weigh]]*Tableau122333[[#This Row],[Score]] -> 4.5 | I95: =Tableau122333[[#This Row],[Weigh]]*G95 -> 9 | J95: =IF(Tableau122333[[#This Row],[Score]]<>"NA",Tableau122333[[#This Row],[Maximum]]-Tableau122333[[#This Row],[Priority (score + weigh)]],"NA") -> 4.5
C96: 4.I Specificity of diagnostic techniques | D96: 3 | E96: ='Scoring criteria'!E57 -> 1.5 | F96: Section 4 table at the end of the section column c | G96: 3 | H96: =Tableau122333[[#This Row],[Weigh]]*Tableau122333[[#This Row],[Score]] -> 4.5 | I96: =Tableau122333[[#This Row],[Weigh]]*G96 -> 9 | J96: =IF(Tableau122333[[#This Row],[Score]]<>"NA",Tableau122333[[#This Row],[Maximum]]-Tableau122333[[#This Row],[Priority (score + weigh)]],"NA") -> 4.5
C97: 4.K Technical level of data management at the laboratory | D97: 3 | E97: ='Scoring criteria'!E59 -> 1.5 | F97: Section 4 question 15, 18 and 45 | G97: 3 | H97: =Tableau122333[[#This Row],[Weigh]]*Tableau122333[[#This Row],[Score]] -> 4.5 | I97: =Tableau122333[[#This Row],[Weigh]]*G97 -> 9 | J97: =IF(Tableau122333[[#This Row],[Score]]<>"NA",Tableau122333[[#This Row],[Maximum]]-Tableau122333[[#This Row],[Priority (score + weigh)]],"NA") -> 4.5
C98: 8.E. Adequacy of material and financial resources for training | D98: 2 | E98: ='Scoring criteria'!E116 -> 1 | F98: Section 8 question 19 | G98: 3 | H98: =Tableau122333[[#This Row],[Weigh]]*Tableau122333[[#This Row],[Score]] -> 2 | I98: =Tableau122333[[#This Row],[Weigh]]*G98 -> 6 | J98: =IF(Tableau122333[[#This Row],[Score]]<>"NA",Tableau122333[[#This Row],[Maximum]]-Tableau122333[[#This Row],[Priority (score + weigh)]],"NA") -> 4
C99: 2.F Supervision of intermediary units by the central level | D99: 3 | E99: ='Scoring criteria'!E29 -> 2 | F99: Section 2 question 68, 70 and 73 | G99: 3 | H99: =Tableau122333[[#This Row],[Weigh]]*Tableau122333[[#This Row],[Score]] -> 6 | I99: =Tableau122333[[#This Row],[Weigh]]*G99 -> 9 | J99: =IF(Tableau122333[[#This Row],[Score]]<>"NA",Tableau122333[[#This Row],[Maximum]]-Tableau122333[[#This Row],[Priority (score + weigh)]],"NA") -> 3
C100: 5.A Existence of a formalized surveillance protocol for each disease or threat under surveillance | D100: 3 | E100: ='Scoring criteria'!E67 -> 2 | F100: Section 5 (part 1) question 1 and 2 to 13 | G100: 3 | H100: =Tableau122333[[#This Row],[Weigh]]*Tableau122333[[#This Row],[Score]] -> 6 | I100: =Tableau122333[[#This Row],[Weigh]]*G100 -> 9 | J100: =IF(Tableau122333[[#This Row],[Score]]<>"NA",Tableau122333[[#This Row],[Maximum]]-Tableau122333[[#This Row],[Priority (score + weigh)]],"NA") -> 3
C101: 2.C Existence of a scientific and technical committee for the system | D101: 3 | E101: ='Scoring criteria'!E26 -> 2 | F101: Section 2 question 42, 45, 46, 48, 52 and 54 | G101: 3 | H101: =Tableau122333[[#This Row],[Weigh]]*Tableau122333[[#This Row],[Score]] -> 6 | I101: =Tableau122333[[#This Row],[Weigh]]*G101 -> 9 | J101: =IF(Tableau122333[[#This Row],[Score]]<>"NA",Tableau122333[[#This Row],[Maximum]]-Tableau122333[[#This Row],[Priority (score + weigh)]],"NA") -> 3
C102: 4.L Analysis deadlines at the laboratory (formalization, standardization, verification, transfer of results to the central unit) | D102: 1 | E102: ='Scoring criteria'!E60 -> 0 | F102: Section 4 table at the end of the section column j and k and question 20 and 47 | G102: 3 | H102: =Tableau122333[[#This Row],[Weigh]]*Tableau122333[[#This Row],[Score]] -> 0 | I102: =Tableau122333[[#This Row],[Weigh]]*G102 -> 3 | J102: =IF(Tableau122333[[#This Row],[Score]]<>"NA",Tableau122333[[#This Row],[Maximum]]-Tableau122333[[#This Row],[Priority (score + weigh)]],"NA") -> 3
C103: 8.C. Objectives and contents of initial training of system field actors adequate for operational surveillance needs | D103: 3 | E103: ='Scoring criteria'!E114 -> 2.5 | F103: Section 8 question 11 | G103: 3 | H103: =Tableau122333[[#This Row],[Weigh]]*Tableau122333[[#This Row],[Score]] -> 7.5 | I103: =Tableau122333[[#This Row],[Weigh]]*G103 -> 9 | J103: =IF(Tableau122333[[#This Row],[Score]]<>"NA",Tableau122333[[#This Row],[Maximum]]-Tableau122333[[#This Row],[Priority (score + weigh)]],"NA") -> 1.5
C104: 5.H Relevance of collected samples | D104: 3 | E104: ='Scoring criteria'!E74 -> 2.5 | F104: Section 5 (part 1) question 24, Section 5 (part 2) question 9 Section 5 (part 3) Quesstion 14 section 1 question 1 and 3 | G104: 3 | H104: =Tableau122333[[#This Row],[Weigh]]*Tableau122333[[#This Row],[Score]] -> 7.5 | I104: =Tableau122333[[#This Row],[Weigh]]*G104 -> 9 | J104: =IF(Tableau122333[[#This Row],[Score]]<>"NA",Tableau122333[[#This Row],[Maximum]]-Tableau122333[[#This Row],[Priority (score + weigh)]],"NA") -> 1.5
C105: 3.F Existence of coordination meetings at the intermediate level | D105: 1 | E105: ='Scoring criteria'!E41 -> 2 | F105: Section 3 (part 1) question 18, 21, 28, 30 and 32 | G105: 3 | H105: =Tableau122333[[#This Row],[Weigh]]*Tableau122333[[#This Row],[Score]] -> 2 | I105: =Tableau122333[[#This Row],[Weigh]]*G105 -> 3 | J105: =IF(Tableau122333[[#This Row],[Score]]<>"NA",Tableau122333[[#This Row],[Maximum]]-Tableau122333[[#This Row],[Priority (score + weigh)]],"NA") -> 1
C106: 3.C Implementation of supervision by the intermediary level | D106: 3 | E106: ='Scoring criteria'!E38 -> 2.75 | F106: Section 3 (part 2) question 5, 7 and 9 | G106: 3 | H106: =Tableau122333[[#This Row],[Weigh]]*Tableau122333[[#This Row],[Score]] -> 8.25 | I106: =Tableau122333[[#This Row],[Weigh]]*G106 -> 9 | J106: =IF(Tableau122333[[#This Row],[Score]]<>"NA",Tableau122333[[#This Row],[Maximum]]-Tableau122333[[#This Row],[Priority (score + weigh)]],"NA") -> 0.75
C107: 1.A Relevance of surveillance objectives | D107: 3 | E107: ='Scoring criteria'!E15 -> 3 | F107: Section 1 question 1 and 3 | G107: 3 | H107: =Tableau122333[[#This Row],[Weigh]]*Tableau122333[[#This Row],[Score]] -> 9 | I107: =Tableau122333[[#This Row],[Weigh]]*G107 -> 9 | J107: =IF(Tableau122333[[#This Row],[Score]]<>"NA",Tableau122333[[#This Row],[Maximum]]-Tableau122333[[#This Row],[Priority (score + weigh)]],"NA") -> 0
C108: 4.D Quality of the standardization of work between different laboratories | D108: 3 | E108: ='Scoring criteria'!E52 -> 3 | F108: Section 4 question 3, 21, 48 and 49 | G108: 3 | H108: =Tableau122333[[#This Row],[Weigh]]*Tableau122333[[#This Row],[Score]] -> 9 | I108: =Tableau122333[[#This Row],[Weigh]]*G108 -> 9 | J108: =IF(Tableau122333[[#This Row],[Score]]<>"NA",Tableau122333[[#This Row],[Maximum]]-Tableau122333[[#This Row],[Priority (score + weigh)]],"NA") -> 0
C109: 4.E Proportion of tests submitted to inter-laboratory trials | D109: 3 | E109: ='Scoring criteria'!E52 -> 3 | F109: Section 4 table at the end of the section column m | G109: 3 | H109: =Tableau122333[[#This Row],[Weigh]]*Tableau122333[[#This Row],[Score]] -> 9 | I109: =Tableau122333[[#This Row],[Weigh]]*G109 -> 9 | J109: =IF(Tableau122333[[#This Row],[Score]]<>"NA",Tableau122333[[#This Row],[Maximum]]-Tableau122333[[#This Row],[Priority (score + weigh)]],"NA") -> 0
C110: 4.A Effective integration of laboratories in the surveillance system | D110: 3 | E110: ='Scoring criteria'!E49 -> 3 | F110: Section 4 question 1 and 2 | G110: 3 | H110: =Tableau122333[[#This Row],[Weigh]]*Tableau122333[[#This Row],[Score]] -> 9 | I110: =Tableau122333[[#This Row],[Weigh]]*G110 -> 9 | J110: =IF(Tableau122333[[#This Row],[Score]]<>"NA",Tableau122333[[#This Row],[Maximum]]-Tableau122333[[#This Row],[Priority (score + weigh)]],"NA") -> 0
C111: 4.C Application of Quality Assurance for the tests undertaken | D111: 3 | E111: ='Scoring criteria'!E51 -> 3 | F111: Section 4 table at the end of the section column l | G111: 3 | H111: =Tableau122333[[#This Row],[Weigh]]*Tableau122333[[#This Row],[Score]] -> 9 | I111: =Tableau122333[[#This Row],[Weigh]]*G111 -> 9 | J111: =IF(Tableau122333[[#This Row],[Score]]<>"NA",Tableau122333[[#This Row],[Maximum]]-Tableau122333[[#This Row],[Priority (score + weigh)]],"NA") -> 0
C112: 4.J Control of laboratory reagents | D112: 3 | E112: ='Scoring criteria'!E58 -> 3 | F112: Section 4 question 23 and 51 | G112: 3 | H112: =Tableau122333[[#This Row],[Weigh]]*Tableau122333[[#This Row],[Score]] -> 9 | I112: =Tableau122333[[#This Row],[Weigh]]*G112 -> 9 | J112: =IF(Tableau122333[[#This Row],[Score]]<>"NA",Tableau122333[[#This Row],[Maximum]]-Tableau122333[[#This Row],[Priority (score + weigh)]],"NA") -> 0
C113: 7.A. Adequacy of the data management system for the needs of the system (relational database, etc.) | D113: 3 | E113: ='Scoring criteria'!E100 -> 3 | F113: Section 7 question 3, 8 and 9 | G113: 3 | H113: =Tableau122333[[#This Row],[Weigh]]*Tableau122333[[#This Row],[Score]] -> 9 | I113: =Tableau122333[[#This Row],[Weigh]]*G113 -> 9 | J113: =IF(Tableau122333[[#This Row],[Score]]<>"NA",Tableau122333[[#This Row],[Maximum]]-Tableau122333[[#This Row],[Priority (score + weigh)]],"NA") -> 0
C114: 3.A Existence of formal intermediary units covering the entire territory | D114: 2 | E114: ='Scoring criteria'!E36 -> 3 | F114: Section 3 (part 1) question 1, 8 and 5 | G114: 3 | H114: =Tableau122333[[#This Row],[Weigh]]*Tableau122333[[#This Row],[Score]] -> 6 | I114: =Tableau122333[[#This Row],[Weigh]]*G114 -> 6 | J114: =IF(Tableau122333[[#This Row],[Score]]<>"NA",Tableau122333[[#This Row],[Maximum]]-Tableau122333[[#This Row],[Priority (score + weigh)]],"NA") -> 0
C115: 1.B Level of detail, accuracy, and formalization of objectives | D115: 3 | E115: ='Scoring criteria'!E16 -> 3 | F115: Section 1 question 1 and 2 | G115: 3 | H115: =Tableau122333[[#This Row],[Weigh]]*Tableau122333[[#This Row],[Score]] -> 9 | I115: =Tableau122333[[#This Row],[Weigh]]*G115 -> 9 | J115: =IF(Tableau122333[[#This Row],[Score]]<>"NA",Tableau122333[[#This Row],[Maximum]]-Tableau122333[[#This Row],[Priority (score + weigh)]],"NA") -> 0
C116: 5.J Quality of samples collected | D116: 3 | E116: ='Scoring criteria'!E76 -> 3 | F116: Section 5 (part 1) question 28 | G116: 3 | H116: =Tableau122333[[#This Row],[Weigh]]*Tableau122333[[#This Row],[Score]] -> 9 | I116: =Tableau122333[[#This Row],[Weigh]]*G116 -> 9 | J116: =IF(Tableau122333[[#This Row],[Score]]<>"NA",Tableau122333[[#This Row],[Maximum]]-Tableau122333[[#This Row],[Priority (score + weigh)]],"NA") -> 0
C117: 3.B Active role of intermediary units in the functioning of the system (validation, management, feedback) | D117: 2 | E117: ='Scoring criteria'!E37 -> 3 | F117: Section 3 (part 2) question 1 | G117: 3 | H117: =Tableau122333[[#This Row],[Weigh]]*Tableau122333[[#This Row],[Score]] -> 6 | I117: =Tableau122333[[#This Row],[Weigh]]*G117 -> 6 | J117: =IF(Tableau122333[[#This Row],[Score]]<>"NA",Tableau122333[[#This Row],[Maximum]]-Tableau122333[[#This Row],[Priority (score + weigh)]],"NA") -> 0
C118: 4.F Existence of an investigation team to support field agents | D118: 1 | E118: ='Scoring criteria'!E53 -> 3 | F118: Section 4 question 52 and 53 | G118: 3 | H118: =Tableau122333[[#This Row],[Weigh]]*Tableau122333[[#This Row],[Score]] -> 3 | I118: =Tableau122333[[#This Row],[Weigh]]*G118 -> 3 | J118: =IF(Tableau122333[[#This Row],[Score]]<>"NA",Tableau122333[[#This Row],[Maximum]]-Tableau122333[[#This Row],[Priority (score + weigh)]],"NA") -> 0
C119: 4.G Relevance of diagnostic techniques | D119: 3 | E119: ='Scoring criteria'!E55 -> 3 | F119: Section 4 question 54, 55 and 56 | G119: 3 | H119: =Tableau122333[[#This Row],[Weigh]]*Tableau122333[[#This Row],[Score]] -> 9 | I119: =Tableau122333[[#This Row],[Weigh]]*G119 -> 9 | J119: =IF(Tableau122333[[#This Row],[Score]]<>"NA",Tableau122333[[#This Row],[Maximum]]-Tableau122333[[#This Row],[Priority (score + weigh)]],"NA") -> 0
C120: 4.M Quality of results delivered | D120: 3 | E120: ='Scoring criteria'!E61 -> 3 | F120: Section 4 question 58 and 59 | G120: 3 | H120: =Tableau122333[[#This Row],[Weigh]]*Tableau122333[[#This Row],[Score]] -> 9 | I120: =Tableau122333[[#This Row],[Weigh]]*G120 -> 9 | J120: =IF(Tableau122333[[#This Row],[Score]]<>"NA",Tableau122333[[#This Row],[Maximum]]-Tableau122333[[#This Row],[Priority (score + weigh)]],"NA") -> 0
C121: 5.B Standardization of data collected | D121: 3 | E121: ='Scoring criteria'!E68 -> 3 | F121: Section 5 (part 1) question 14, 19, 20, 22 and 23 | G121: 3 | H121: =Tableau122333[[#This Row],[Weigh]]*Tableau122333[[#This Row],[Score]] -> 9 | I121: =Tableau122333[[#This Row],[Weigh]]*G121 -> 9 | J121: =IF(Tableau122333[[#This Row],[Score]]<>"NA",Tableau122333[[#This Row],[Maximum]]-Tableau122333[[#This Row],[Priority (score + weigh)]],"NA") -> 0
C122: 5.C Relevance of measurement tools (excluding laboratory tools) | D122: 3 | E122: ='Scoring criteria'!E69 -> 3 | F122: Section 5 (part 2) question 6, Section 5 (part 3) question 9 and section 1 question 1 | G122: 3 | H122: =Tableau122333[[#This Row],[Weigh]]*Tableau122333[[#This Row],[Score]] -> 9 | I122: =Tableau122333[[#This Row],[Weigh]]*G122 -> 9 | J122: =IF(Tableau122333[[#This Row],[Score]]<>"NA",Tableau122333[[#This Row],[Maximum]]-Tableau122333[[#This Row],[Priority (score + weigh)]],"NA") -> 0
C123: 5.G Quality of the filling out of investigation forms | D123: 3 | E123: ='Scoring criteria'!E73 -> 3 | F123: Section 5 (part 1) question 19 and 21 | G123: 3 | H123: =Tableau122333[[#This Row],[Weigh]]*Tableau122333[[#This Row],[Score]] -> 9 | I123: =Tableau122333[[#This Row],[Weigh]]*G123 -> 9 | J123: =IF(Tableau122333[[#This Row],[Score]]<>"NA",Tableau122333[[#This Row],[Maximum]]-Tableau122333[[#This Row],[Priority (score + weigh)]],"NA") -> 0
C124: 5.I Standardization of collected samples | D124: 3 | E124: ='Scoring criteria'!E75 -> 3 | F124: Section 5 (part 1) question 25 and 26 | G124: 3 | H124: =Tableau122333[[#This Row],[Weigh]]*Tableau122333[[#This Row],[Score]] -> 9 | I124: =Tableau122333[[#This Row],[Weigh]]*G124 -> 9 | J124: =IF(Tableau122333[[#This Row],[Score]]<>"NA",Tableau122333[[#This Row],[Maximum]]-Tableau122333[[#This Row],[Priority (score + weigh)]],"NA") -> 0
C127: Stability
C128: Criteria | D128: Weigh | E128: Score | F128: Referencing question | G128: Max | H128: Priority (score + weigh) | I128: Maximum | J128: Missing points
C129: 2.G Adequacy of the central level’s material and financial resources | D129: 3 | E129: ='Scoring criteria'!E30 -> 0 | F129: Section 2 question 23, 26, 40 and 55 | G129: 3 | H129: =Tableau33[[#This Row],[Weigh]]*Tableau33[[#This Row],[Score]] -> 0 | I129: =Tableau33[[#This Row],[Weigh]]*G129 -> 9 | J129: =IF(Tableau33[[#This Row],[Score]]<>"NA",Tableau33[[#This Row],[Maximum]]-Tableau33[[#This Row],[Priority (score + weigh)]],"NA") -> 9
C130: 4.B Adequacy of human, material, and financial resources for diagnostic needs | D130: 3 | E130: ='Scoring criteria'!E50 -> 0 | F130: Section 4 question 8, 9, 10, 35, 36 and 37 | G130: 3 | H130: =Tableau33[[#This Row],[Weigh]]*Tableau33[[#This Row],[Score]] -> 0 | I130: =Tableau33[[#This Row],[Weigh]]*G130 -> 9 | J130: =IF(Tableau33[[#This Row],[Score]]<>"NA",Tableau33[[#This Row],[Maximum]]-Tableau33[[#This Row],[Priority (score + weigh)]],"NA") -> 9
C131: 2.D Organization and operations of the system laid down in regulations, a charter, or a convention established between the partners | D131: 3 | E131: ='Scoring criteria'!E27 -> 0 | F131: Section 2 question 57, 58 and 59 | G131: 3 | H131: =Tableau33[[#This Row],[Weigh]]*Tableau33[[#This Row],[Score]] -> 0 | I131: =Tableau33[[#This Row],[Weigh]]*G131 -> 9 | J131: =IF(Tableau33[[#This Row],[Score]]<>"NA",Tableau33[[#This Row],[Maximum]]-Tableau33[[#This Row],[Priority (score + weigh)]],"NA") -> 9
C132: 3.H Adequacy of material and financial resources at the field level | D132: 3 | E132: ='Scoring criteria'!E43 -> 0 | F132: Section 3 (part 3) question 4, 5 and 6 | G132: 3 | H132: =Tableau33[[#This Row],[Weigh]]*Tableau33[[#This Row],[Score]] -> 0 | I132: =Tableau33[[#This Row],[Weigh]]*G132 -> 9 | J132: =IF(Tableau33[[#This Row],[Score]]<>"NA",Tableau33[[#This Row],[Maximum]]-Tableau33[[#This Row],[Priority (score + weigh)]],"NA") -> 9
C133: 2.A Existence of an operational management structure (central unit) | D133: 3 | E133: ='Scoring criteria'!E24 -> 0.5 | F133: Section 2 question 7, 9, 10, 20 and 22 | G133: 3 | H133: =Tableau33[[#This Row],[Weigh]]*Tableau33[[#This Row],[Score]] -> 1.5 | I133: =Tableau33[[#This Row],[Weigh]]*G133 -> 9 | J133: =IF(Tableau33[[#This Row],[Score]]<>"NA",Tableau33[[#This Row],[Maximum]]-Tableau33[[#This Row],[Priority (score + weigh)]],"NA") -> 7.5
C134: 2.B Existence of an operational steering structure that is representative of the partners (steering committee) | D134: 3 | E134: ='Scoring criteria'!E25 -> 1 | F134: Section 2 question 28/29, 31, 34, 37, 38 and 39 | G134: 3 | H134: =Tableau33[[#This Row],[Weigh]]*Tableau33[[#This Row],[Score]] -> 3 | I134: =Tableau33[[#This Row],[Weigh]]*G134 -> 9 | J134: =IF(Tableau33[[#This Row],[Score]]<>"NA",Tableau33[[#This Row],[Maximum]]-Tableau33[[#This Row],[Priority (score + weigh)]],"NA") -> 6
C135: 3.D Harmonization of intermediary units’ activities | D135: 2 | E135: ='Scoring criteria'!E39 -> 0 | F135: section 3 (part 1) question 12, 13 and 14 | G135: 3 | H135: =Tableau33[[#This Row],[Weigh]]*Tableau33[[#This Row],[Score]] -> 0 | I135: =Tableau33[[#This Row],[Weigh]]*G135 -> 6 | J135: =IF(Tableau33[[#This Row],[Score]]<>"NA",Tableau33[[#This Row],[Maximum]]-Tableau33[[#This Row],[Priority (score + weigh)]],"NA") -> 6
C136: 3.E Adequacy of material and financial resources of intermediary units | D136: 2 | E136: ='Scoring criteria'!E40 -> 0 | F136: Section 3 (part 2) question 2, 3 and 4 | G136: 3 | H136: =Tableau33[[#This Row],[Weigh]]*Tableau33[[#This Row],[Score]] -> 0 | I136: =Tableau33[[#This Row],[Weigh]]*G136 -> 6 | J136: =IF(Tableau33[[#This Row],[Score]]<>"NA",Tableau33[[#This Row],[Maximum]]-Tableau33[[#This Row],[Priority (score + weigh)]],"NA") -> 6
C137: 8.D. Regular advanced training | D137: 2 | E137: ='Scoring criteria'!E115 -> 0 | F137: Section 8 question 14 and 20 | G137: 3 | H137: =Tableau33[[#This Row],[Weigh]]*Tableau33[[#This Row],[Score]] -> 0 | I137: =Tableau33[[#This Row],[Weigh]]*G137 -> 6 | J137: =IF(Tableau33[[#This Row],[Score]]<>"NA",Tableau33[[#This Row],[Maximum]]-Tableau33[[#This Row],[Priority (score + weigh)]],"NA") -> 6
C138: 9.A Regular release of reports and scientific articles on surveillance results | D138: 2 | E138: ='Scoring criteria'!E122 -> 0 | F138: Section 9 question 9, 10 and 11 | G138: 3 | H138: =Tableau33[[#This Row],[Weigh]]*Tableau33[[#This Row],[Score]] -> 0 | I138: =Tableau33[[#This Row],[Weigh]]*G138 -> 6 | J138: =IF(Tableau33[[#This Row],[Score]]<>"NA",Tableau33[[#This Row],[Maximum]]-Tableau33[[#This Row],[Priority (score + weigh)]],"NA") -> 6
C139: 7.D. Adequacy of material and financial resources for data management and analysis | D139: 2 | E139: ='Scoring criteria'!E103 -> 0 | F139: Section 7 question 28, 50 and 51 | G139: 3 | H139: =Tableau33[[#This Row],[Weigh]]*Tableau33[[#This Row],[Score]] -> 0 | I139: =Tableau33[[#This Row],[Weigh]]*G139 -> 6 | J139: =IF(Tableau33[[#This Row],[Score]]<>"NA",Tableau33[[#This Row],[Maximum]]-Tableau33[[#This Row],[Priority (score + weigh)]],"NA") -> 6
C140: 9.G. Adequacy of material and financial resources for communication | D140: 2 | E140: ='Scoring criteria'!E128 -> 0 | F140: Section 9 question 42, 43 and 44 | G140: 3 | H140: =Tableau33[[#This Row],[Weigh]]*Tableau33[[#This Row],[Score]] -> 0 | I140: =Tableau33[[#This Row],[Weigh]]*G140 -> 6 | J140: =IF(Tableau33[[#This Row],[Score]]<>"NA",Tableau33[[#This Row],[Maximum]]-Tableau33[[#This Row],[Priority (score + weigh)]],"NA") -> 6
C141: 5.A Existence of a formalized surveillance protocol for each disease or threat under surveillance | D141: 3 | E141: ='Scoring criteria'!E67 -> 2 | F141: Section 5 (part 1) question 1 and 2 to 13 | G141: 3 | H141: =Tableau33[[#This Row],[Weigh]]*Tableau33[[#This Row],[Score]] -> 6 | I141: =Tableau33[[#This Row],[Weigh]]*G141 -> 9 | J141: =IF(Tableau33[[#This Row],[Score]]<>"NA",Tableau33[[#This Row],[Maximum]]-Tableau33[[#This Row],[Priority (score + weigh)]],"NA") -> 3
C142: 9.C. Regular dissemination of a relevant information bulletin | D142: 2 | E142: ='Scoring criteria'!E124 -> 1.5 | F142: Section 9 question 33, 34, 35, 36 and 40 | G142: 3 | H142: =Tableau33[[#This Row],[Weigh]]*Tableau33[[#This Row],[Score]] -> 3 | I142: =Tableau33[[#This Row],[Weigh]]*G142 -> 6 | J142: =IF(Tableau33[[#This Row],[Score]]<>"NA",Tableau33[[#This Row],[Maximum]]-Tableau33[[#This Row],[Priority (score + weigh)]],"NA") -> 3
C143: 2.C Existence of a scientific and technical committee for the system | D143: 3 | E143: ='Scoring criteria'!E26 -> 2 | F143: Section 2 question 41, 45, 46, 48, 52 and 54 | G143: 3 | H143: =Tableau33[[#This Row],[Weigh]]*Tableau33[[#This Row],[Score]] -> 6 | I143: =Tableau33[[#This Row],[Weigh]]*G143 -> 9 | J143: =IF(Tableau33[[#This Row],[Score]]<>"NA",Tableau33[[#This Row],[Maximum]]-Tableau33[[#This Row],[Priority (score + weigh)]],"NA") -> 3
C144: 4.D Quality of the standardization of work between different laboratories | D144: 3 | E144: ='Scoring criteria'!E52 -> 3 | F144: Section 4 question 3, 21, 48 and 49 | G144: 3 | H144: =Tableau33[[#This Row],[Weigh]]*Tableau33[[#This Row],[Score]] -> 9 | I144: =Tableau33[[#This Row],[Weigh]]*G144 -> 9 | J144: =IF(Tableau33[[#This Row],[Score]]<>"NA",Tableau33[[#This Row],[Maximum]]-Tableau33[[#This Row],[Priority (score + weigh)]],"NA") -> 0
C145: 9.B. Return of individual test results to field actors | D145: 3 | E145: ='Scoring criteria'!E123 -> 3 | F145: Section 9 question 14 | G145: 3 | H145: =Tableau33[[#This Row],[Weigh]]*Tableau33[[#This Row],[Score]] -> 9 | I145: =Tableau33[[#This Row],[Weigh]]*G145 -> 9 | J145: =IF(Tableau33[[#This Row],[Score]]<>"NA",Tableau33[[#This Row],[Maximum]]-Tableau33[[#This Row],[Priority (score + weigh)]],"NA") -> 0
C146: 4.C Application of Quality Assurance for the tests undertaken | D146: 3 | E146: ='Scoring criteria'!E51 -> 3 | F146: Section 4 table at the end of the section column l | G146: 3 | H146: =Tableau33[[#This Row],[Weigh]]*Tableau33[[#This Row],[Score]] -> 9 | I146: =Tableau33[[#This Row],[Weigh]]*G146 -> 9 | J146: =IF(Tableau33[[#This Row],[Score]]<>"NA",Tableau33[[#This Row],[Maximum]]-Tableau33[[#This Row],[Priority (score + weigh)]],"NA") -> 0
C147: 4.E Proportion of tests submitted to inter-laboratory trials | D147: 3 | E147: ='Scoring criteria'!E53 -> 3 | F147: Section 4 table at the end of the section column m | G147: 3 | H147: =Tableau33[[#This Row],[Weigh]]*Tableau33[[#This Row],[Score]] -> 9 | I147: =Tableau33[[#This Row],[Weigh]]*G147 -> 9 | J147: =IF(Tableau33[[#This Row],[Score]]<>"NA",Tableau33[[#This Row],[Maximum]]-Tableau33[[#This Row],[Priority (score + weigh)]],"NA") -> 0
C148: 4.J Control of laboratory reagents | D148: 3 | E148: ='Scoring criteria'!E58 -> 3 | F148: Section 4 question 23 and 51 | G148: 3 | H148: =Tableau33[[#This Row],[Weigh]]*Tableau33[[#This Row],[Score]] -> 9 | I148: =Tableau33[[#This Row],[Weigh]]*G148 -> 9 | J148: =IF(Tableau33[[#This Row],[Score]]<>"NA",Tableau33[[#This Row],[Maximum]]-Tableau33[[#This Row],[Priority (score + weigh)]],"NA") -> 0
C149: 3.A Existence of formal intermediary units covering the entire territory | D149: 2 | E149: ='Scoring criteria'!E36 -> 3 | F149: Section 3 (part 1) question 1, 8 and 5 | G149: 3 | H149: =Tableau33[[#This Row],[Weigh]]*Tableau33[[#This Row],[Score]] -> 6 | I149: =Tableau33[[#This Row],[Weigh]]*G149 -> 6 | J149: =IF(Tableau33[[#This Row],[Score]]<>"NA",Tableau33[[#This Row],[Maximum]]-Tableau33[[#This Row],[Priority (score + weigh)]],"NA") -> 0
C150: 7.A. Adequacy of the data management system for the needs of the system (relational database, etc.) | D150: 1 | E150: ='Scoring criteria'!E100 -> 3 | F150: Section 7 question 3, 8 and 9 | G150: 3 | H150: =Tableau33[[#This Row],[Weigh]]*Tableau33[[#This Row],[Score]] -> 3 | I150: =Tableau33[[#This Row],[Weigh]]*G150 -> 3 | J150: =IF(Tableau33[[#This Row],[Score]]<>"NA",Tableau33[[#This Row],[Maximum]]-Tableau33[[#This Row],[Priority (score + weigh)]],"NA") -> 0
C151: 1.C Taking partners’ expectations into account | D151: 3 | E151: ='Scoring criteria'!E17 -> 3 | F151: Section 1 question 4 | G151: 3 | H151: =Tableau33[[#This Row],[Weigh]]*Tableau33[[#This Row],[Score]] -> 9 | I151: =Tableau33[[#This Row],[Weigh]]*G151 -> 9 | J151: =IF(Tableau33[[#This Row],[Score]]<>"NA",Tableau33[[#This Row],[Maximum]]-Tableau33[[#This Row],[Priority (score + weigh)]],"NA") -> 0
C152: 5.B Standardization of data collected | D152: 3 | E152: ='Scoring criteria'!E68 -> 3 | F152: Section 5 question 14, 23, 24, 33 and 34 | G152: 3 | H152: =Tableau33[[#This Row],[Weigh]]*Tableau33[[#This Row],[Score]] -> 9 | I152: =Tableau33[[#This Row],[Weigh]]*G152 -> 9 | J152: =IF(Tableau33[[#This Row],[Score]]<>"NA",Tableau33[[#This Row],[Maximum]]-Tableau33[[#This Row],[Priority (score + weigh)]],"NA") -> 0
C155: Acceptability
C156: Criteria | D156: Weigh | E156: Score | F156: Referencing question | G156: Max | H156: Priority (score + weigh) | I156: Maximum | J156: Missing points
C157: 2.D Organization and operations of the system laid down in regulations, a charter, or a convention established between the partners | D157: 3 | E157: ='Scoring criteria'!E27 -> 0 | F157: Section 2 question 57, 58 and 59 | G157: 3 | H157: =Tableau34[[#This Row],[Weigh]]*Tableau34[[#This Row],[Score]] -> 0 | I157: =Tableau34[[#This Row],[Weigh]]*G157 -> 9 | J157: =IF(Tableau34[[#This Row],[Score]]<>"NA",Tableau34[[#This Row],[Maximum]]-Tableau34[[#This Row],[Priority (score + weigh)]],"NA") -> 9
C158: 9.A Regular release of reports and scientific articles on surveillance results | D158: 3 | E158: ='Scoring criteria'!E122 -> 0 | F158: Section 9 question 9, 10 and 11 | G158: 3 | H158: =Tableau34[[#This Row],[Weigh]]*Tableau34[[#This Row],[Score]] -> 0 | I158: =Tableau34[[#This Row],[Weigh]]*G158 -> 9 | J158: =IF(Tableau34[[#This Row],[Score]]<>"NA",Tableau34[[#This Row],[Maximum]]-Tableau34[[#This Row],[Priority (score + weigh)]],"NA") -> 9
C159: 3.H Adequacy of material and financial resources at the field level | D159: 3 | E159: ='Scoring criteria'!E43 -> 0 | F159: Section 3 (part 3) question 4, 5 and 6 | G159: 3 | H159: =Tableau34[[#This Row],[Weigh]]*Tableau34[[#This Row],[Score]] -> 0 | I159: =Tableau34[[#This Row],[Weigh]]*G159 -> 9 | J159: =IF(Tableau34[[#This Row],[Score]]<>"NA",Tableau34[[#This Row],[Maximum]]-Tableau34[[#This Row],[Priority (score + weigh)]],"NA") -> 9
C160: 2.A Existence of an operational management structure (central unit) | D160: 3 | E160: ='Scoring criteria'!E24 -> 0.5 | F160: Section 2 question 7, 9, 10, 20 and 22 | G160: 3 | H160: =Tableau34[[#This Row],[Weigh]]*Tableau34[[#This Row],[Score]] -> 1.5 | I160: =Tableau34[[#This Row],[Weigh]]*G160 -> 9 | J160: =IF(Tableau34[[#This Row],[Score]]<>"NA",Tableau34[[#This Row],[Maximum]]-Tableau34[[#This Row],[Priority (score + weigh)]],"NA") -> 7.5
C161: 2.B Existence of an operational steering structure that is representative of the partners (steering committee) | D161: 3 | E161: ='Scoring criteria'!E25 -> 1 | F161: Section 2 question 28/29, 31, 34, 37, 38 and 39 | G161: 3 | H161: =Tableau34[[#This Row],[Weigh]]*Tableau34[[#This Row],[Score]] -> 3 | I161: =Tableau34[[#This Row],[Weigh]]*G161 -> 9 | J161: =IF(Tableau34[[#This Row],[Score]]<>"NA",Tableau34[[#This Row],[Maximum]]-Tableau34[[#This Row],[Priority (score + weigh)]],"NA") -> 6
C162: 3.E Adequacy of material and financial resources of intermediary units | D162: 2 | E162: ='Scoring criteria'!E40 -> 0 | F162: Section 3 (part 2) question 2, 3 and 4 | G162: 3 | H162: =Tableau34[[#This Row],[Weigh]]*Tableau34[[#This Row],[Score]] -> 0 | I162: =Tableau34[[#This Row],[Weigh]]*G162 -> 6 | J162: =IF(Tableau34[[#This Row],[Score]]<>"NA",Tableau34[[#This Row],[Maximum]]-Tableau34[[#This Row],[Priority (score + weigh)]],"NA") -> 6
C163: 8.B. Initial training implemented for all field agents when joining the system | D163: 3 | E163: ='Scoring criteria'!E113 -> 1 | F163: Section 8 question 9 and 10 | G163: 3 | H163: =Tableau34[[#This Row],[Weigh]]*Tableau34[[#This Row],[Score]] -> 3 | I163: =Tableau34[[#This Row],[Weigh]]*G163 -> 9 | J163: =IF(Tableau34[[#This Row],[Score]]<>"NA",Tableau34[[#This Row],[Maximum]]-Tableau34[[#This Row],[Priority (score + weigh)]],"NA") -> 6
C164: 6.C Existence of awareness building programs for data sources in a passive (event-based) network | D164: 3 | E164: ='Scoring criteria'!E88 -> 2 | F164: Section 5 (part 1) question 61 and section 5 (part 3) question 23, 24 and 37 | G164: 3 | H164: =Tableau34[[#This Row],[Weigh]]*Tableau34[[#This Row],[Score]] -> 6 | I164: =Tableau34[[#This Row],[Weigh]]*G164 -> 9 | J164: =IF(Tableau34[[#This Row],[Score]]<>"NA",Tableau34[[#This Row],[Maximum]]-Tableau34[[#This Row],[Priority (score + weigh)]],"NA") -> 3
C165: 5.L Simplicity of the notification procedure | D165: 3 | E165: ='Scoring criteria'!E78 -> 2 | F165: Section 5 (part 1) question 36, section 5 (part 2) question 16, 4 and 15 and Section 5 (part 3) question 7, 19 and 20 | G165: 3 | H165: =Tableau34[[#This Row],[Weigh]]*Tableau34[[#This Row],[Score]] -> 6 | I165: =Tableau34[[#This Row],[Weigh]]*G165 -> 9 | J165: =IF(Tableau34[[#This Row],[Score]]<>"NA",Tableau34[[#This Row],[Maximum]]-Tableau34[[#This Row],[Priority (score + weigh)]],"NA") -> 3
C166: 5.F Simplicity of the case or threat definition | D166: 3 | E166: ='Scoring criteria'!E72 -> 2 | F166: Section 5 (part 2 and 3) question 1 | G166: 3 | H166: =Tableau34[[#This Row],[Weigh]]*Tableau34[[#This Row],[Score]] -> 6 | I166: =Tableau34[[#This Row],[Weigh]]*G166 -> 9 | J166: =IF(Tableau34[[#This Row],[Score]]<>"NA",Tableau34[[#This Row],[Maximum]]-Tableau34[[#This Row],[Priority (score + weigh)]],"NA") -> 3
C167: 3.F Existence of coordination meetings at the intermediate level | D167: 2 | E167: ='Scoring criteria'!E41 -> 2 | F167: Section 3 (part 1) question 18, 21, 28, 30 and 32 | G167: 3 | H167: =Tableau34[[#This Row],[Weigh]]*Tableau34[[#This Row],[Score]] -> 4 | I167: =Tableau34[[#This Row],[Weigh]]*G167 -> 6 | J167: =IF(Tableau34[[#This Row],[Score]]<>"NA",Tableau34[[#This Row],[Maximum]]-Tableau34[[#This Row],[Priority (score + weigh)]],"NA") -> 2
C168: 2.E Frequency of meetings of the central coordinating body | D168: 2 | E168: ='Scoring criteria'!E28 -> 2 | F168: Section 2 question 61, 62, 65 and 67 | G168: 3 | H168: =Tableau34[[#This Row],[Weigh]]*Tableau34[[#This Row],[Score]] -> 4 | I168: =Tableau34[[#This Row],[Weigh]]*G168 -> 6 | J168: =IF(Tableau34[[#This Row],[Score]]<>"NA",Tableau34[[#This Row],[Maximum]]-Tableau34[[#This Row],[Priority (score + weigh)]],"NA") -> 2
C169: 5.M Simplicity of the data collection procedure | D169: 3 | E169: ='Scoring criteria'!E79 -> 2.5 | F169: Section 5 (part 2) question 12, 17, 7, 8 and section 5 (part 3) question 16, 10, 14, 11, and 15 | G169: 3 | H169: =Tableau34[[#This Row],[Weigh]]*Tableau34[[#This Row],[Score]] -> 7.5 | I169: =Tableau34[[#This Row],[Weigh]]*G169 -> 9 | J169: =IF(Tableau34[[#This Row],[Score]]<>"NA",Tableau34[[#This Row],[Maximum]]-Tableau34[[#This Row],[Priority (score + weigh)]],"NA") -> 1.5
C170: 9.B. Return of individual test results to field actors | D170: 3 | E170: ='Scoring criteria'!E123 -> 3 | F170: Section 9 question 14 | G170: 3 | H170: =Tableau34[[#This Row],[Weigh]]*Tableau34[[#This Row],[Score]] -> 9 | I170: =Tableau34[[#This Row],[Weigh]]*G170 -> 9 | J170: =IF(Tableau34[[#This Row],[Score]]<>"NA",Tableau34[[#This Row],[Maximum]]-Tableau34[[#This Row],[Priority (score + weigh)]],"NA") -> 0
C171: 9.D. Systematic return of reports on results to field actors (outside of a bulletin). | D171: 3 | E171: ='Scoring criteria'!E125 -> 3 | F171: Section 9 question 25 and 26 | G171: 3 | H171: =Tableau34[[#This Row],[Weigh]]*Tableau34[[#This Row],[Score]] -> 9 | I171: =Tableau34[[#This Row],[Weigh]]*G171 -> 9 | J171: =IF(Tableau34[[#This Row],[Score]]<>"NA",Tableau34[[#This Row],[Maximum]]-Tableau34[[#This Row],[Priority (score + weigh)]],"NA") -> 0
C172: 7.A. Adequacy of the data management system for the needs of the system (relational database, etc.) | D172: 2 | E172: ='Scoring criteria'!E100 -> 3 | F172: Section 7 question 3, 8 and 9 | G172: 3 | H172: =Tableau34[[#This Row],[Weigh]]*Tableau34[[#This Row],[Score]] -> 6 | I172: =Tableau34[[#This Row],[Weigh]]*G172 -> 6 | J172: =IF(Tableau34[[#This Row],[Score]]<>"NA",Tableau34[[#This Row],[Maximum]]-Tableau34[[#This Row],[Priority (score + weigh)]],"NA") -> 0
C173: 3.B Active role of intermediary units in the functioning of the system (validation, management, feedback) | D173: 2 | E173: ='Scoring criteria'!E37 -> 3 | F173: Section 3 (part 2) question 1 | G173: 3 | H173: =Tableau34[[#This Row],[Weigh]]*Tableau34[[#This Row],[Score]] -> 6 | I173: =Tableau34[[#This Row],[Weigh]]*G173 -> 6 | J173: =IF(Tableau34[[#This Row],[Score]]<>"NA",Tableau34[[#This Row],[Maximum]]-Tableau34[[#This Row],[Priority (score + weigh)]],"NA") -> 0
C174: 4.A Effective integration of laboratories in the surveillance system | D174: 1 | E174: ='Scoring criteria'!E49 -> 3 | F174: Section 4 question 1 and 2 | G174: 3 | H174: =Tableau34[[#This Row],[Weigh]]*Tableau34[[#This Row],[Score]] -> 3 | I174: =Tableau34[[#This Row],[Weigh]]*G174 -> 3 | J174: =IF(Tableau34[[#This Row],[Score]]<>"NA",Tableau34[[#This Row],[Maximum]]-Tableau34[[#This Row],[Priority (score + weigh)]],"NA") -> 0
C175: 1.C Taking partners’ expectations into account | D175: 3 | E175: ='Scoring criteria'!E17 -> 3 | F175: Section 1 question 4 | G175: 3 | H175: =Tableau34[[#This Row],[Weigh]]*Tableau34[[#This Row],[Score]] -> 9 | I175: =Tableau34[[#This Row],[Weigh]]*G175 -> 9 | J175: =IF(Tableau34[[#This Row],[Score]]<>"NA",Tableau34[[#This Row],[Maximum]]-Tableau34[[#This Row],[Priority (score + weigh)]],"NA") -> 0
C178: Simplicity
C179: Criteria | D179: Weigh | E179: Score | F179: Referencing question | G179: Max | H179: Priority (score + weigh) | I179: Maximum | J179: Missing points
C180: 2.A Existence of an operational management structure (central unit) | D180: 3 | E180: ='Scoring criteria'!E24 -> 0.5 | F180: Section 2 question 7, 9, 10, 20 and 22 | G180: 3 | H180: =Tableau35[[#This Row],[Weigh]]*Tableau35[[#This Row],[Score]] -> 1.5 | I180: =Tableau35[[#This Row],[Weigh]]*G180 -> 9 | J180: =IF(Tableau35[[#This Row],[Score]]<>"NA",Tableau35[[#This Row],[Maximum]]-Tableau35[[#This Row],[Priority (score + weigh)]],"NA") -> 7.5
C181: 8.B. Initial training implemented for all field agents when joining the system | D181: 3 | E181: ='Scoring criteria'!E113 -> 1 | F181: Section 8 question 9 and 10 | G181: 3 | H181: =Tableau35[[#This Row],[Weigh]]*Tableau35[[#This Row],[Score]] -> 3 | I181: =Tableau35[[#This Row],[Weigh]]*G181 -> 9 | J181: =IF(Tableau35[[#This Row],[Score]]<>"NA",Tableau35[[#This Row],[Maximum]]-Tableau35[[#This Row],[Priority (score + weigh)]],"NA") -> 6
C182: 4.K Technical level of data management at the laboratory | D182: 2 | E182: ='Scoring criteria'!E59 -> 1.5 | F182: Section 4 question 15, 18 and 45 | G182: 3 | H182: =Tableau35[[#This Row],[Weigh]]*Tableau35[[#This Row],[Score]] -> 3 | I182: =Tableau35[[#This Row],[Weigh]]*G182 -> 6 | J182: =IF(Tableau35[[#This Row],[Score]]<>"NA",Tableau35[[#This Row],[Maximum]]-Tableau35[[#This Row],[Priority (score + weigh)]],"NA") -> 3
C183: 5.L Simplicity of the notification procedure | D183: 3 | E183: ='Scoring criteria'!E78 -> 2 | F183: Section 5 (part 1) question 36, section 5 (part 2) question 16, 4 and 15 and Section 5 (part 3) question 7, 19 and 20 | G183: 3 | H183: =Tableau35[[#This Row],[Weigh]]*Tableau35[[#This Row],[Score]] -> 6 | I183: =Tableau35[[#This Row],[Weigh]]*G183 -> 9 | J183: =IF(Tableau35[[#This Row],[Score]]<>"NA",Tableau35[[#This Row],[Maximum]]-Tableau35[[#This Row],[Priority (score + weigh)]],"NA") -> 3
C184: 5.F Simplicity of the case or threat definition | D184: 3 | E184: ='Scoring criteria'!E72 -> 2 | F184: Section 5 (part 2 and 3) question 1 | G184: 3 | H184: =Tableau35[[#This Row],[Weigh]]*Tableau35[[#This Row],[Score]] -> 6 | I184: =Tableau35[[#This Row],[Weigh]]*G184 -> 9 | J184: =IF(Tableau35[[#This Row],[Score]]<>"NA",Tableau35[[#This Row],[Maximum]]-Tableau35[[#This Row],[Priority (score + weigh)]],"NA") -> 3
C185: 5.M Simplicity of the data collection procedure | D185: 3 | E185: ='Scoring criteria'!E79 -> 2.5 | F185: Section 5 (part 2) question 12, 17, 7, 8 and section 5 (part 3) question 16, 10, 14, 11, and 15 | G185: 3 | H185: =Tableau35[[#This Row],[Weigh]]*Tableau35[[#This Row],[Score]] -> 7.5 | I185: =Tableau35[[#This Row],[Weigh]]*G185 -> 9 | J185: =IF(Tableau35[[#This Row],[Score]]<>"NA",Tableau35[[#This Row],[Maximum]]-Tableau35[[#This Row],[Priority (score + weigh)]],"NA") -> 1.5
C186: 7.A. Adequacy of the data management system for the needs of the system (relational database, etc.) | D186: 3 | E186: ='Scoring criteria'!E100 -> 3 | F186: Section 7 question 3, 8 and 9 | G186: 3 | H186: =Tableau35[[#This Row],[Weigh]]*Tableau35[[#This Row],[Score]] -> 9 | I186: =Tableau35[[#This Row],[Weigh]]*G186 -> 9 | J186: =IF(Tableau35[[#This Row],[Score]]<>"NA",Tableau35[[#This Row],[Maximum]]-Tableau35[[#This Row],[Priority (score + weigh)]],"NA") -> 0
C189: Utility
C190: Criteria | D190: Weigh | E190: Score | F190: Referencing question | G190: Max | H190: Priority (score + weigh) | I190: Maximum | J190: Missing points
C191: 6.A Appropriateness of surveillance procedures with the system's objectives | D191: 3 | E191: ='Scoring criteria'!E86 -> 0 | F191: Section 5 (part 1) question 50, 48 and 49 | G191: 3 | H191: =Tableau36[[#This Row],[Weigh]]*Tableau36[[#This Row],[Score]] -> 0 | I191: =Tableau36[[#This Row],[Weigh]]*G191 -> 9 | J191: =IF(Tableau36[[#This Row],[Score]]<>"NA",Tableau36[[#This Row],[Maximum]]-Tableau36[[#This Row],[Priority (score + weigh)]],"NA") -> 9
C192: 7.G. Exploitation of data fits the needs of the system (if possible regular and multi-disciplinary) | D192: 3 | E192: ='Scoring criteria'!E106 -> 0 | F192: Section 7 question 31, 33 and 34 | G192: 3 | H192: =Tableau36[[#This Row],[Weigh]]*Tableau36[[#This Row],[Score]] -> 0 | I192: =Tableau36[[#This Row],[Weigh]]*G192 -> 9 | J192: =IF(Tableau36[[#This Row],[Score]]<>"NA",Tableau36[[#This Row],[Maximum]]-Tableau36[[#This Row],[Priority (score + weigh)]],"NA") -> 9
C193: 3.D Harmonization of intermediary units’ activities | D193: 2 | E193: ='Scoring criteria'!E39 -> 0 | F193: section 3 (part 1) question 12, 13 and 14 | G193: 3 | H193: =Tableau36[[#This Row],[Weigh]]*Tableau36[[#This Row],[Score]] -> 0 | I193: =Tableau36[[#This Row],[Weigh]]*G193 -> 6 | J193: =IF(Tableau36[[#This Row],[Score]]<>"NA",Tableau36[[#This Row],[Maximum]]-Tableau36[[#This Row],[Priority (score + weigh)]],"NA") -> 6
C194: 9.C. Regular dissemination of a relevant information bulletin | D194: 2 | E194: ='Scoring criteria'!E124 -> 1.5 | F194: Section 9 question 33, 34, 35, 36 and 40 | G194: 3 | H194: =Tableau36[[#This Row],[Weigh]]*Tableau36[[#This Row],[Score]] -> 3 | I194: =Tableau36[[#This Row],[Weigh]]*G194 -> 6 | J194: =IF(Tableau36[[#This Row],[Score]]<>"NA",Tableau36[[#This Row],[Maximum]]-Tableau36[[#This Row],[Priority (score + weigh)]],"NA") -> 3
C195: 2.D Organization and operations of the system laid down in regulations, a charter, or a convention established between the partners | D195: 1 | E195: ='Scoring criteria'!E27 -> 0 | F195: Section 2 question 57, 58 and 59 | G195: 3 | H195: =Tableau36[[#This Row],[Weigh]]*Tableau36[[#This Row],[Score]] -> 0 | I195: =Tableau36[[#This Row],[Weigh]]*G195 -> 3 | J195: =IF(Tableau36[[#This Row],[Score]]<>"NA",Tableau36[[#This Row],[Maximum]]-Tableau36[[#This Row],[Priority (score + weigh)]],"NA") -> 3
C196: 5.H Relevance of collected samples | D196: 3 | E196: ='Scoring criteria'!E74 -> 2.5 | F196: Section 5 (part 1) question 24, Section 5 (part 2) question 9 Section 5 (part 3) Quesstion 14 section 1 question 1 and 3 | G196: 3 | H196: =Tableau36[[#This Row],[Weigh]]*Tableau36[[#This Row],[Score]] -> 7.5 | I196: =Tableau36[[#This Row],[Weigh]]*G196 -> 9 | J196: =IF(Tableau36[[#This Row],[Score]]<>"NA",Tableau36[[#This Row],[Maximum]]-Tableau36[[#This Row],[Priority (score + weigh)]],"NA") -> 1.5
C197: 1.A Relevance of surveillance objectives | D197: 3 | E197: ='Scoring criteria'!E15 -> 3 | F197: Section 1 question 1 and 3 | G197: 3 | H197: =Tableau36[[#This Row],[Weigh]]*Tableau36[[#This Row],[Score]] -> 9 | I197: =Tableau36[[#This Row],[Weigh]]*G197 -> 9 | J197: =IF(Tableau36[[#This Row],[Score]]<>"NA",Tableau36[[#This Row],[Maximum]]-Tableau36[[#This Row],[Priority (score + weigh)]],"NA") -> 0
C198: 9.D. Systematic return of reports on results to field actors (outside of a bulletin). | D198: 3 | E198: ='Scoring criteria'!E125 -> 3 | F198: Section 9 question 25 and 26 | G198: 3 | H198: =Tableau36[[#This Row],[Weigh]]*Tableau36[[#This Row],[Score]] -> 9 | I198: =Tableau36[[#This Row],[Weigh]]*G198 -> 9 | J198: =IF(Tableau36[[#This Row],[Score]]<>"NA",Tableau36[[#This Row],[Maximum]]-Tableau36[[#This Row],[Priority (score + weigh)]],"NA") -> 0
C199: 1.D Coherence of the diseases under surveillance with the sanitary situation (existing/exotic diseases or threats) | D199: 3 | E199: ='Scoring criteria'!E18 -> 3 | F199: Section 1 question 3 | G199: 3 | H199: =Tableau36[[#This Row],[Weigh]]*Tableau36[[#This Row],[Score]] -> 9 | I199: =Tableau36[[#This Row],[Weigh]]*G199 -> 9 | J199: =IF(Tableau36[[#This Row],[Score]]<>"NA",Tableau36[[#This Row],[Maximum]]-Tableau36[[#This Row],[Priority (score + weigh)]],"NA") -> 0
C200: 7.A. Adequacy of the data management system for the needs of the system (relational database, etc.) | D200: 3 | E200: ='Scoring criteria'!E100 -> 3 | F200: Section 7 question 3, 8 and 9 | G200: 3 | H200: =Tableau36[[#This Row],[Weigh]]*Tableau36[[#This Row],[Score]] -> 9 | I200: =Tableau36[[#This Row],[Weigh]]*G200 -> 9 | J200: =IF(Tableau36[[#This Row],[Score]]<>"NA",Tableau36[[#This Row],[Maximum]]-Tableau36[[#This Row],[Priority (score + weigh)]],"NA") -> 0
C201: 9.F. Solid external communication policy | D201: 2 | E201: ='Scoring criteria'!E127 -> 3 | F201: Section 9 question 24 and 32 | G201: 3 | H201: =Tableau36[[#This Row],[Weigh]]*Tableau36[[#This Row],[Score]] -> 6 | I201: =Tableau36[[#This Row],[Weigh]]*G201 -> 6 | J201: =IF(Tableau36[[#This Row],[Score]]<>"NA",Tableau36[[#This Row],[Maximum]]-Tableau36[[#This Row],[Priority (score + weigh)]],"NA") -> 0
C202: 1.C Taking partners’ expectations into account | D202: 3 | E202: ='Scoring criteria'!E17 -> 3 | F202: Section 1 question 4 | G202: 3 | H202: =Tableau36[[#This Row],[Weigh]]*Tableau36[[#This Row],[Score]] -> 9 | I202: =Tableau36[[#This Row],[Weigh]]*G202 -> 9 | J202: =IF(Tableau36[[#This Row],[Score]]<>"NA",Tableau36[[#This Row],[Maximum]]-Tableau36[[#This Row],[Priority (score + weigh)]],"NA") -> 0
C203: 7.F Complete descriptive processing of data | D203: 1 | E203: ='Scoring criteria'!E105 -> 3 | F203: Section 7 question 36, 37, 38, 40 and 49 | G203: 3 | H203: =Tableau36[[#This Row],[Weigh]]*Tableau36[[#This Row],[Score]] -> 3 | I203: =Tableau36[[#This Row],[Weigh]]*G203 -> 3 | J203: =IF(Tableau36[[#This Row],[Score]]<>"NA",Tableau36[[#This Row],[Maximum]]-Tableau36[[#This Row],[Priority (score + weigh)]],"NA") -> 0

Sheet Calculation output 2 (hidden)
A1: OASIS
A2: Calculs sortie 2
A4: Maladies présentes | H4: date + 6 months | M4: date + 1 year | R4: date + 2 year
B6: Note | C6: Complément | D6: Dénominateur | I6: Note | J6: Complément | K6: Dénominateur | N6: Note | O6: Complément | P6: Dénominateur | S6: Note | T6: Complément | U6: Dénominateur
A7: Objectives (max 15) | B7: ='Calculation sheet'!H3 -> 12 | C7: =D7-B7 -> 3 | D7: 15 | E7: =B7/D7 -> 0.8 | H7: Objectives (max 15) | I7: ='financial sheet'!K4 -> 12 | J7: =K7-I7 -> 3 | K7: 15 | L7: =I7/K7 -> 0.8 | M7: Objectives (max 15) | N7: ='financial sheet'!L4 -> 12 | O7: =P7-N7 -> 3 | P7: 15 | Q7: =N7/P7 -> 0.8 | R7: Objectives (max 15) | S7: ='financial sheet'!M4 -> 12 | T7: =U7-S7 -> 3 | U7: 15 | V7: =S7/U7 -> 0.8
B8: =B7 -> 12 | C8: =C7 -> 3 | D8: =D7 -> 15 | E8: =E7 -> 0.8 | I8: =I7 -> 12 | J8: =J7 -> 3 | K8: =K7 -> 15 | L8: =L7 -> 0.8 | N8: =N7 -> 12 | O8: =O7 -> 3 | P8: =P7 -> 15 | Q8: =Q7 -> 0.8 | S8: =S7 -> 12 | T8: =T7 -> 3 | U8: =U7 -> 15 | V8: =V7 -> 0.8
B9: =B7 -> 12 | C9: =C7 -> 3 | D9: =D7 -> 15 | E9: =E7 -> 0.8 | I9: =I7 -> 12 | J9: =J7 -> 3 | K9: =K7 -> 15 | L9: =L7 -> 0.8 | N9: =N7 -> 12 | O9: =O7 -> 3 | P9: =P7 -> 15 | Q9: =Q7 -> 0.8 | S9: =S7 -> 12 | T9: =T7 -> 3 | U9: =U7 -> 15 | V9: =V7 -> 0.8
B10: =B11 -> 7.569444444 | C10: =C11 -> 12.43055556 | D10: =D11 -> 20 | E10: =E11 -> 0.3784722222 | I10: =I11 -> 10.5 | J10: =J11 -> 9.5 | K10: =K11 -> 20 | L10: =L11 -> 0.525 | N10: =N11 -> 10.5 | O10: =O11 -> 9.5 | P10: =P11 -> 20 | Q10: =Q11 -> 0.525 | S10: =S11 -> 10.5 | T10: =T11 -> 9.5 | U10: =U11 -> 20 | V10: =V11 -> 0.525
A11: Sampling (max 20) | B11: ='Calculation sheet'!J3 -> 7.569444444 | C11: =D11-B11 -> 12.43055556 | D11: 20 | E11: =B11/D11 -> 0.3784722222 | H11: Sampling (max 20) | I11: ='financial sheet'!O4 -> 10.5 | J11: =K11-I11 -> 9.5 | K11: 20 | L11: =I11/K11 -> 0.525 | M11: Sampling (max 20) | N11: ='financial sheet'!P4 -> 10.5 | O11: =P11-N11 -> 9.5 | P11: 20 | Q11: =N11/P11 -> 0.525 | R11: Sampling (max 20) | S11: ='financial sheet'!Q4 -> 10.5 | T11: =U11-S11 -> 9.5 | U11: 20 | V11: =S11/U11 -> 0.525
B12: =B11 -> 7.569444444 | C12: =C11 -> 12.43055556 | D12: =D11 -> 20 | E12: =E11 -> 0.3784722222 | I12: =I11 -> 10.5 | J12: =J11 -> 9.5 | K12: =K11 -> 20 | L12: =L11 -> 0.525 | N12: =N11 -> 10.5 | O12: =O11 -> 9.5 | P12: =P11 -> 20 | Q12: =Q11 -> 0.525 | S12: =S11 -> 10.5 | T12: =T11 -> 9.5 | U12: =U11 -> 20 | V12: =V11 -> 0.525
B13: =B11 -> 7.569444444 | C13: =C11 -> 12.43055556 | D13: =D11 -> 20 | E13: =E11 -> 0.3784722222 | I13: =I11 -> 10.5 | J13: =J11 -> 9.5 | K13: =K11 -> 20 | L13: =L11 -> 0.525 | N13: =N11 -> 10.5 | O13: =O11 -> 9.5 | P13: =P11 -> 20 | Q13: =Q11 -> 0.525 | S13: =S11 -> 10.5 | T13: =T11 -> 9.5 | U13: =U11 -> 20 | V13: =V11 -> 0.525
B14: =B15 -> 8.009090909 | C14: =C15 -> 6.990909091 | D14: =D15 -> 15 | E14: =E15 -> 0.5339393939 | I14: =I15 -> 8.009090909 | J14: =J15 -> 6.990909091 | K14: =K15 -> 15 | L14: =L15 -> 0.5339393939 | N14: =N15 -> 8.009090909 | O14: =O15 -> 6.990909091 | P14: =P15 -> 15 | Q14: =Q15 -> 0.5339393939 | S14: =S15 -> 8.009090909 | T14: =T15 -> 6.990909091 | U14: =U15 -> 15 | V14: =V15 -> 0.5339393939
A15: Animation (max 15) | B15: ='Calculation sheet'!V3 -> 8.009090909 | C15: =D15-B15 -> 6.990909091 | D15: 15 | E15: =B15/D15 -> 0.5339393939 | H15: Animation (max 15) | I15: ='financial sheet'!AM4 -> 8.009090909 | J15: =K15-I15 -> 6.990909091 | K15: 15 | L15: =I15/K15 -> 0.5339393939 | M15: Animation (max 15) | N15: ='financial sheet'!AN4 -> 8.009090909 | O15: =P15-N15 -> 6.990909091 | P15: 15 | Q15: =N15/P15 -> 0.5339393939 | R15: Animation (max 15) | S15: ='financial sheet'!AO4 -> 8.009090909 | T15: =U15-S15 -> 6.990909091 | U15: 15 | V15: =S15/U15 -> 0.5339393939
B16: =B15 -> 8.009090909 | C16: =C15 -> 6.990909091 | D16: =D15 -> 15 | E16: =E15 -> 0.5339393939 | I16: =I15 -> 8.009090909 | J16: =J15 -> 6.990909091 | K16: =K15 -> 15 | L16: =L15 -> 0.5339393939 | N16: =N15 -> 8.009090909 | O16: =O15 -> 6.990909091 | P16: =P15 -> 15 | Q16: =Q15 -> 0.5339393939 | S16: =S15 -> 8.009090909 | T16: =T15 -> 6.990909091 | U16: =U15 -> 15 | V16: =V15 -> 0.5339393939
B17: =B18 -> 16.33333333 | C17: =C18 -> 3.666666667 | D17: =D18 -> 20 | E17: =E18 -> 0.8166666667 | I17: =I18 -> 16.33333333 | J17: =J18 -> 3.666666667 | K17: =K18 -> 20 | L17: =L18 -> 0.8166666667 | N17: =N18 -> 16.33333333 | O17: =O18 -> 3.666666667 | P17: =P18 -> 20 | Q17: =Q18 -> 0.8166666667 | S17: =S18 -> 16.33333333 | T17: =T18 -> 3.666666667 | U17: =U18 -> 20 | V17: =V18 -> 0.8166666667
A18: Tools (max 20) | B18: ='Calculation sheet'!AJ3 -> 16.33333333 | C18: =D18-B18 -> 3.666666667 | D18: 20 | E18: =B18/D18 -> 0.8166666667 | H18: Tools (max 20) | I18: ='financial sheet'!BO4 -> 16.33333333 | J18: =K18-I18 -> 3.666666667 | K18: 20 | L18: =I18/K18 -> 0.8166666667 | M18: Tools (max 20) | N18: ='financial sheet'!BP4 -> 16.33333333 | O18: =P18-N18 -> 3.666666667 | P18: 20 | Q18: =N18/P18 -> 0.8166666667 | R18: Tools (max 20) | S18: ='financial sheet'!BQ4 -> 16.33333333 | T18: =U18-S18 -> 3.666666667 | U18: 20 | V18: =S18/U18 -> 0.8166666667
B19: =B18 -> 16.33333333 | C19: =C18 -> 3.666666667 | D19: =D18 -> 20 | E19: =E18 -> 0.8166666667 | I19: =I18 -> 16.33333333 | J19: =J18 -> 3.666666667 | K19: =K18 -> 20 | L19: =L18 -> 0.8166666667 | N19: =N18 -> 16.33333333 | O19: =O18 -> 3.666666667 | P19: =P18 -> 20 | Q19: =Q18 -> 0.8166666667 | S19: =S18 -> 16.33333333 | T19: =T18 -> 3.666666667 | U19: =U18 -> 20 | V19: =V18 -> 0.8166666667
B20: =B18 -> 16.33333333 | C20: =C18 -> 3.666666667 | D20: =D18 -> 20 | E20: =E18 -> 0.8166666667 | I20: =I18 -> 16.33333333 | J20: =J18 -> 3.666666667 | K20: =K18 -> 20 | L20: =L18 -> 0.8166666667 | N20: =N18 -> 16.33333333 | O20: =O18 -> 3.666666667 | P20: =P18 -> 20 | Q20: =Q18 -> 0.8166666667 | S20: =S18 -> 16.33333333 | T20: =T18 -> 3.666666667 | U20: =U18 -> 20 | V20: =V18 -> 0.8166666667
A21: Collection, circulation (max 10) | B21: ='Calculation sheet'!AT3 -> 5.119047619 | C21: =D21-B21 -> 4.880952381 | D21: 10 | E21: =B21/D21 -> 0.5119047619 | H21: Collection, circulation (max 10) | I21: ='financial sheet'!CI4 -> 5.119047619 | J21: =K21-I21 -> 4.880952381 | K21: 10 | L21: =I21/K21 -> 0.5119047619 | M21: Collection, circulation (max 10) | N21: ='financial sheet'!CJ4 -> 5.119047619 | O21: =P21-N21 -> 4.880952381 | P21: 10 | Q21: =N21/P21 -> 0.5119047619 | R21: Collection, circulation (max 10) | S21: ='financial sheet'!CK4 -> 5.119047619 | T21: =U21-S21 -> 4.880952381 | U21: 10 | V21: =S21/U21 -> 0.5119047619
B22: =B21 -> 5.119047619 | C22: =C21 -> 4.880952381 | D22: =D21 -> 10 | E22: =E21 -> 0.5119047619 | I22: =I21 -> 5.119047619 | J22: =J21 -> 4.880952381 | K22: =K21 -> 10 | L22: =L21 -> 0.5119047619 | N22: =N21 -> 5.119047619 | O22: =O21 -> 4.880952381 | P22: =P21 -> 10 | Q22: =Q21 -> 0.5119047619 | S22: =S21 -> 5.119047619 | T22: =T21 -> 4.880952381 | U22: =U21 -> 10 | V22: =V21 -> 0.5119047619
A23: Processing, interpretation (max 10) | B23: ='Calculation sheet'!AX3 -> 3.854166667 | C23: =D23-B23 -> 6.145833333 | D23: 10 | E23: =B23/D23 -> 0.3854166667 | H23: Processing, interpretation (max 10) | I23: ='financial sheet'!CQ4 -> 3.854166667 | J23: =K23-I23 -> 6.145833333 | K23: 10 | L23: =I23/K23 -> 0.3854166667 | M23: Processing, interpretation (max 10) | N23: ='financial sheet'!CR4 -> 3.854166667 | O23: =P23-N23 -> 6.145833333 | P23: 10 | Q23: =N23/P23 -> 0.3854166667 | R23: Processing, interpretation (max 10) | S23: ='financial sheet'!CS4 -> 3.854166667 | T23: =U23-S23 -> 6.145833333 | U23: 10 | V23: =S23/U23 -> 0.3854166667
B24: =B23 -> 3.854166667 | C24: =C23 -> 6.145833333 | D24: =D23 -> 10 | E24: =E23 -> 0.3854166667 | I24: =I23 -> 3.854166667 | J24: =J23 -> 6.145833333 | K24: =K23 -> 10 | L24: =L23 -> 0.3854166667 | N24: =N23 -> 3.854166667 | O24: =O23 -> 6.145833333 | P24: =P23 -> 10 | Q24: =Q23 -> 0.3854166667 | S24: =S23 -> 3.854166667 | T24: =T23 -> 6.145833333 | U24: =U23 -> 10 | V24: =V23 -> 0.3854166667
A25: Info dissemination (max 10) | B25: =B26 -> 4.375 | C25: =C26 -> 5.625 | D25: =D26 -> 10 | E25: =E26 -> 0.4375 | H25: Info dissemination (max 10) | I25: =I26 -> 4.375 | J25: =J26 -> 5.625 | K25: =K26 -> 10 | L25: =L26 -> 0.4375 | M25: Info dissemination (max 10) | N25: =N26 -> 4.375 | O25: =O26 -> 5.625 | P25: =P26 -> 10 | Q25: =Q26 -> 0.4375 | R25: Info dissemination (max 10) | S25: =S26 -> 4.375 | T25: =T26 -> 5.625 | U25: =U26 -> 10 | V25: =V26 -> 0.4375
B26: ='Calculation sheet'!BB3 -> 4.375 | C26: =D26-B26 -> 5.625 | D26: 10 | E26: =B26/D26 -> 0.4375 | I26: ='financial sheet'!CY4 -> 4.375 | J26: =K26-I26 -> 5.625 | K26: 10 | L26: =I26/K26 -> 0.4375 | N26: ='financial sheet'!CZ4 -> 4.375 | O26: =P26-N26 -> 5.625 | P26: 10 | Q26: =N26/P26 -> 0.4375 | S26: ='financial sheet'!DA4 -> 4.375 | T26: =U26-S26 -> 5.625 | U26: 10 | V26: =S26/U26 -> 0.4375
D27: =SUM(D7:D26) -> 310 | K27: =SUM(K7:K26) -> 310 | P27: =SUM(P7:P26) -> 310 | U27: =SUM(U7:U26) -> 310
A29: Maladies exotiques
H30: date + 6 months | N30: date + 1 year | T30: date + 2 year
B31: Note | C31: Complément | D31: Dénominateur | F31: Note | I31: Note | J31: Complément | K31: Dénominateur | M31: Note | O31: Note | P31: Complément | Q31: Dénominateur | S31: Note | U31: Note | V31: Complément | W31: Dénominateur | Y31: Note | Z31: Note
A32: Objectives (sur 15) | B32: ='Calculation sheet'!H3 -> 12 | C32: =D32-B32 -> 3 | D32: 15 | E32: =B32/D32 -> 0.8 | F32: =B32 -> 12 | H32: Objectives (sur 15) | I32: ='financial sheet'!K4 -> 12 | J32: =K32-I32 -> 3 | K32: 15 | L32: =I32/K32 -> 0.8 | M32: =I32 -> 12 | N32: Objectives (sur 15) | O32: ='financial sheet'!L4 -> 12 | P32: =Q32-O32 -> 3 | Q32: 15 | R32: =O32/Q32 -> 0.8 | S32: =O32 -> 12 | T32: Objectives (sur 15) | U32: ='financial sheet'!M4 -> 12 | V32: =W32-U32 -> 3 | W32: 15 | X32: =U32/W32 -> 0.8 | Y32: =U32 -> 12 | Z32: =V32 -> 3
B33: =B32 -> 12 | C33: =C32 -> 3 | D33: =D32 -> 15 | E33: =E32 -> 0.8 | F33: =F32 -> 12 | I33: =I32 -> 12 | J33: =J32 -> 3 | K33: =K32 -> 15 | L33: =L32 -> 0.8 | M33: =M32 -> 12 | O33: =O32 -> 12 | P33: =P32 -> 3 | Q33: =Q32 -> 15 | R33: =R32 -> 0.8 | S33: =S32 -> 12 | U33: =U32 -> 12 | V33: 3 | W33: 15 | X33: 0.8 | Y33: 12 | Z33: 3
B34: =B32 -> 12 | C34: =C32 -> 3 | D34: =D32 -> 15 | E34: =E32 -> 0.8 | F34: =F32 -> 12 | I34: =I32 -> 12 | J34: =J32 -> 3 | K34: =K32 -> 15 | L34: =L32 -> 0.8 | M34: =M32 -> 12 | O34: =O32 -> 12 | P34: =P32 -> 3 | Q34: =Q32 -> 15 | R34: =R32 -> 0.8 | S34: =S32 -> 12 | U34: =U32 -> 12 | V34: 3 | W34: 15 | X34: 0.8 | Y34: 12 | Z34: 3
B35: =B36 -> 9.722222222 | C35: =C36 -> 10.27777778 | D35: =D36 -> 20 | E35: =E36 -> 0.4861111111 | F35: =F36 -> 9.722222222 | I35: =I36 -> 10.5 | J35: =J36 -> 9.5 | K35: =K36 -> 20 | L35: =L36 -> 0.525 | M35: =M36 -> 10.5 | O35: =O36 -> 10.5 | P35: =P36 -> 9.5 | Q35: =Q36 -> 20 | R35: =R36 -> 0.525 | S35: =S36 -> 10.5 | U35: =U36 -> 10.5 | V35: 9.5 | W35: 20 | X35: 0.525 | Y35: 10.5 | Z35: 9.5
A36: Sampling (sur 20) | B36: ='Calculation sheet'!L3 -> 9.722222222 | C36: =D36-B36 -> 10.27777778 | D36: 20 | E36: =B36/D36 -> 0.4861111111 | F36: =B36 -> 9.722222222 | H36: Sampling (sur 20) | I36: ='financial sheet'!S4 -> 10.5 | J36: =K36-I36 -> 9.5 | K36: 20 | L36: =I36/K36 -> 0.525 | M36: =I36 -> 10.5 | N36: Sampling (sur 20) | O36: ='financial sheet'!T4 -> 10.5 | P36: =Q36-O36 -> 9.5 | Q36: 20 | R36: =O36/Q36 -> 0.525 | S36: =O36 -> 10.5 | T36: Sampling (sur 20) | U36: ='financial sheet'!U4 -> 10.5 | V36: =W36-U36 -> 9.5 | W36: 20 | X36: =U36/W36 -> 0.525 | Y36: =U36 -> 10.5 | Z36: =V36 -> 9.5
B37: =B36 -> 9.722222222 | C37: =C36 -> 10.27777778 | D37: =D36 -> 20 | E37: =E36 -> 0.4861111111 | F37: =F36 -> 9.722222222 | I37: =I36 -> 10.5 | J37: =J36 -> 9.5 | K37: =K36 -> 20 | L37: =L36 -> 0.525 | M37: =M36 -> 10.5 | O37: =O36 -> 10.5 | P37: =P36 -> 9.5 | Q37: =Q36 -> 20 | R37: =R36 -> 0.525 | S37: =S36 -> 10.5 | U37: =U36 -> 10.5 | V37: 9.5 | W37: 20 | X37: 0.525 | Y37: 10.5 | Z37: 9.5
B38: =B36 -> 9.722222222 | C38: =C36 -> 10.27777778 | D38: =D36 -> 20 | E38: =E36 -> 0.4861111111 | F38: =F36 -> 9.722222222 | I38: =I36 -> 10.5 | J38: =J36 -> 9.5 | K38: =K36 -> 20 | L38: =L36 -> 0.525 | M38: =M36 -> 10.5 | O38: =O36 -> 10.5 | P38: =P36 -> 9.5 | Q38: =Q36 -> 20 | R38: =R36 -> 0.525 | S38: =S36 -> 10.5 | U38: =U36 -> 10.5 | V38: 9.5 | W38: 20 | X38: 0.525 | Y38: 10.5 | Z38: 9.5
B39: =B40 -> 8.563636364 | C39: =C40 -> 6.436363636 | D39: =D40 -> 15 | E39: =E40 -> 0.5709090909 | F39: =F40 -> 8.563636364 | I39: =I40 -> 8.563636364 | J39: =J40 -> 6.436363636 | K39: =K40 -> 15 | L39: =L40 -> 0.5709090909 | M39: =M40 -> 8.563636364 | O39: =O40 -> 8.563636364 | P39: =P40 -> 6.436363636 | Q39: =Q40 -> 15 | R39: =R40 -> 0.5709090909 | S39: =S40 -> 8.563636364 | U39: =U40 -> 8.563636364 | V39: 6.436363636 | W39: 15 | X39: 0.5709090909 | Y39: 8.563636364 | Z39: 6.436363636
A40: Animation (sur 15) | B40: ='Calculation sheet'!X3 -> 8.563636364 | C40: =D40-B40 -> 6.436363636 | D40: 15 | E40: =B40/D40 -> 0.5709090909 | F40: =B40 -> 8.563636364 | H40: Animation (sur 15) | I40: ='financial sheet'!AQ4 -> 8.563636364 | J40: =K40-I40 -> 6.436363636 | K40: 15 | L40: =I40/K40 -> 0.5709090909 | M40: =I40 -> 8.563636364 | N40: Animation (sur 15) | O40: ='financial sheet'!AR4 -> 8.563636364 | P40: =Q40-O40 -> 6.436363636 | Q40: 15 | R40: =O40/Q40 -> 0.5709090909 | S40: =O40 -> 8.563636364 | T40: Animation (sur 15) | U40: ='financial sheet'!AS4 -> 8.563636364 | V40: =W40-U40 -> 6.436363636 | W40: 15 | X40: =U40/W40 -> 0.5709090909 | Y40: =U40 -> 8.563636364 | Z40: =V40 -> 6.436363636
B41: =B40 -> 8.563636364 | C41: =C40 -> 6.436363636 | D41: =D40 -> 15 | E41: =E40 -> 0.5709090909 | F41: =F40 -> 8.563636364 | I41: =I40 -> 8.563636364 | J41: =J40 -> 6.436363636 | K41: =K40 -> 15 | L41: =L40 -> 0.5709090909 | M41: =M40 -> 8.563636364 | O41: =O40 -> 8.563636364 | P41: =P40 -> 6.436363636 | Q41: =Q40 -> 15 | R41: =R40 -> 0.5709090909 | S41: =S40 -> 8.563636364 | U41: =U40 -> 8.563636364 | V41: 6.436363636 | W41: 15 | X41: 0.5709090909 | Y41: 8.563636364 | Z41: 6.436363636
A42: Environment (sur 4) | B42: ='Calculation sheet'!AF4 -> 0 | C42: =D42-B42 -> 4 | D42: 4 | E42: =B42/D42 -> 0 | F42: =IF('[1]Calculation sheet'!AH3=0,"SO",'[1]Calculation output 2'!B42) -> 0.6666666667 | H42: Environment (sur 4) | I42: ='financial sheet'!BG5 -> 0 | J42: =K42-I42 -> 4 | K42: 4 | L42: =I42/K42 -> 0 | M42: =IF('[1]financial sheet'!BK4=0,"SO",'[1]Calculation output 2'!I42) -> 0.6666666667 | N42: Environment (sur 4) | O42: ='financial sheet'!BH5 -> 0 | P42: =Q42-O42 -> 4 | Q42: 4 | R42: =O42/Q42 -> 0 | S42: =IF('[1]financial sheet'!BQ4=0,"SO",'[1]Calculation output 2'!O42) -> 0.6666666667 | T42: Environment (sur 4) | U42: ='financial sheet'!BI5 -> 0 | V42: =W42-U42 -> 4 | W42: 4 | X42: =U42/W42 -> 0 | Y42: =IF('[1]financial sheet'!BW4=0,"SO",'[1]Calculation output 2'!U42) -> SO | Z42: =IF('Calculation sheet'!AH3=0,"SO",'Calculation output 2'!V42) -> 4
B43: =B44 -> 16.33333333 | C43: =C44 -> 3.666666667 | D43: =D44 -> 20 | E43: =E44 -> 0.8166666667 | F43: =F44 -> 16.33333333 | I43: =I44 -> 16.33333333 | J43: =J44 -> 3.666666667 | K43: =K44 -> 20 | L43: =L44 -> 0.8166666667 | M43: =M44 -> 16.33333333 | O43: =O44 -> 16.33333333 | P43: =P44 -> 3.666666667 | Q43: =Q44 -> 20 | R43: =R44 -> 0.8166666667 | S43: =S44 -> 16.33333333 | U43: =U44 -> 16.33333333 | V43: 3.666666667 | W43: 20 | X43: 0.8166666667 | Y43: 16.33333333 | Z43: 3.666666667
A44: Tools (sur 20) | B44: ='Calculation sheet'!AJ3 -> 16.33333333 | C44: =D44-B44 -> 3.666666667 | D44: 20 | E44: =B44/D44 -> 0.8166666667 | F44: =B44 -> 16.33333333 | H44: Tools (sur 20) | I44: ='financial sheet'!BO4 -> 16.33333333 | J44: =K44-I44 -> 3.666666667 | K44: 20 | L44: =I44/K44 -> 0.8166666667 | M44: =I44 -> 16.33333333 | N44: Tools (sur 20) | O44: ='financial sheet'!BP4 -> 16.33333333 | P44: =Q44-O44 -> 3.666666667 | Q44: 20 | R44: =O44/Q44 -> 0.8166666667 | S44: =O44 -> 16.33333333 | T44: Tools (sur 20) | U44: ='financial sheet'!BQ4 -> 16.33333333 | V44: =W44-U44 -> 3.666666667 | W44: 20 | X44: =U44/W44 -> 0.8166666667 | Y44: =U44 -> 16.33333333 | Z44: =V44 -> 3.666666667
B45: =B44 -> 16.33333333 | C45: =C44 -> 3.666666667 | D45: =D44 -> 20 | E45: =E44 -> 0.8166666667 | F45: =F44 -> 16.33333333 | I45: =I44 -> 16.33333333 | J45: =J44 -> 3.666666667 | K45: =K44 -> 20 | L45: =L44 -> 0.8166666667 | M45: =M44 -> 16.33333333 | O45: =O44 -> 16.33333333 | P45: =P44 -> 3.666666667 | Q45: =Q44 -> 20 | R45: =R44 -> 0.8166666667 | S45: =S44 -> 16.33333333 | U45: =U44 -> 16.33333333 | V45: 3.666666667 | W45: 20 | X45: 0.8166666667 | Y45: 16.33333333 | Z45: 3.666666667
B46: =B44 -> 16.33333333 | C46: =C44 -> 3.666666667 | D46: =D44 -> 20 | E46: =E44 -> 0.8166666667 | F46: =F44 -> 16.33333333 | I46: =I44 -> 16.33333333 | J46: =J44 -> 3.666666667 | K46: =K44 -> 20 | L46: =L44 -> 0.8166666667 | M46: =M44 -> 16.33333333 | O46: =O44 -> 16.33333333 | P46: =P44 -> 3.666666667 | Q46: =Q44 -> 20 | R46: =R44 -> 0.8166666667 | S46: =S44 -> 16.33333333 | U46: =U44 -> 16.33333333 | V46: 3.666666667 | W46: 20 | X46: 0.8166666667 | Y46: 16.33333333 | Z46: 3.666666667
A47: Collection & circulation (sur 10) | B47: ='Calculation sheet'!AT3 -> 5.119047619 | C47: =D47-B47 -> 4.880952381 | D47: 10 | E47: =B47/D47 -> 0.5119047619 | F47: =B47 -> 5.119047619 | H47: Collection & circulation (sur 10) | I47: ='financial sheet'!CI4 -> 5.119047619 | J47: =K47-I47 -> 4.880952381 | K47: 10 | L47: =I47/K47 -> 0.5119047619 | M47: =I47 -> 5.119047619 | N47: Collection & circulation (sur 10) | O47: ='financial sheet'!CJ4 -> 5.119047619 | P47: =Q47-O47 -> 4.880952381 | Q47: 10 | R47: =O47/Q47 -> 0.5119047619 | S47: =O47 -> 5.119047619 | T47: Collection & circulation (sur 10) | U47: ='financial sheet'!CK4 -> 5.119047619 | V47: =W47-U47 -> 4.880952381 | W47: 10 | X47: =U47/W47 -> 0.5119047619 | Y47: =U47 -> 5.119047619 | Z47: =V47 -> 4.880952381
B48: =B47 -> 5.119047619 | C48: =C47 -> 4.880952381 | D48: =D47 -> 10 | E48: =E47 -> 0.5119047619 | F48: =F47 -> 5.119047619 | I48: =I47 -> 5.119047619 | J48: =J47 -> 4.880952381 | K48: =K47 -> 10 | L48: =L47 -> 0.5119047619 | M48: =M47 -> 5.119047619 | O48: =O47 -> 5.119047619 | P48: =P47 -> 4.880952381 | Q48: =Q47 -> 10 | R48: =R47 -> 0.5119047619 | S48: =S47 -> 5.119047619 | U48: =U47 -> 5.119047619 | V48: 4.880952381 | W48: 10 | X48: 0.5119047619 | Y48: 5.119047619 | Z48: 4.880952381
A49: Processing, interpretation (sur 10) | B49: ='Calculation sheet'!AX3 -> 3.854166667 | C49: =D49-B49 -> 6.145833333 | D49: 10 | E49: =B49/D49 -> 0.3854166667 | F49: =B49 -> 3.854166667 | H49: Processing, interpretation (sur 10) | I49: ='financial sheet'!CQ4 -> 3.854166667 | J49: =K49-I49 -> 6.145833333 | K49: 10 | L49: =I49/K49 -> 0.3854166667 | M49: =I49 -> 3.854166667 | N49: Processing, interpretation (sur 10) | O49: ='financial sheet'!CR4 -> 3.854166667 | P49: =Q49-O49 -> 6.145833333 | Q49: 10 | R49: =O49/Q49 -> 0.3854166667 | S49: =O49 -> 3.854166667 | T49: Processing, interpretation (sur 10) | U49: ='financial sheet'!CS4 -> 3.854166667 | V49: =W49-U49 -> 6.145833333 | W49: 10 | X49: =U49/W49 -> 0.3854166667 | Y49: =U49 -> 3.854166667 | Z49: =V49 -> 6.145833333
B50: =B49 -> 3.854166667 | C50: =C49 -> 6.145833333 | D50: =D49 -> 10 | E50: =E49 -> 0.3854166667 | F50: =F49 -> 3.854166667 | I50: =I49 -> 3.854166667 | J50: =J49 -> 6.145833333 | K50: =K49 -> 10 | L50: =L49 -> 0.3854166667 | M50: =M49 -> 3.854166667 | O50: =O49 -> 3.854166667 | P50: =P49 -> 6.145833333 | Q50: =Q49 -> 10 | R50: =R49 -> 0.3854166667 | S50: =S49 -> 3.854166667 | U50: =U49 -> 3.854166667 | V50: 6.145833333 | W50: 10 | X50: 0.3854166667 | Y50: 3.854166667 | Z50: 6.145833333
B51: =B53 -> 2.625 | C51: =C53 -> 3.375 | D51: =D53 -> 6 | E51: =E53 -> 0.4375 | F51: =F53 -> 2.625 | I51: =I53 -> 2.625 | J51: =J53 -> 3.375 | K51: =K53 -> 6 | L51: =L53 -> 0.4375 | M51: =M53 -> 2.625 | O51: =O53 -> 2.625 | P51: =P53 -> 3.375 | Q51: =Q53 -> 6 | R51: =R53 -> 0.4375 | S51: =S53 -> 2.625 | U51: =U53 -> 2.625 | V51: 3.375 | W51: 6 | X51: 0.4375 | Y51: 2.625 | Z51: 3.375
A52: Diffusion information (sur 16) | B52: =B53 -> 2.625 | C52: =C53 -> 3.375 | D52: =D53 -> 6 | E52: =E53 -> 0.4375 | F52: =F53 -> 2.625 | H52: Diffusion information (sur 16) | I52: =I53 -> 2.625 | J52: =J53 -> 3.375 | K52: =K53 -> 6 | L52: =L53 -> 0.4375 | M52: =M53 -> 2.625 | N52: Diffusion information (sur 16) | O52: =O53 -> 2.625 | P52: =P53 -> 3.375 | Q52: =Q53 -> 6 | R52: =R53 -> 0.4375 | S52: =S53 -> 2.625 | T52: Diffusion information (sur 16) | U52: =U53 -> 2.625 | V52: 3.375 | W52: 6 | X52: 0.4375 | Y52: 2.625 | Z52: 3.375
B53: ='Calculation sheet'!BD3 -> 2.625 | C53: =D53-B53 -> 3.375 | D53: 6 | E53: =B53/D53 -> 0.4375 | F53: =B53 -> 2.625 | I53: ='financial sheet'!DC4 -> 2.625 | J53: =K53-I53 -> 3.375 | K53: 6 | L53: =I53/K53 -> 0.4375 | M53: =I53 -> 2.625 | O53: ='financial sheet'!DD4 -> 2.625 | P53: =Q53-O53 -> 3.375 | Q53: 6 | R53: =O53/Q53 -> 0.4375 | S53: =O53 -> 2.625 | U53: ='financial sheet'!DE4 -> 2.625 | V53: =W53-U53 -> 3.375 | W53: 6 | X53: =U53/W53 -> 0.4375 | Y53: =U53 -> 2.625 | Z53: =V53 -> 3.375

Sheet Calculation output 3 (hidden)
A1: OASIS
A2: Calculs sortie 2
F4: date + 6 months | I4: date + 1 year | L4: date + 2 year
A5: Cirteria | C5: Note | D5: Sur | G5: Note | H5: Sur | J5: Note | K5: Sur | M5: Note | N5: Sur
A6: 1-Sensitivity | B6: =C6/D6 -> 0.6606060606 | C6: ='Calculation sheet'!BG5 -> 109 | D6: ='Calculation sheet'!BH5 -> 165 | F6: =G6/H6 -> 0.6606060606 | G6: ='financial sheet'!DH6 -> 109 | H6: =D6 -> 165 | I6: =J6/K6 -> 0.6606060606 | J6: ='financial sheet'!DI6 -> 109 | K6: =D6 -> 165 | L6: =M6/N6 -> 0.6606060606 | M6: ='financial sheet'!DJ6 -> 109 | N6: =D6 -> 165
A7: 2-Specificity | B7: =C7/D7 -> 0.4166666667 | C7: ='Calculation sheet'!BI5 -> 15 | D7: ='Calculation sheet'!BJ5 -> 36 | F7: =G7/H7 -> 0.4166666667 | G7: ='financial sheet'!DL6 -> 15 | H7: =D7 -> 36 | I7: =J7/K7 -> 0.4166666667 | J7: ='financial sheet'!DM6 -> 15 | K7: =D7 -> 36 | L7: =M7/N7 -> 0.4166666667 | M7: ='financial sheet'!DN6 -> 15 | N7: =D7 -> 36
A8: 3-Representativness | B8: 0.4375 | C8: ='Calculation sheet'!BK5 -> 21 | D8: ='Calculation sheet'!BL5 -> 48 | F8: 0.4375 | G8: ='financial sheet'!DP6 -> 21 | H8: 48 | I8: 0.4375 | J8: ='financial sheet'!DQ6 -> 21 | K8: 48 | L8: 0.4375 | M8: ='financial sheet'!DR6 -> 21 | N8: 48
A9: 4-Rapidity | B9: 0.2530864198 | C9: ='Calculation sheet'!BM5 -> 20.5 | D9: ='Calculation sheet'!BN5 -> 81 | F9: 0.2530864198 | G9: ='financial sheet'!DT6 -> 20.5 | H9: 81 | I9: 0.2530864198 | J9: ='financial sheet'!DU6 -> 20.5 | K9: 81 | L9: 0.2530864198 | M9: ='financial sheet'!DV6 -> 20.5 | N9: 81
A10: 5-Flexibility | B10: 0.4425287356 | C10: ='Calculation sheet'!BO5 -> 38.5 | D10: ='Calculation sheet'!BP5 -> 87 | F10: 0.4425287356 | G10: ='financial sheet'!DX6 -> 38.5 | H10: 87 | I10: 0.4425287356 | J10: ='financial sheet'!DY6 -> 38.5 | K10: 87 | L10: 0.4425287356 | M10: ='financial sheet'!DZ6 -> 38.5 | N10: 87
A11: 6-Fiablity | B11: 0.5582706767 | C11: ='Calculation sheet'!BQ5 -> 222.75 | D11: ='Calculation sheet'!BR5 -> 399 | F11: 0.5582706767 | G11: ='financial sheet'!EB6 -> 222.75 | H11: 399 | I11: 0.5582706767 | J11: ='financial sheet'!EC6 -> 222.75 | K11: 399 | L11: 0.5582706767 | M11: ='financial sheet'!ED6 -> 222.75 | N11: 399
A12: 7-Stability | B12: 0.5188172043 | C12: ='Calculation sheet'!BS5 -> 96.5 | D12: ='Calculation sheet'!BT5 -> 186 | F12: 0.5188172043 | G12: ='financial sheet'!EF6 -> 96.5 | H12: 186 | I12: 0.5188172043 | J12: ='financial sheet'!EG6 -> 96.5 | K12: 186 | L12: 0.5188172043 | M12: ='financial sheet'!EH6 -> 96.5 | N12: 186
A13: 8-Acceptability | B13: 0.5620915033 | C13: ='Calculation sheet'!BU5 -> 86 | D13: ='Calculation sheet'!BV5 -> 153 | F13: 0.5620915033 | G13: ='financial sheet'!EJ6 -> 86 | H13: 153 | I13: 0.5620915033 | J13: ='financial sheet'!EK6 -> 86 | K13: 153 | L13: 0.5620915033 | M13: ='financial sheet'!EL6 -> 86 | N13: 153
A14: 9-Simplicity | B14: 0.6 | C14: ='Calculation sheet'!BW5 -> 36 | D14: ='Calculation sheet'!BX5 -> 60 | F14: 0.6 | G14: ='financial sheet'!EN6 -> 36 | H14: 60 | I14: 0.6 | J14: ='financial sheet'!EO6 -> 36 | K14: 60 | L14: 0.6 | M14: ='financial sheet'!EP6 -> 36 | N14: 60
A15: 10-Utility | B15: 0.671875 | C15: ='Calculation sheet'!BY5 -> 64.5 | D15: ='Calculation sheet'!BZ5 -> 96 | F15: 0.671875 | G15: ='financial sheet'!ER6 -> 64.5 | H15: 96 | I15: 0.671875 | J15: ='financial sheet'!ES6 -> 64.5 | K15: 96 | L15: 0.671875 | M15: ='financial sheet'!ET6 -> 64.5 | N15: 96

Sheet Calculation sheet (hidden)
A1: SNAT
A2: Scoring grid | H2: Objectifs (Prés / Exo) | J2: Echantillonnage Prés. | L2: Echantilonnage Exo | V2: Animation Prés | X2: Animation Exo | AF2: Facteurs environnement | AJ2: Outils Prés. Et Exo | AT2: Recueil et circulation des données | AX2: Traitement et interprétation des données | BB2: Diffusion de l'information Prés. | BD2: Diffusion de l'information Exo. | BG2: Q1 : Sensibilité | BI2: Q2 : Spécificité | BK2: Q3 : Représentativité | BM2: Q4 : Rapidité | BO2: Q5 : Flexibilité | BQ2: Q6 : Fiabilité | BS2: Q7 : Stabilité | BU2: Q8 : Acceptabilité | BW2: Q9 : Simplicité | BY2: Q10 : Utilité
H3: =(H7/I8)*15 -> 12 | J3: =(N7/O8)*5+(P7/Q8)*5+(R7/S8)*5+(T7/U8)*5 -> 7.569444444 | L3: =(J7/K8)*3+(L7/M8)*7+(R7/S8)*5+(T7/U8)*5 -> 9.722222222 | V3: =(V7/W8)*2+(X7/Y8)*2+(Z7/AA8)*1+(AB7/AC8)*5+(AD7/AE8)*5 -> 8.009090909 | W3: Sur 15 | X3: =(V7/W8)*4+(X7/Y8)*4+(Z7/AA8)*3+(AB7/AC8)*2+(AD7/AE8)*2 -> 8.563636364 | Y3: Sur 15 | AF3: =(AF7/AG8)*2+(AH7/AI8)*2 -> 0 | AG3: Sur | AH3: =C70*2+C71*2 -> 4 | AJ3: =(AJ7/AK8)*4+(AL7/AM8)*4+(AN7/AO8)*4+(AP7/AQ8)*4+(AR7/AS8)*4 -> 16.33333333 | AK3: Sur 20 | AT3: =(AT7/AU8)*5+(AV7/AW8)*5 -> 5.119047619 | AU3: Sur 10 | AX3: =(AX7/AY8)*5+(AZ7/BA8)*5 -> 3.854166667 | AY3: Sur 10 | BB3: =(BB7/BC8)*5+(BD7/BE8)*5 -> 4.375 | BC3: sur 10 | BD3: =(BB7/BC8)*3+(BD7/BE8)*3 -> 2.625 | BE3: Sur 6 | BG3: =BG5/BH5 -> 0.6606060606 | BI3: =BI5/BJ5 -> 0.4166666667 | BK3: =BK5/BL5 -> 0.4375 | BM3: =BM5/BN5 -> 0.2530864198 | BO3: =BO5/BP5 -> 0.4425287356 | BQ3: =BQ5/BR5 -> 0.5582706767 | BS3: =BS5/BT5 -> 0.5188172043 | BU3: =BU5/BV5 -> 0.5620915033 | BW3: =BW5/BX5 -> 0.6 | BY3: =BY5/BZ5 -> 0.671875
AF4: =IF(AH3=0,1,AF3) -> 0 | AH4: =IF(AH3=0,1,AH3) -> 4 | BG4: Total | BH4: Sur | BI4: Total | BJ4: Sur | BK4: Total | BL4: Sur | BM4: Total | BN4: Sur | BO4: Total | BP4: Sur | BQ4: Total | BR4: Sur | BS4: Total | BT4: Sur | BU4: Total | BV4: Sur | BW4: Total | BX4: Sur | BY4: Total | BZ4: Sur
J5: Reglementation de la déclaration | L5: Suspicions Exhaustivité | N5: Suspicions Exactitude | P5: Suspicions Précision | R5: Infections Exactitude | T5: Infections précision | V5: Action spécifique | X5: Entretien de sensibilisation | Z5: Evaluation sensibilisation | AB5: Modalités animation | AD5: Adéquation temps imparti | AF5: Surveillance de la faune sauvage | AH5: Surveillance et contrôle des vecteurs | AJ5: Outils de mesure | AL5: Prélèvements | AN5: Analyses de laboratoire | AP5: Contrôle des réactifs de laboratoire | AR5: Laboratoires | AT5: Standardisation enquêteurs | AV5: Qual et délais de circ des données | AX5: Qualité du traitement | AZ5: Validation scientifique | BB5: Qualité de l'information diffusée | BD5: Périodicité et champ de diffusion | BG5: =BG20*BH20+BG26*BH26+BG31*BH31+BG41*BH41+BG42*BH42+BG53*BH53+BG57*BH57+BG59*BH59+BG63*BH63+BG67*BH67+BG68*BH68+BG69*BH69+BG70*BH70+BG71*BH71+BG74*BH74+BG89*BH89+BG94*BH94+BG96*BH96+BG97*BH97+BG95*BH95 -> 109 | BH5: =SUM(BH7:BH105)*3 -> 165 | BI5: =BI43*BJ43+BI54*BJ54+BI68*BJ68+BI87*BJ87+BI89*BJ89 -> 15 | BJ5: =SUM(BJ7:BJ105)*3 -> 36 | BK5: =BK25*BL25+BK31*BL31+BK67*BL67+BK69*BL69+BK72*BL72+BK74*BL74 -> 21 | BL5: =SUM(BL7:BL105)*3 -> 48 | BM5: =BM29*BN29+BM32*BN32+BM36*BN36+BM40*BN40+BM45*BN45+BM46*BN46+BM77*BN77+BM78*BN78+BM79*BN79+BM97*BN97 -> 20.5 | BN5: =SUM(BN7:BN105)*3 -> 81 | BO5: =BO16*BP16+BO17*BP17+BO18*BP18+BO20*BP20+BO25*BP25+BO30*BP30+BO40*BP40+BO89*BP89+BO103*BP103+BO105*BP105 -> 38.5 | BP5: =SUM(BP7:BP105)*3 -> 87 | BQ5: =BQ10*BR10+BQ28*BR28+BQ39*BR39+BQ47*BR47+BQ80*BR80+BQ90*BR90+BQ11*BR11+BQ18*BR18+BQ21*BR21+BQ25*BR25+BQ26*BR26+BQ27*BR27+BQ29*BR29+BQ30*BR30+BQ32*BR32+BQ35*BR35+BQ36*BR36+BQ37*BR37+BQ38*BR38+BQ40*BR40+BQ41*BR41+BQ42*BR42+BQ43*BR43+BQ44*BR44+BQ45*BR45+BQ46*BR46+BQ50*BR50+BQ51*BR51+BQ52*BR52+BQ56*BR56+BQ57*BR57+BQ58*BR58+BQ59*BR59+BQ66*BR66+BQ72*BR72+BQ73*BR73+BQ74*BR74+BQ77*BR77+BQ79*BR79+BQ81*BR81+BQ83*BR83+BQ86*BR86+BQ87*BR87+BQ88*BR88+BQ102*BR102+BQ103*BR103+BQ104*BR104+BQ105*BR105 -> 222.75 | BR5: =SUM(BR7:BR105)*3 -> 399 | BS5: =BS12*BT12+BS22*BT22+BS16*BT16+BS17*BT17+BS18*BT18+BS19*BT19+BS25*BT25+BS28*BT28+BS39*BT39+BS80*BT80+BS90*BT90+BS99*BT99+BS29*BT29+BS32*BT32+BS36*BT36+BS37*BT37+BS38*BT38+BS44*BT44+BS50*BT50+BS51*BT51+BS77*BT77+BS93*BT93+BS96*BT96+BS94*BT94 -> 96.5 | BT5: =SUM(BT7:BT105)*3 -> 186 | BU5: =BU12*BV12+BU16*BV16+BU17*BV17+BU19*BV19+BU20*BV20+BU26*BV26+BU29*BV29+BU30*BV30+BU32*BV32+BU35*BV35+BU55*BV55+BU61*BV61+BU62*BV62+BU68*BV68+BU77*BV77+BU87*BV87+BU93*BV93+BU96*BV96+BU94*BV94 -> 86 | BV5: =SUM(BV7:BV105)*3 -> 153 | BW5: =BW16*BX16+BW45*BX45+BW55*BX55+BW61*BX61+BW62*BX62+BW77*BX77+BW87*BX87 -> 36 | BX5: =SUM(BX7:BX105)*3 -> 60 | BY5: =BY10*BZ10+BY12*BZ12+BY13*BZ13+BY19*BZ19+BY28*BZ28+BY57*BZ57+BY66*BZ66+BY82*BZ82+BY83*BZ83+BY77*BZ77+BY96*BZ96+BY98*BZ98+BY95*BZ95 -> 64.5 | BZ5: =SUM(BZ7:BZ105)*3 -> 96
B6: Note (sur 3) | H6: Total | I6: Sur | J6: Total | K6: Sur | L6: Total | M6: Sur | N6: Total | O6: Sur | P6: Total | Q6: Sur | R6: Total | S6: Sur | T6: Total | U6: Sur | V6: Total | W6: Sur | X6: Total | Y6: Sur | Z6: Total | AA6: Sur | AB6: Total | AC6: Sur | AD6: Total | AE6: Sur | AF6: Total | AG6: Sur | AH6: Total | AI6: Sur | AJ6: Total | AK6: Sur | AL6: Total | AM6: Sur | AN6: Total | AO6: Sur | AP6: Total | AQ6: Sur | AR6: Total | AS6: Sur | AT6: Total | AU6: Sur | AV6: Total | AW6: Sur | AX6: Total | AY6: Sur | AZ6: Total | BA6: Sur | BB6: Total | BC6: Sur | BD6: Total | BE6: Sur | BG6: Note | BH6: Coeff. | BI6: Note | BJ6: Coeff. | BK6: Note | BL6: Coeff. | BM6: Note | BN6: Coeff. | BO6: Note | BP6: Coeff. | BQ6: Note | BR6: Coeff. | BS6: Note | BT6: Coeff. | BU6: Note | BV6: Coeff. | BW6: Note | BX6: Coeff. | BY6: Note | BZ6: Coeff.
B7: NA=No Applicable | F7: missing points | H7: =SUM(H10:H105) -> 12 | I7: =(C10+C11+C12+C13+C66)*3 -> 15 | J7: =SUM(J10:J105) -> 0 | K7: =C19*3 -> 3 | L7: =SUM(L10:L105) -> 15 | M7: =(C31+C67*4+C69)*3 -> 18 | N7: =SUM(N10:N105) -> 15 | O7: =(C31+C67*4+C69+C72+C74)*3 -> 24 | P7: =SUM(P10:P105) -> 1 | Q7: =(C69+C73+C74)*3 -> 9 | R7: =SUM(R10:R105) -> 14 | S7: =(C25+C31+C67*3+C72)*3 -> 18 | T7: =SUM(T10:T105) -> 0 | U7: =C73*3 -> 3 | V7: =SUM(V10:V105) -> 3 | W7: =(C68+C87)*3 -> 6 | X7: =SUM(X10:X105) -> 9.5 | Y7: =(C35+C68+C89+C96+C95)*3 -> 15 | Z7: =SUM(Z10:Z105) -> 2 | AA7: =C68*3 -> 3 | AB7: =SUM(AB10:AB105) -> 19.75 | AC7: =(C17+C20+C21+C25+C26+C27+C28+C30+C40+C79+C86)*3 -> 33 | AD7: =SUM(AD10:AD105) -> 2.5 | AE7: =(C16+C18)*3 -> 6 | AF7: =SUM(AF10:AF105) -> 0 | AG7: =C70*3 -> 3 | AH7: =SUM(AH10:AH105) -> 0 | AI7: =C71*3 -> 3 | AJ7: =SUM(AJ10:AJ105) -> 16 | AK7: =(C51+C52+C53+C54+C55+C87+C88+C89)*3 -> 24 | AL7: =SUM(AL10:AL105) -> 14 | AM7: =(C50+C57+C58+C59+C87+C88+C89)*3 -> 21 | AN7: =SUM(AN10:AN105) -> 9 | AO7: =(C35+C41+C42+C43)*3 -> 12 | AP7: =SUM(AP10:AP105) -> 3 | AQ7: =C44*3 -> 3 | AR7: =SUM(AR10:AR105) -> 12 | AS7: =(C37+C38+C39+C47)*3 -> 12 | AT7: =SUM(AT10:AT105) -> 12 | AU7: =(C16+C28+C30+C56+C59+C87+C88+C89)*3 -> 24 | AV7: =SUM(AV10:AV105) -> 11 | AW7: =(C36+C46+C60+C61+C78+C94+C97)*3 -> 21 | AX7: =SUM(AX10:AX105) -> 10.5 | AY7: =(C36+C45+C46+C77+C79+C81+C82+C86)*3 -> 24 | AZ7: =SUM(AZ10:AZ105) -> 3 | BA7: =(C18+C83+C86)*3 -> 9 | BB7: =SUM(BB10:BB105) -> 1.5 | BC7: =(C93+C95)*3 -> 6 | BD7: =SUM(BD10:BD105) -> 7.5 | BE7: =(C93+C96+C98+C95)*3 -> 12
I8: =IF(I7=0,1,I7) -> 15 | K8: =IF(K7=0,1,K7) -> 3 | M8: =IF(M7=0,1,M7) -> 18 | O8: =IF(O7=0,1,O7) -> 24 | Q8: =IF(Q7=0,1,Q7) -> 9 | S8: =IF(S7=0,1,S7) -> 18 | U8: =IF(U7=0,1,U7) -> 3 | W8: =IF(W7=0,1,W7) -> 6 | Y8: =IF(Y7=0,1,Y7) -> 15 | AA8: =IF(AA7=0,1,AA7) -> 3 | AC8: =IF(AC7=0,1,AC7) -> 33 | AE8: =IF(AE7=0,1,AE7) -> 6 | AG8: =IF(AG7=0,1,AG7) -> 3 | AI8: =IF(AI7=0,1,AI7) -> 3 | AK8: =IF(AK7=0,1,AK7) -> 24 | AM8: =IF(AM7=0,1,AM7) -> 21 | AO8: =IF(AO7=0,1,AO7) -> 12 | AQ8: =IF(AQ7=0,1,AQ7) -> 3 | AS8: =IF(AS7=0,1,AS7) -> 12 | AU8: =IF(AU7=0,1,AU7) -> 24 | AW8: =IF(AW7=0,1,AW7) -> 21 | AY8: =IF(AY7=0,1,AY7) -> 24 | BA8: =IF(BA7=0,1,BA7) -> 9 | BC8: =IF(BC7=0,1,BC7) -> 6 | BE8: =IF(BE7=0,1,BE7) -> 12
A9: ='Scoring criteria'!A14 -> Section 1: Objectives and context of surveillance
A10: 1.A. Relevance of surveillance objectives | B10: ='Scoring criteria'!E15 -> 3 | C10: =IF(B10="NA",0,1) -> 1 | H10: =B10 -> 3 | BQ10: =SUM(B10) -> 3 | BR10: =C10*3 -> 3 | BY10: =SUM(B10) -> 3 | BZ10: =C10*3 -> 3
A11: 1.B. Level of detail, accuracy, and formalization of objectives | B11: ='Scoring criteria'!E16 -> 3 | C11: =IF(B11="SO",0,1) -> 1 | H11: =B11 -> 3 | BQ11: =SUM(B11) -> 3 | BR11: =C11*3 -> 3
A12: 1.C. Taking partners’ expectations into account | B12: ='Scoring criteria'!E17 -> 3 | C12: =IF(B12="SO",0,1) -> 1 | H12: =B12 -> 3 | BS12: =SUM(B12) -> 3 | BT12: =C12*3 -> 3 | BU12: =SUM(B12) -> 3 | BV12: =C12*3 -> 3 | BY12: =SUM(B12) -> 3 | BZ12: =C12*3 -> 3
A13: 1.D. Coherence of the diseases under surveillance with the sanitary situation (existing/exotic diseases or threats) | B13: ='Scoring criteria'!E18 -> 3 | C13: =IF(B13="SO",0,1) -> 1 | H13: =B13 -> 3 | BY13: =SUM(B13) -> 3 | BZ13: =C13*3 -> 3
B14: =SUM(B10:B13) -> 12 | C14: =SUM(C10:C13)*3 -> 12 | D14: =B14/C14 -> 1 | E14: =B14 -> 12 | F14: =C14-B14 -> 0
A15: Section 2: Central institutional organization
A16: 2.A. Existence of an operational management structure (central unit) | B16: ='Scoring criteria'!E24 -> 0.5 | C16: =IF(B16="SO",0,1) -> 1 | AD16: =B16 -> 0.5 | AT16: =B16 -> 0.5 | BO16: =SUM(B16) -> 0.5 | BP16: =C16*3 -> 3 | BS16: =SUM(B16) -> 0.5 | BT16: =C16*3 -> 3 | BU16: =SUM(B16) -> 0.5 | BV16: =C16*3 -> 3 | BW16: =SUM(B16) -> 0.5 | BX16: =C16*3 -> 3
A17: 2.B Existence of an operational steering structure that is representative of the partners (steering committee) | B17: ='Scoring criteria'!E25 -> 1 | C17: 1 | AB17: =B17 -> 1 | BO17: =SUM(B17) -> 1 | BP17: =C17*3 -> 3 | BS17: =SUM(B17) -> 1 | BT17: =C17*3 -> 3 | BU17: =SUM(B17) -> 1 | BV17: =C17*3 -> 3
A18: 2.C. Existence of a scientific and technical committee for the system | B18: ='Scoring criteria'!E26 -> 2 | C18: 1 | AD18: =B18 -> 2 | AZ18: =B18 -> 2 | BO18: =SUM(B18) -> 2 | BP18: =C18*3 -> 3 | BQ18: =SUM(B18) -> 2 | BR18: =C18*3 -> 3 | BS18: =SUM(B18) -> 2 | BT18: =C18*3 -> 3
A19: 2.D. Organization and operations of the system laid down in regulations, a charter, or a convention established between the partners | B19: ='Scoring criteria'!E27 -> 0 | C19: 1 | J19: =B19 -> 0 | BS19: =SUM(B19) -> 0 | BT19: =C19*3 -> 3 | BU19: =SUM(B19) -> 0 | BV19: =C19*3 -> 3 | BY19: =SUM(B19) -> 0 | BZ19: =C19*1 -> 1
A20: 2.E. Frequency of meetings of the central coordinating body | B20: ='Scoring criteria'!E28 -> 2 | C20: 1 | AB20: =B20 -> 2 | BG20: =SUM(B20) -> 2 | BH20: =C20*2 -> 2 | BO20: =SUM(B20) -> 2 | BP20: =C20*3 -> 3 | BU20: =SUM(B20) -> 2 | BV20: =C20*2 -> 2
A21: 2.F. Supervision of intermediary units by the central level | B21: ='Scoring criteria'!E29 -> 2 | C21: 1 | AB21: =B21 -> 2 | BQ21: =SUM(B21) -> 2 | BR21: =C21*3 -> 3
A22: 2.G. Adequacy of the central level’s material and financial resources | B22: ='Scoring criteria'!E30 -> 0 | C22: 1 | BS22: =SUM(B22) -> 0 | BT22: =C22*3 -> 3
B23: =SUM(B16:B22) -> 7.5 | C23: =SUM(C16:C22)*3 -> 21 | D23: =B23/C23 -> 0.3571428571 | E23: =B23 -> 7.5 | F23: =C23-B23 -> 13.5
A24: Section 3: Field institutional organization
A25: 3.A. Existence of formal intermediary units covering the entire territory | B25: ='Scoring criteria'!E36 -> 3 | C25: =IF(B25="SO",0,1) -> 1 | R25: =B25 -> 3 | AB25: =B25 -> 3 | BK25: =SUM(B25) -> 3 | BL25: =C25*1 -> 1 | BO25: =SUM(B25) -> 3 | BP25: =C25*3 -> 3 | BQ25: =SUM(B25) -> 3 | BR25: =C25*2 -> 2 | BS25: =SUM(B25) -> 3 | BT25: =C25*2 -> 2
A26: 3.B. Active role of intermediary units in the functioning of the system (validation, management, feedback) | B26: ='Scoring criteria'!E37 -> 3 | C26: =IF(B26="SO",0,1) -> 1 | AB26: =B26 -> 3 | BG26: =SUM(B26) -> 3 | BH26: =C26*1 -> 1 | BQ26: 3 | BR26: =C26*2 -> 2 | BU26: =SUM(B26) -> 3 | BV26: =C26*2 -> 2
A27: 3.C. Implementation of supervision by the intermediary level | B27: ='Scoring criteria'!E38 -> 2.75 | C27: 1 | AB27: =B27 -> 2.75 | BQ27: 2.75 | BR27: =C27*3 -> 3
A28: 3.D. Harmonization of intermediary units’ activities | B28: ='Scoring criteria'!E39 -> 0 | C28: 1 | AB28: =B28 -> 0 | AT28: =B28 -> 0 | BQ28: 0 | BR28: =C28*3 -> 3 | BS28: =SUM(B28) -> 0 | BT28: =C28*2 -> 2 | BY28: =SUM(B28) -> 0 | BZ28: =C28*2 -> 2
A29: 3.E. Adequacy of material and financial resources of intermediary units | B29: ='Scoring criteria'!E40 -> 0 | C29: 1 | BM29: =SUM(B29) -> 0 | BN29: =C29*3 -> 3 | BQ29: 0 | BR29: =C29*3 -> 3 | BS29: =SUM(B29) -> 0 | BT29: =C29*2 -> 2 | BU29: =SUM(B29) -> 0 | BV29: =C29*2 -> 2
A30: 3.F. Existence of coordination meetings at the intermediate level | B30: ='Scoring criteria'!E41 -> 2 | C30: 1 | AB30: =B30 -> 2 | AT30: =B30 -> 2 | BO30: =SUM(B30) -> 2 | BP30: =C30*3 -> 3 | BQ30: 2 | BR30: =C30*1 -> 1 | BU30: =SUM(B30) -> 2 | BV30: =C30*2 -> 2
A31: 3.G. Exhaustiveness or representativeness of the field agents’ coverage of the target population | B31: ='Scoring criteria'!E42 -> 2 | C31: 1 | L31: =B31 -> 2 | N31: =B31 -> 2 | R31: =B31 -> 2 | BG31: =SUM(B31) -> 2 | BH31: =C31*3 -> 3 | BK31: =SUM(B31) -> 2 | BL31: =C31*3 -> 3
A32: 3.H. Adequacy of material and financial resources at the field level | B32: ='Scoring criteria'!E43 -> 0 | C32: 1 | BM32: =SUM(B32) -> 0 | BN32: =C32*3 -> 3 | BQ32: =SUM(B32) -> 0 | BR32: =C32*3 -> 3 | BS32: =SUM(B32) -> 0 | BT32: =C32*3 -> 3 | BU32: =SUM(B32) -> 0 | BV32: =C32*3 -> 3
B33: =SUM(B25:B32) -> 12.75 | C33: =SUM(C25:C32)*3 -> 24 | D33: =B33/C33 -> 0.53125 | E33: =B33 -> 12.75 | F33: =C33-B33 -> 11.25
A34: Section 4 : Laboratory
A35: 4.A. Effective integration of laboratories in the surveillance system | B35: ='Scoring criteria'!E49 -> 3 | C35: =IF(B35="SO",0,1) -> 1 | X35: =B35 -> 3 | AN35: =B35 -> 3 | BQ35: =SUM(B35) -> 3 | BR35: =C35*3 -> 3 | BU35: =SUM(B35) -> 3 | BV35: =C35*2 -> 2
A36: 4.B. Adequacy of human, material, and financial resources for diagnostic needs | B36: ='Scoring criteria'!E50 -> 0 | C36: =IF(B36="SO",0,1) -> 1 | AV36: =B36 -> 0 | AX36: =B36 -> 0 | BM36: =SUM(B36) -> 0 | BN36: =C36*3 -> 3 | BQ36: 0 | BR36: =C36*3 -> 3 | BS36: =SUM(B36) -> 0 | BT36: =C36*3 -> 3
A37: 4.C. Application of Quality Assurance for the tests undertaken | B37: ='Scoring criteria'!E51 -> 3 | C37: 1 | AR37: =B37 -> 3 | BQ37: 3 | BR37: =C37*3 -> 3 | BS37: =SUM(B37) -> 3 | BT37: =C37*3 -> 3
A38: 4.D. Quality of the standardization of work between different laboratories | B38: ='Scoring criteria'!E52 -> 3 | C38: 1 | AR38: =B38 -> 3 | BQ38: 3 | BR38: =C38*3 -> 3 | BS38: =SUM(B38) -> 3 | BT38: =C38*3 -> 3
A39: 4.E. Proportion of tests submitted to inter-laboratory trials | B39: ='Scoring criteria'!E53 -> 3 | C39: 1 | AR39: =B39 -> 3 | BQ39: =SUM(B39) -> 3 | BR39: =C39*3 -> 3 | BS39: =SUM(B39) -> 3 | BT39: =C39*3 -> 3
A40: 4.F. Existence of an investigation team to support field agents | B40: ='Scoring criteria'!E54 -> 2 | C40: 1 | AB40: =B40 -> 2 | BM40: =SUM(B40) -> 2 | BN40: =C40*1 -> 1 | BO40: =SUM(B40) -> 2 | BP40: =C40*2 -> 2 | BQ40: 2 | BR40: =C40*1 -> 1
A41: 4.G. Relevance of diagnostic techniques | B41: ='Scoring criteria'!E55 -> 3 | C41: 1 | AN41: =B41 -> 3 | BG41: =SUM(B41) -> 3 | BH41: =C41*3 -> 3 | BQ41: 3 | BR41: =C41*3 -> 3
A42: 4.H. Sensitivity of diagnostic techniques | B42: ='Scoring criteria'!E56 -> 1.5 | C42: 1 | AN42: =B42 -> 1.5 | BG42: =SUM(B42) -> 1.5 | BH42: =C42*3 -> 3 | BQ42: 1.5 | BR42: =C42*3 -> 3
A43: 4.I. Specificity of diagnostic techniques | B43: ='Scoring criteria'!E57 -> 1.5 | C43: 1 | AN43: =B43 -> 1.5 | BI43: =SUM(B43) -> 1.5 | BJ43: =C43*3 -> 3 | BQ43: 1.5 | BR43: =C43*3 -> 3
A44: 4.J. Control of laboratory reagents | B44: ='Scoring criteria'!E58 -> 3 | C44: 1 | AP44: =B44 -> 3 | BQ44: 3 | BR44: =C44*3 -> 3 | BS44: =SUM(B44) -> 3 | BT44: =C44*3 -> 3
A45: 4.K. Technical level of data management at the laboratory | B45: ='Scoring criteria'!E59 -> 1.5 | C45: 1 | AX45: =B45 -> 1.5 | BM45: =SUM(B45) -> 1.5 | BN45: =C45*3 -> 3 | BQ45: 1.5 | BR45: =C45*3 -> 3 | BW45: =SUM(B45) -> 1.5 | BX45: =C45*2 -> 2
A46: 4.L. Analysis deadlines at the laboratory (formalization, standardization, verification, transfer of results to the central unit) | B46: ='Scoring criteria'!E60 -> 0 | C46: 1 | AV46: =B46 -> 0 | AX46: =B46 -> 0 | BM46: =SUM(B46) -> 0 | BN46: =C46*6 -> 6 | BQ46: 0 | BR46: =C46*1 -> 1
A47: 4. M. Quality of results delivered | B47: ='Scoring criteria'!E61 -> 3 | C47: 1 | AR47: =B47 -> 3 | BQ47: =SUM(B47) -> 3 | BR47: =C47*3 -> 3
B48: =SUM(B35:B47) -> 27.5 | C48: =SUM(C35:C47)*3 -> 39 | D48: =B48/C48 -> 0.7051282051 | E48: =B48 -> 27.5 | F48: =C48-B48 -> 11.5
A49: Section 5: Surveillance tools
A50: 5.A. Existence of a formalized surveillance protocol for each disease or threat under surveillance | B50: ='Scoring criteria'!E67 -> 2 | C50: =IF(B50="SO",0,1) -> 1 | AL50: =B50 -> 2 | BQ50: =SUM(B50) -> 2 | BR50: =C50*3 -> 3 | BS50: =SUM(B50) -> 2 | BT50: =C50*3 -> 3
A51: 5.B. Standardization of data collected | B51: ='Scoring criteria'!E68 -> 3 | C51: 1 | AJ51: =B51 -> 3 | BQ51: =SUM(B51) -> 3 | BR51: =C51*3 -> 3 | BS51: =SUM(B51) -> 3 | BT51: =C51*3 -> 3
A52: 5.C. Relevance of measurement tools (excluding laboratory tools) | B52: ='Scoring criteria'!E69 -> 3 | C52: 1 | AJ52: =B52 -> 3 | BQ52: =SUM(B52) -> 3 | BR52: =C52*3 -> 3
A53: 5.D. Sensitivity of the case or threat definition | B53: ='Scoring criteria'!E70 -> 3 | C53: 1 | AJ53: =B53 -> 3 | BG53: =SUM(B53) -> 3 | BH53: =C53*3 -> 3
A54: 5.E. Specificity of the case or threat definition | B54: ='Scoring criteria'!E71 -> 1.5 | C54: 1 | AJ54: =B54 -> 1.5 | BI54: =SUM(B54) -> 1.5 | BJ54: =C54*3 -> 3
A55: 5.F. Simplicity of the case or threat definition | B55: ='Scoring criteria'!E72 -> 2 | C55: 1 | AJ55: =B55 -> 2 | BU55: =SUM(B55) -> 2 | BV55: =C55*3 -> 3 | BW55: =SUM(B55) -> 2 | BX55: =C55*3 -> 3
A56: 5.G. Quality of the filling out of investigation forms | B56: ='Scoring criteria'!E73 -> 3 | C56: 1 | AT56: =B56 -> 3 | BQ56: =SUM(B56) -> 3 | BR56: =C56*3 -> 3
A57: 5.H. Relevance of collected samples | B57: ='Scoring criteria'!E74 -> 2.5 | C57: 1 | AL57: =B57 -> 2.5 | BG57: =SUM(B57) -> 2.5 | BH57: =C57*3 -> 3 | BQ57: =SUM(B57) -> 2.5 | BR57: =C57*3 -> 3 | BY57: =SUM(B57) -> 2.5 | BZ57: =C57*3 -> 3
A58: 5.I. Standardization of collected samples | B58: ='Scoring criteria'!E75 -> 3 | C58: 1 | AL58: =B58 -> 3 | BQ58: =SUM(B58) -> 3 | BR58: =C58*3 -> 3
A59: 5.J. Quality of samples collected | B59: ='Scoring criteria'!E76 -> 3 | C59: 1 | AL59: =B59 -> 3 | AT59: =B59 -> 3 | BG59: =SUM(B59) -> 3 | BH59: =C59*3 -> 3 | BQ59: =SUM(B59) -> 3 | BR59: =C59*3 -> 3
A60: 5.K. Respect of the interval between the detection of a case or threat and the delivery of results | B60: ='Scoring criteria'!E77 -> 3 | C60: 1 | AV60: =B60 -> 3
A61: 5.L. Simplicity of the notification procedure | B61: ='Scoring criteria'!E78 -> 2 | C61: 1 | AV61: =B61 -> 2 | BU61: =SUM(B61) -> 2 | BV61: =C61*3 -> 3 | BW61: =SUM(B61) -> 2 | BX61: =C61*3 -> 3
A62: 5.M. Simplicity of the data collection procedure | B62: ='Scoring criteria'!E79 -> 2.5 | C62: 1 | BU62: =SUM(B62) -> 2.5 | BV62: =C62*3 -> 3 | BW62: =SUM(B62) -> 2.5 | BX62: =C62*3 -> 3
A63: 5.N. Acceptability of the consequences of a suspicion or case for the source or collector of data | B63: ='Scoring criteria'!E80 -> 1.5 | C63: 1 | BG63: =SUM(B63) -> 1.5 | BH63: =C63*3 -> 3
B64: =SUM(B50:B63) -> 35 | C64: =SUM(C50:C63)*3 -> 42 | D64: =B64/C64 -> 0.8333333333 | E64: =B64 -> 35 | F64: =C64-B64 -> 7
A65: Section 6: Surveillance procedures
A66: 6.A. Appropriateness of surveillance procedures with the system's objectives | B66: ='Scoring criteria'!E86 -> 0 | C66: =IF(B66="SO",0,1) -> 1 | H66: =B66 -> 0 | BQ66: =SUM(B66) -> 0 | BR66: =C66*3 -> 3 | BY66: =SUM(B66) -> 0 | BZ66: =C66*3 -> 3
A67: 6.B. Existence of passive (event-based) surveillance whose results are exhaustive or representative | B67: ='Scoring criteria'!E87 -> 3 | C67: 1 | L67: =B67*4 -> 12 | N67: =B67*4 -> 12 | R67: =B67*3 -> 9 | BG67: =SUM(B67) -> 3 | BH67: =C67*6 -> 6 | BK67: =SUM(B67) -> 3 | BL67: =C67*3 -> 3
A68: 6.C. Existence of awareness building programs for data sources in a passive (event-based) network | B68: ='Scoring criteria'!E88 -> 2 | C68: 1 | V68: =B68 -> 2 | X68: =B68 -> 2 | Z68: =B68 -> 2 | BG68: =SUM(B68) -> 2 | BH68: =C68*3 -> 3 | BI68: =SUM(B68) -> 2 | BJ68: =C68*2 -> 2 | BU68: =SUM(B68) -> 2 | BV68: =C68*3 -> 3
A69: 6.D. Relevance and suitability of active (planned) surveillance protocols | B69: ='Scoring criteria'!E89 -> 1 | C69: 1 | L69: =B69 -> 1 | N69: =B69 -> 1 | P69: =B69 -> 1 | BG69: =SUM(B69) -> 1 | BH69: =C69*3 -> 3 | BK69: =SUM(B69) -> 1 | BL69: =C69*3 -> 3
A70: 6.E. Surveillance of susceptible wild animals | B70: ='Scoring criteria'!E90 -> 0 | C70: 1 | AF70: =B70 -> 0 | BG70: =SUM(B70) -> 0 | BH70: =C70*2 -> 2
A71: 6.F. Vector surveillance and control | B71: ='Scoring criteria'!E91 -> NA | C71: 1 | AH71: =B71 -> NA | BG71: =SUM(B71) -> 0 | BH71: =C71*1 -> 1
A72: 6.G. Representativeness of the populations targeted by sampling in active (planned) surveillance | B72: ='Scoring criteria'!E92 -> NA | C72: 1 | N72: =B72 -> NA | R72: =B72 -> NA | BK72: =SUM(B72) -> 0 | BL72: =C72*3 -> 3 | BQ72: =SUM(B72) -> 0 | BR72: =C72*3 -> 3
A73: 6.H. Precision of sample under active (planned) surveillance | B73: ='Scoring criteria'!E93 -> NA | C73: 1 | P73: =B73 -> NA | T73: =B73 -> NA | BQ73: =SUM(B73) -> 0 | BR73: =C73*2 -> 2
A74: 6.I. Level of satisfaction of active (planned) surveillance completeness rate | B74: ='Scoring criteria'!E94 -> NA | C74: 1 | N74: =B74 -> NA | P74: =B74 -> NA | BG74: =SUM(B74) -> 0 | BH74: =C74*3 -> 3 | BK74: =SUM(B74) -> 0 | BL74: =C74*3 -> 3 | BQ74: =SUM(B74) -> 0 | BR74: =C74*3 -> 3
B75: =SUM(B66:B74) -> 6 | C75: =SUM(C66:C74)*3 -> 27 | D75: =B75/C75 -> 0.2222222222 | E75: =B75 -> 6 | F75: =C75-B75 -> 21
A76: Section 7: Data management
A77: 7.A. Adequacy of the data management system for the needs of the system (relational database, etc.) | B77: ='Scoring criteria'!E100 -> 3 | C77: =IF(B77="SO",0,1) -> 1 | AX77: =B77 -> 3 | BM77: =SUM(B77) -> 3 | BN77: =C77*2 -> 2 | BQ77: =SUM(B77) -> 3 | BR77: =C77*2 -> 2 | BS77: =SUM(B77) -> 3 | BT77: =C77*1 -> 1 | BU77: =SUM(B77) -> 3 | BV77: =C77*2 -> 2 | BW77: =SUM(B77) -> 3 | BX77: =C77*3 -> 3 | BY77: =SUM(B77) -> 3 | BZ77: =C77*3 -> 3
A78: 7.B. Data input interval in accordance with the objectives and use of system results | B78: ='Scoring criteria'!E101 -> 0 | C78: 1 | AV78: =B78 -> 0 | BM78: =SUM(B78) -> 0 | BN78: =C78*2 -> 2
A79: 7.C. Designated staff available and trained in data entry, management and analysis. | B79: ='Scoring criteria'!E102 -> 1 | C79: 1 | AB79: =B79 -> 1 | AX79: =B79 -> 1 | BM79: =SUM(B79) -> 1 | BN79: =C79*2 -> 2 | BQ79: =SUM(B79) -> 1 | BR79: =C79*3 -> 3
A80: 7.D. Adequacy of material and financial resources for data management and analysis | B80: ='Scoring criteria'!E103 -> 0 | C80: 1 | BQ80: =SUM(B80) -> 0 | BR80: =C80*3 -> 3 | BS80: =SUM(B80) -> 0 | BT80: =C80*2 -> 2
A81: 7.E. Data verification and validation procedures formalized and operational | B81: ='Scoring criteria'!E104 -> 1 | C81: 1 | AX81: =B81 -> 1 | BQ81: =SUM(B81) -> 1 | BR81: =C81*3 -> 3
A82: 7.F. Complete descriptive processing of data | B82: ='Scoring criteria'!E105 -> 3 | C82: 1 | AX82: =B82 -> 3 | BY82: =SUM(B82) -> 3 | BZ82: =C82*1 -> 1
A83: 7.G. Exploitation of data fits the needs of the system (if possible regular and multi-disciplinary) | B83: ='Scoring criteria'!E106 -> 0 | C83: 1 | AZ83: =B83 -> 0 | BQ83: =SUM(B83) -> 0 | BR83: =C83*3 -> 3 | BY83: =SUM(B83) -> 0 | BZ83: =C83*3 -> 3
B84: =SUM(B77:B83) -> 8 | C84: =SUM(C77:C83)*3 -> 21 | D84: =B84/C84 -> 0.380952381 | E84: =B84 -> 8 | F84: =C84-B84 -> 13
A85: Section 8: Training
A86: 8.A. Adequate skill level in epidemiology of members of the central unit | B86: ='Scoring criteria'!E112 -> 1 | C86: =IF(B86="SO",0,1) -> 1 | AB86: =B86 -> 1 | AX86: =B86 -> 1 | AZ86: =B86 -> 1 | BQ86: =SUM(B86) -> 1 | BR86: =C86*3 -> 3
A87: 8.B. Initial training implemented for all field agents when joining the system | B87: ='Scoring criteria'!E113 -> 1 | C87: =IF(B87="SO",0,1) -> 1 | V87: =B87 -> 1 | AJ87: =B87 -> 1 | AL87: =B87 -> 1 | AT87: =B87 -> 1 | BI87: =SUM(B87) -> 1 | BJ87: =C87*2 -> 2 | BQ87: =SUM(B87) -> 1 | BR87: =C87*3 -> 3 | BU87: =SUM(B87) -> 1 | BV87: =C87*3 -> 3 | BW87: =SUM(B87) -> 1 | BX87: =C87*3 -> 3
A88: 8.C. Objectives and contents of initial training of system field actors adequate for operational surveillance needs | B88: ='Scoring criteria'!E114 -> 2.5 | C88: =IF(B88="SO",0,1) -> 1 | AJ88: =B88 -> 2.5 | AL88: =B88 -> 2.5 | AT88: =B88 -> 2.5 | BQ88: =SUM(B88) -> 2.5 | BR88: =C88*3 -> 3
A89: 8.D. Regular advanced training | B89: ='Scoring criteria'!E115 -> 0 | C89: =IF(B89="SO",0,1) -> 1 | X89: =B89 -> 0 | AJ89: =B89 -> 0 | AL89: =B89 -> 0 | AT89: =B89 -> 0 | BG89: =SUM(B89) -> 0 | BH89: =C89*3 -> 3 | BI89: =SUM(B89) -> 0 | BJ89: =C89*2 -> 2 | BO89: =SUM(B89) -> 0 | BP89: =C89*3 -> 3
A90: 8.E. Adequacy of material and financial resources for training | B90: ='Scoring criteria'!E116 -> 1 | C90: =IF(B90="SO",0,1) -> 1 | BQ90: =SUM(B90) -> 1 | BR90: =C90*2 -> 2 | BS90: =SUM(B90) -> 1 | BT90: =C90*2 -> 2
B91: =SUM(B86:B90) -> 5.5 | C91: =SUM(C86:C90)*3 -> 15 | D91: =B91/C91 -> 0.3666666667 | E91: =B91 -> 5.5 | F91: =C91-B91 -> 9.5
A92: Section 9 : Communication
A93: 9.A Edition régulière de rapports et articles scientifiques sur les résultats de la surveillance | B93: ='Scoring criteria'!E122 -> 0 | C93: =IF(B93="SO",0,1) -> 1 | BB93: =B93 -> 0 | BD93: =B93 -> 0 | BS93: =SUM(B93) -> 0 | BT93: =C93*2 -> 2 | BU93: =SUM(B93) -> 0 | BV93: =C93*3 -> 3
A94: 9.B Restitution des résultats des analyses individuelles aux acteurs de terrain | B94: ='Scoring criteria'!E123 -> 3 | C94: =IF(B94="SO",0,1) -> 1 | AV94: =B94 -> 3 | BG94: =SUM(B94) -> 3 | BH94: =C94*3 -> 3 | BS94: =SUM(B94) -> 3 | BT94: =C94*3 -> 3 | BU94: =SUM(B94) -> 3 | BV94: =C94*3 -> 3
A95: 9.C Diffusion régulière d’un bulletin d’information pertinent | B95: ='Scoring criteria'!E124 -> 1.5 | C95: =IF(B95="SO",0,1) -> 1 | X95: =B95 -> 1.5 | BB95: =B95 -> 1.5 | BD95: =B95 -> 1.5 | BG95: =SUM(B95) -> 1.5 | BH95: =C95*3 -> 3 | BY95: =SUM(B95) -> 1.5 | BZ95: =C95*2 -> 2
A96: 9.D Restitution systématique des bilans de résultats aux acteurs de terrain (hors bulletin) | B96: ='Scoring criteria'!E125 -> 3 | C96: 1 | X96: =B96 -> 3 | BD96: =B96 -> 3 | BG96: =SUM(B96) -> 3 | BH96: =C96*3 -> 3 | BS96: =SUM(B96) -> 3 | BT96: =C96*2 -> 2 | BU96: =SUM(B96) -> 3 | BV96: =C96*3 -> 3 | BY96: =SUM(B96) -> 3 | BZ96: =C96*3 -> 3
A97: 9.E Présence d’un système d’échange d’informations organisé transversalement et verticalement entre les acteurs de terrain (mail et /ou web) | B97: ='Scoring criteria'!E126 -> 3 | C97: 1 | AV97: =B97 -> 3 | BG97: =SUM(B97) -> 3 | BH97: =C97*1 -> 1 | BM97: =SUM(B97) -> 3 | BN97: =C97*2 -> 2
A98: 9.F Politique de communication externe solide | B98: ='Scoring criteria'!E127 -> 3 | C98: 1 | BD98: =B98 -> 3 | BY98: =SUM(B98) -> 3 | BZ98: =C98*2 -> 2
A99: 9.G Suffisance des moyens humains, matériels et financiers pour la communication | B99: ='Scoring criteria'!E128 -> 0 | C99: 1 | BS99: =SUM(B99) -> 0 | BT99: =C99*2 -> 2
B100: =SUM(B93:B99) -> 13.5 | C100: =SUM(C93:C99)*3 -> 21 | D100: =B100/C100 -> 0.6428571429 | E100: =B100 -> 13.5 | F100: =C100-B100 -> 7.5
A101: Section 10 : Evaluation
A102: 10.A Système d’indicateurs de performance développé et validé par les responsables du réseau | B102: ='Scoring criteria'!E134 -> 0 | C102: =IF(B102="SO",0,1) -> 1 | BQ102: =SUM(B102) -> 0 | BR102: =C102*3 -> 3
A103: 10.B Indicateurs de performance régulièrement calculés, interprétés et diffusés | B103: ='Scoring criteria'!E135 -> 0 | C103: =IF(B103="SO",0,1) -> 1 | BO103: =SUM(B103) -> 0 | BP103: =C103*3 -> 3 | BQ103: =SUM(B103) -> 0 | BR103: =C103*3 -> 3
A104: 10.C Evaluation externes effectuées | B104: ='Scoring criteria'!E136 -> 1 | C104: =IF(B104="SO",0,1) -> 1 | BQ104: =SUM(B104) -> 1 | BR104: =C104*3 -> 3
A105: 10.D Mise en œuvre des mesures correctrices | B105: ='Scoring criteria'!E137 -> 1 | C105: =IF(B105="SO",0,1) -> 1 | BO105: =SUM(B105) -> 1 | BP105: =C105*3 -> 3 | BQ105: =SUM(B105) -> 1 | BR105: =C105*3 -> 3
B106: =SUM(B102:B105) -> 2 | C106: =SUM(C102:C105)*3 -> 12 | D106: =B106/C106 -> 0.1666666667 | E106: =B106 -> 2 | F106: =C106-B106 -> 10

Sheet General_feedback (hidden)
C1: General feedback
C2: For each criterion all the question concerned are referenced here.
C5: Criterion | D5: Referencing question
C6: Section 1
C7: 1.A | D7: Section 1 question 1 and 3
C8: 1.B | D8: Section 1 question 1 and 2
C9: 1.C | D9: Section 1 question 4
C10: 1.D | D10: Section 1 question 3
C12: Section2
C13: 2.A | D13: Section 2 question 8, 10, 11, 21 and 23
C14: 2.B | D14: Section 2 question 29, 32, 35, 38, 39 and 40
C15: 2.C | D15: Section 2 question 42, 45, 46, 48, 52 and 54
C16: 2.D | D16: Section 2 question 57, 58 and 59
C17: 2.E | D17: Section 2 question 61, 62, 65 and 67
C18: 2.F | D18: Section 2 question 68, 70 and 73
C19: 2.G | D19: Section 2 question 24, 27, 41 and 55
C21: Section 3
C22: 3.A | D22: Section 3 question 1, 6 and 12
C23: 3.B | D23: Section 3 question 13
C24: 3.C | D24: Section 3 question 24, 27 and 29
C25: 3.D | D25: Section 3 question 17, 18 and 19
C26: 3.E | D26: Section 3 question 21, 22 and 23
C27: 3.F | D27: section 3 queston 38, 41 and 48 OR Section 3 question 52, 53 and 54
C28: 3.G | D28: Section 3 question 30, 35 and 37
C29: 3.H | D29: Section 3 question 57, 58 and 59
C31: Section 4
C32: 4.A | D32: Section 4 question 1 and 2
C33: 4.B | D33: Section 4 question 8, 9, 10, 35, 36 and 37
C34: 4.C | D34: Section 4 table at the end of the section column l
C35: 4.D | D35: Section 4 question 3, 21, 48 and 49
C36: 4.E | D36: Section 4 table at the end of the section column m
C37: 4.F | D37: Section 4 question 52 and 53
C38: 4.G | D38: Section 4 question 54, 55 and 56
C39: 4.H | D39: Section 4 table at the end of the section column b
C40: 4.I | D40: Section 4 table at the end of the section column c
C41: 4.J | D41: Section 4 question 23 and 51
C42: 4.K | D42: Section 4 question 15, 18 and 45
C43: 4.L | D43: Section 4 table at the end of the section column j and k and question 20 and 47
C44: 4.M | D44: Section 4 question 58 and 59
C46: Section 5
C47: 5.A | D47: Section 5 question 1 and 2 to 13
C48: 5.B | D48: Section 5 question 14, 23, 24, 33 and 34
C49: 5.C | D49: Section 5 question 30 and section 1 question 1 and 3
C50: 5.D | D50: Section 5 question 16
C51: 5.E | D51: Section 5 question 17
C52: 5.F | D52: Section 5 question 18
C53: 5.G | D53: Section 5 question 23 and 28
C54: 5.H | D54: Section 5 question 36 and 40 and section 1 question 1 and 3
C55: 5.I | D55: Section 5 question 41 and 42
C56: 5.J | D56: Section 5 question 44
C57: 5.K | D57: Section 5 question 50, 51, 52 et 53
C58: 5.L | D58: Section 5 question 27, 48, 55 and 56
C59: 5.M | D59: Section 5 question 31, 32, 37, 38 and 39
C60: 5.N | D60: Section 5 uqestion 57 and 58
C62: Section 6
C63: 6.A | D63: Section 5 question 89, 87 and 88
C64: 6.B | D64: Section 5 qustion 64 and 65
C65: 6.C | D65: Section 5 question 59, 60, 61 and 62
C66: 6.D | D66: Section 5 question 67, 69 and 70
C67: 6.E | D67: Section 5 question 80, 79 and 82
C68: 6.F | D68: Section 5 question 84, 83 and 86
C69: 6.G | D69: Section 5 question 73 and 53
C70: 6.H | D70: Section 3 question 50 and 51, section 4 table at the end of the section column b and c
C71: 6.I | D71: Section 5 question 77 and 78
C73: Section 7
C74: 7.A | D74: Section 7 question 3, 8 and 9
C75: 7.B | D75: Section 7 question 18
C76: 7.C | D76: Section 7 question 52
C77: 7.D | D77: Section 7 question 28, 50 and 51
C78: 7.E | D78: Section 7 question 25, 26 and 27
C79: 7.F | D79: Section 7 question 36, 37, 38, 40 and 49
C80: 7.G | D80: Section 7 question 31, 33 and 34
C82: Section 8
C83: 8.A | D83: Section 8 question 2 and 4
C84: 8.B | D84: Section 8 question 9 and 10
C85: 8.C | D85: Section 8 question 11
C86: 8.D | D86: Section 8 question 14 and 20
C87: 8.E | D87: Section 8 question 19
C89: Section 9
C90: 9.A | D90: Section 9 question 9, 10 and 11
C91: 9.B | D91: Section 9 question 14
C92: 9.C | D92: Section 9 question 33, 34, 35, 36 and 40
C93: 9.D | D93: Section 9 question 25 and 26
C94: 9.E | D94: Section 9 question 13 and 16
C95: 9.F | D95: Section 9 question 24 and 32
C96: 9.G | D96: Section 9 question 42, 43 and 44
C98: Section 10
C99: 10.A | D99: Section 10 question 1, 3, 4 and 5
C100: 10.B | D100: Section 10 question 6, 7, 9 and 10
C101: 10.C | D101: Section 10 question 12, 15 and 16
C102: 10.D | D102: Section 10 question 19 and 20

Sheet financial sheet (hidden)
A1: SNAT
A2: Scoring grid | K2: Objectifs (Prés / Exo) | O2: Echantillonnage Prés. | S2: Echantilonnage Exo | AM2: Animation Prés | AQ2: Animation Exo | BG2: Facteurs environnement | BO2: Outils Prés. Et Exo | CI2: Recueil et circulation des données | CQ2: Traitement et interprétation des données | CY2: Diffusion de l'information Prés. | DC2: Diffusion de l'information Exo. | DH2: Q1 : Sensibilité | DL2: Q2 : Spécificité | DP2: Q3 : Représentativité | DT2: Q4 : Rapidité | DX2: Q5 : Flexibilité | EB2: Q6 : Fiabilité | EF2: Q7 : Stabilité | EJ2: Q8 : Acceptabilité | EN2: Q9 : Simplicité | ER2: Q10 : Utilité
K3: date + 6 month | L3: date + 1 year | M3: date + 2 years | O3: date + 6 month | P3: date + 1 year | Q3: date + 2 years | S3: date + 6 month | T3: date + 1 year | U3: date + 2 years | AM3: date + 6 month | AN3: date + 1 year | AO3: date + 2 years | AQ3: date + 6 month | AR3: date + 1 year | AS3: date + 2 years | BG3: date + 6 month | BH3: date + 1 year | BI3: date + 2 years | BO3: date + 6 month | BP3: date + 1 year | BQ3: date + 2 years | CI3: date + 6 month | CJ3: date + 1 year | CK3: date + 2 years | CQ3: date + 6 month | CR3: date + 1 year | CS3: date + 2 years | CY3: date + 6 month | CZ3: date + 1 year | DA3: date + 2 years | DC3: date + 6 month | DD3: date + 1 year | DE3: date + 2 years | DH3: date + 6 month | DI3: date + 1 year | DJ3: date + 2 years | DL3: date + 6 month | DM3: date + 1 year | DN3: date + 2 years | DP3: date + 6 month | DQ3: date + 1 year | DR3: date + 2 years | DT3: date + 6 month | DU3: date + 1 year | DV3: date + 2 years | DX3: date + 6 month | DY3: date + 1 year | DZ3: date + 2 years | EB3: date + 6 month | EC3: date + 1 year | ED3: date + 2 years | EF3: date + 6 month | EG3: date + 1 year | EH3: date + 2 years | EJ3: date + 6 month | EK3: date + 1 year | EL3: date + 2 years | EN3: date + 6 month | EO3: date + 1 year | EP3: date + 2 years | ER3: date + 6 month | ES3: date + 1 year | ET3: date + 2 years
K4: =(K8/N9)*15 -> 12 | L4: =(L8/N9)*15 -> 12 | M4: =(M8/N9)*15 -> 12 | O4: =(W8/Z9)*5+(AA8/AD9)*5+(AE8/AH9)*5+(AI8/AL9)*5 -> 10.5 | P4: =(X8/Z9)*5+(AB8/AD9)*5+(AF8/AH9)*5+(AJ8/AL9)*5 -> 10.5 | Q4: =(Y8/Z9)*5+(AC8/AD9)*5+(AG8/AH9)*5+(AI8/AL9)*5 -> 10.5 | S4: =(O8/R9)*3+(S8/V9)*7+(AE8/AH9)*5+(AI8/AL9)*5 -> 10.5 | T4: =(P8/R9)*3+(T8/V9)*7+(AF8/AH9)*5+(AJ8/AL9)*5 -> 10.5 | U4: =(Q8/R9)*3+(U8/V9)*7+(AG8/AH9)*5+(AK8/AL9)*5 -> 10.5 | AM4: =(AM8/AP9)*2+(AQ8/AT9)*2+(AU8/AX9)*1+(AY8/BB9)*5+(BC8/BF9)*5 -> 8.009090909 | AN4: =(AN8/AP9)*2+(AR8/AT9)*2+(AV8/AX9)*1+(AZ8/BB9)*5+(BD8/BF9)*5 -> 8.009090909 | AO4: =(AO8/AP9)*2+(AS8/AT9)*2+(AW8/AX9)*1+(BA8/BB9)*5+(BE8/BF9)*5 -> 8.009090909 | AP4: Sur 15 | AQ4: =(AM8/AP9)*4+(AQ8/AT9)*4+(AU8/AX9)*3+(AY8/BB9)*2+(BC8/BF9)*2 -> 8.563636364 | AR4: =(AN8/AP9)*4+(AR8/AT9)*4+(AV8/AX9)*3+(AZ8/BB9)*2+(BD8/BF9)*2 -> 8.563636364 | AS4: =(AO8/AP9)*4+(AS8/AT9)*4+(AW8/AX9)*3+(BA8/BB9)*2+(BE8/BF9)*2 -> 8.563636364 | AT4: Sur 15 | BG4: =(BG8/BJ9)*2+(BK8/BN9)*2 -> 0 | BH4: =(BH8/BJ9)*2+(BL8/BN9)*2 -> 0 | BI4: =(BI8/BJ9)*2+(BM8/BN9)*2 -> 0 | BJ4: Sur | BK4: =E79*2+E80*2 -> 2 | BL4: =E79*2+E80*2 -> 2 | BM4: =E79*2+E80*2 -> 2 | BO4: =(BO8/BR9)*4+(BS8/BV9)*4+(BW8/BZ9)*4+(CA8/CD9)*4+(CE8/CH9)*4 -> 16.33333333 | BP4: =(BP8/BR9)*4+(BT8/BV9)*4+(BX8/BZ9)*4+(CB8/CD9)*4+(CF8/CH9)*4 -> 16.33333333 | BQ4: =(BQ8/BR9)*4+(BU8/BV9)*4+(BY8/BZ9)*4+(CC8/CD9)*4+(CG8/CH9)*4 -> 16.33333333 | BR4: Sur 20 | CI4: =(CI8/CL9)*5+(CM8/CP9)*5 -> 5.119047619 | CJ4: =(CJ8/CL9)*5+(CN8/CP9)*5 -> 5.119047619 | CK4: =(CK8/CL9)*5+(CO8/CP9)*5 -> 5.119047619 | CL4: Sur 10 | CQ4: =(CQ8/CT9)*5+(CU8/CX9)*5 -> 3.854166667 | CR4: =(CR8/CT9)*5+(CV8/CX9)*5 -> 3.854166667 | CS4: =(CS8/CT9)*5+(CW8/CX9)*5 -> 3.854166667 | CT4: Sur 10 | CY4: =(CY8/DB9)*5+(DC8/DF9)*5 -> 4.375 | CZ4: =(CZ8/DB9)*5+(DD8/DF9)*5 -> 4.375 | DA4: =(DA8/DB9)*5+(DE8/DF9)*5 -> 4.375 | DB4: sur 10 | DC4: =(CY8/DB9)*3+(DC8/DF9)*3 -> 2.625 | DD4: =(CZ8/DB9)*3+(DD8/DF9)*3 -> 2.625 | DE4: =(DA8/DB9)*3+(DE8/DF9)*3 -> 2.625 | DF4: Sur 6 | DH4: =DH6/DK6 -> 0.7124183007 | DI4: =DI6/DK6 -> 0.7124183007 | DJ4: =DJ6/DK6 -> 0.7124183007 | DL4: =DL6/DO6 -> 0.4166666667 | DM4: =DM6/DO6 -> 0.4166666667 | DN4: =DN6/DO6 -> 0.4166666667 | DP4: =DP6/DS6 -> 0.7 | DQ4: =DQ6/DS6 -> 0.7 | DR4: =DR6/DS6 -> 0.7 | DT4: =DT6/DW6 -> 0.2530864198 | DU4: =DU6/DW6 -> 0.2530864198 | DV4: =DV6/DW6 -> 0.2530864198 | DX4: =DX6/EA6 -> 0.4425287356 | DY4: =DY6/EA6 -> 0.4425287356 | DZ4: =DZ6/EA6 -> 0.4425287356 | EB4: =EB6/EE6 -> 0.594 | EC4: =EC6/EE6 -> 0.594 | ED4: =ED6/EE6 -> 0.594 | EF4: =EF6/EI6 -> 0.5188172043 | EG4: =EG6/EI6 -> 0.5188172043 | EH4: =EH6/EI6 -> 0.5188172043 | EJ4: =EJ6/EM6 -> 0.5620915033 | EK4: =EK6/EM6 -> 0.5620915033 | EL4: =EL6/EM6 -> 0.5620915033 | EN4: =EN6/EQ6 -> 0.6 | EO4: =EO6/EQ6 -> 0.6 | EP4: =EP6/EQ6 -> 0.6 | ER4: =ER6/EU6 -> 0.671875 | ES4: =ES6/EU6 -> 0.671875 | ET4: =ET6/EU6 -> 0.671875
BG5: =IF(BK4=0,1,BG4) -> 0 | BH5: =IF(BL4=0,1,BH4) -> 0 | BI5: =IF(BM4=0,1,BI4) -> 0 | BK5: =IF(BK4=0,1,BK4) -> 2 | BL5: =IF(BL4=0,1,BL4) -> 2 | BM5: =IF(BM4=0,1,BM4) -> 2 | DH5: Total | DI5: Total | DJ5: Total | DK5: Sur | DL5: Total | DM5: Total | DN5: Total | DO5: Sur | DP5: Total | DQ5: Total | DR5: Total | DS5: Sur | DT5: Total | DU5: Total | DV5: Total | DW5: Sur | DX5: Total | DY5: Total | DZ5: Total | EA5: Sur | EB5: Total | EC5: Total | ED5: Total | EE5: Sur | EF5: Total | EG5: Total | EH5: Total | EI5: Sur | EJ5: Total | EK5: Total | EL5: Total | EM5: Sur | EN5: Total | EO5: Total | EP5: Total | EQ5: Sur | ER5: Total | ES5: Total | ET5: Total | EU5: Sur
B6: date + 6 month | C6: date + 1 year | D6: date + 2 years | E6: total obtenable en comptant les NA | O6: Reglementation de la déclaration | S6: Suspicions Exhaustivité | W6: Suspicions Exactitude | AA6: Suspicions Précision | AE6: Infections Exactitude | AI6: Infections précision | AM6: Action spécifique | AQ6: Entretien de sensibilisation | AU6: Evaluation sensibilisation | AY6: Modalités animation | BC6: Adéquation temps imparti | BG6: Surveillance de la faune sauvage | BK6: Surveillance et contrôle des vecteurs | BO6: Outils de mesure | BS6: Prélèvements | BW6: Analyses de laboratoire | CA6: Contrôle des réactifs de laboratoire | CE6: Laboratoires | CI6: Standardisation enquêteurs | CM6: Qual et délais de circ des données | CQ6: Qualité du traitement | CU6: Validation scientifique | CY6: Qualité de l'information diffusée | DC6: Périodicité et champ de diffusion | DH6: =DH21*DK21+DH29*DK29+DH34*DK34+DH46*DK46+DH47*DK47+DH60*DK60+DH64*DK64+DH66*DK66+DH70*DK70+DH76*DK76+DH77*DK77+DH78*DK78+DH79*DK79+DH80*DK80+DH83*DK83+DH102*DK102+DH109*DK109+DH111*DK111+DH112*DK112+DH110*DK110 -> 109 | DI6: =DI21*DK21+DI29*DK29+DI34*DK34+DI46*DK46+DI47*DK47+DI60*DK60+DI64*DK64+DI66*DK66+DI70*DK70+DI76*DK76+DI77*DK77+DI78*DK78+DI79*DK79+DI80*DK80+DI83*DK83+DI102*DK102+DI109*DK109+DI111*DK111+DI112*DK112+DI110*DK110 -> 109 | DJ6: =DJ21*DK21+DJ29*DK29+DJ34*DK34+DJ46*DK46+DJ47*DK47+DJ60*DK60+DJ64*DK64+DJ66*DK66+DJ70*DK70+DJ76*DK76+DJ77*DK77+DJ78*DK78+DJ79*DK79+DJ80*DK80+DJ83*DK83+DJ102*DK102+DJ109*DK109+DJ111*DK111+DJ112*DK112+DJ110*DK110 -> 109 | DK6: =SUM(DK8:DK122)*3 -> 153 | DL6: =DL48*DO48+DL61*DO61+DL77*DO77+DL100*DO100+DL102*DO102 -> 15 | DM6: =DM48*DO48+DM61*DO61+DM77*DO77+DM100*DO100+DM102*DO102 -> 15 | DN6: =DN48*DO48+DN61*DO61+DN77*DO77+DN100*DO100+DN102*DO102 -> 15 | DO6: =SUM(DO8:DO122)*3 -> 36 | DP6: =DP28*DS28+DP34*DS34+DP76*DS76+DP78*DS78+DP81*DS81+DP83*DS83 -> 21 | DQ6: =DQ28*DS28+DQ34*DS34+DQ76*DS76+DQ78*DS78+DQ81*DS81+DQ83*DS83 -> 21 | DR6: =DR28*DS28+DR34*DS34+DR76*DS76+DR78*DS78+DR81*DS81+DR83*DS83 -> 21 | DS6: =SUM(DS8:DS122)*3 -> 30 | DT6: =DT32*DW32+DT35*DW35+DT41*DW41+DT45*DW45+DT50*DW50+DT51*DW51+DT88*DW88+DT89*DW89+DT90*DW90+DT112*DW112 -> 20.5 | DU6: =DU32*DW32+DU35*DW35+DU41*DW41+DU45*DW45+DU50*DW50+DU51*DW51+DU88*DW88+DU89*DW89+DU90*DW90+DU112*DW112 -> 20.5 | DV6: =DV32*DW32+DV35*DW35+DV41*DW41+DV45*DW45+DV50*DW50+DV51*DW51+DV88*DW88+DV89*DW89+DV90*DW90+DV112*DW112 -> 20.5 | DW6: =SUM(DW8:DW122)*3 -> 81 | DX6: =DX17*EA17+DX18*EA18+DX19*EA19+DX21*EA21+DX28*EA28+DX33*EA33+DX45*EA45+DX102*EA102+DX120*EA120+DX122*EA122 -> 38.5 | DY6: =DY17*EA17+DY18*EA18+DY19*EA19+DY21*EA21+DY28*EA28+DY33*EA33+DY45*EA45+DY102*EA102+DY120*EA120+DY122*EA122 -> 38.5 | DZ6: =DZ17*EA17+DZ18*EA18+DZ19*EA19+DZ21*EA21+DZ28*EA28+DZ33*EA33+DZ45*EA45+DZ102*EA102+DZ120*EA120+DZ122*EA122 -> 38.5 | EA6: =SUM(EA8:EA122)*3 -> 87 | EB6: =EB11*EE11+EB31*EE31+EB44*EE44+EB52*EE52+EB91*EE91+EB103*EE103+EB12*EE12+EB19*EE19+EB22*EE22+EB28*EE28+EB29*EE29+EB30*EE30+EB32*EE32+EB33*EE33+EB35*EE35+EB40*EE40+EB41*EE41+EB42*EE42+EB43*EE43+EB45*EE45+EB46*EE46+EB47*EE47+EB48*EE48+EB49*EE49+EB50*EE50+EB51*EE51+EB57*EE57+EB58*EE58+EB59*EE59+EB63*EE63+EB64*EE64+EB65*EE65+EB66*EE66+EB75*EE75+EB81*EE81+EB82*EE82+EB83*EE83+EB88*EE88+EB90*EE90+EB92*EE92+EB94*EE94+EB99*EE99+EB100*EE100+EB101*EE101+EB119*EE119+EB120*EE120+EB121*EE121+EB122*EE122 -> 222.75 | EC6: =EC11*EE11+EC31*EE31+EC44*EE44+EC52*EE52+EC91*EE91+EC103*EE103+EC12*EE12+EC19*EE19+EC22*EE22+EC28*EE28+EC29*EE29+EC30*EE30+EC32*EE32+EC33*EE33+EC35*EE35+EC40*EE40+EC41*EE41+EC42*EE42+EC43*EE43+EC45*EE45+EC46*EE46+EC47*EE47+EC48*EE48+EC49*EE49+EC50*EE50+EC51*EE51+EC57*EE57+EC58*EE58+EC59*EE59+EC63*EE63+EC64*EE64+EC65*EE65+EC66*EE66+EC75*EE75+EC81*EE81+EC82*EE82+EC83*EE83+EC88*EE88+EC90*EE90+EC92*EE92+EC94*EE94+EC99*EE99+EC100*EE100+EC101*EE101+EC119*EE119+EC120*EE120+EC121*EE121+EC122*EE122 -> 222.75 | ED6: =ED11*EE11+ED31*EE31+ED44*EE44+ED52*EE52+ED91*EE91+ED103*EE103+ED12*EE12+ED19*EE19+ED22*EE22+ED28*EE28+ED29*EE29+ED30*EE30+ED32*EE32+ED33*EE33+ED35*EE35+ED40*EE40+ED41*EE41+ED42*EE42+ED43*EE43+ED45*EE45+ED46*EE46+ED47*EE47+ED48*EE48+ED49*EE49+ED50*EE50+ED51*EE51+ED57*EE57+ED58*EE58+ED59*EE59+ED63*EE63+ED64*EE64+ED65*EE65+ED66*EE66+ED75*EE75+ED81*EE81+ED82*EE82+ED83*EE83+ED88*EE88+ED90*EE90+ED92*EE92+ED94*EE94+ED99*EE99+ED100*EE100+ED101*EE101+ED119*EE119+ED120*EE120+ED121*EE121+ED122*EE122 -> 222.75 | EE6: =SUM(EE8:EE122)*3 -> 375 | EF6: =EF13*EI13+EF23*EI23+EF17*EI17+EF18*EI18+EF19*EI19+EF20*EI20+EF28*EI28+EF31*EI31+EF44*EI44+EF91*EI91+EF103*EI103+EF114*EI114+EF32*EI32+EF35*EI35+EF41*EI41+EF42*EI42+EF43*EI43+EF49*EI49+EF57*EI57+EF58*EI58+EF88*EI88+EF108*EI108+EF111*EI111+EF109*EI109 -> 96.5 | EG6: =EG13*EI13+EG23*EI23+EG17*EI17+EG18*EI18+EG19*EI19+EG20*EI20+EG28*EI28+EG31*EI31+EG44*EI44+EG91*EI91+EG103*EI103+EG114*EI114+EG32*EI32+EG35*EI35+EG41*EI41+EG42*EI42+EG43*EI43+EG49*EI49+EG57*EI57+EG58*EI58+EG88*EI88+EG108*EI108+EG111*EI111+EG109*EI109 -> 96.5 | EH6: =EH13*EI13+EH23*EI23+EH17*EI17+EH18*EI18+EH19*EI19+EH20*EI20+EH28*EI28+EH31*EI31+EH44*EI44+EH91*EI91+EH103*EI103+EH114*EI114+EH32*EI32+EH35*EI35+EH41*EI41+EH42*EI42+EH43*EI43+EH49*EI49+EH57*EI57+EH58*EI58+EH88*EI88+EH108*EI108+EH111*EI111+EH109*EI109 -> 96.5 | EI6: =SUM(EI8:EI122)*3 -> 186 | EJ6: =EJ13*EM13+EJ17*EM17+EJ18*EM18+EJ20*EM20+EJ21*EM21+EJ29*EM29+EJ32*EM32+EJ33*EM33+EJ35*EM35+EJ40*EM40+EJ62*EM62+EJ68*EM68+EJ69*EM69+EJ77*EM77+EJ88*EM88+EJ100*EM100+EJ108*EM108+EJ111*EM111+EJ109*EM109 -> 86 | EK6: =EK13*EM13+EK17*EM17+EK18*EM18+EK20*EM20+EK21*EM21+EK29*EM29+EK32*EM32+EK33*EM33+EK35*EM35+EK40*EM40+EK62*EM62+EK68*EM68+EK69*EM69+EK77*EM77+EK88*EM88+EK100*EM100+EK108*EM108+EK111*EM111+EK109*EM109 -> 86 | EL6: =EL13*EM13+EL17*EM17+EL18*EM18+EL20*EM20+EL21*EM21+EL29*EM29+EL32*EM32+EL33*EM33+EL35*EM35+EL40*EM40+EL62*EM62+EL68*EM68+EL69*EM69+EL77*EM77+EL88*EM88+EL100*EM100+EL108*EM108+EL111*EM111+EL109*EM109 -> 86 | EM6: =SUM(EM8:EM122)*3 -> 153 | EN6: =EN17*EQ17+EN50*EQ50+EN62*EQ62+EN68*EQ68+EN69*EQ69+EN88*EQ88+EN100*EQ100 -> 36 | EO6: =EO17*EQ17+EO50*EQ50+EO62*EQ62+EO68*EQ68+EO69*EQ69+EO88*EQ88+EO100*EQ100 -> 36 | EP6: =EP17*EQ17+EP50*EQ50+EP62*EQ62+EP68*EQ68+EP69*EQ69+EP88*EQ88+EP100*EQ100 -> 36 | EQ6: =SUM(EQ8:EQ122)*3 -> 60 | ER6: =ER11*EU11+ER13*EU13+ER14*EU14+ER20*EU20+ER31*EU31+ER64*EU64+ER75*EU75+ER93*EU93+ER94*EU94+ER88*EU88+ER111*EU111+ER113*EU113+ER110*EU110 -> 64.5 | ES6: =ES11*EU11+ES13*EU13+ES14*EU14+ES20*EU20+ES31*EU31+ES64*EU64+ES75*EU75+ES93*EU93+ES94*EU94+ES88*EU88+ES111*EU111+ES113*EU113+ES110*EU110 -> 64.5 | ET6: =ET11*EU11+ET13*EU13+ET14*EU14+ET20*EU20+ET31*E31+ET64*EU64+ET75*EU75+ET93*EU93+ET94*EU94+ET88*EU88+ET111*EU111+ET113*EU113+ET110*EU110 -> 64.5 | EU6: =SUM(EU8:EU122)*3 -> 96
B7: Note (sur 3) | K7: Total | L7: Total | M7: Total | N7: Sur | O7: Total | P7: Total | Q7: Total | R7: Sur | S7: Total | T7: Total | U7: Total | V7: Sur | W7: Total | X7: Total | Y7: Total | Z7: Sur | AA7: Total | AB7: Total | AC7: Total | AD7: Sur | AE7: Total | AF7: Total | AG7: Total | AH7: Sur | AI7: Total | AJ7: Total | AK7: Total | AL7: Sur | AM7: Total | AN7: Total | AO7: Total | AP7: Sur | AQ7: Total | AR7: Total | AS7: Total | AT7: Sur | AU7: Total | AV7: Total | AW7: Total | AX7: Sur | AY7: Total | AZ7: Total | BA7: Total | BB7: Sur | BC7: Total | BD7: Total | BE7: Total | BF7: Sur | BG7: Total | BH7: Total | BI7: Total | BJ7: Sur | BK7: Total | BL7: Total | BM7: Total | BN7: Sur | BO7: Total | BP7: Total | BQ7: Total | BR7: Sur | BS7: Total | BT7: Total | BU7: Total | BV7: Sur | BW7: Total | BX7: Total | BY7: Total | BZ7: Sur | CA7: Total | CB7: Total | CC7: Total | CD7: Sur | CE7: Total | CF7: Total | CG7: Total | CH7: Sur | CI7: Total | CJ7: Total | CK7: Total | CL7: Sur | CM7: Total | CN7: Total | CO7: Total | CP7: Sur | CQ7: Total | CR7: Total | CS7: Total | CT7: Sur | CU7: Total | CV7: Total | CW7: Total | CX7: Sur | CY7: Total | CZ7: Total | DA7: Total | DB7: Sur | DC7: Total | DD7: Total | DE7: Total | DF7: Sur | DH7: Note | DI7: Note | DJ7: Note | DK7: Coeff. | DL7: Note | DM7: Note | DN7: Note | DO7: Coeff. | DP7: Note | DQ7: Note | DR7: Note | DS7: Coeff. | DT7: Note | DU7: Note | DV7: Note | DW7: Coeff. | DX7: Note | DY7: Note | DZ7: Note | EA7: Coeff. | EB7: Note | EC7: Note | ED7: Note | EE7: Coeff. | EF7: Note | EG7: Note | EH7: Note | EI7: Coeff. | EJ7: Note | EK7: Note | EL7: Note | EM7: Coeff. | EN7: Note | EO7: Note | EP7: Note | EQ7: Coeff. | ER7: Note | ES7: Note | ET7: Note | EU7: Coeff.
B8: NA=Not Applicable | I8: missing points | K8: =SUM(K11:K122) -> 12 | L8: =SUM(L11:L122) -> 12 | M8: =SUM(M11:M122) -> 12 | N8: =(E11+E12+E13+E14+E75)*3 -> 15 | O8: =SUM(O11:O122) -> 0 | P8: =SUM(P11:P122) -> 0 | Q8: =SUM(Q11:Q122) -> 0 | R8: =E20*3 -> 3 | S8: =SUM(S11:S122) -> 15 | T8: =SUM(T11:T122) -> 15 | U8: =SUM(U11:U122) -> 15 | V8: =(E34+E76*4+E78)*3 -> 18 | W8: =SUM(W11:W122) -> 15 | X8: =SUM(X11:X122) -> 15 | Y8: =SUM(Y11:Y122) -> 15 | Z8: =(E34+E76*4+E78+E81+E83)*3 -> 18 | AA8: =SUM(AA11:AA122) -> 1 | AB8: =SUM(AB11:AB122) -> 1 | AC8: =SUM(AC11:AC122) -> 1 | AD8: =(E78+E82+E83)*3 -> 3 | AE8: =SUM(AE11:AE122) -> 14 | AF8: =SUM(AF11:AF122) -> 14 | AG8: =SUM(AG11:AG122) -> 14 | AH8: =(E28+E34+E76*3+E81)*3 -> 15 | AI8: =SUM(AI11:AI122) -> 0 | AJ8: =SUM(AJ11:AJ122) -> 0 | AK8: =SUM(AK11:AK122) -> 0 | AL8: =E82*3 -> 0 | AM8: =SUM(AM11:AM122) -> 3 | AN8: =SUM(AN11:AN122) -> 3 | AO8: =SUM(AO11:AO122) -> 3 | AP8: =(E77+E100)*3 -> 6 | AQ8: =SUM(AQ11:AQ122) -> 9.5 | AR8: =SUM(AR11:AR122) -> 9.5 | AS8: =SUM(AS11:AS122) -> 9.5 | AT8: =(E40+E77+E102+E111+E110)*3 -> 15 | AU8: =SUM(AU11:AU122) -> 2 | AV8: =SUM(AV11:AV122) -> 2 | AW8: =SUM(AW11:AW122) -> 2 | AX8: =E77*3 -> 3 | AY8: =SUM(AY11:AY122) -> 19.75 | AZ8: =SUM(AZ11:AZ122) -> 19.75 | BA8: =SUM(BA11:BA122) -> 19.75 | BB8: =(E18+E21+E22+E28+E29+E30+E31+E33+E45+E90+E99)*3 -> 33 | BC8: =SUM(BC11:BC122) -> 2.5 | BD8: =SUM(BD11:BD122) -> 2.5 | BE8: =SUM(BE11:BE122) -> 2.5 | BF8: =(E17+E19)*3 -> 6 | BG8: =SUM(BG11:BG122) -> 0 | BH8: =SUM(BH11:BH122) -> 0 | BI8: =SUM(BI11:BI122) -> 0 | BJ8: =E79*3 -> 3 | BK8: =SUM(BK11:BK122) -> 0 | BL8: =SUM(BL11:BL122) -> 0 | BM8: =SUM(BM11:BM122) -> 0 | BN8: =E80*3 -> 0 | BO8: =SUM(BO11:BO122) -> 16 | BP8: =SUM(BP11:BP122) -> 16 | BQ8: =SUM(BQ11:BQ122) -> 16 | BR8: =(E58+E59+E60+E61+E62+E100+E101+E102)*3 -> 24 | BS8: =SUM(BS11:BS122) -> 14 | BT8: =SUM(BT11:BT122) -> 14 | BU8: =SUM(BU11:BU122) -> 14 | BV8: =(E57+E64+E65+E66+E100+E101+E102)*3 -> 21 | BW8: =SUM(BW11:BW122) -> 9 | BX8: =SUM(BX11:BX122) -> 9 | BY8: =SUM(BY11:BY122) -> 9 | BZ8: =(E40+E46+E47+E48)*3 -> 12 | CA8: =SUM(CA11:CA122) -> 3 | CB8: =SUM(CB11:CB122) -> 3 | CC8: =SUM(CC11:CC122) -> 3 | CD8: =E49*3 -> 3 | CE8: =SUM(CE11:CE122) -> 12 | CF8: =SUM(CF11:CF122) -> 12 | CG8: =SUM(CG11:CG122) -> 12 | CH8: =(E42+E43+E44+E52)*3 -> 12 | CI8: =SUM(CI11:CI122) -> 12 | CJ8: =SUM(CJ11:CJ122) -> 12 | CK8: =SUM(CK11:CK122) -> 12 | CL8: =(E17+E31+E33+E63+E66+E100+E101+E102)*3 -> 24 | CM8: =SUM(CM11:CM122) -> 11 | CN8: =SUM(CN11:CN122) -> 11 | CO8: =SUM(CO11:CO122) -> 11 | CP8: =(E41+E51+E67+E68+E89+E109+E112)*3 -> 21 | CQ8: =SUM(CQ11:CQ122) -> 10.5 | CR8: =SUM(CR11:CR122) -> 10.5 | CS8: =SUM(CS11:CS122) -> 10.5 | CT8: =(E41+E50+E51+E88+E90+E92+E93+E99)*3 -> 24 | CU8: =SUM(CU11:CU122) -> 3 | CV8: =SUM(CV11:CV122) -> 3 | CW8: =SUM(CW11:CW122) -> 3 | CX8: =(E19+E94+E99)*3 -> 9 | CY8: =SUM(CY11:CY122) -> 1.5 | CZ8: =SUM(CZ11:CZ122) -> 1.5 | DA8: =SUM(DA11:DA122) -> 1.5 | DB8: =(E108+E110)*3 -> 6 | DC8: =SUM(DC11:DC122) -> 7.5 | DD8: =SUM(DD11:DD122) -> 7.5 | DE8: =SUM(DE11:DE122) -> 7.5 | DF8: =(E108+E111+E113+E110)*3 -> 12
N9: =IF(N8=0,1,N8) -> 15 | R9: =IF(R8=0,1,R8) -> 3 | V9: =IF(V8=0,1,V8) -> 18 | Z9: =IF(Z8=0,1,Z8) -> 18 | AD9: =IF(AD8=0,1,AD8) -> 3 | AH9: =IF(AH8=0,1,AH8) -> 15 | AL9: =IF(AL8=0,1,AL8) -> 1 | AP9: =IF(AP8=0,1,AP8) -> 6 | AT9: =IF(AT8=0,1,AT8) -> 15 | AX9: =IF(AX8=0,1,AX8) -> 3 | BB9: =IF(BB8=0,1,BB8) -> 33 | BF9: =IF(BF8=0,1,BF8) -> 6 | BJ9: =IF(BJ8=0,1,BJ8) -> 3 | BN9: =IF(BN8=0,1,BN8) -> 1 | BR9: =IF(BR8=0,1,BR8) -> 24 | BV9: =IF(BV8=0,1,BV8) -> 21 | BZ9: =IF(BZ8=0,1,BZ8) -> 12 | CD9: =IF(CD8=0,1,CD8) -> 3 | CH9: =IF(CH8=0,1,CH8) -> 12 | CL9: =IF(CL8=0,1,CL8) -> 24 | CP9: =IF(CP8=0,1,CP8) -> 21 | CT9: =IF(CT8=0,1,CT8) -> 24 | CX9: =IF(CX8=0,1,CX8) -> 9 | DB9: =IF(DB8=0,1,DB8) -> 6 | DF9: =IF(DF8=0,1,DF8) -> 12
A10: ='[1]Scoring criteria'!A14 -> Section 1: Objectives and context of surveillance
A11: 1.A. Relevance of surveillance objectives | B11: ='Scoring criteria'!E15 -> 3 | C11: =B11 -> 3 | D11: 3 | E11: =IF(OR(B11="SO",B11="NA"),0,1) -> 1 | K11: =B11 -> 3 | L11: 3 | M11: 3 | EB11: =SUM(B11) -> 3 | EC11: 3 | ED11: 3 | EE11: =E11*3 -> 3 | ER11: =SUM(B11) -> 3 | ES11: =SUM(C11) -> 3 | ET11: =SUM(D11) -> 3 | EU11: =E11*3 -> 3
A12: 1.B. Level of detail, accuracy, and formalization of objectives | B12: ='Scoring criteria'!E16 -> 3 | C12: 3 | D12: 3 | E12: =IF(OR(B12="SO",B12="NA"),0,1) -> 1 | K12: 3 | L12: 3 | M12: 3 | EB12: 3 | EC12: 3 | ED12: 3 | EE12: =E12*3 -> 3
A13: 1.C. Taking partners’ expectations into account | B13: ='Scoring criteria'!E17 -> 3 | C13: 3 | D13: 3 | E13: =IF(OR(B13="SO",B13="NA"),0,1) -> 1 | K13: 3 | L13: 3 | M13: 3 | EF13: =SUM(B13) -> 3 | EG13: =SUM(C13) -> 3 | EH13: =SUM(D13) -> 3 | EI13: =E13*3 -> 3 | EJ13: =SUM(B13) -> 3 | EK13: =SUM(C13) -> 3 | EL13: =SUM(D13) -> 3 | EM13: =E13*3 -> 3 | ER13: =SUM(B13) -> 3 | ES13: 3 | ET13: 3 | EU13: =E13*3 -> 3
A14: 1.D. Coherence of the diseases under surveillance with the sanitary situation (existing/exotic diseases or threats) | B14: ='Scoring criteria'!E18 -> 3 | C14: 3 | D14: 3 | E14: =IF(OR(B14="SO",B14="NA"),0,1) -> 1 | K14: 3 | L14: 3 | M14: 3 | ER14: 3 | ES14: 3 | ET14: 3 | EU14: =E14*3 -> 3
B15: =SUM(B11:B14) -> 12 | C15: 12 | D15: 12 | E15: =SUM(E11:E14)*3 -> 12 | G15: =B15/E15 -> 1 | H15: =B15 -> 12 | I15: =E15-B15 -> 0
A16: Section 2: Central institutional organization
A17: 2.A. Existence of an operational management structure (central unit) | B17: =IF('Scoring criteria'!E24<> "NA",'Scoring criteria'!E24-'Scoring criteria'!E24*financial!B11,'Scoring criteria'!E24) -> 0.5 | C17: =IF('Scoring criteria'!E24<> "NA",'Scoring criteria'!E24-'Scoring criteria'!E24*financial!D11,'Scoring criteria'!E24) -> 0.5 | D17: =IF('Scoring criteria'!E24<> "NA",'Scoring criteria'!E24-'Scoring criteria'!E24*financial!F11,'Scoring criteria'!E24) -> 0.5 | E17: =IF(OR(B17="SO",B17="NA"),0,1) -> 1 | BC17: =B17 -> 0.5 | BD17: =C17 -> 0.5 | BE17: =D17 -> 0.5 | CI17: =B17 -> 0.5 | CJ17: =C17 -> 0.5 | CK17: =D17 -> 0.5 | DX17: =SUM(B17) -> 0.5 | DY17: 0.5 | DZ17: 0.5 | EA17: =E17*3 -> 3 | EF17: =SUM(B17) -> 0.5 | EG17: 0.5 | EH17: 0.5 | EI17: =E17*3 -> 3 | EJ17: =SUM(B17) -> 0.5 | EK17: 0.5 | EL17: 0.5 | EM17: =E17*3 -> 3 | EN17: =SUM(B17) -> 0.5 | EO17: =SUM(C17) -> 0.5 | EP17: =SUM(D17) -> 0.5 | EQ17: =E17*3 -> 3
A18: 2.B Existence of an operational steering structure that is representative of the partners (steering committee) | B18: =IF('Scoring criteria'!E25<> "NA",'Scoring criteria'!E25-'Scoring criteria'!E25*financial!B11,'Scoring criteria'!E25) -> 1 | C18: =IF('Scoring criteria'!E25<> "NA",'Scoring criteria'!E25-'Scoring criteria'!E25*financial!D11,'Scoring criteria'!E25) -> 1 | D18: =IF('Scoring criteria'!E25<> "NA",'Scoring criteria'!E25-'Scoring criteria'!E25*financial!F11,'Scoring criteria'!E25) -> 1 | E18: 1 | AY18: =B18 -> 1 | AZ18: =C18 -> 1 | BA18: =D18 -> 1 | DX18: 1 | DY18: 1 | DZ18: 1 | EA18: =E18*3 -> 3 | EF18: 1 | EG18: 1 | EH18: 1 | EI18: =E18*3 -> 3 | EJ18: 1 | EK18: 1 | EL18: 1 | EM18: =E18*3 -> 3
A19: 2.C. Existence of a scientific and technical committee for the system | B19: =IF('Scoring criteria'!E26<> "NA",'Scoring criteria'!E26-'Scoring criteria'!E26*financial!B11,'Scoring criteria'!E26) -> 2 | C19: =IF('Scoring criteria'!E26<> "NA",'Scoring criteria'!E26-'Scoring criteria'!E26*financial!D11,'Scoring criteria'!E26) -> 2 | D19: =IF('Scoring criteria'!E26<> "NA",'Scoring criteria'!E26-'Scoring criteria'!E26*financial!F11,'Scoring criteria'!E26) -> 2 | E19: 1 | BC19: =B19 -> 2 | BD19: =C19 -> 2 | BE19: =D19 -> 2 | CU19: =B19 -> 2 | CV19: =C19 -> 2 | CW19: =D19 -> 2 | DX19: 2 | DY19: 2 | DZ19: 2 | EA19: =E19*3 -> 3 | EB19: =SUM(B19) -> 2 | EC19: =SUM(C19) -> 2 | ED19: =SUM(D19) -> 2 | EE19: =E19*3 -> 3 | EF19: 2 | EG19: 2 | EH19: 2 | EI19: =E19*3 -> 3
A20: 2.D. Organization and operations of the system laid down in regulations, a charter, or a convention established between the partners | B20: ='Scoring criteria'!E27 -> 0 | C20: =$B$20 -> 0 | D20: =$B$20 -> 0 | E20: 1 | O20: =B20 -> 0 | P20: =C20 -> 0 | Q20: =D20 -> 0 | EF20: 0 | EG20: 0 | EH20: 0 | EI20: =E20*3 -> 3 | EJ20: =SUM(B20) -> 0 | EK20: 0 | EL20: 0 | EM20: =E20*3 -> 3 | ER20: =SUM(B20) -> 0 | ES20: =SUM(C20) -> 0 | ET20: =SUM(D20) -> 0 | EU20: =E20*1 -> 1
A21: 2.E. Frequency of meetings of the central coordinating body | B21: =IF('Scoring criteria'!E28<> "NA",'Scoring criteria'!E28-'Scoring criteria'!E28*financial!B11,'Scoring criteria'!E28) -> 2 | C21: =IF('Scoring criteria'!E28<> "NA",'Scoring criteria'!E28-'Scoring criteria'!E28*financial!D11,'Scoring criteria'!E28) -> 2 | D21: =IF('Scoring criteria'!E28<> "NA",'Scoring criteria'!E28-'Scoring criteria'!E28*financial!F11,'Scoring criteria'!E28) -> 2 | E21: 1 | AY21: =B21 -> 2 | AZ21: 2 | BA21: 2 | DH21: =SUM(B21) -> 2 | DI21: =SUM(C21) -> 2 | DJ21: =SUM(D21) -> 2 | DK21: =E21*2 -> 2 | DX21: =SUM(B21) -> 2 | DY21: =SUM(C21) -> 2 | DZ21: =SUM(D21) -> 2 | EA21: =E21*3 -> 3 | EJ21: 2 | EK21: 2 | EL21: 2 | EM21: =E21*2 -> 2
A22: 2.F. Supervision of intermediary units by the central level | B22: =IF('Scoring criteria'!E29<> "NA",'Scoring criteria'!E29-'Scoring criteria'!E29*financial!B11,'Scoring criteria'!E29) -> 2 | C22: =IF('Scoring criteria'!E29<> "NA",'Scoring criteria'!E29-'Scoring criteria'!E29*financial!D11,'Scoring criteria'!E29) -> 2 | D22: =IF('Scoring criteria'!E29<> "NA",'Scoring criteria'!E29-'Scoring criteria'!E29*financial!F11,'Scoring criteria'!E29) -> 2 | E22: 1 | AY22: 2 | AZ22: 2 | BA22: 2 | EB22: =SUM(B22) -> 2 | EC22: =SUM(C22) -> 2 | ED22: =SUM(D22) -> 2 | EE22: =E22*3 -> 3
A23: 2.G. Adequacy of the central level’s material and financial resources | B23: =IF('Scoring criteria'!E30<> "NA",'Scoring criteria'!E30-'Scoring criteria'!E30*financial!B17,'Scoring criteria'!E30) -> 0 | C23: =IF('Scoring criteria'!E30<> "NA",'Scoring criteria'!E30-'Scoring criteria'!E30*financial!D11,'Scoring criteria'!E30) -> 0 | D23: =IF('Scoring criteria'!E30<> "NA",'Scoring criteria'!E30-'Scoring criteria'!E30*financial!F11,'Scoring criteria'!E30) -> 0 | E23: 1 | EF23: =SUM(B23) -> 0 | EG23: =SUM(C23) -> 0 | EH23: =SUM(D23) -> 0 | EI23: =E23*3 -> 3
B24: =SUM(B17:B23) -> 7.5 | C24: =SUM(C17:C23) -> 7.5 | D24: =SUM(D17:D23) -> 7.5 | E24: =SUM(E17:E23)*3 -> 21 | F24: date + 6 months | G24: =B24/E24 -> 0.3571428571 | H24: =B24 -> 7.5 | I24: =E24-B24 -> 13.5
F25: date + 1 year | G25: =C24/E24 -> 0.3571428571 | H25: =C24 -> 7.5 | I25: =E24-C24 -> 13.5
F26: date +2 years | G26: =D24/E24 -> 0.3571428571 | H26: =D24 -> 7.5 | I26: =E24-D24 -> 13.5
A27: Section 3: Field institutional organization
A28: 3.A. Existence of formal intermediary units covering the entire territory | B28: ='Scoring criteria'!E36 -> 3 | C28: =B28 -> 3 | D28: =C28 -> 3 | E28: =IF(OR(B28="SO",B28="NA"),0,1) -> 1 | AE28: =B28 -> 3 | AF28: =C28 -> 3 | AG28: =D28 -> 3 | AY28: =B28 -> 3 | AZ28: 3 | BA28: 3 | DP28: =SUM(B28) -> 3 | DQ28: =SUM(C28) -> 3 | DR28: =SUM(D28) -> 3 | DS28: =E28*1 -> 1 | DX28: =SUM(B28) -> 3 | DY28: =SUM(C28) -> 3 | DZ28: =SUM(D28) -> 3 | EA28: =E28*3 -> 3 | EB28: =SUM(B28) -> 3 | EC28: 3 | ED28: 3 | EE28: =E28*2 -> 2 | EF28: =SUM(B28) -> 3 | EG28: =SUM(C28) -> 3 | EH28: =SUM(D28) -> 3 | EI28: =E28*2 -> 2
A29: 3.B. Active role of intermediary units in the functioning of the system (validation, management, feedback) | B29: =IF('Scoring criteria'!E37<> "NA",'Scoring criteria'!E37-'Scoring criteria'!E37*financial!B16,'Scoring criteria'!E37) -> 3 | C29: =IF('Scoring criteria'!E37<> "NA",'Scoring criteria'!E37-'Scoring criteria'!E37*financial!D16,'Scoring criteria'!E37) -> 3 | D29: =IF('Scoring criteria'!E37<> "NA",'Scoring criteria'!E37-'Scoring criteria'!E37*financial!F16,'Scoring criteria'!E37) -> 3 | E29: 1 | AY29: 3 | AZ29: 3 | BA29: 3 | DH29: =SUM(B29) -> 3 | DI29: =SUM(C29) -> 3 | DJ29: =SUM(D29) -> 3 | DK29: =E29*1 -> 1 | EB29: 3 | EC29: 3 | ED29: 3 | EE29: =E29*2 -> 2 | EJ29: =SUM(B29) -> 3 | EK29: =SUM(C29) -> 3 | EL29: =SUM(D29) -> 3 | EM29: =E29*2 -> 2
A30: 3.C. Implementation of supervision by the intermediary level | B30: =IF('Scoring criteria'!E38<> "NA",'Scoring criteria'!E38-'Scoring criteria'!E38*financial!B16,'Scoring criteria'!E38) -> 2.75 | C30: =IF('Scoring criteria'!E38<> "NA",'Scoring criteria'!E38-'Scoring criteria'!E38*financial!D16,'Scoring criteria'!E38) -> 2.75 | D30: =IF('Scoring criteria'!E38<> "NA",'Scoring criteria'!E38-'Scoring criteria'!E38*financial!F16,'Scoring criteria'!E38) -> 2.75 | E30: 1 | AY30: 2.75 | AZ30: 2.75 | BA30: 2.75 | EB30: 2.75 | EC30: 2.75 | ED30: 2.75 | EE30: =E30*3 -> 3
A31: 3.D. Harmonization of intermediary units’ activities | B31: ='Scoring criteria'!E39 -> 0 | C31: =B31 -> 0 | D31: =C31 -> 0 | E31: 1 | AY31: 0 | AZ31: 0 | BA31: 0 | CI31: =B31 -> 0 | CJ31: =C31 -> 0 | CK31: =D31 -> 0 | EB31: 0 | EC31: 0 | ED31: 0 | EE31: =E31*3 -> 3 | EF31: =SUM(B31) -> 0 | EG31: 0 | EH31: 0 | EI31: =E31*2 -> 2 | ER31: =SUM(B31) -> 0 | ES31: =SUM(C31) -> 0 | ET31: =SUM(D31) -> 0 | EU31: =E31*2 -> 2
A32: 3.E. Adequacy of material and financial resources of intermediary units | B32: =IF('Scoring criteria'!E40<> "NA",'Scoring criteria'!E40-'Scoring criteria'!E40*financial!B16,'Scoring criteria'!E40) -> 0 | C32: =IF('Scoring criteria'!E40<> "NA",'Scoring criteria'!E40-'Scoring criteria'!E40*financial!D16,'Scoring criteria'!E40) -> 0 | D32: =IF('Scoring criteria'!E40<> "NA",'Scoring criteria'!E40-'Scoring criteria'!E40*financial!F16,'Scoring criteria'!E40) -> 0 | E32: 1 | DT32: =SUM(B32) -> 0 | DU32: =SUM(C32) -> 0 | DV32: =SUM(D32) -> 0 | DW32: =E32*3 -> 3 | EB32: 0 | EC32: 0 | ED32: 0 | EE32: =E32*3 -> 3 | EF32: 0 | EG32: 0 | EH32: 0 | EI32: =E32*2 -> 2 | EJ32: =SUM(B32) -> 0 | EK32: 0 | EL32: 0 | EM32: =E32*2 -> 2
A33: 3.F. Existence of coordination meetings at the intermediate level | B33: =IF('Scoring criteria'!E41<> "NA",'Scoring criteria'!E41-'Scoring criteria'!E41*financial!B16,'Scoring criteria'!E41) -> 2 | C33: =IF('Scoring criteria'!E41<> "NA",'Scoring criteria'!E41-'Scoring criteria'!E41*financial!D16,'Scoring criteria'!E41) -> 2 | D33: =IF('Scoring criteria'!E41<> "NA",'Scoring criteria'!E41-'Scoring criteria'!E41*financial!F16,'Scoring criteria'!E41) -> 2 | E33: 1 | AY33: =B33 -> 2 | AZ33: =C33 -> 2 | BA33: =D33 -> 2 | CI33: =B33 -> 2 | CJ33: =C33 -> 2 | CK33: =D33 -> 2 | DX33: =SUM(B33) -> 2 | DY33: =SUM(C33) -> 2 | DZ33: =SUM(D33) -> 2 | EA33: =E33*3 -> 3 | EB33: 2 | EC33: 2 | ED33: 2 | EE33: =E33*1 -> 1 | EJ33: 2 | EK33: 2 | EL33: 2 | EM33: =E33*2 -> 2
A34: 3.G. Exhaustiveness or representativeness of the field agents’ coverage of the target population | B34: =IF('Scoring criteria'!E42<> "NA",'Scoring criteria'!E42-'Scoring criteria'!E42*financial!B16,'Scoring criteria'!E42) -> 2 | C34: =IF('Scoring criteria'!E42<> "NA",'Scoring criteria'!E42-'Scoring criteria'!E42*financial!D16,'Scoring criteria'!E42) -> 2 | D34: =IF('Scoring criteria'!E42<> "NA",'Scoring criteria'!E42-'Scoring criteria'!E42*financial!F16,'Scoring criteria'!E42) -> 2 | E34: 1 | S34: =B34 -> 2 | T34: =C34 -> 2 | U34: =D34 -> 2 | W34: =B34 -> 2 | X34: =C34 -> 2 | Y34: =D34 -> 2 | AE34: =B34 -> 2 | AF34: =C34 -> 2 | AG34: =D34 -> 2 | DH34: =SUM(B34) -> 2 | DI34: =SUM(C34) -> 2 | DJ34: =SUM(D34) -> 2 | DK34: =E34*3 -> 3 | DP34: =SUM(B34) -> 2 | DQ34: =SUM(C34) -> 2 | DR34: =SUM(D34) -> 2 | DS34: =E34*3 -> 3
A35: 3.H. Adequacy of material and financial resources at the field level | B35: =IF('Scoring criteria'!E43<> "NA",'Scoring criteria'!E43-'Scoring criteria'!E43*financial!B16,'Scoring criteria'!E43) -> 0 | C35: =IF('Scoring criteria'!E43<> "NA",'Scoring criteria'!E43-'Scoring criteria'!E43*financial!D16,'Scoring criteria'!E43) -> 0 | D35: =IF('Scoring criteria'!E43<> "NA",'Scoring criteria'!E43-'Scoring criteria'!E43*financial!F16,'Scoring criteria'!E43) -> 0 | E35: 1 | DT35: =SUM(B35) -> 0 | DU35: =SUM(C35) -> 0 | DV35: =SUM(D35) -> 0 | DW35: =E35*3 -> 3 | EB35: =SUM(B35) -> 0 | EC35: =SUM(C35) -> 0 | ED35: =SUM(D35) -> 0 | EE35: =E35*3 -> 3 | EF35: =SUM(B35) -> 0 | EG35: =SUM(C35) -> 0 | EH35: =SUM(D35) -> 0 | EI35: =E35*3 -> 3 | EJ35: =SUM(B35) -> 0 | EK35: =SUM(C35) -> 0 | EL35: =SUM(D35) -> 0 | EM35: =E35*3 -> 3
B36: =SUM(B28:B35) -> 12.75 | C36: =SUM(C28:C35) -> 12.75 | D36: =SUM(D28:D35) -> 12.75 | E36: =SUM(E28:E35)*3 -> 24 | F36: date + 6 months | G36: =B36/E36 -> 0.53125 | H36: =B36 -> 12.75 | I36: =E36-B36 -> 11.25
F37: date + 1 year | G37: =C36/E36 -> 0.53125 | H37: =C36 -> 12.75 | I37: =E36-C36 -> 11.25
F38: date +2 years | G38: =D36/E36 -> 0.53125 | H38: =D36 -> 12.75 | I38: =E36-D36 -> 11.25
A39: Section 4 : Laboratory
A40: 4.A. Effective integration of laboratories in the surveillance system | B40: ='Scoring criteria'!E49 -> 3 | C40: =B40 -> 3 | D40: =C40 -> 3 | E40: =IF(OR(B40="SO",B40="NA"),0,1) -> 1 | AQ40: =B40 -> 3 | AR40: =C40 -> 3 | AS40: =D40 -> 3 | BW40: =B40 -> 3 | BX40: =C40 -> 3 | BY40: =D40 -> 3 | EB40: =SUM(B40) -> 3 | EC40: =SUM(C40) -> 3 | ED40: 3 | EE40: =E40*3 -> 3 | EJ40: =SUM(B40) -> 3 | EK40: =SUM(C40) -> 3 | EL40: =SUM(D40) -> 3 | EM40: =E40*2 -> 2
A41: 4.B. Adequacy of human, material, and financial resources for diagnostic needs | B41: =IF('Scoring criteria'!E50<> "NA",'Scoring criteria'!E50-'Scoring criteria'!E50*financial!B21,'Scoring criteria'!E50) -> 0 | C41: =IF('Scoring criteria'!E50<> "NA",'Scoring criteria'!E50-'Scoring criteria'!E50*financial!D21,'Scoring criteria'!E50) -> 0 | D41: =IF('Scoring criteria'!E50<> "NA",'Scoring criteria'!E50-'Scoring criteria'!E50*financial!F21,'Scoring criteria'!E50) -> 0 | E41: 1 | CM41: =B41 -> 0 | CN41: =C41 -> 0 | CO41: =D41 -> 0 | CQ41: =B41 -> 0 | CR41: =C41 -> 0 | CS41: =D41 -> 0 | DT41: =SUM(B41) -> 0 | DU41: =SUM(C41) -> 0 | DV41: =SUM(D41) -> 0 | DW41: =E41*3 -> 3 | EB41: 0 | EC41: 0 | ED41: 0 | EE41: =E41*3 -> 3 | EF41: =SUM(B41) -> 0 | EG41: 0 | EH41: 0 | EI41: =E41*3 -> 3
A42: 4.C. Application of Quality Assurance for the tests undertaken | B42: =IF('Scoring criteria'!E51<> "NA",'Scoring criteria'!E51-'Scoring criteria'!E51*financial!B21,'Scoring criteria'!E51) -> 3 | C42: =IF('Scoring criteria'!E51<> "NA",'Scoring criteria'!E51-'Scoring criteria'!E51*financial!D21,'Scoring criteria'!E51) -> 3 | D42: =IF('Scoring criteria'!E51<> "NA",'Scoring criteria'!E51-'Scoring criteria'!E51*financial!F21,'Scoring criteria'!E51) -> 3 | E42: 1 | CE42: =B42 -> 3 | CF42: 3 | CG42: 3 | EB42: 3 | EC42: 3 | ED42: 3 | EE42: =E42*3 -> 3 | EF42: 3 | EG42: 3 | EH42: 3 | EI42: =E42*3 -> 3
A43: 4.D. Quality of the standardization of work between different laboratories | B43: ='Scoring criteria'!E52 -> 3 | C43: =B43 -> 3 | D43: =C43 -> 3 | E43: 1 | CE43: 3 | CF43: 3 | CG43: 3 | EB43: 3 | EC43: 3 | ED43: 3 | EE43: =E43*3 -> 3 | EF43: 3 | EG43: 3 | EH43: 3 | EI43: =E43*3 -> 3
A44: 4.E. Proportion of tests submitted to inter-laboratory trials | B44: =IF('Scoring criteria'!E53<> "NA",'Scoring criteria'!E53-'Scoring criteria'!E53*financial!B21,'Scoring criteria'!E53) -> 3 | C44: =IF('Scoring criteria'!E53<> "NA",'Scoring criteria'!E53-'Scoring criteria'!E53*financial!D21,'Scoring criteria'!E53) -> 3 | D44: =IF('Scoring criteria'!E53<> "NA",'Scoring criteria'!E53-'Scoring criteria'!E53*financial!F21,'Scoring criteria'!E53) -> 3 | E44: 1 | CE44: 3 | CF44: 3 | CG44: 3 | EB44: 3 | EC44: 3 | ED44: 3 | EE44: =E44*3 -> 3 | EF44: 3 | EG44: 3 | EH44: 3 | EI44: =E44*3 -> 3
A45: 4.F. Existence of an investigation team to support field agents | B45: =IF('Scoring criteria'!E54<> "NA",'Scoring criteria'!E54-'Scoring criteria'!E54*financial!B21,'Scoring criteria'!E54) -> 2 | C45: =IF('Scoring criteria'!E54<> "NA",'Scoring criteria'!E54-'Scoring criteria'!E54*financial!D21,'Scoring criteria'!E54) -> 2 | D45: =IF('Scoring criteria'!E54<> "NA",'Scoring criteria'!E54-'Scoring criteria'!E54*financial!F21,'Scoring criteria'!E54) -> 2 | E45: 1 | AY45: =B45 -> 2 | AZ45: =C45 -> 2 | BA45: =D45 -> 2 | DT45: =SUM(B45) -> 2 | DU45: =SUM(C45) -> 2 | DV45: =SUM(D45) -> 2 | DW45: =E45*1 -> 1 | DX45: =SUM(B45) -> 2 | DY45: =SUM(C45) -> 2 | DZ45: =SUM(D45) -> 2 | EA45: =E45*2 -> 2 | EB45: 2 | EC45: 2 | ED45: 2 | EE45: =E45*1 -> 1
A46: 4.G. Relevance of diagnostic techniques | B46: ='Scoring criteria'!E55 -> 3 | C46: =B46 -> 3 | D46: 3 | E46: 1 | BW46: =B46 -> 3 | BX46: 3 | BY46: 3 | DH46: =SUM(B46) -> 3 | DI46: 3 | DJ46: 3 | DK46: =E46*3 -> 3 | EB46: 3 | EC46: 3 | ED46: 3 | EE46: =E46*3 -> 3
A47: 4.H. Sensitivity of diagnostic techniques | B47: ='Scoring criteria'!E56 -> 1.5 | C47: 1.5 | D47: 1.5 | E47: 1 | BW47: 1.5 | BX47: 1.5 | BY47: 1.5 | DH47: 1.5 | DI47: 1.5 | DJ47: 1.5 | DK47: =E47*3 -> 3 | EB47: 1.5 | EC47: 1.5 | ED47: 1.5 | EE47: =E47*3 -> 3
A48: 4.I. Specificity of diagnostic techniques | B48: ='Scoring criteria'!E57 -> 1.5 | C48: 1.5 | D48: 1.5 | E48: 1 | BW48: 1.5 | BX48: 1.5 | BY48: 1.5 | DL48: =SUM(B48) -> 1.5 | DM48: =SUM(C48) -> 1.5 | DN48: =SUM(D48) -> 1.5 | DO48: =E48*3 -> 3 | EB48: 1.5 | EC48: 1.5 | ED48: 1.5 | EE48: =E48*3 -> 3
A49: 4.J. Control of laboratory reagents | B49: ='Scoring criteria'!E58 -> 3 | C49: 3 | D49: 3 | E49: 1 | CA49: =B49 -> 3 | CB49: =C49 -> 3 | CC49: =D49 -> 3 | EB49: 3 | EC49: 3 | ED49: 3 | EE49: =E49*3 -> 3 | EF49: =SUM(B49) -> 3 | EG49: =SUM(C49) -> 3 | EH49: =SUM(D49) -> 3 | EI49: =E49*3 -> 3
A50: 4.K. Technical level of data management at the laboratory | B50: ='Scoring criteria'!E59 -> 1.5 | C50: 1.5 | D50: 1.5 | E50: 1 | CQ50: =B50 -> 1.5 | CR50: 1.5 | CS50: 1.5 | DT50: =SUM(B50) -> 1.5 | DU50: 1.5 | DV50: 1.5 | DW50: =E50*3 -> 3 | EB50: 1.5 | EC50: 1.5 | ED50: 1.5 | EE50: =E50*3 -> 3 | EN50: =SUM(B50) -> 1.5 | EO50: =SUM(C50) -> 1.5 | EP50: =SUM(D50) -> 1.5 | EQ50: =E50*2 -> 2
A51: 4.L. Analysis deadlines at the laboratory (formalization, standardization, verification, transfer of results to the central unit) | B51: =IF('Scoring criteria'!E60<> "NA",'Scoring criteria'!E60-'Scoring criteria'!E60*financial!B21,'Scoring criteria'!E60) -> 0 | C51: =IF('Scoring criteria'!E60<> "NA",'Scoring criteria'!E60-'Scoring criteria'!E60*financial!D21,'Scoring criteria'!E60) -> 0 | D51: =IF('Scoring criteria'!E60<> "NA",'Scoring criteria'!E60-'Scoring criteria'!E60*financial!F21,'Scoring criteria'!E60) -> 0 | E51: 1 | CM51: =B51 -> 0 | CN51: =C51 -> 0 | CO51: =D51 -> 0 | CQ51: 0 | CR51: 0 | CS51: 0 | DT51: 0 | DU51: 0 | DV51: 0 | DW51: =E51*6 -> 6 | EB51: 0 | EC51: 0 | ED51: 0 | EE51: =E51*1 -> 1
A52: 4. M. Quality of results delivered | B52: ='Scoring criteria'!E61 -> 3 | C52: =B52 -> 3 | D52: =C52 -> 3 | E52: 1 | CE52: =B52 -> 3 | CF52: =C52 -> 3 | CG52: =D52 -> 3 | EB52: 3 | EC52: 3 | ED52: 3 | EE52: =E52*3 -> 3
B53: =SUM(B40:B52) -> 27.5 | C53: =SUM(C40:C52) -> 27.5 | D53: =SUM(D40:D52) -> 27.5 | E53: =SUM(E40:E52)*3 -> 39 | F53: date + 6 months | G53: =B53/E53 -> 0.7051282051 | H53: =B53 -> 27.5 | I53: =E53-B53 -> 11.5
F54: date + 1 year | G54: =C53/E53 -> 0.7051282051 | H54: =C53 -> 27.5 | I54: =E53-C53 -> 11.5
F55: date +2 years | G55: =D53/E53 -> 0.7051282051 | H55: =D53 -> 27.5 | I55: =E53-D53 -> 11.5
A56: Section 5: Surveillance tools
A57: 5.A. Existence of a formalized surveillance protocol for each disease or threat under surveillance | B57: ='Scoring criteria'!E67 -> 2 | C57: =B57 -> 2 | D57: 2 | E57: =IF(OR(B57="SO",B57="NA"),0,1) -> 1 | BS57: =B57 -> 2 | BT57: =C57 -> 2 | BU57: =D57 -> 2 | EB57: =SUM(B57) -> 2 | EC57: 2 | ED57: 2 | EE57: =E57*3 -> 3 | EF57: =SUM(B57) -> 2 | EG57: 2 | EH57: 2 | EI57: =E57*3 -> 3
A58: 5.B. Standardization of data collected | B58: ='Scoring criteria'!E68 -> 3 | C58: 3 | D58: 3 | E58: 1 | BO58: =B58 -> 3 | BP58: 3 | BQ58: 3 | EB58: 3 | EC58: 3 | ED58: 3 | EE58: =E58*3 -> 3 | EF58: 3 | EG58: 3 | EH58: 3 | EI58: =E58*3 -> 3
A59: 5.C. Relevance of measurement tools (excluding laboratory tools) | B59: ='Scoring criteria'!E69 -> 3 | C59: 3 | D59: 3 | E59: 1 | BO59: 3 | BP59: 3 | BQ59: 3 | EB59: 3 | EC59: 3 | ED59: 3 | EE59: =E59*3 -> 3
A60: 5.D. Sensitivity of the case or threat definition | B60: ='Scoring criteria'!E70 -> 3 | C60: 3 | D60: 3 | E60: 1 | BO60: 3 | BP60: 3 | BQ60: 3 | DH60: =SUM(B60) -> 3 | DI60: =SUM(C60) -> 3 | DJ60: =SUM(D60) -> 3 | DK60: =E60*3 -> 3
A61: 5.E. Specificity of the case or threat definition | B61: ='Scoring criteria'!E71 -> 1.5 | C61: 1.5 | D61: 1.5 | E61: 1 | BO61: 1.5 | BP61: 1.5 | BQ61: 1.5 | DL61: =SUM(B61) -> 1.5 | DM61: =SUM(C61) -> 1.5 | DN61: =SUM(D61) -> 1.5 | DO61: =E61*3 -> 3
A62: 5.F. Simplicity of the case or threat definition | B62: ='Scoring criteria'!E72 -> 2 | C62: 2 | D62: 2 | E62: 1 | BO62: 2 | BP62: 2 | BQ62: 2 | EJ62: =SUM(B62) -> 2 | EK62: =SUM(C62) -> 2 | EL62: =SUM(D62) -> 2 | EM62: =E62*3 -> 3 | EN62: =SUM(B62) -> 2 | EO62: =SUM(C62) -> 2 | EP62: =SUM(D62) -> 2 | EQ62: =E62*3 -> 3
A63: 5.G. Quality of the filling out of investigation forms | B63: ='Scoring criteria'!E73 -> 3 | C63: 3 | D63: 3 | E63: 1 | CI63: =B63 -> 3 | CJ63: =C63 -> 3 | CK63: =D63 -> 3 | EB63: =SUM(B63) -> 3 | EC63: 3 | ED63: 3 | EE63: =E63*3 -> 3
A64: 5.H. Relevance of collected samples | B64: ='Scoring criteria'!E74 -> 2.5 | C64: 2.5 | D64: 2.5 | E64: 1 | BS64: =B64 -> 2.5 | BT64: 2.5 | BU64: 2.5 | DH64: =SUM(B64) -> 2.5 | DI64: =SUM(C64) -> 2.5 | DJ64: =SUM(D64) -> 2.5 | DK64: =E64*3 -> 3 | EB64: 2.5 | EC64: 2.5 | ED64: 2.5 | EE64: =E64*3 -> 3 | ER64: =SUM(B64) -> 2.5 | ES64: =SUM(C64) -> 2.5 | ET64: =SUM(D64) -> 2.5 | EU64: =E64*3 -> 3
A65: 5.I. Standardization of collected samples | B65: =IF('Scoring criteria'!E75="NA",'Scoring criteria'!E75,IF(AND('financial sheet'!B76<>"NA",'financial sheet'!B78<>"NA"),'Scoring criteria'!E75-('Scoring criteria'!E75*(financial!B26+financial!B31))/2,IF('financial sheet'!B76="NA",'Scoring criteria'!E75-'Scoring criteria'!E75*financial!B31,'Scoring criteria'!E75-'Scoring criteria'!E75*financial!B26))) -> 3 | C65: =IF('Scoring criteria'!E75="NA",'Scoring criteria'!E75,IF(AND('financial sheet'!B76<>"NA",'financial sheet'!B78<>"NA"),'Scoring criteria'!E75-('Scoring criteria'!E75*(financial!D26+financial!D31))/2,IF('financial sheet'!B76="NA",'Scoring criteria'!E75-'Scoring criteria'!E75*financial!D31,'Scoring criteria'!E75-'Scoring criteria'!E75*financial!D26))) -> 3 | D65: =IF('Scoring criteria'!E75="NA",'Scoring criteria'!E75,IF(AND('financial sheet'!B76<>"NA",'financial sheet'!B78<>"NA"),'Scoring criteria'!E75-('Scoring criteria'!E75*(financial!F26+financial!F31))/2,IF('financial sheet'!B76="NA",'Scoring criteria'!E75-'Scoring criteria'!E75*financial!F31,'Scoring criteria'!E75-'Scoring criteria'!E75*financial!F26))) -> 3 | E65: 1 | BS65: 3 | BT65: 3 | BU65: 3 | EB65: 3 | EC65: 3 | ED65: 3 | EE65: =E65*3 -> 3
A66: 5.J. Quality of samples collected | B66: =IF('Scoring criteria'!E76="NA",'Scoring criteria'!E76,IF(AND('financial sheet'!B77<>"NA",'financial sheet'!B79<>"NA"),'Scoring criteria'!E76-('Scoring criteria'!E76*(financial!B26+financial!B31))/2,IF('financial sheet'!B77="NA",'Scoring criteria'!E76-'Scoring criteria'!E76*financial!B31,'Scoring criteria'!E76-'Scoring criteria'!E76*financial!B26))) -> 3 | C66: =IF('Scoring criteria'!E76="NA",'Scoring criteria'!E76,IF(AND('financial sheet'!B77<>"NA",'financial sheet'!B79<>"NA"),'Scoring criteria'!E76-('Scoring criteria'!E76*(financial!D26+financial!D31))/2,IF('financial sheet'!B77="NA",'Scoring criteria'!E76-'Scoring criteria'!E76*financial!D31,'Scoring criteria'!E76-'Scoring criteria'!E76*financial!D26))) -> 3 | D66: =IF('Scoring criteria'!E76="NA",'Scoring criteria'!E76,IF(AND('financial sheet'!B77<>"NA",'financial sheet'!B79<>"NA"),'Scoring criteria'!E76-('Scoring criteria'!E76*(financial!F26+financial!F31))/2,IF('financial sheet'!B77="NA",'Scoring criteria'!E76-'Scoring criteria'!E76*financial!F31,'Scoring criteria'!E76-'Scoring criteria'!E76*financial!F26))) -> 3 | E66: 1 | BS66: 3 | BT66: 3 | BU66: 3 | CI66: =B66 -> 3 | CJ66: =C66 -> 3 | CK66: =D66 -> 3 | DH66: =SUM(B66) -> 3 | DI66: =SUM(C66) -> 3 | DJ66: =SUM(D66) -> 3 | DK66: =E66*3 -> 3 | EB66: 3 | EC66: 3 | ED66: 3 | EE66: =E66*3 -> 3
A67: 5.K. Respect of the interval between the detection of a case or threat and the delivery of results | B67: ='Scoring criteria'!E77 -> 3 | C67: 3 | D67: 3 | E67: 1 | CM67: =B67 -> 3 | CN67: 3 | CO67: 3
A68: 5.L. Simplicity of the notification procedure | B68: =IF('Scoring criteria'!E78<> "NA",'Scoring criteria'!E78-'Scoring criteria'!E78*financial!B26,'Scoring criteria'!E78) -> 2 | C68: =IF('Scoring criteria'!E78<> "NA",'Scoring criteria'!E78-'Scoring criteria'!E78*financial!D26,'Scoring criteria'!E78) -> 2 | D68: =IF('Scoring criteria'!E78<> "NA",'Scoring criteria'!E78-'Scoring criteria'!E78*financial!F26,'Scoring criteria'!E78) -> 2 | E68: 1 | CM68: 2 | CN68: 2 | CO68: 2 | EJ68: =SUM(B68) -> 2 | EK68: 2 | EL68: 2 | EM68: =E68*3 -> 3 | EN68: =SUM(B68) -> 2 | EO68: 2 | EP68: 2 | EQ68: =E68*3 -> 3
A69: 5.M. Simplicity of the data collection procedure | B69: =IF('Scoring criteria'!E79="NA",'Scoring criteria'!E79,IF(AND('financial sheet'!B76<>"NA",'financial sheet'!B78<>"NA"),'Scoring criteria'!E79-('Scoring criteria'!E79*(financial!B26+financial!B31))/2,IF('financial sheet'!B76="NA",'Scoring criteria'!E79-'Scoring criteria'!E79*financial!B31,'Scoring criteria'!E79-'Scoring criteria'!E79*financial!B26))) -> 2.5 | C69: =IF('Scoring criteria'!E79="NA",'Scoring criteria'!E79,IF(AND('financial sheet'!B76<>"NA",'financial sheet'!B78<>"NA"),'Scoring criteria'!E79-('Scoring criteria'!E79*(financial!D26+financial!D31))/2,IF('financial sheet'!B76="NA",'Scoring criteria'!E79-'Scoring criteria'!E79*financial!D31,'Scoring criteria'!E79-'Scoring criteria'!E79*financial!D26))) -> 2.5 | D69: =IF('Scoring criteria'!E79="NA",'Scoring criteria'!E79,IF(AND('financial sheet'!B76<>"NA",'financial sheet'!B78<>"NA"),'Scoring criteria'!E79-('Scoring criteria'!E79*(financial!F26+financial!F31))/2,IF('financial sheet'!B76="NA",'Scoring criteria'!E79-'Scoring criteria'!E79*financial!F31,'Scoring criteria'!E79-'Scoring criteria'!E79*financial!F26))) -> 2.5 | E69: 1 | EJ69: 2.5 | EK69: 2.5 | EL69: 2.5 | EM69: =E69*3 -> 3 | EN69: 2.5 | EO69: 2.5 | EP69: 2.5 | EQ69: =E69*3 -> 3
A70: 5.N. Acceptability of the consequences of a suspicion or case for the source or collector of data | B70: =IF('Scoring criteria'!E80<> "NA",'Scoring criteria'!E80-'Scoring criteria'!E80*financial!B26,'Scoring criteria'!E80) -> 1.5 | C70: =IF('Scoring criteria'!E80<> "NA",'Scoring criteria'!E80-'Scoring criteria'!E80*financial!D26,'Scoring criteria'!E80) -> 1.5 | D70: =IF('Scoring criteria'!E80<> "NA",'Scoring criteria'!E80-'Scoring criteria'!E80*financial!F26,'Scoring criteria'!E80) -> 1.5 | E70: 1 | DH70: =SUM(B70) -> 1.5 | DI70: =SUM(C70) -> 1.5 | DJ70: =SUM(D70) -> 1.5 | DK70: =E70*3 -> 3
B71: =SUM(B57:B70) -> 35 | C71: =SUM(C57:C70) -> 35 | D71: =SUM(D57:D70) -> 35 | E71: =SUM(E57:E70)*3 -> 42 | F71: date + 6 months | G71: =B71/E71 -> 0.8333333333 | H71: =B71 -> 35 | I71: =E71-B71 -> 7
F72: date + 1 year | G72: =C71/E71 -> 0.8333333333 | H72: =C71 -> 35 | I72: =E71-C71 -> 7
F73: date +2 years | G73: =D71/E71 -> 0.8333333333 | H73: =D71 -> 35 | I73: =E71-D71 -> 7
A74: Section 6: Surveillance procedures
A75: 6.A. Appropriateness of surveillance procedures with the system's objectives | B75: =IF('Scoring criteria'!E86<> "NA",'Scoring criteria'!E86-('Scoring criteria'!E86*(financial!B26+financial!B31))/2,'Scoring criteria'!E86) -> 0 | C75: =IF('Scoring criteria'!E86<> "NA",'Scoring criteria'!E86-('Scoring criteria'!E86*(financial!D26+financial!D31))/2,'Scoring criteria'!E86) -> 0 | D75: =IF('Scoring criteria'!E86<> "NA",'Scoring criteria'!E86-('Scoring criteria'!E86*(financial!F26+financial!F31))/2,'Scoring criteria'!E86) -> 0 | E75: =IF(OR(B75="SO",B75="NA"),0,1) -> 1 | K75: =B75 -> 0 | L75: =C75 -> 0 | M75: =D75 -> 0 | EB75: =SUM(B75) -> 0 | EC75: =SUM(C75) -> 0 | ED75: =SUM(D75) -> 0 | EE75: =E75*3 -> 3 | ER75: =SUM(B75) -> 0 | ES75: =SUM(C75) -> 0 | ET75: =SUM(D75) -> 0 | EU75: =E75*3 -> 3
A76: 6.B. Existence of passive (event-based) surveillance whose results are exhaustive or representative | B76: ='Scoring criteria'!E87 -> 3 | C76: =B76 -> 3 | D76: =C76 -> 3 | E76: 1 | S76: =B76*4 -> 12 | T76: =C76*4 -> 12 | U76: =D76*4 -> 12 | W76: =B76*4 -> 12 | X76: =C76*4 -> 12 | Y76: =D76*4 -> 12 | AE76: =B76*3 -> 9 | AF76: =C76*3 -> 9 | AG76: =D76*3 -> 9 | DH76: =SUM(B76) -> 3 | DI76: 3 | DJ76: 3 | DK76: =E76*6 -> 6 | DP76: =SUM(B76) -> 3 | DQ76: =SUM(C76) -> 3 | DR76: =SUM(D76) -> 3 | DS76: =E76*3 -> 3
A77: 6.C. Existence of awareness building programs for data sources in a passive (event-based) network | B77: =IF('Scoring criteria'!E88<> "NA",'Scoring criteria'!E88-'Scoring criteria'!E88*financial!B26,'Scoring criteria'!E88) -> 2 | C77: =IF('Scoring criteria'!E88<> "NA",'Scoring criteria'!E88-'Scoring criteria'!E88*financial!D26,'Scoring criteria'!E88) -> 2 | D77: =IF('Scoring criteria'!E88<> "NA",'Scoring criteria'!E88-'Scoring criteria'!E88*financial!F26,'Scoring criteria'!E88) -> 2 | E77: 1 | AM77: =B77 -> 2 | AN77: =C77 -> 2 | AO77: =D77 -> 2 | AQ77: =B77 -> 2 | AR77: =C77 -> 2 | AS77: =D77 -> 2 | AU77: =B77 -> 2 | AV77: =C77 -> 2 | AW77: =D77 -> 2 | DH77: 2 | DI77: 2 | DJ77: 2 | DK77: =E77*3 -> 3 | DL77: =SUM(B77) -> 2 | DM77: =SUM(C77) -> 2 | DN77: =SUM(D77) -> 2 | DO77: =E77*2 -> 2 | EJ77: =SUM(B77) -> 2 | EK77: =SUM(C77) -> 2 | EL77: =SUM(D77) -> 2 | EM77: =E77*3 -> 3
A78: 6.D. Relevance and suitability of active (planned) surveillance protocols | B78: =IF('Scoring criteria'!E89<> "NA",'Scoring criteria'!E89-('Scoring criteria'!E89*(financial!B29+financial!B34))/2,'Scoring criteria'!E89) -> 1 | C78: =IF('Scoring criteria'!E89<> "NA",'Scoring criteria'!E89-'Scoring criteria'!E89*financial!D31,'Scoring criteria'!E89) -> 1 | D78: =IF('Scoring criteria'!E89<> "NA",'Scoring criteria'!E89-'Scoring criteria'!E89*financial!F31,'Scoring criteria'!E89) -> 1 | E78: 1 | S78: =B78 -> 1 | T78: =C78 -> 1 | U78: =D78 -> 1 | W78: =B78 -> 1 | X78: =C78 -> 1 | Y78: =D78 -> 1 | AA78: =B78 -> 1 | AB78: =C78 -> 1 | AC78: =D78 -> 1 | DH78: 1 | DI78: 1 | DJ78: 1 | DK78: =E78*3 -> 3 | DP78: =SUM(B78) -> 1 | DQ78: =SUM(C78) -> 1 | DR78: =SUM(D78) -> 1 | DS78: =E78*3 -> 3
A79: 6.E. Surveillance of susceptible wild animals | B79: =IF('Scoring criteria'!E90<> "NA",'Scoring criteria'!E90-('Scoring criteria'!E90*(financial!B30+financial!B35))/2,'Scoring criteria'!E90) -> 0 | C79: =IF('Scoring criteria'!E90<> "NA",'Scoring criteria'!E90-'Scoring criteria'!E90*financial!D36,'Scoring criteria'!E90) -> 0 | D79: =IF('Scoring criteria'!E90<> "NA",'Scoring criteria'!E90-'Scoring criteria'!E90*financial!F36,'Scoring criteria'!E90) -> 0 | E79: 1 | BG79: =B79 -> 0 | BH79: =C79 -> 0 | BI79: =D79 -> 0 | DH79: 0 | DI79: 0 | DJ79: 0 | DK79: =E79*2 -> 2
A80: 6.F. Vector surveillance and control | B80: =IF('Scoring criteria'!E91<> "NA",'Scoring criteria'!E91-('Scoring criteria'!E91*(financial!B31+financial!B36))/2,'Scoring criteria'!E91) -> NA | C80: =IF('Scoring criteria'!E91<> "NA",'Scoring criteria'!E91-'Scoring criteria'!E91*financial!D33,'Scoring criteria'!E91) -> NA | D80: =IF('Scoring criteria'!E91<> "NA",'Scoring criteria'!E91-'Scoring criteria'!E91*financial!F33,'Scoring criteria'!E91) -> NA | E80: 0 | BK80: =B80 -> NA | BL80: =C80 -> NA | BM80: =D80 -> NA | DH80: 0 | DI80: 0 | DJ80: 0 | DK80: =E80*1 -> 0
A81: 6.G. Representativeness of the populations targeted by sampling in active (planned) surveillance | B81: ='Scoring criteria'!E92 -> NA | C81: =B81 -> NA | D81: =C81 -> NA | E81: 0 | W81: =B81 -> NA | X81: =C81 -> NA | Y81: =D81 -> NA | AE81: =B81 -> NA | AF81: =C81 -> NA | AG81: =D81 -> NA | DP81: =SUM(B81) -> 0 | DQ81: =SUM(C81) -> 0 | DR81: =SUM(D81) -> 0 | DS81: =E81*3 -> 0 | EB81: =SUM(B81) -> 0 | EC81: 0 | ED81: 0 | EE81: =E81*3 -> 0
A82: 6.H. Precision of sample under active (planned) surveillance | B82: ='Scoring criteria'!E93 -> NA | C82: =B82 -> NA | D82: =C82 -> NA | E82: 0 | AA82: =B82 -> NA | AB82: NA | AC82: NA | AI82: =B82 -> NA | AJ82: =C82 -> NA | AK82: =D82 -> NA | EB82: 0 | EC82: 0 | ED82: 0 | EE82: =E82*2 -> 0
